Workbook

Sheet Supplier Request FORM B
B2: NATIONAL UNIVERSITY OF SINGAPORE | F2: Note: Please ensure that all fields in green are populated before you submit the form. | H2: updated on 29 Feb 2024
B3: OFFICE OF FINANCE
B4: SUPPLIER CREATION REQUEST FORM B - INDIVIDUAL
C7: Section A - Department Requestor Information | E7: Field | F7: Quick notes for Requestor
C8: Date of request | D8: =TEXT(TODAY(),"DD.MM.YYYY") -> 06.06.2024 | E8: Mandatory | F8: Automatically generated.
C9: NUS ID | D9: =UPPER(GetUserName()) -> MXIE | E9: Mandatory | F9: Automatically generated.
C11: Department Code | E11: Mandatory | F11: Type a keyword for searchable drop down list (eg. type Finance, press enter and click the drop down arrow).
C12: Company code | E12: Mandatory | F12: Select from drop down list.
C16: Section B : Payee Details | E16: Field | F16: Quick notes for Requestor
C17: Name 1 | E17: Mandatory | F17: Enter one name only in upper case, must be in English and maximum 35 characters. | G17: =LEN(D17) -> 0 | H17: Excel validation for 35 characters.
C18: Name 2 | E18: Optional | F18: Enter one name only in upper case if "Name 1" exceeds 35 characters. | G18: =LEN(D18) -> 0 | H18: Excel validation for 35 characters.
C20: Street | E20: Mandatory | F20: In upper case, maximum 35 characters. | G20: 0 | H20: Excel validation for 35 characters.
C21: House number | E21: Conditional | F21: In upper case, maximum 10 characters. | G21: 0 | H21: Excel validation for 10 characters.
C22: Street 4 | E22: Conditional | F22: In upper case, required if "Street" exceeds 35 characters. | G22: =LEN(D22) -> 0 | H22: Excel validation for 35 characters.
C23: Street 5 | E23: Conditional | F23: In upper case, required if "Street 4" exceeds 35 characters. | G23: 0 | H23: Excel validation for 35 characters.
C24: City | E24: Mandatory | F24: In upper case, maximum 35 characters. | G24: =LEN(D24) -> 0 | H24: Excel validation for 35 characters.
C25: Country | E25: Mandatory | F25: Type a keyword for searchable drop down list (eg. type SG, press enter and click the drop down arrow).
C26: Postal code | E26: Conditional | F26: Required for Singapore, 6 numeric digits. Optional for Non-Singapore.
C28: Telephone Number | E28: Optional
C29: Mobile Phone | E29: Optional
C30: FAX | E30: Optional
C32: Email Address 1 | E32: Mandatory | F32: For sending of Remittance Advice.
C33: Email Address 2 | E33: Optional | F33: For sending of Additional Remittance Advice. Optional for payment method "PayNow Fast".
C34: Email Address 3 | E34: Optional | F34: For sending of PO.
C36: Personal Identification Type | E36: Mandatory | F36: Select from drop down list.
C37: NRIC / FIN number/ Passport Number | E37: Mandatory | F37: Last 4 characters of NRIC/FIN/Passport number.
C41: Section C : Bank Details for Payment | E41: Field | F41: Quick notes for Requestor
C42: Payment method | E42: Mandatory | F42: Select correct Payment method.
C43: Bank Country | E43: Conditional | F43: Select from drop down list.
C45: Bank Name | E45: Mandatory | F45: Select correct Bank Name to populate SWIFT Code correctly.
C46: SWIFT Code | E46: Conditional | F46: Select from drop down list.
C48: International Routing number/BSB/Sort code | E48: Optional | F48: For payment in USA/GBP/AUS. Select from drop down list (refer to Intl Routing BSB SORT tab for more information).
C49: Bank Account number | E49: Mandatory | F49: Exclude branch code, spacing or dash "-". For PayNow Mobile, proxy must have prefix +65.
C50: IBAN | E50: Conditional | F50: Applicable to European countries. Exclude spacing or dash "-".
C52: Intermediary/Correspondent payment currency | E52: Optional | F52: If applicable, to leave blank. Select from drop down list.
C53: Intermediary/Correspondent Bank Country | E53: Optional | F53: Refer to SWIFT CODE tab for more information
C54: Intermediary/Correspondent Bank Name | E54: Optional | F54: Type a keyword for searchable drop down list (eg. type CITI, press enter and click the drop down arrow).
C55: Intermediary/Correspondent Bank SWIFT CODE | E55: Optional | F55: If applicable, to leave blank. Select from drop down list.
C59: Section D : Consent and Disclaimer
C61: PDPA advisory guidelines state that an individual may be deemed to have given consent to use his/her personal data when he/she voluntarily provides the data for a single purpose (e.g for the purpose of payment). Department for the purpose of its business will gather various types of data from the external individual in the best way that suits the external individual (e.g. through an invitation letter, an agreement, email correspondence, etc.) Department can while gathering such data, include the external individual’s preferred method of receiving payment, if applicable and convey this to OFN via this template which is strictly for internal use. Department need not submit supporting bank account documents or check the Supplier/payee master record to establish whether a payee record exists for the external individual. For more details, please refer to NUS website for our Data Privacy Policy.
C65: Section E : Internal Use
C66: Bank Details
C67: Bank details Valid from date | E67: Optional | F67: To indicate start date, for change of bank details.
C68: Account Holder Name | E68: Optional | F68: If name of payee different from Supplier name on line 17 of this form.
C69: Valid From | E69: Optional
C70: Valid To | E70: Optional
C72: Restricted Currency | E72: Optional | F72: Select from drop down list.
C73: Account Name for restricted currency only | E73: Optional | F73: For restricted currency only (refer to restricted currency tab).
C74: Tax category | E74: Conditional | F74: Enter PK2 for Pakistan individual.
C75: Pakistan Tax Identification no./ Russia VO INN no. | E75: Conditional | F75: Applicable only for payment in Pakistani Rupee or Russian Ruble only.
C77: Alternative Payee | E77: Optional | F77: Enter Supplier number of Alternative Payee.

Sheet Vendor
A1: BP Grouping | B1: NUS ID | C1: Department Code | D1: Name 1 | E1: Name 2 | F1: First Name | G1: Last Name | H1: Search Term 1 | I1: Street | J1: House Number | K1: Street 4 | L1: Street 5 | M1: Postal Code | N1: City | O1: Country | P1: Language | Q1: Telephone | R1: Mobile phone | S1: Fax | T1: Email | U1: Note | V1: Email2 | W1: Note2 | X1: Email3 | Y1: Note3 | Z1: Industry | AA1: ID Type1 | AB1: Identification Number 1 | AC1: Valid From1 | AD1: Valid To1 | AE1: ID Type2 | AF1: Identification Number 2 | AG1: Valid From2 | AH1: Valid To2 | AI1: ID Type3 | AJ1: Identification Number 3 | AK1: Valid From 3 | AL1: Valid To 3 | AM1: ID Type 4 | AN1: Identification Number 4 | AO1: Valid From 4 | AP1: Valid To 4 | AQ1: ID Type 5 | AR1: Identification Number 5 | AS1: Valid From 5 | AT1: Valid To 5 | AU1: ID Type 6 | AV1: Identification Number 6 | AW1: Valid From 6 | AX1: Valid To 6 | AY1: Tax Category 1 | AZ1: Business Partner Tax Number 1 | BA1: Tax Category 2 | BB1: Business Partner Tax Number 2 | BC1: Tax Category 3 | BD1: Business Partner Tax Number 3 | BE1: Bank details ID | BF1: Bank Country Key | BG1: Bank Key | BH1: Bank Account | BI1: IBAN | BJ1: SWIFT Code | BK1: Reference Detail | BL1: Account Holder | BM1: Account Name | BN1: Valid From | BO1: Valid To | BP1: Currency (Intermediary Bank) | BQ1: Bank Key (Intermediary Bank) | BR1: Bank Country (Intermediary Bank) | BS1: Bank Account No (Intermediary Bank) | BT1: IBAN (Intermediary Bank) | BU1: Purchasing Organisation | BV1: Order currency | BW1: Payment Term (Purchase) | BX1: Vendor Schema Group | BY1: GR-Based Invoice Verification | BZ1: Company Code | CA1: Reconciliation Account | CB1: Planning Group | CC1: Payment Term (Finance) | CD1: Check Flag Double Invoices | CE1: Payment Method1 | CF1: Payment Method2 | CG1: Alternative Payee
A2: Z002 | B2: =IF('Supplier Request FORM B'!D9="","",'Supplier Request FORM B'!D9) -> MXIE | C2: =IF('Supplier Request FORM B'!D11="","",LEFT('Supplier Request FORM B'!D11,3)) ->  | F2: =IF('Supplier Request FORM B'!D18="","",'Supplier Request FORM B'!D18) ->  | G2: =IF('Supplier Request FORM B'!D17="","",'Supplier Request FORM B'!D17) ->  | H2: =LEFT(G2,20) ->  | I2: =IF('Supplier Request FORM B'!D20="","",'Supplier Request FORM B'!D20) ->  | J2: =IF('Supplier Request FORM B'!D21="","",'Supplier Request FORM B'!D21) ->  | K2: =IF('Supplier Request FORM B'!D22="","",'Supplier Request FORM B'!D22) ->  | L2: =IF('Supplier Request FORM B'!D23="","",'Supplier Request FORM B'!D23) ->  | M2: =IF('Supplier Request FORM B'!D26="","",'Supplier Request FORM B'!D26) ->  | N2: =IF('Supplier Request FORM B'!D24="","",'Supplier Request FORM B'!D24) ->  | O2: =IF('Supplier Request FORM B'!D25="","",LEFT('Supplier Request FORM B'!D25,2)) ->  | P2: EN | Q2: =IF('Supplier Request FORM B'!D28="","",'Supplier Request FORM B'!D28) ->  | R2: =IF('Supplier Request FORM B'!D29="","",'Supplier Request FORM B'!D29) ->  | S2: =IF('Supplier Request FORM B'!D30="","",'Supplier Request FORM B'!D30) ->  | T2: =IF('Supplier Request FORM B'!D32="","",'Supplier Request FORM B'!D32) ->  | U2: =IF('Supplier Request FORM B'!D32<>"","REMIT1","") ->  | V2: =IF('Supplier Request FORM B'!D33="","",'Supplier Request FORM B'!D33) ->  | W2: =IF('Supplier Request FORM B'!D33<>"","REMIT2","") ->  | X2: =IF('Supplier Request FORM B'!D34="","",'Supplier Request FORM B'!D34) ->  | Y2: =IF('Supplier Request FORM B'!D34<>"","PO","") ->  | Z2: P | AA2: =IF(AND('Supplier Request FORM B'!D36<>"NRIC / FIN",'Supplier Request FORM B'!D37<>""),"FS0002","") ->  | AB2: =IF('Supplier Request FORM B'!D37="","",IF('Supplier Request FORM B'!D36<>"NRIC / FIN",'Supplier Request FORM B'!D37,"")) ->  | AC2: =TEXT(TODAY(),"DD.MM.YYYY") -> 06.06.2024 | AD2: 31.12.9999 | AY2: =IF('Supplier Request FORM B'!D36="NRIC / FIN","SG2","") ->  | AZ2: =IF('Supplier Request FORM B'!D36="NRIC / FIN",'Supplier Request FORM B'!D37,"") ->  | BE2: =IF(CE2="","",IF(CE2="AK","",IF(CE2="CM","T01",IF(CE2="GQ","G01",IF(CE2="FP","P01",IF(CE2="A ","",IF(CE2="C ","T01",IF(CE2="G ","G01",IF(CE2="F ","P01"))))))))) ->  | BF2: =IF('Supplier Request FORM B'!D43="","",LEFT('Supplier Request FORM B'!D43,2)) ->  | BG2: =IF(LEFT('Supplier Request FORM B'!$D$42,1)="F",'Supplier Request FORM B'!$D$45,IF(AND('Supplier Request FORM B'!D46="",'Supplier Request FORM B'!D48=""),"",IF('Supplier Request FORM B'!D46<>"",'Supplier Request FORM B'!D46,'Supplier Request FORM B'!D48))) ->  | BH2: =IF('Supplier Request FORM B'!D49="","",LEFT('Supplier Request FORM B'!D49,18)) ->  | BI2: =IF('Supplier Request FORM B'!D50="","",'Supplier Request FORM B'!D50) ->  | BJ2: =IF('Supplier Request FORM B'!D46="","",'Supplier Request FORM B'!D46) ->  | BK2: =MID('Supplier Request FORM B'!D49,19,20) ->  | BL2: =IF('Supplier Request FORM B'!D68="","",'Supplier Request FORM B'!D68) ->  | BM2: =IF('Supplier Request FORM B'!D73="","",'Supplier Request FORM B'!D73) ->  | BN2: =IF('Supplier Request FORM B'!D69="","",'Supplier Request FORM B'!D69) ->  | BO2: =IF('Supplier Request FORM B'!D70="","",'Supplier Request FORM B'!D70) ->  | BP2: =LEFT('Supplier Request FORM B'!D52,3) ->  | BQ2: =IF('Supplier Request FORM B'!D55="","",'Supplier Request FORM B'!D55) ->  | BR2: =LEFT('Supplier Request FORM B'!D53,2) ->  | BU2: =LEFT('Supplier Request FORM B'!D12,4) ->  | BZ2: =LEFT('Supplier Request FORM B'!D12,4) ->  | CE2: =IF('Supplier Request FORM B'!D42="","AK",VLOOKUP(LEFT('Supplier Request FORM B'!D12,4)&LEFT('Supplier Request FORM B'!D42,1),Mapping!AD:AE,2,FALSE)) -> AK | CG2: =IF('Supplier Request FORM B'!D77="","",'Supplier Request FORM B'!D77) -> 

Sheet Reference
B2: Purpose of this Reference Tab : To provide more information on the different terms in the dropdown lists in Supplier Request Entity Tab
B4: Customer Type | C4: Remarks
B5: Z001 - Supplier | C5: External Suppliers
B6: Z001 - Sponsor | C6: Where the customer is also a grantor who provides grant to NUS.
B7: Z003 - Staff | C7: Where the Supplier is also a staff
B8: Z004 - Student | C8: Where the Supplier is also a student .This does not relate to the billing of tuition fees to the students
B10: Note : The 2 highlighted Customer Type are most commonly used
B12: Industry | C12: Remarks
B13: AS-NUS ASSOCIATED CO | C13: Companies that are related to NUS. Department should obtain confirmation from OFN BP Team before choosing this category
B14: C -COMPANIES | C14: These are non SG Government, external organisations
B15: F -FOUNDATIONS | C15: Non profit organisations that makes grants to other organisations or individuals. Example: Lee Foundation, The Shaw Foundation Pte Ltd
B16: G -GOVT MINISTRIES | C16: Singapore Givernment Ministries that do not to submit invoice via Vendors@gov
B17: GE-GOVT MIN - eINVOICE | C17: Government bodies in Singapore. Such as Ministry of Finance, where there is a requirement for submission of the tax invoices via vendors@gov portal. List of vendors@gov ministries can be found in https://www.vendors.gov.sg/UsefulReferences/MinStatuaryBoards.aspx
B18: N -NON-PROFIT ORGN | C18: Organisations that do not exist to make a profit. Example : Sun Yat-Sen University
B19: O -OTHERS | C19: Organisations that do not belong to any of the other categories
B20: P -INDIVIDUAL | C20: Not applicable on this form
B21: S -STATUTORY BOARDS | C21: Satutory boards that do not need to submit invoice via Vendors@gov
B22: SE-STAT BOARD -eINVOICE | C22: Statutory boards in Singapore. Such as CPF Board, where there is a requirement for submission of tax invoices via vendors@gov portal. List of vendors@gov statutory bodies can be found in https://www.vendors.gov.sg/UsefulReferences/MinStatuaryBoards.aspx
B23: SU-NUS SUBSIDIARIES | C23: Companies that are related to NUS. Department should obtain confirmation from OFN BP Team before choosing this category
B24: T -TRUSTS FUND/ ESTATES | C24: Organisations that act as agents for individuals or business, on management of assets. Example : The Wellcome Trust
B25: UN-UNI UNDER MOE | C25: Other University in Singapore under MOE . Example : SUTD
B26: V -FOREIGN GOV/HIGHCOMM | C26: Foreign government or High Commission Example : Australian High Commission
B28: Note : The 4 highlighted Categories are most commonly used

Sheet Intl Routing BSB SORT (hidden)
A1: Bank Country | B1: Bank Key | C1: Name of bank | D1: Bank number | E1: Payment method | G1: Working (B) | H1: Country List (B) | I1: DropdownList
A2: US | B2: FW011000028 | C2: STATE STREET BOSTON | D2: FW011000028 | E2: CM/C | G2: =IF(ISNUMBER(SEARCH(LEFT('Supplier Request FORM B'!$D$42,1),E2)),MAX(G$1:$G1)+1,0) -> 1 | H2: =IFERROR(INDEX(B:B,MATCH(ROW(H1),G:G,0)),"") -> FW011000028 | I2: =IF(H2="","",OFFSET('Intl Routing BSB SORT'!$H$2,,,MAX('Intl Routing BSB SORT'!$G$2:$G$5000))) -> FW011000028
A3: US | B3: FW011000138 | C3: BANK OF AMERICA, N.A. (FORMERLY FLEET NATIONAL BANK) | D3: FW011000138 | E3: CM/C | G3: =IF(ISNUMBER(SEARCH(LEFT('Supplier Request FORM B'!$D$42,1),E3)),MAX(G$1:$G2)+1,0) -> 2 | H3: =IFERROR(INDEX(B:B,MATCH(ROW(H2),G:G,0)),"") -> FW011000138
A4: US | B4: FW011000390 | C4: BANK OF AMERICA, N.A. (FORMERLY FLEETBOSTON) | D4: FW011000390 | E4: CM/C | G4: =IF(ISNUMBER(SEARCH(LEFT('Supplier Request FORM B'!$D$42,1),E4)),MAX(G$1:$G3)+1,0) -> 3 | H4: FW011000390
A5: US | B5: FW011001234 | C5: MELLON TRUST OF NEW ENGLAND | D5: FW011001234 | E5: CM/C | G5: =IF(ISNUMBER(SEARCH(LEFT('Supplier Request FORM B'!$D$42,1),E5)),MAX(G$1:$G4)+1,0) -> 4 | H5: FW011001234
A6: US | B6: FW011001438 | C6: INVESTORS BANK & TRUST CO. | D6: FW011001438 | E6: CM/C | G6: =IF(ISNUMBER(SEARCH(LEFT('Supplier Request FORM B'!$D$42,1),E6)),MAX(G$1:$G5)+1,0) -> 5 | H6: FW011001438
A7: US | B7: FW011002343 | C7: THE BOSTON PRIVATE BK. & TR CO | D7: FW011002343 | E7: CM/C | G7: =IF(ISNUMBER(SEARCH(LEFT('Supplier Request FORM B'!$D$42,1),E7)),MAX(G$1:$G6)+1,0) -> 6 | H7: FW011002343
A8: US | B8: FW011002550 | C8: WAINWRIGHT BANK | D8: FW011002550 | E8: CM/C | G8: =IF(ISNUMBER(SEARCH(LEFT('Supplier Request FORM B'!$D$42,1),E8)),MAX(G$1:$G7)+1,0) -> 7 | H8: FW011002550
A9: US | B9: FW011075150 | C9: SOVEREIGN BANK NEW ENGLAND | D9: FW011075150 | E9: CM/C | G9: =IF(ISNUMBER(SEARCH(LEFT('Supplier Request FORM B'!$D$42,1),E9)),MAX(G$1:$G8)+1,0) -> 8 | H9: FW011075150
A10: US | B10: FW011102502 | C10: FIRST NATIONAL BANK OF LITCHFIELD | D10: FW011102502 | E10: CM/C | G10: =IF(ISNUMBER(SEARCH(LEFT('Supplier Request FORM B'!$D$42,1),E10)),MAX(G$1:$G9)+1,0) -> 9 | H10: FW011102502
A11: US | B11: FW011103093 | C11: TD BANK, NA | D11: FW011103093 | E11: CM/C | G11: =IF(ISNUMBER(SEARCH(LEFT('Supplier Request FORM B'!$D$42,1),E11)),MAX(G$1:$G10)+1,0) -> 10 | H11: FW011103093
A12: US | B12: FW011110617 | C12: BANKERS' BANK NORTHEAST | D12: FW011110617 | E12: CM/C | G12: =IF(ISNUMBER(SEARCH(LEFT('Supplier Request FORM B'!$D$42,1),E12)),MAX(G$1:$G11)+1,0) -> 11 | H12: FW011110617
A13: US | B13: FW011110756 | C13: START COMMUNITY BANK | D13: FW011110756 | E13: CM/C | G13: =IF(ISNUMBER(SEARCH(LEFT('Supplier Request FORM B'!$D$42,1),E13)),MAX(G$1:$G12)+1,0) -> 12 | H13: FW011110756
A14: US | B14: FW011200585 | C14: DAMARISCOTTA BANK & TRUST CO | D14: FW011200585 | E14: CM/C | G14: =IF(ISNUMBER(SEARCH(LEFT('Supplier Request FORM B'!$D$42,1),E14)),MAX(G$1:$G13)+1,0) -> 13 | H14: FW011200585
A15: US | B15: FW011201432 | C15: OCEAN NATIONAL BANK | D15: FW011201432 | E15: CM/C | G15: =IF(ISNUMBER(SEARCH(LEFT('Supplier Request FORM B'!$D$42,1),E15)),MAX(G$1:$G14)+1,0) -> 14 | H15: FW011201432
A16: US | B16: FW011201458 | C16: CAMDEN NATIONAL BANK | D16: FW011201458 | E16: CM/C | G16: =IF(ISNUMBER(SEARCH(LEFT('Supplier Request FORM B'!$D$42,1),E16)),MAX(G$1:$G15)+1,0) -> 15 | H16: FW011201458
A17: US | B17: FW011201759 | C17: BAR HARBOR BANK & TRUST | D17: FW011201759 | E17: CM/C | G17: =IF(ISNUMBER(SEARCH(LEFT('Supplier Request FORM B'!$D$42,1),E17)),MAX(G$1:$G16)+1,0) -> 16 | H17: FW011201759
A18: US | B18: FW011201830 | C18: THE FIRST, NATIONAL ASSOCIATION | D18: FW011201830 | E18: CM/C | G18: =IF(ISNUMBER(SEARCH(LEFT('Supplier Request FORM B'!$D$42,1),E18)),MAX(G$1:$G17)+1,0) -> 17 | H18: FW011201830
A19: US | B19: FW011300142 | C19: COMMERCE BANK & TRUST CO. | D19: FW011300142 | E19: CM/C | G19: =IF(ISNUMBER(SEARCH(LEFT('Supplier Request FORM B'!$D$42,1),E19)),MAX(G$1:$G18)+1,0) -> 18 | H19: FW011300142
A20: US | B20: FW011300595 | C20: CAMBRIDGE TRUST COMPANY | D20: FW011300595 | E20: CM/C | G20: =IF(ISNUMBER(SEARCH(LEFT('Supplier Request FORM B'!$D$42,1),E20)),MAX(G$1:$G19)+1,0) -> 19 | H20: FW011300595
A21: US | B21: FW011301798 | C21: EASTERN BANK | D21: FW011301798 | E21: CM/C | G21: =IF(ISNUMBER(SEARCH(LEFT('Supplier Request FORM B'!$D$42,1),E21)),MAX(G$1:$G20)+1,0) -> 20 | H21: FW011301798
A22: US | B22: FW011302603 | C22: THE NORTHMARK BK | D22: FW011302603 | E22: CM/C | G22: =IF(ISNUMBER(SEARCH(LEFT('Supplier Request FORM B'!$D$42,1),E22)),MAX(G$1:$G21)+1,0) -> 21 | H22: FW011302603
A23: US | B23: FW011303097 | C23: NORTHERN BANK AND TRUST CO | D23: FW011303097 | E23: CM/C | G23: =IF(ISNUMBER(SEARCH(LEFT('Supplier Request FORM B'!$D$42,1),E23)),MAX(G$1:$G22)+1,0) -> 22 | H23: FW011303097
A24: US | B24: FW011304478 | C24: ROCKLAND TRUST COMPANY | D24: FW011304478 | E24: CM/C | G24: =IF(ISNUMBER(SEARCH(LEFT('Supplier Request FORM B'!$D$42,1),E24)),MAX(G$1:$G23)+1,0) -> 23 | H24: FW011304478
A25: US | B25: FW011304711 | C25: FIRST NATIONAL BK OF IPSWICH | D25: FW011304711 | E25: CM/C | G25: =IF(ISNUMBER(SEARCH(LEFT('Supplier Request FORM B'!$D$42,1),E25)),MAX(G$1:$G24)+1,0) -> 24 | H25: FW011304711
A26: US | B26: FW011307129 | C26: THE LEADER BANK | D26: FW011307129 | E26: CM/C | G26: =IF(ISNUMBER(SEARCH(LEFT('Supplier Request FORM B'!$D$42,1),E26)),MAX(G$1:$G25)+1,0) -> 25 | H26: FW011307129
A27: US | B27: FW011400149 | C27: ST MARYS BANK | D27: FW011400149 | E27: CM/C | G27: =IF(ISNUMBER(SEARCH(LEFT('Supplier Request FORM B'!$D$42,1),E27)),MAX(G$1:$G26)+1,0) -> 26 | H27: FW011400149
A28: US | B28: FW011402024 | C28: CENTRIX BANK AND TRUST | D28: FW011402024 | E28: CM/C | G28: =IF(ISNUMBER(SEARCH(LEFT('Supplier Request FORM B'!$D$42,1),E28)),MAX(G$1:$G27)+1,0) -> 27 | H28: FW011402024
A29: US | B29: FW011500010 | C29: BANK OF AMERICA, N.A. (FORMERLY FLEET NATIONAL BANK) | D29: FW011500010 | E29: CM/C | G29: =IF(ISNUMBER(SEARCH(LEFT('Supplier Request FORM B'!$D$42,1),E29)),MAX(G$1:$G28)+1,0) -> 28 | H29: FW011500010
A30: US | B30: FW011500120 | C30: CITIZENS BANK OF RHODE ISLAND | D30: FW011500120 | E30: CM/C | G30: =IF(ISNUMBER(SEARCH(LEFT('Supplier Request FORM B'!$D$42,1),E30)),MAX(G$1:$G29)+1,0) -> 29 | H30: FW011500120
A31: US | B31: FW011600020 | C31: MERCHANTS BANK | D31: FW011600020 | E31: CM/C | G31: =IF(ISNUMBER(SEARCH(LEFT('Supplier Request FORM B'!$D$42,1),E31)),MAX(G$1:$G30)+1,0) -> 30 | H31: FW011600020
A32: US | B32: FW011600033 | C32: TD BANKNORTH VERMONT | D32: FW011600033 | E32: CM/C | G32: =IF(ISNUMBER(SEARCH(LEFT('Supplier Request FORM B'!$D$42,1),E32)),MAX(G$1:$G31)+1,0) -> 31 | H32: FW011600033
A33: US | B33: FW011600062 | C33: CHITTENDEN BANK | D33: FW011600062 | E33: CM/C | G33: =IF(ISNUMBER(SEARCH(LEFT('Supplier Request FORM B'!$D$42,1),E33)),MAX(G$1:$G32)+1,0) -> 32 | H33: FW011600062
A34: US | B34: FW011601087 | C34: NATIONAL BANK OF MIDDLEBURY | D34: FW011601087 | E34: CM/C | G34: =IF(ISNUMBER(SEARCH(LEFT('Supplier Request FORM B'!$D$42,1),E34)),MAX(G$1:$G33)+1,0) -> 33 | H34: FW011601087
A35: US | B35: FW011601171 | C35: RANDOLPH NATIONAL BANK | D35: FW011601171 | E35: CM/C | G35: =IF(ISNUMBER(SEARCH(LEFT('Supplier Request FORM B'!$D$42,1),E35)),MAX(G$1:$G34)+1,0) -> 34 | H35: FW011601171
A36: US | B36: FW011701314 | C36: GRANITE BANK | D36: FW011701314 | E36: CM/C | G36: =IF(ISNUMBER(SEARCH(LEFT('Supplier Request FORM B'!$D$42,1),E36)),MAX(G$1:$G35)+1,0) -> 35 | H36: FW011701314
A37: US | B37: FW011701987 | C37: LEDYARD NATIONAL BANK N.A | D37: FW011701987 | E37: CM/C | G37: =IF(ISNUMBER(SEARCH(LEFT('Supplier Request FORM B'!$D$42,1),E37)),MAX(G$1:$G36)+1,0) -> 36 | H37: FW011701987
A38: US | B38: FW011802488 | C38: PEOPLES UNITED BANK | D38: FW011802488 | E38: CM/C | G38: =IF(ISNUMBER(SEARCH(LEFT('Supplier Request FORM B'!$D$42,1),E38)),MAX(G$1:$G37)+1,0) -> 37 | H38: FW011802488
A39: US | B39: FW011900571 | C39: BANK OF AMERICA, N.A. (FORMERLY FLEET NATIONAL BANK) | D39: FW011900571 | E39: CM/C | G39: =IF(ISNUMBER(SEARCH(LEFT('Supplier Request FORM B'!$D$42,1),E39)),MAX(G$1:$G38)+1,0) -> 38 | H39: FW011900571
A40: US | B40: FW021000018 | C40: BANK OF NEW YORK | D40: FW021000018 | E40: CM/C | G40: =IF(ISNUMBER(SEARCH(LEFT('Supplier Request FORM B'!$D$42,1),E40)),MAX(G$1:$G39)+1,0) -> 39 | H40: FW021000018
A41: US | B41: FW021000021 | C41: JPMORGAN CHASE BANK | D41: FW021000021 | E41: CM/C | G41: =IF(ISNUMBER(SEARCH(LEFT('Supplier Request FORM B'!$D$42,1),E41)),MAX(G$1:$G40)+1,0) -> 40 | H41: FW021000021
A42: US | B42: FW021000089 | C42: CITIBANK N.A. | D42: FW021000089 | E42: CM/C | G42: =IF(ISNUMBER(SEARCH(LEFT('Supplier Request FORM B'!$D$42,1),E42)),MAX(G$1:$G41)+1,0) -> 41 | H42: FW021000089
A43: US | B43: FW021000322 | C43: BANK OF AMERICA, N.A. | D43: FW021000322 | E43: CM/C | G43: =IF(ISNUMBER(SEARCH(LEFT('Supplier Request FORM B'!$D$42,1),E43)),MAX(G$1:$G42)+1,0) -> 42 | H43: FW021000322
A44: US | B44: FW021001033 | C44: DEUTSCHE BANK TRUST CO. AMERICAS | D44: FW021001033 | E44: CM/C | G44: =IF(ISNUMBER(SEARCH(LEFT('Supplier Request FORM B'!$D$42,1),E44)),MAX(G$1:$G43)+1,0) -> 43 | H44: FW021001033
A45: US | B45: FW021001088 | C45: HSBC BANK USA | D45: FW021001088 | E45: CM/C | G45: =IF(ISNUMBER(SEARCH(LEFT('Supplier Request FORM B'!$D$42,1),E45)),MAX(G$1:$G44)+1,0) -> 44 | H45: FW021001088
A46: US | B46: FW021001208 | C46: FRB NEW YORK | D46: FW021001208 | E46: CM/C | G46: =IF(ISNUMBER(SEARCH(LEFT('Supplier Request FORM B'!$D$42,1),E46)),MAX(G$1:$G45)+1,0) -> 45 | H46: FW021001208
A47: US | B47: FW021030004 | C47: TREAS NYC/FUNDS TRANSFER DIVISION | D47: FW021030004 | E47: CM/C | G47: =IF(ISNUMBER(SEARCH(LEFT('Supplier Request FORM B'!$D$42,1),E47)),MAX(G$1:$G46)+1,0) -> 46 | H47: FW021030004
A48: US | B48: FW021100361 | C48: JPMORGAN CHASE BANK | D48: FW021100361 | E48: CM/C | G48: =IF(ISNUMBER(SEARCH(LEFT('Supplier Request FORM B'!$D$42,1),E48)),MAX(G$1:$G47)+1,0) -> 47 | H48: FW021100361
A49: US | B49: FW021101108 | C49: WACHOVIA BANK NA OF CONNECTICUT | D49: FW021101108 | E49: CM/C | G49: =IF(ISNUMBER(SEARCH(LEFT('Supplier Request FORM B'!$D$42,1),E49)),MAX(G$1:$G48)+1,0) -> 48 | H49: FW021101108
A50: US | B50: FW021112935 | C50: PATRIOT BANK, NATIONAL ASSOCIATION | D50: FW021112935 | E50: CM/C | G50: =IF(ISNUMBER(SEARCH(LEFT('Supplier Request FORM B'!$D$42,1),E50)),MAX(G$1:$G49)+1,0) -> 49 | H50: FW021112935
A51: US | B51: FW021113251 | C51: CONNECTICUT COMMUNITY BANK, N.A. | D51: FW021113251 | E51: CM/C | G51: =IF(ISNUMBER(SEARCH(LEFT('Supplier Request FORM B'!$D$42,1),E51)),MAX(G$1:$G50)+1,0) -> 50 | H51: FW021113251
A52: US | B52: FW021172784 | C52: FIELDPOINT PRIVATE BANK & TRUST | D52: FW021172784 | E52: CM/C | G52: =IF(ISNUMBER(SEARCH(LEFT('Supplier Request FORM B'!$D$42,1),E52)),MAX(G$1:$G51)+1,0) -> 51 | H52: FW021172784
A53: US | B53: FW021200025 | C53: WELLS FARGO BANK | D53: FW021200025 | E53: CM/C | G53: =IF(ISNUMBER(SEARCH(LEFT('Supplier Request FORM B'!$D$42,1),E53)),MAX(G$1:$G52)+1,0) -> 52 | H53: FW021200025
A54: US | B54: FW021200339 | C54: BANK OF AMERICA, N.A. (FORMERLY FLEET NATIONAL BANK) | D54: FW021200339 | E54: CM/C | G54: =IF(ISNUMBER(SEARCH(LEFT('Supplier Request FORM B'!$D$42,1),E54)),MAX(G$1:$G53)+1,0) -> 53 | H54: FW021200339
A55: US | B55: FW021201383 | C55: VALLEY NATIONAL BANK | D55: FW021201383 | E55: CM/C | G55: =IF(ISNUMBER(SEARCH(LEFT('Supplier Request FORM B'!$D$42,1),E55)),MAX(G$1:$G54)+1,0) -> 54 | H55: FW021201383
A56: US | B56: FW021202162 | C56: BANK OF AMERICA N.A | D56: FW021202162 | E56: CM/C | G56: =IF(ISNUMBER(SEARCH(LEFT('Supplier Request FORM B'!$D$42,1),E56)),MAX(G$1:$G55)+1,0) -> 55 | H56: FW021202162
A57: US | B57: FW021202337 | C57: JP MORGAN CHASE | D57: FW021202337 | E57: CM/C | G57: =IF(ISNUMBER(SEARCH(LEFT('Supplier Request FORM B'!$D$42,1),E57)),MAX(G$1:$G56)+1,0) -> 56 | H57: FW021202337
A58: US | B58: FW021205237 | C58: PEAPACK GLADSTONE BANK | D58: FW021205237 | E58: CM/C | G58: =IF(ISNUMBER(SEARCH(LEFT('Supplier Request FORM B'!$D$42,1),E58)),MAX(G$1:$G57)+1,0) -> 57 | H58: FW021205237
A59: US | B59: FW021205376 | C59: LAKELAND BANK | D59: FW021205376 | E59: CM/C | G59: =IF(ISNUMBER(SEARCH(LEFT('Supplier Request FORM B'!$D$42,1),E59)),MAX(G$1:$G58)+1,0) -> 58 | H59: FW021205376
A60: US | B60: FW021206582 | C60: ATLANTIC STEWARDSHIP BANK | D60: FW021206582 | E60: CM/C | G60: =IF(ISNUMBER(SEARCH(LEFT('Supplier Request FORM B'!$D$42,1),E60)),MAX(G$1:$G59)+1,0) -> 59 | H60: FW021206582
A61: US | B61: FW021213591 | C61: SYNCHRONY BANK | D61: FW021213591 | E61: CM/C | G61: =IF(ISNUMBER(SEARCH(LEFT('Supplier Request FORM B'!$D$42,1),E61)),MAX(G$1:$G60)+1,0) -> 60 | H61: FW021213591
A62: US | B62: FW021272655 | C62: CITIBANK N A | D62: FW021272655 | E62: CM/C | G62: =IF(ISNUMBER(SEARCH(LEFT('Supplier Request FORM B'!$D$42,1),E62)),MAX(G$1:$G61)+1,0) -> 61 | H62: FW021272655
A63: US | B63: FW021272723 | C63: WASHINGTON MUTUAL BANK | D63: FW021272723 | E63: CM/C | G63: =IF(ISNUMBER(SEARCH(LEFT('Supplier Request FORM B'!$D$42,1),E63)),MAX(G$1:$G62)+1,0) -> 62 | H63: FW021272723
A64: US | B64: FW021300019 | C64: BANK OF AMERICA, N.A. (FORMERLY FLEET NATIONAL BANK) | D64: FW021300019 | E64: CM/C | G64: =IF(ISNUMBER(SEARCH(LEFT('Supplier Request FORM B'!$D$42,1),E64)),MAX(G$1:$G63)+1,0) -> 63 | H64: FW021300019
A65: US | B65: FW021300077 | C65: KEY BANK N.A. | D65: FW021300077 | E65: CM/C | G65: =IF(ISNUMBER(SEARCH(LEFT('Supplier Request FORM B'!$D$42,1),E65)),MAX(G$1:$G64)+1,0) -> 64 | H65: FW021300077
A66: US | B66: FW021300912 | C66: TRUSTCO BANK | D66: FW021300912 | E66: CM/C | G66: =IF(ISNUMBER(SEARCH(LEFT('Supplier Request FORM B'!$D$42,1),E66)),MAX(G$1:$G65)+1,0) -> 65 | H66: FW021300912
A67: US | B67: FW021301115 | C67: CHEMUNG CANAL TRUST COMPANY | D67: FW021301115 | E67: CM/C | G67: =IF(ISNUMBER(SEARCH(LEFT('Supplier Request FORM B'!$D$42,1),E67)),MAX(G$1:$G66)+1,0) -> 66 | H67: =IFERROR(INDEX(B:B,MATCH(ROW(H66),G:G,0)),"") -> FW021301115
A68: US | B68: FW021302567 | C68: TD BANK, NA | D68: FW021302567 | E68: CM/C | G68: =IF(ISNUMBER(SEARCH(LEFT('Supplier Request FORM B'!$D$42,1),E68)),MAX(G$1:$G67)+1,0) -> 67 | H68: FW021302567
A69: US | B69: FW021302648 | C69: TOMPKINS TRUST COMPANY | D69: FW021302648 | E69: CM/C | G69: =IF(ISNUMBER(SEARCH(LEFT('Supplier Request FORM B'!$D$42,1),E69)),MAX(G$1:$G68)+1,0) -> 68 | H69: FW021302648
A70: US | B70: FW021303511 | C70: ALLIANCE BANK, N.A. | D70: FW021303511 | E70: CM/C | G70: =IF(ISNUMBER(SEARCH(LEFT('Supplier Request FORM B'!$D$42,1),E70)),MAX(G$1:$G69)+1,0) -> 69 | H70: FW021303511
A71: US | B71: FW021310711 | C71: FIRST NATIONAL BANK OF SCOTIA | D71: FW021310711 | E71: CM/C | G71: =IF(ISNUMBER(SEARCH(LEFT('Supplier Request FORM B'!$D$42,1),E71)),MAX(G$1:$G70)+1,0) -> 70 | H71: FW021310711
A72: US | B72: FW021313103 | C72: CITIZENS BANK, NATIONAL ASSOCIATION | D72: FW021313103 | E72: CM/C | G72: =IF(ISNUMBER(SEARCH(LEFT('Supplier Request FORM B'!$D$42,1),E72)),MAX(G$1:$G71)+1,0) -> 71 | H72: FW021313103
A73: US | B73: FW021404465 | C73: BANK OF AMERICA, N.A. | D73: FW021404465 | E73: CM/C | G73: =IF(ISNUMBER(SEARCH(LEFT('Supplier Request FORM B'!$D$42,1),E73)),MAX(G$1:$G72)+1,0) -> 72 | H73: FW021404465
A74: US | B74: FW021407912 | C74: NORTH FORK BANK | D74: FW021407912 | E74: CM/C | G74: =IF(ISNUMBER(SEARCH(LEFT('Supplier Request FORM B'!$D$42,1),E74)),MAX(G$1:$G73)+1,0) -> 73 | H74: FW021407912
A75: US | B75: FW021907975 | C75: BANK OF MILLBROOK | D75: FW021907975 | E75: CM/C | G75: =IF(ISNUMBER(SEARCH(LEFT('Supplier Request FORM B'!$D$42,1),E75)),MAX(G$1:$G74)+1,0) -> 74 | H75: FW021907975
A76: US | B76: FW022000020 | C76: HSBC BANK USA, N.A | D76: FW022000020 | E76: CM/C | G76: =IF(ISNUMBER(SEARCH(LEFT('Supplier Request FORM B'!$D$42,1),E76)),MAX(G$1:$G75)+1,0) -> 75 | H76: FW022000020
A77: US | B77: FW022000046 | C77: MANUFACTURERS & TRADERS TRUST CO. | D77: FW022000046 | E77: CM/C | G77: =IF(ISNUMBER(SEARCH(LEFT('Supplier Request FORM B'!$D$42,1),E77)),MAX(G$1:$G76)+1,0) -> 76 | H77: FW022000046
A78: US | B78: FW022000839 | C78: KEY BANK NATIONAL ASSOCIATION | D78: FW022000839 | E78: CM/C | G78: =IF(ISNUMBER(SEARCH(LEFT('Supplier Request FORM B'!$D$42,1),E78)),MAX(G$1:$G77)+1,0) -> 77 | H78: FW022000839
A79: US | B79: FW022300173 | C79: JPMORGAN CHASE BANK | D79: FW022300173 | E79: CM/C | G79: =IF(ISNUMBER(SEARCH(LEFT('Supplier Request FORM B'!$D$42,1),E79)),MAX(G$1:$G78)+1,0) -> 78 | H79: FW022300173
A80: US | B80: FW022303659 | C80: CANANDAIGUA NAT'L BANK & TR. CO. | D80: FW022303659 | E80: CM/C | G80: =IF(ISNUMBER(SEARCH(LEFT('Supplier Request FORM B'!$D$42,1),E80)),MAX(G$1:$G79)+1,0) -> 79 | H80: FW022303659
A81: US | B81: FW026002532 | C81: BANK OF NOVA SCOTIA | D81: FW026002532 | E81: CM/C | G81: =IF(ISNUMBER(SEARCH(LEFT('Supplier Request FORM B'!$D$42,1),E81)),MAX(G$1:$G80)+1,0) -> 80 | H81: FW026002532
A82: US | B82: FW026003243 | C82: TORONTO DOMINION BANK | D82: FW026003243 | E82: CM/C | G82: =IF(ISNUMBER(SEARCH(LEFT('Supplier Request FORM B'!$D$42,1),E82)),MAX(G$1:$G81)+1,0) -> 81 | H82: FW026003243
A83: US | B83: FW026003269 | C83: BANK OF CHINA | D83: FW026003269 | E83: CM/C | G83: =IF(ISNUMBER(SEARCH(LEFT('Supplier Request FORM B'!$D$42,1),E83)),MAX(G$1:$G82)+1,0) -> 82 | H83: FW026003269
A84: US | B84: FW026003379 | C84: AMALGAMATED BANK | D84: FW026003379 | E84: CM/C | G84: =IF(ISNUMBER(SEARCH(LEFT('Supplier Request FORM B'!$D$42,1),E84)),MAX(G$1:$G83)+1,0) -> 83 | H84: FW026003379
A85: US | B85: FW026004226 | C85: SOCIETE GENERALE | D85: FW026004226 | E85: CM/C | G85: =IF(ISNUMBER(SEARCH(LEFT('Supplier Request FORM B'!$D$42,1),E85)),MAX(G$1:$G84)+1,0) -> 84 | H85: FW026004226
A86: US | B86: FW026005092 | C86: WACHOVIA NY INTL | D86: FW026005092 | E86: CM/C | G86: =IF(ISNUMBER(SEARCH(LEFT('Supplier Request FORM B'!$D$42,1),E86)),MAX(G$1:$G85)+1,0) -> 85 | H86: FW026005092
A87: US | B87: FW026008811 | C87: BANCO POPULAR NORTH AMERICA | D87: FW026008811 | E87: CM/C | G87: =IF(ISNUMBER(SEARCH(LEFT('Supplier Request FORM B'!$D$42,1),E87)),MAX(G$1:$G86)+1,0) -> 86 | H87: FW026008811
A88: US | B88: FW026009140 | C88: STATE BANK OF INDIA | D88: FW026009140 | E88: CM/C | G88: =IF(ISNUMBER(SEARCH(LEFT('Supplier Request FORM B'!$D$42,1),E88)),MAX(G$1:$G87)+1,0) -> 87 | H88: FW026009140
A89: US | B89: FW026009580 | C89: ABN AMRO BANK N.V. | D89: FW026009580 | E89: CM/C | G89: =IF(ISNUMBER(SEARCH(LEFT('Supplier Request FORM B'!$D$42,1),E89)),MAX(G$1:$G88)+1,0) -> 88 | H89: FW026009580
A90: US | B90: FW026009593 | C90: BANK OF AMERICA, N.A., NY | D90: FW026009593 | E90: CM/C | G90: =IF(ISNUMBER(SEARCH(LEFT('Supplier Request FORM B'!$D$42,1),E90)),MAX(G$1:$G89)+1,0) -> 89 | H90: FW026009593
A91: US | B91: FW026009687 | C91: BANK OF TOKYO-MITSUBISHI UFJ TRST CO | D91: FW026009687 | E91: CM/C | G91: =IF(ISNUMBER(SEARCH(LEFT('Supplier Request FORM B'!$D$42,1),E91)),MAX(G$1:$G90)+1,0) -> 90 | H91: FW026009687
A92: US | B92: FW026009739 | C92: FEDERAL HOME LOAN BANK OF NEW YORK | D92: FW026009739 | E92: CM/C | G92: =IF(ISNUMBER(SEARCH(LEFT('Supplier Request FORM B'!$D$42,1),E92)),MAX(G$1:$G91)+1,0) -> 91 | H92: FW026009739
A93: US | B93: FW026010786 | C93: NORDEA BANK FINLAND PLC | D93: FW026010786 | E93: CM/C | G93: =IF(ISNUMBER(SEARCH(LEFT('Supplier Request FORM B'!$D$42,1),E93)),MAX(G$1:$G92)+1,0) -> 92 | H93: FW026010786
A94: US | B94: FW026013673 | C94: TD BANK, NA | D94: FW026013673 | E94: CM/C | G94: =IF(ISNUMBER(SEARCH(LEFT('Supplier Request FORM B'!$D$42,1),E94)),MAX(G$1:$G93)+1,0) -> 93 | H94: FW026013673
A95: US | B95: FW026073008 | C95: COMMUNITY FEDERAL SAVINGS BANK | D95: FW026073008 | E95: CM/C | G95: =IF(ISNUMBER(SEARCH(LEFT('Supplier Request FORM B'!$D$42,1),E95)),MAX(G$1:$G94)+1,0) -> 94 | H95: FW026073008
A96: US | B96: FW031000037 | C96: MELLON BANK N.A. | D96: FW031000037 | E96: CM/C | G96: =IF(ISNUMBER(SEARCH(LEFT('Supplier Request FORM B'!$D$42,1),E96)),MAX(G$1:$G95)+1,0) -> 95 | H96: FW031000037
A97: US | B97: FW031000040 | C97: FEDERAL RESERVE BANK OF PHILADELPHIA | D97: FW031000040 | E97: CM/C | G97: =IF(ISNUMBER(SEARCH(LEFT('Supplier Request FORM B'!$D$42,1),E97)),MAX(G$1:$G96)+1,0) -> 96 | H97: FW031000040
A98: US | B98: FW031000053 | C98: PNC BANK, NATIONAL ASSOC | D98: FW031000053 | E98: CM/C | G98: =IF(ISNUMBER(SEARCH(LEFT('Supplier Request FORM B'!$D$42,1),E98)),MAX(G$1:$G97)+1,0) -> 97 | H98: FW031000053
A99: US | B99: FW031100089 | C99: PNC BANK, DELAWARE | D99: FW031100089 | E99: CM/C | G99: =IF(ISNUMBER(SEARCH(LEFT('Supplier Request FORM B'!$D$42,1),E99)),MAX(G$1:$G98)+1,0) -> 98 | H99: FW031100089
A100: US | B100: FW031100092 | C100: WILMINGTON TRUST CO. | D100: FW031100092 | E100: CM/C | G100: =IF(ISNUMBER(SEARCH(LEFT('Supplier Request FORM B'!$D$42,1),E100)),MAX(G$1:$G99)+1,0) -> 99 | H100: FW031100092
A101: US | B101: FW031100102 | C101: WILMINGTON SAV FUND SOCIETY, FSB | D101: FW031100102 | E101: CM/C | G101: =IF(ISNUMBER(SEARCH(LEFT('Supplier Request FORM B'!$D$42,1),E101)),MAX(G$1:$G100)+1,0) -> 100 | H101: FW031100102
A102: US | B102: FW031100160 | C102: MBNA AMERICA BK, NA | D102: FW031100160 | E102: CM/C | G102: =IF(ISNUMBER(SEARCH(LEFT('Supplier Request FORM B'!$D$42,1),E102)),MAX(G$1:$G101)+1,0) -> 101 | H102: FW031100160
A103: US | B103: FW031100209 | C103: CITIBANK DELAWARE | D103: FW031100209 | E103: CM/C | G103: =IF(ISNUMBER(SEARCH(LEFT('Supplier Request FORM B'!$D$42,1),E103)),MAX(G$1:$G102)+1,0) -> 102 | H103: FW031100209
A104: US | B104: FW031100649 | C104: DISCOVER BANK | D104: FW031100649 | E104: CM/C | G104: =IF(ISNUMBER(SEARCH(LEFT('Supplier Request FORM B'!$D$42,1),E104)),MAX(G$1:$G103)+1,0) -> 103 | H104: FW031100649
A105: US | B105: FW031101114 | C105: THE BANCORP BANK | D105: FW031101114 | E105: CM/C | G105: =IF(ISNUMBER(SEARCH(LEFT('Supplier Request FORM B'!$D$42,1),E105)),MAX(G$1:$G104)+1,0) -> 104 | H105: FW031101114
A106: US | B106: FW031101266 | C106: TD BANK, NA | D106: FW031101266 | E106: CM/C | G106: =IF(ISNUMBER(SEARCH(LEFT('Supplier Request FORM B'!$D$42,1),E106)),MAX(G$1:$G105)+1,0) -> 105 | H106: FW031101266
A107: US | B107: FW031176110 | C107: CAPITAL ONE, NA | D107: FW031176110 | E107: CM/C | G107: =IF(ISNUMBER(SEARCH(LEFT('Supplier Request FORM B'!$D$42,1),E107)),MAX(G$1:$G106)+1,0) -> 106 | H107: FW031176110
A108: US | B108: FW031176136 | C108: GMAC BANK | D108: FW031176136 | E108: CM/C | G108: =IF(ISNUMBER(SEARCH(LEFT('Supplier Request FORM B'!$D$42,1),E108)),MAX(G$1:$G107)+1,0) -> 107 | H108: FW031176136
A109: US | B109: FW031201360 | C109: TD BANK NA | D109: FW031201360 | E109: CM/C | G109: =IF(ISNUMBER(SEARCH(LEFT('Supplier Request FORM B'!$D$42,1),E109)),MAX(G$1:$G108)+1,0) -> 108 | H109: FW031201360
A110: US | B110: FW031201467 | C110: WACHOVIA BANK NA OF NJ/PA/NY | D110: FW031201467 | E110: CM/C | G110: =IF(ISNUMBER(SEARCH(LEFT('Supplier Request FORM B'!$D$42,1),E110)),MAX(G$1:$G109)+1,0) -> 109 | H110: FW031201467
A111: US | B111: FW031204710 | C111: MINOTOLA NATIONAL BANK | D111: FW031204710 | E111: CM/C | G111: =IF(ISNUMBER(SEARCH(LEFT('Supplier Request FORM B'!$D$42,1),E111)),MAX(G$1:$G110)+1,0) -> 110 | H111: FW031204710
A112: US | B112: FW031205913 | C112: YARDVILLE NATIONAL BANK | D112: FW031205913 | E112: CM/C | G112: =IF(ISNUMBER(SEARCH(LEFT('Supplier Request FORM B'!$D$42,1),E112)),MAX(G$1:$G111)+1,0) -> 111 | H112: FW031205913
A113: US | B113: FW031207607 | C113: PNC BANK, NA | D113: FW031207607 | E113: CM/C | G113: =IF(ISNUMBER(SEARCH(LEFT('Supplier Request FORM B'!$D$42,1),E113)),MAX(G$1:$G112)+1,0) -> 112 | H113: FW031207607
A114: US | B114: FW031207827 | C114: HOPEWELL VALLEY COMMUNITY BANK | D114: FW031207827 | E114: CM/C | G114: =IF(ISNUMBER(SEARCH(LEFT('Supplier Request FORM B'!$D$42,1),E114)),MAX(G$1:$G113)+1,0) -> 113 | H114: FW031207827
A115: US | B115: FW031301752 | C115: ATLANTIC CENTRAL BANKERS BK | D115: FW031301752 | E115: CM/C | G115: =IF(ISNUMBER(SEARCH(LEFT('Supplier Request FORM B'!$D$42,1),E115)),MAX(G$1:$G114)+1,0) -> 114 | H115: FW031301752
A116: US | B116: FW031302971 | C116: NEW CENTURY BANK DBA CUSTOMERS BANK | D116: FW031302971 | E116: CM/C | G116: =IF(ISNUMBER(SEARCH(LEFT('Supplier Request FORM B'!$D$42,1),E116)),MAX(G$1:$G115)+1,0) -> 115 | H116: FW031302971
A117: US | B117: FW031302997 | C117: AMERICAN BANK | D117: FW031302997 | E117: CM/C | G117: =IF(ISNUMBER(SEARCH(LEFT('Supplier Request FORM B'!$D$42,1),E117)),MAX(G$1:$G116)+1,0) -> 116 | H117: FW031302997
A118: US | B118: FW031308784 | C118: NATIONAL PENN BANK | D118: FW031308784 | E118: CM/C | G118: =IF(ISNUMBER(SEARCH(LEFT('Supplier Request FORM B'!$D$42,1),E118)),MAX(G$1:$G117)+1,0) -> 117 | H118: FW031308784
A119: US | B119: FW031309123 | C119: SUSQUEHANNA BANK | D119: FW031309123 | E119: CM/C | G119: =IF(ISNUMBER(SEARCH(LEFT('Supplier Request FORM B'!$D$42,1),E119)),MAX(G$1:$G118)+1,0) -> 118 | H119: FW031309123
A120: US | B120: FW031312026 | C120: 1ST LIBERTY B & T DIV OF COMM BK N.A | D120: FW031312026 | E120: CM/C | G120: =IF(ISNUMBER(SEARCH(LEFT('Supplier Request FORM B'!$D$42,1),E120)),MAX(G$1:$G119)+1,0) -> 119 | H120: FW031312026
A121: US | B121: FW031312110 | C121: PENNSTAR BANK | D121: FW031312110 | E121: CM/C | G121: =IF(ISNUMBER(SEARCH(LEFT('Supplier Request FORM B'!$D$42,1),E121)),MAX(G$1:$G120)+1,0) -> 120 | H121: FW031312110
A122: US | B122: FW031316271 | C122: OMEGA BANK N.A. | D122: FW031316271 | E122: CM/C | G122: =IF(ISNUMBER(SEARCH(LEFT('Supplier Request FORM B'!$D$42,1),E122)),MAX(G$1:$G121)+1,0) -> 121 | H122: FW031316271
A123: US | B123: FW031318907 | C123: GRAYSTONE TOWER BANK | D123: FW031318907 | E123: CM/C | G123: =IF(ISNUMBER(SEARCH(LEFT('Supplier Request FORM B'!$D$42,1),E123)),MAX(G$1:$G122)+1,0) -> 122 | H123: FW031318907
A124: US | B124: FW031911812 | C124: HARLEYSVILLE NATIONAL BANK AND TRUST CO. | D124: FW031911812 | E124: CM/C | G124: =IF(ISNUMBER(SEARCH(LEFT('Supplier Request FORM B'!$D$42,1),E124)),MAX(G$1:$G123)+1,0) -> 123 | H124: FW031911812
A125: US | B125: FW031918569 | C125: STONEBRIDGE BANK | D125: FW031918569 | E125: CM/C | G125: =IF(ISNUMBER(SEARCH(LEFT('Supplier Request FORM B'!$D$42,1),E125)),MAX(G$1:$G124)+1,0) -> 124 | H125: FW031918569
A126: US | B126: FW036001808 | C126: COMMERCE BANK | D126: FW036001808 | E126: CM/C | G126: =IF(ISNUMBER(SEARCH(LEFT('Supplier Request FORM B'!$D$42,1),E126)),MAX(G$1:$G125)+1,0) -> 125 | H126: FW036001808
A127: US | B127: FW036002425 | C127: HSBC BANK USA, NA | D127: FW036002425 | E127: CM/C | G127: =IF(ISNUMBER(SEARCH(LEFT('Supplier Request FORM B'!$D$42,1),E127)),MAX(G$1:$G126)+1,0) -> 126 | H127: FW036002425
A128: US | B128: FW036076053 | C128: NOVA BANK | D128: FW036076053 | E128: CM/C | G128: =IF(ISNUMBER(SEARCH(LEFT('Supplier Request FORM B'!$D$42,1),E128)),MAX(G$1:$G127)+1,0) -> 127 | H128: FW036076053
A129: US | B129: FW036076150 | C129: CITIZENS BANK | D129: FW036076150 | E129: CM/C | G129: =IF(ISNUMBER(SEARCH(LEFT('Supplier Request FORM B'!$D$42,1),E129)),MAX(G$1:$G128)+1,0) -> 128 | H129: FW036076150
A130: US | B130: FW041000124 | C130: PNC BANK, OHIO | D130: FW041000124 | E130: CM/C | G130: =IF(ISNUMBER(SEARCH(LEFT('Supplier Request FORM B'!$D$42,1),E130)),MAX(G$1:$G129)+1,0) -> 129 | H130: FW041000124
A131: US | B131: FW041001039 | C131: KEY BANK | D131: FW041001039 | E131: CM/C | G131: =IF(ISNUMBER(SEARCH(LEFT('Supplier Request FORM B'!$D$42,1),E131)),MAX(G$1:$G130)+1,0) -> 130 | H131: =IFERROR(INDEX(B:B,MATCH(ROW(H130),G:G,0)),"") -> FW041001039
A132: US | B132: FW041200555 | C132: FIRSTMERIT BANK, NA | D132: FW041200555 | E132: CM/C | G132: =IF(ISNUMBER(SEARCH(LEFT('Supplier Request FORM B'!$D$42,1),E132)),MAX(G$1:$G131)+1,0) -> 131 | H132: FW041200555
A133: US | B133: FW041202663 | C133: SECOND NATIONAL BANK OF WARREN | D133: FW041202663 | E133: CM/C | G133: =IF(ISNUMBER(SEARCH(LEFT('Supplier Request FORM B'!$D$42,1),E133)),MAX(G$1:$G132)+1,0) -> 132 | H133: FW041202663
A134: US | B134: FW041207341 | C134: THE FARMERS & MERCHANTS STATE BANK | D134: FW041207341 | E134: CM/C | G134: =IF(ISNUMBER(SEARCH(LEFT('Supplier Request FORM B'!$D$42,1),E134)),MAX(G$1:$G133)+1,0) -> 133 | H134: FW041207341
A135: US | B135: FW041210448 | C135: THE MIDDLEFIELD BANKING COMPANY | D135: FW041210448 | E135: CM/C | G135: =IF(ISNUMBER(SEARCH(LEFT('Supplier Request FORM B'!$D$42,1),E135)),MAX(G$1:$G134)+1,0) -> 134 | H135: FW041210448
A136: US | B136: FW041215016 | C136: HUNTINGTON NATIONAL BANK | D136: FW041215016 | E136: CM/C | G136: =IF(ISNUMBER(SEARCH(LEFT('Supplier Request FORM B'!$D$42,1),E136)),MAX(G$1:$G135)+1,0) -> 135 | H136: FW041215016
A137: US | B137: FW042000013 | C137: US BANK, NA | D137: FW042000013 | E137: CM/C | G137: =IF(ISNUMBER(SEARCH(LEFT('Supplier Request FORM B'!$D$42,1),E137)),MAX(G$1:$G136)+1,0) -> 136 | H137: FW042000013
A138: US | B138: FW042000314 | C138: FIFTH THIRD BANK | D138: FW042000314 | E138: CM/C | G138: =IF(ISNUMBER(SEARCH(LEFT('Supplier Request FORM B'!$D$42,1),E138)),MAX(G$1:$G137)+1,0) -> 137 | H138: FW042000314
A139: US | B139: FW042100146 | C139: CENTRAL BANK AND TRUST COMPANY | D139: FW042100146 | E139: CM/C | G139: =IF(ISNUMBER(SEARCH(LEFT('Supplier Request FORM B'!$D$42,1),E139)),MAX(G$1:$G138)+1,0) -> 138 | H139: FW042100146
A140: US | B140: FW042100175 | C140: US BANK, NA | D140: FW042100175 | E140: CM/C | G140: =IF(ISNUMBER(SEARCH(LEFT('Supplier Request FORM B'!$D$42,1),E140)),MAX(G$1:$G139)+1,0) -> 139 | H140: FW042100175
A141: US | B141: FW042101271 | C141: BANK OF THE BLUEGRASS AND TRUST CO | D141: FW042101271 | E141: CM/C | G141: =IF(ISNUMBER(SEARCH(LEFT('Supplier Request FORM B'!$D$42,1),E141)),MAX(G$1:$G140)+1,0) -> 140 | H141: FW042101271
A142: US | B142: FW042101679 | C142: FORCHT BANK, NATIONAL ASSOCIATION | D142: FW042101679 | E142: CM/C | G142: =IF(ISNUMBER(SEARCH(LEFT('Supplier Request FORM B'!$D$42,1),E142)),MAX(G$1:$G141)+1,0) -> 141 | H142: FW042101679
A143: US | B143: FW042200910 | C143: FIRST FINANCIAL BANK, NA | D143: FW042200910 | E143: CM/C | G143: =IF(ISNUMBER(SEARCH(LEFT('Supplier Request FORM B'!$D$42,1),E143)),MAX(G$1:$G142)+1,0) -> 142 | H143: FW042200910
A144: US | B144: FW043000096 | C144: PNC BANK, NATIONAL ASSOCIATION | D144: FW043000096 | E144: CM/C | G144: =IF(ISNUMBER(SEARCH(LEFT('Supplier Request FORM B'!$D$42,1),E144)),MAX(G$1:$G143)+1,0) -> 143 | H144: FW043000096
A145: US | B145: FW043000122 | C145: NATIONAL CITY BANK OF PENNSYLVANIA | D145: FW043000122 | E145: CM/C | G145: =IF(ISNUMBER(SEARCH(LEFT('Supplier Request FORM B'!$D$42,1),E145)),MAX(G$1:$G144)+1,0) -> 144 | H145: FW043000122
A146: US | B146: FW043000261 | C146: MELLON BANK, N. A. | D146: FW043000261 | E146: CM/C | G146: =IF(ISNUMBER(SEARCH(LEFT('Supplier Request FORM B'!$D$42,1),E146)),MAX(G$1:$G145)+1,0) -> 145 | H146: FW043000261
A147: US | B147: FW043318092 | C147: FIRST NATIONAL BANK OF PENNSYLVANIA | D147: FW043318092 | E147: CM/C | G147: =IF(ISNUMBER(SEARCH(LEFT('Supplier Request FORM B'!$D$42,1),E147)),MAX(G$1:$G146)+1,0) -> 146 | H147: FW043318092
A148: US | B148: FW043400036 | C148: WESBANCO BANK WHEELING | D148: FW043400036 | E148: CM/C | G148: =IF(ISNUMBER(SEARCH(LEFT('Supplier Request FORM B'!$D$42,1),E148)),MAX(G$1:$G147)+1,0) -> 147 | H148: FW043400036
A149: US | B149: FW044000011 | C149: NATIONAL CITY BANK | D149: FW044000011 | E149: CM/C | G149: =IF(ISNUMBER(SEARCH(LEFT('Supplier Request FORM B'!$D$42,1),E149)),MAX(G$1:$G148)+1,0) -> 148 | H149: FW044000011
A150: US | B150: FW044000024 | C150: THE HUNTINGTON NATIONAL BANK | D150: FW044000024 | E150: CM/C | G150: =IF(ISNUMBER(SEARCH(LEFT('Supplier Request FORM B'!$D$42,1),E150)),MAX(G$1:$G149)+1,0) -> 149 | H150: FW044000024
A151: US | B151: FW044000037 | C151: JPMORGAN CHASE BANK, NA | D151: FW044000037 | E151: CM/C | G151: =IF(ISNUMBER(SEARCH(LEFT('Supplier Request FORM B'!$D$42,1),E151)),MAX(G$1:$G150)+1,0) -> 150 | H151: FW044000037
A152: US | B152: FW044000642 | C152: KEY BANK NATIONAL ASSOCIATION | D152: FW044000642 | E152: CM/C | G152: =IF(ISNUMBER(SEARCH(LEFT('Supplier Request FORM B'!$D$42,1),E152)),MAX(G$1:$G151)+1,0) -> 151 | H152: FW044000642
A153: US | B153: FW044115809 | C153: WOODFOREST NATIONAL BANK | D153: FW044115809 | E153: CM/C | G153: =IF(ISNUMBER(SEARCH(LEFT('Supplier Request FORM B'!$D$42,1),E153)),MAX(G$1:$G152)+1,0) -> 152 | H153: FW044115809
A154: US | B154: FW044201030 | C154: THE HOCKING VALLEY BANK | D154: FW044201030 | E154: CM/C | G154: =IF(ISNUMBER(SEARCH(LEFT('Supplier Request FORM B'!$D$42,1),E154)),MAX(G$1:$G153)+1,0) -> 153 | H154: FW044201030
A155: US | B155: FW051000017 | C155: BANK OF AMERICA, N.A. | D155: FW051000017 | E155: CM/C | G155: =IF(ISNUMBER(SEARCH(LEFT('Supplier Request FORM B'!$D$42,1),E155)),MAX(G$1:$G154)+1,0) -> 154 | H155: FW051000017
A156: US | B156: FW051000033 | C156: FEDERAL RESERVE BANK OF RICHMOND | D156: FW051000033 | E156: CM/C | G156: =IF(ISNUMBER(SEARCH(LEFT('Supplier Request FORM B'!$D$42,1),E156)),MAX(G$1:$G155)+1,0) -> 155 | H156: FW051000033
A157: US | B157: FW051036706 | C157: CASH LINK-ACH RECEIVER | D157: FW051036706 | E157: CM/C | G157: =IF(ISNUMBER(SEARCH(LEFT('Supplier Request FORM B'!$D$42,1),E157)),MAX(G$1:$G156)+1,0) -> 156 | H157: FW051036706
A158: US | B158: FW051400549 | C158: WACHOVIA BANK NA OF VIRGINIA | D158: FW051400549 | E158: CM/C | G158: =IF(ISNUMBER(SEARCH(LEFT('Supplier Request FORM B'!$D$42,1),E158)),MAX(G$1:$G157)+1,0) -> 157 | H158: FW051400549
A159: US | B159: FW051402220 | C159: FIRST NATIONAL BANK | D159: FW051402220 | E159: CM/C | G159: =IF(ISNUMBER(SEARCH(LEFT('Supplier Request FORM B'!$D$42,1),E159)),MAX(G$1:$G158)+1,0) -> 158 | H159: FW051402220
A160: US | B160: FW051402835 | C160: THE BANK OF FLOYD | D160: FW051402835 | E160: CM/C | G160: =IF(ISNUMBER(SEARCH(LEFT('Supplier Request FORM B'!$D$42,1),E160)),MAX(G$1:$G159)+1,0) -> 159 | H160: FW051402835
A161: US | B161: FW051403164 | C161: UNION BANK & TRUST | D161: FW051403164 | E161: CM/C | G161: =IF(ISNUMBER(SEARCH(LEFT('Supplier Request FORM B'!$D$42,1),E161)),MAX(G$1:$G160)+1,0) -> 160 | H161: FW051403164
A162: US | B162: FW051404260 | C162: BRANCH BANKING & TRUST CO - VIRGINIA | D162: FW051404260 | E162: CM/C | G162: =IF(ISNUMBER(SEARCH(LEFT('Supplier Request FORM B'!$D$42,1),E162)),MAX(G$1:$G161)+1,0) -> 161 | H162: FW051404260
A163: US | B163: FW051405515 | C163: CAPITAL ONE BANK | D163: FW051405515 | E163: CM/C | G163: =IF(ISNUMBER(SEARCH(LEFT('Supplier Request FORM B'!$D$42,1),E163)),MAX(G$1:$G162)+1,0) -> 162 | H163: FW051405515
A164: US | B164: FW051408868 | C164: VIRGINIA NATIONAL BANK | D164: FW051408868 | E164: CM/C | G164: =IF(ISNUMBER(SEARCH(LEFT('Supplier Request FORM B'!$D$42,1),E164)),MAX(G$1:$G163)+1,0) -> 163 | H164: FW051408868
A165: US | B165: FW051408949 | C165: TOWNEBANK | D165: FW051408949 | E165: CM/C | G165: =IF(ISNUMBER(SEARCH(LEFT('Supplier Request FORM B'!$D$42,1),E165)),MAX(G$1:$G164)+1,0) -> 164 | H165: FW051408949
A166: US | B166: FW051409184 | C166: XENITH BANK | D166: FW051409184 | E166: CM/C | G166: =IF(ISNUMBER(SEARCH(LEFT('Supplier Request FORM B'!$D$42,1),E166)),MAX(G$1:$G165)+1,0) -> 165 | H166: FW051409184
A167: US | B167: FW051503394 | C167: BB & T (BRANCH BANKING & TRUST) | D167: FW051503394 | E167: CM/C | G167: =IF(ISNUMBER(SEARCH(LEFT('Supplier Request FORM B'!$D$42,1),E167)),MAX(G$1:$G166)+1,0) -> 166 | H167: FW051503394
A168: US | B168: FW052000113 | C168: MANUFACTURERS & TRADERS TRUST CO. | D168: FW052000113 | E168: CM/C | G168: =IF(ISNUMBER(SEARCH(LEFT('Supplier Request FORM B'!$D$42,1),E168)),MAX(G$1:$G167)+1,0) -> 167 | H168: FW052000113
A169: US | B169: FW052000618 | C169: MERCANTILE SAFE DEPOSIT & TRUST CO | D169: FW052000618 | E169: CM/C | G169: =IF(ISNUMBER(SEARCH(LEFT('Supplier Request FORM B'!$D$42,1),E169)),MAX(G$1:$G168)+1,0) -> 168 | H169: FW052000618
A170: US | B170: FW052001633 | C170: BANK OF AMERICA, N.A | D170: FW052001633 | E170: CM/C | G170: =IF(ISNUMBER(SEARCH(LEFT('Supplier Request FORM B'!$D$42,1),E170)),MAX(G$1:$G169)+1,0) -> 169 | H170: FW052001633
A171: US | B171: FW053000196 | C171: BANK OF AMERICA N.A. | D171: FW053000196 | E171: CM/C | G171: =IF(ISNUMBER(SEARCH(LEFT('Supplier Request FORM B'!$D$42,1),E171)),MAX(G$1:$G170)+1,0) -> 170 | H171: FW053000196
A172: US | B172: FW053000219 | C172: WELLS FARGO BANK | D172: FW053000219 | E172: CM/C | G172: =IF(ISNUMBER(SEARCH(LEFT('Supplier Request FORM B'!$D$42,1),E172)),MAX(G$1:$G171)+1,0) -> 171 | H172: FW053000219
A173: US | B173: FW053100300 | C173: FIRST-CITIZENS BANK & TRUST CO | D173: FW053100300 | E173: CM/C | G173: =IF(ISNUMBER(SEARCH(LEFT('Supplier Request FORM B'!$D$42,1),E173)),MAX(G$1:$G172)+1,0) -> 172 | H173: FW053100300
A174: US | B174: FW053100452 | C174: MECHANICS & FARMERS BANK | D174: FW053100452 | E174: CM/C | G174: =IF(ISNUMBER(SEARCH(LEFT('Supplier Request FORM B'!$D$42,1),E174)),MAX(G$1:$G173)+1,0) -> 173 | H174: FW053100452
A175: US | B175: FW053100465 | C175: CENTRAL CAROLINA BK & TR CO | D175: FW053100465 | E175: CM/C | G175: =IF(ISNUMBER(SEARCH(LEFT('Supplier Request FORM B'!$D$42,1),E175)),MAX(G$1:$G174)+1,0) -> 174 | H175: FW053100465
A176: US | B176: FW053100494 | C176: WACHOVIA BANK OF NC | D176: FW053100494 | E176: CM/C | G176: =IF(ISNUMBER(SEARCH(LEFT('Supplier Request FORM B'!$D$42,1),E176)),MAX(G$1:$G175)+1,0) -> 175 | H176: FW053100494
A177: US | B177: FW053100850 | C177: RBC BANK (USA) | D177: FW053100850 | E177: CM/C | G177: =IF(ISNUMBER(SEARCH(LEFT('Supplier Request FORM B'!$D$42,1),E177)),MAX(G$1:$G176)+1,0) -> 176 | H177: FW053100850
A178: US | B178: FW053101121 | C178: BB&T NORTH CAROLINA | D178: FW053101121 | E178: CM/C | G178: =IF(ISNUMBER(SEARCH(LEFT('Supplier Request FORM B'!$D$42,1),E178)),MAX(G$1:$G177)+1,0) -> 177 | H178: FW053101121
A179: US | B179: FW053112615 | C179: SQUARE 1 BANK | D179: FW053112615 | E179: CM/C | G179: =IF(ISNUMBER(SEARCH(LEFT('Supplier Request FORM B'!$D$42,1),E179)),MAX(G$1:$G178)+1,0) -> 178 | H179: FW053112615
A180: US | B180: FW053200666 | C180: NATIONAL BANK OF S C | D180: FW053200666 | E180: CM/C | G180: =IF(ISNUMBER(SEARCH(LEFT('Supplier Request FORM B'!$D$42,1),E180)),MAX(G$1:$G179)+1,0) -> 179 | H180: FW053200666
A181: US | B181: FW053201487 | C181: FIRST CITIZENS BANK & TRUST CO, INC | D181: FW053201487 | E181: CM/C | G181: =IF(ISNUMBER(SEARCH(LEFT('Supplier Request FORM B'!$D$42,1),E181)),MAX(G$1:$G180)+1,0) -> 180 | H181: FW053201487
A182: US | B182: FW053202596 | C182: PALMETTO STATE BANK | D182: FW053202596 | E182: CM/C | G182: =IF(ISNUMBER(SEARCH(LEFT('Supplier Request FORM B'!$D$42,1),E182)),MAX(G$1:$G181)+1,0) -> 181 | H182: FW053202596
A183: US | B183: FW053207371 | C183: BANK OF TRAVELERS REST | D183: FW053207371 | E183: CM/C | G183: =IF(ISNUMBER(SEARCH(LEFT('Supplier Request FORM B'!$D$42,1),E183)),MAX(G$1:$G182)+1,0) -> 182 | H183: FW053207371
A184: US | B184: FW053207766 | C184: WACHOVIA BANK OF SOUTH CAROLINA NA | D184: FW053207766 | E184: CM/C | G184: =IF(ISNUMBER(SEARCH(LEFT('Supplier Request FORM B'!$D$42,1),E184)),MAX(G$1:$G183)+1,0) -> 183 | H184: FW053207766
A185: US | B185: FW053904483 | C185: BANK OF AMERICA, N.A. | D185: FW053904483 | E185: CM/C | G185: =IF(ISNUMBER(SEARCH(LEFT('Supplier Request FORM B'!$D$42,1),E185)),MAX(G$1:$G184)+1,0) -> 184 | H185: FW053904483
A186: US | B186: FW053906041 | C186: FIRST CITIZENS BANK & TRUST CO, INC | D186: FW053906041 | E186: CM/C | G186: =IF(ISNUMBER(SEARCH(LEFT('Supplier Request FORM B'!$D$42,1),E186)),MAX(G$1:$G185)+1,0) -> 185 | H186: FW053906041
A187: US | B187: FW054000030 | C187: PNC BANK N.A | D187: FW054000030 | E187: CM/C | G187: =IF(ISNUMBER(SEARCH(LEFT('Supplier Request FORM B'!$D$42,1),E187)),MAX(G$1:$G186)+1,0) -> 186 | H187: FW054000030
A188: US | B188: FW054001204 | C188: BANK OF AMERICA, N.A. | D188: FW054001204 | E188: CM/C | G188: =IF(ISNUMBER(SEARCH(LEFT('Supplier Request FORM B'!$D$42,1),E188)),MAX(G$1:$G187)+1,0) -> 187 | H188: FW054001204
A189: US | B189: FW054001220 | C189: WELLS FARGO BANK | D189: FW054001220 | E189: CM/C | G189: =IF(ISNUMBER(SEARCH(LEFT('Supplier Request FORM B'!$D$42,1),E189)),MAX(G$1:$G188)+1,0) -> 188 | H189: FW054001220
A190: US | B190: FW054001725 | C190: TD BANK, NA | D190: FW054001725 | E190: CM/C | G190: =IF(ISNUMBER(SEARCH(LEFT('Supplier Request FORM B'!$D$42,1),E190)),MAX(G$1:$G189)+1,0) -> 189 | H190: FW054001725
A191: US | B191: FW055001096 | C191: SANDY SPRING BANK | D191: FW055001096 | E191: CM/C | G191: =IF(ISNUMBER(SEARCH(LEFT('Supplier Request FORM B'!$D$42,1),E191)),MAX(G$1:$G190)+1,0) -> 190 | H191: FW055001096
A192: US | B192: FW055001384 | C192: POTOMAC VALLEY BANK | D192: FW055001384 | E192: CM/C | G192: =IF(ISNUMBER(SEARCH(LEFT('Supplier Request FORM B'!$D$42,1),E192)),MAX(G$1:$G191)+1,0) -> 191 | H192: FW055001384
A193: US | B193: FW055002150 | C193: WOODSBORO BK | D193: FW055002150 | E193: CM/C | G193: =IF(ISNUMBER(SEARCH(LEFT('Supplier Request FORM B'!$D$42,1),E193)),MAX(G$1:$G192)+1,0) -> 192 | H193: FW055002150
A194: US | B194: FW055002338 | C194: THE COLUMBIA BANK | D194: FW055002338 | E194: CM/C | G194: =IF(ISNUMBER(SEARCH(LEFT('Supplier Request FORM B'!$D$42,1),E194)),MAX(G$1:$G193)+1,0) -> 193 | H194: FW055002338
A195: US | B195: FW055002707 | C195: SUNTRUST BANK | D195: FW055002707 | E195: CM/C | G195: =IF(ISNUMBER(SEARCH(LEFT('Supplier Request FORM B'!$D$42,1),E195)),MAX(G$1:$G194)+1,0) -> 194 | H195: =IFERROR(INDEX(B:B,MATCH(ROW(H194),G:G,0)),"") -> FW055002707
A196: US | B196: FW055003201 | C196: WACHOVIA BANK NA OF MARYLAND | D196: FW055003201 | E196: CM/C | G196: =IF(ISNUMBER(SEARCH(LEFT('Supplier Request FORM B'!$D$42,1),E196)),MAX(G$1:$G195)+1,0) -> 195 | H196: FW055003201
A197: US | B197: FW055003298 | C197: EAGLEBANK | D197: FW055003298 | E197: CM/C | G197: =IF(ISNUMBER(SEARCH(LEFT('Supplier Request FORM B'!$D$42,1),E197)),MAX(G$1:$G196)+1,0) -> 196 | H197: FW055003298
A198: US | B198: FW055003308 | C198: BB&T MARYLAND | D198: FW055003308 | E198: CM/C | G198: =IF(ISNUMBER(SEARCH(LEFT('Supplier Request FORM B'!$D$42,1),E198)),MAX(G$1:$G197)+1,0) -> 197 | H198: FW055003308
A199: US | B199: FW056001066 | C199: BURKE & HERBERT BK & TR CO | D199: FW056001066 | E199: CM/C | G199: =IF(ISNUMBER(SEARCH(LEFT('Supplier Request FORM B'!$D$42,1),E199)),MAX(G$1:$G198)+1,0) -> 198 | H199: FW056001066
A200: US | B200: FW056004445 | C200: UNITED BANK | D200: FW056004445 | E200: CM/C | G200: =IF(ISNUMBER(SEARCH(LEFT('Supplier Request FORM B'!$D$42,1),E200)),MAX(G$1:$G199)+1,0) -> 199 | H200: FW056004445
... 1369 more rows

Sheet SWIFTCODE (hidden)
A1: Bank Country | B1: Bank Key | C1: Name of bank | D1: SWIFT/BIC | E1: Payment method | G1: Working (B) | H1: Country List (B) | I1: DropdownList | K1: Working (B) | L1: Country List (B) | M1: DropdownList | O1: Bank Country | P1: Payment method | Q1: Working (B) | R1: Country List (B) | S1: DropdownList | U1: Working (B) | V1: Country List (B) | W1: DropdownList | Y1: Working (B) | Z1: Country List (B) | AA1: DropdownList | AC1: Country | AD1: Bank Name | AE1: Working (B) | AF1: Country List (B) | AG1: DropdownList
A2: AE | B2: ADCBAEAA | C2: ABU DHABI COMMERCIAL BANK | D2: ADCBAEAA | E2: CM/C | G2: =IF(ISNUMBER(SEARCH('Supplier Request FORM B'!$D$45,C2)),MAX($G$1:G1)+1,0) -> 1 | H2: =IFERROR(INDEX($C:$C,MATCH(ROW(H1),$G:$G,0)),"") -> ABU DHABI COMMERCIAL BANK | I2: =OFFSET(SWIFTCODE!$H$2,,,MAX(SWIFTCODE!$G$2:$G$5000)) -> ABU DHABI COMMERCIAL BANK | K2: =IF(AND(('Supplier Request FORM B'!$D$45=C2),(LEFT('Supplier Request FORM B'!$D$42,1)=LEFT(E2,1)),(LEFT('Supplier Request FORM B'!$D$43,2)=LEFT(A2,2))),MAX($K$1:K1)+1,0) -> 0 | L2: =IFERROR(INDEX($D:$D,MATCH(ROW(L1),$K:$K,0)),"") ->  | M2: =OFFSET(SWIFTCODE!$L$2,,,MAX(SWIFTCODE!$K$2:$K$5000)) ->  | O2: AE-UTD.ARAB EMIR. | P2: CM/C | Q2: =IF(ISNUMBER(SEARCH(LEFT('Supplier Request FORM B'!$D$42,1),P2)),MAX($Q$1:Q1)+1,0) -> 1 | R2: =IFERROR(INDEX(O:O,MATCH(ROW(R1),$Q:$Q,0)),"") -> AE-UTD.ARAB EMIR. | S2: =IF(R2="","",OFFSET(SWIFTCODE!$R$2,,,MAX(SWIFTCODE!$Q$2:$Q$5000))) -> AE-UTD.ARAB EMIR. | U2: =IF(ISNUMBER(SEARCH('Supplier Request FORM B'!$D$54,C2)),MAX($U$1:U1)+1,0) -> 1 | V2: =IFERROR(INDEX($C:$C,MATCH(ROW(V1),U:U,0)),"") -> ABU DHABI COMMERCIAL BANK | W2: =OFFSET(SWIFTCODE!$V$2,,,MAX(SWIFTCODE!$U$2:$U$5000)) -> ABU DHABI COMMERCIAL BANK | Y2: =IF(ISNUMBER(SEARCH('Supplier Request FORM B'!$D$54,C2)),MAX($Y$1:Y1)+1,0) -> 1 | Z2: =IFERROR(INDEX($D:$D,MATCH(ROW(Z1),$Y:$Y,0)),"") -> ADCBAEAA | AA2: =OFFSET(SWIFTCODE!$Z$2,,,MAX(SWIFTCODE!$Y$2:$Y$5000)) -> ADCBAEAA | AE2: =IF(LEFT('Supplier Request FORM B'!$D$42,1)="F",0,IF(AND((LEFT('Supplier Request FORM B'!$D$42,1)=LEFT(E2,1)),(LEFT('Supplier Request FORM B'!$D$43,2)=LEFT(A2,2))),MAX($AE$1:AE1)+1,0)) -> 0 | AF2: =IFERROR(INDEX(C:C,MATCH(ROW(AF1),AE:AE,0)),"") ->  | AG2: =OFFSET(SWIFTCODE!$AF$2,,,MAX(SWIFTCODE!$AE$2:$AE$5000)) -> 
A3: AE | B3: CITIAEAD | C3: CITIBANK N.A. | D3: CITIAEAD | E3: CM/C | G3: =IF(ISNUMBER(SEARCH('Supplier Request FORM B'!$D$45,C3)),MAX($G$1:G2)+1,0) -> 2 | H3: CITIBANK N.A. | K3: =IF(AND(('Supplier Request FORM B'!$D$45=C3),(LEFT('Supplier Request FORM B'!$D$42,1)=LEFT(E3,1)),(LEFT('Supplier Request FORM B'!$D$43,2)=LEFT(A3,2))),MAX($K$1:K2)+1,0) -> 0 | O3: AF-AFGHANISTAN | P3: CM/C | Q3: =IF(ISNUMBER(SEARCH(LEFT('Supplier Request FORM B'!$D$42,1),P3)),MAX($Q$1:Q2)+1,0) -> 2 | R3: AF-AFGHANISTAN | U3: =IF(ISNUMBER(SEARCH('Supplier Request FORM B'!$D$54,C3)),MAX($U$1:U2)+1,0) -> 2 | V3: CITIBANK N.A. | Y3: =IF(ISNUMBER(SEARCH('Supplier Request FORM B'!$D$54,C3)),MAX($Y$1:Y2)+1,0) -> 2 | Z3: CITIAEAD | AE3: =IF(LEFT('Supplier Request FORM B'!$D$42,1)="F",0,IF(AND((LEFT('Supplier Request FORM B'!$D$42,1)=LEFT(E3,1)),(LEFT('Supplier Request FORM B'!$D$43,2)=LEFT(A3,2))),MAX($AE$1:AE2)+1,0)) -> 0
A4: AE | B4: EBILAEAD | C4: EMIRATES NBD BANK PJSC | D4: EBILAEAD | E4: CM/C | G4: =IF(ISNUMBER(SEARCH('Supplier Request FORM B'!$D$45,C4)),MAX($G$1:G3)+1,0) -> 3 | H4: EMIRATES NBD BANK PJSC | K4: =IF(AND(('Supplier Request FORM B'!$D$45=C4),(LEFT('Supplier Request FORM B'!$D$42,1)=LEFT(E4,1)),(LEFT('Supplier Request FORM B'!$D$43,2)=LEFT(A4,2))),MAX($K$1:K3)+1,0) -> 0 | O4: AM-ARMENIA | P4: CM/C | Q4: =IF(ISNUMBER(SEARCH(LEFT('Supplier Request FORM B'!$D$42,1),P4)),MAX($Q$1:Q3)+1,0) -> 3 | R4: AM-ARMENIA | U4: =IF(ISNUMBER(SEARCH('Supplier Request FORM B'!$D$54,C4)),MAX($U$1:U3)+1,0) -> 3 | V4: EMIRATES NBD BANK PJSC | Y4: =IF(ISNUMBER(SEARCH('Supplier Request FORM B'!$D$54,C4)),MAX($Y$1:Y3)+1,0) -> 3 | Z4: EBILAEAD | AE4: =IF(LEFT('Supplier Request FORM B'!$D$42,1)="F",0,IF(AND((LEFT('Supplier Request FORM B'!$D$42,1)=LEFT(E4,1)),(LEFT('Supplier Request FORM B'!$D$43,2)=LEFT(A4,2))),MAX($AE$1:AE3)+1,0)) -> 0
A5: AE | B5: HBZUAEAD | C5: HABIB BANK AG ZURICH | D5: HBZUAEAD | E5: CM/C | G5: =IF(ISNUMBER(SEARCH('Supplier Request FORM B'!$D$45,C5)),MAX($G$1:G4)+1,0) -> 4 | H5: HABIB BANK AG ZURICH | K5: =IF(AND(('Supplier Request FORM B'!$D$45=C5),(LEFT('Supplier Request FORM B'!$D$42,1)=LEFT(E5,1)),(LEFT('Supplier Request FORM B'!$D$43,2)=LEFT(A5,2))),MAX($K$1:K4)+1,0) -> 0 | O5: AR-ARGENTINA | P5: CM/C | Q5: =IF(ISNUMBER(SEARCH(LEFT('Supplier Request FORM B'!$D$42,1),P5)),MAX($Q$1:Q4)+1,0) -> 4 | R5: AR-ARGENTINA | U5: =IF(ISNUMBER(SEARCH('Supplier Request FORM B'!$D$54,C5)),MAX($U$1:U4)+1,0) -> 4 | V5: HABIB BANK AG ZURICH | Y5: =IF(ISNUMBER(SEARCH('Supplier Request FORM B'!$D$54,C5)),MAX($Y$1:Y4)+1,0) -> 4 | Z5: HBZUAEAD | AE5: =IF(LEFT('Supplier Request FORM B'!$D$42,1)="F",0,IF(AND((LEFT('Supplier Request FORM B'!$D$42,1)=LEFT(E5,1)),(LEFT('Supplier Request FORM B'!$D$43,2)=LEFT(A5,2))),MAX($AE$1:AE4)+1,0)) -> 0
A6: AE | B6: BBMEAEAD | C6: HSBC BANK MIDDLE EAST LIMITED | D6: BBMEAEAD | E6: CM/C | G6: =IF(ISNUMBER(SEARCH('Supplier Request FORM B'!$D$45,C6)),MAX($G$1:G5)+1,0) -> 5 | H6: HSBC BANK MIDDLE EAST LIMITED | K6: =IF(AND(('Supplier Request FORM B'!$D$45=C6),(LEFT('Supplier Request FORM B'!$D$42,1)=LEFT(E6,1)),(LEFT('Supplier Request FORM B'!$D$43,2)=LEFT(A6,2))),MAX($K$1:K5)+1,0) -> 0 | O6: AT-AUSTRIA | P6: CM/C | Q6: =IF(ISNUMBER(SEARCH(LEFT('Supplier Request FORM B'!$D$42,1),P6)),MAX($Q$1:Q5)+1,0) -> 5 | R6: AT-AUSTRIA | U6: =IF(ISNUMBER(SEARCH('Supplier Request FORM B'!$D$54,C6)),MAX($U$1:U5)+1,0) -> 5 | V6: HSBC BANK MIDDLE EAST LIMITED | Y6: =IF(ISNUMBER(SEARCH('Supplier Request FORM B'!$D$54,C6)),MAX($Y$1:Y5)+1,0) -> 5 | Z6: BBMEAEAD | AE6: =IF(LEFT('Supplier Request FORM B'!$D$42,1)="F",0,IF(AND((LEFT('Supplier Request FORM B'!$D$42,1)=LEFT(E6,1)),(LEFT('Supplier Request FORM B'!$D$43,2)=LEFT(A6,2))),MAX($AE$1:AE5)+1,0)) -> 0
A7: AE | B7: NBFUAEAFDXB | C7: NATIONAL BANK OF FUJAIRAH | D7: NBFUAEAFDXB | E7: CM/C | G7: =IF(ISNUMBER(SEARCH('Supplier Request FORM B'!$D$45,C7)),MAX($G$1:G6)+1,0) -> 6 | H7: NATIONAL BANK OF FUJAIRAH | K7: =IF(AND(('Supplier Request FORM B'!$D$45=C7),(LEFT('Supplier Request FORM B'!$D$42,1)=LEFT(E7,1)),(LEFT('Supplier Request FORM B'!$D$43,2)=LEFT(A7,2))),MAX($K$1:K6)+1,0) -> 0 | O7: AU-AUSTRALIA | P7: CM/C | Q7: =IF(ISNUMBER(SEARCH(LEFT('Supplier Request FORM B'!$D$42,1),P7)),MAX($Q$1:Q6)+1,0) -> 6 | R7: AU-AUSTRALIA | U7: =IF(ISNUMBER(SEARCH('Supplier Request FORM B'!$D$54,C7)),MAX($U$1:U6)+1,0) -> 6 | V7: NATIONAL BANK OF FUJAIRAH | Y7: =IF(ISNUMBER(SEARCH('Supplier Request FORM B'!$D$54,C7)),MAX($Y$1:Y6)+1,0) -> 6 | Z7: NBFUAEAFDXB | AE7: =IF(LEFT('Supplier Request FORM B'!$D$42,1)="F",0,IF(AND((LEFT('Supplier Request FORM B'!$D$42,1)=LEFT(E7,1)),(LEFT('Supplier Request FORM B'!$D$43,2)=LEFT(A7,2))),MAX($AE$1:AE6)+1,0)) -> 0
A8: AE | B8: SCBLAEAD | C8: STANDARD CHARTERED BANK | D8: SCBLAEAD | E8: CM/C | G8: =IF(ISNUMBER(SEARCH('Supplier Request FORM B'!$D$45,C8)),MAX($G$1:G7)+1,0) -> 7 | H8: STANDARD CHARTERED BANK | K8: =IF(AND(('Supplier Request FORM B'!$D$45=C8),(LEFT('Supplier Request FORM B'!$D$42,1)=LEFT(E8,1)),(LEFT('Supplier Request FORM B'!$D$43,2)=LEFT(A8,2))),MAX($K$1:K7)+1,0) -> 0 | O8: AZ-AZERBAIJAN | P8: CM/C | Q8: =IF(ISNUMBER(SEARCH(LEFT('Supplier Request FORM B'!$D$42,1),P8)),MAX($Q$1:Q7)+1,0) -> 7 | R8: AZ-AZERBAIJAN | U8: =IF(ISNUMBER(SEARCH('Supplier Request FORM B'!$D$54,C8)),MAX($U$1:U7)+1,0) -> 7 | V8: STANDARD CHARTERED BANK | Y8: =IF(ISNUMBER(SEARCH('Supplier Request FORM B'!$D$54,C8)),MAX($Y$1:Y7)+1,0) -> 7 | Z8: SCBLAEAD | AE8: =IF(LEFT('Supplier Request FORM B'!$D$42,1)="F",0,IF(AND((LEFT('Supplier Request FORM B'!$D$42,1)=LEFT(E8,1)),(LEFT('Supplier Request FORM B'!$D$43,2)=LEFT(A8,2))),MAX($AE$1:AE7)+1,0)) -> 0
A9: AF | B9: AFIBAFKA | C9: AFGHANISTAN INTERNATIONAL BANK | D9: AFIBAFKA | E9: CM/C | G9: =IF(ISNUMBER(SEARCH('Supplier Request FORM B'!$D$45,C9)),MAX($G$1:G8)+1,0) -> 8 | H9: AFGHANISTAN INTERNATIONAL BANK | K9: =IF(AND(('Supplier Request FORM B'!$D$45=C9),(LEFT('Supplier Request FORM B'!$D$42,1)=LEFT(E9,1)),(LEFT('Supplier Request FORM B'!$D$43,2)=LEFT(A9,2))),MAX($K$1:K8)+1,0) -> 0 | O9: BA-BOSNIA-HERZ. | P9: CM/C | Q9: =IF(ISNUMBER(SEARCH(LEFT('Supplier Request FORM B'!$D$42,1),P9)),MAX($Q$1:Q8)+1,0) -> 8 | R9: BA-BOSNIA-HERZ. | U9: =IF(ISNUMBER(SEARCH('Supplier Request FORM B'!$D$54,C9)),MAX($U$1:U8)+1,0) -> 8 | V9: AFGHANISTAN INTERNATIONAL BANK | Y9: =IF(ISNUMBER(SEARCH('Supplier Request FORM B'!$D$54,C9)),MAX($Y$1:Y8)+1,0) -> 8 | Z9: AFIBAFKA | AE9: =IF(LEFT('Supplier Request FORM B'!$D$42,1)="F",0,IF(AND((LEFT('Supplier Request FORM B'!$D$42,1)=LEFT(E9,1)),(LEFT('Supplier Request FORM B'!$D$43,2)=LEFT(A9,2))),MAX($AE$1:AE8)+1,0)) -> 0
A10: AF | B10: KABUAFKA | C10: NEW KABUL BANK | D10: KABUAFKA | E10: CM/C | G10: =IF(ISNUMBER(SEARCH('Supplier Request FORM B'!$D$45,C10)),MAX($G$1:G9)+1,0) -> 9 | H10: NEW KABUL BANK | K10: =IF(AND(('Supplier Request FORM B'!$D$45=C10),(LEFT('Supplier Request FORM B'!$D$42,1)=LEFT(E10,1)),(LEFT('Supplier Request FORM B'!$D$43,2)=LEFT(A10,2))),MAX($K$1:K9)+1,0) -> 0 | O10: BB-BARBADOS | P10: CM/C | Q10: =IF(ISNUMBER(SEARCH(LEFT('Supplier Request FORM B'!$D$42,1),P10)),MAX($Q$1:Q9)+1,0) -> 9 | R10: BB-BARBADOS | U10: =IF(ISNUMBER(SEARCH('Supplier Request FORM B'!$D$54,C10)),MAX($U$1:U9)+1,0) -> 9 | V10: NEW KABUL BANK | Y10: =IF(ISNUMBER(SEARCH('Supplier Request FORM B'!$D$54,C10)),MAX($Y$1:Y9)+1,0) -> 9 | Z10: KABUAFKA | AE10: =IF(LEFT('Supplier Request FORM B'!$D$42,1)="F",0,IF(AND((LEFT('Supplier Request FORM B'!$D$42,1)=LEFT(E10,1)),(LEFT('Supplier Request FORM B'!$D$43,2)=LEFT(A10,2))),MAX($AE$1:AE9)+1,0)) -> 0
A11: AM | B11: AGCAAM22 | C11: ACBA BANK OJSC | D11: AGCAAM22 | E11: CM/C | G11: =IF(ISNUMBER(SEARCH('Supplier Request FORM B'!$D$45,C11)),MAX($G$1:G10)+1,0) -> 10 | H11: ACBA BANK OJSC | K11: =IF(AND(('Supplier Request FORM B'!$D$45=C11),(LEFT('Supplier Request FORM B'!$D$42,1)=LEFT(E11,1)),(LEFT('Supplier Request FORM B'!$D$43,2)=LEFT(A11,2))),MAX($K$1:K10)+1,0) -> 0 | O11: BD-BANGLADESH | P11: CM/C | Q11: =IF(ISNUMBER(SEARCH(LEFT('Supplier Request FORM B'!$D$42,1),P11)),MAX($Q$1:Q10)+1,0) -> 10 | R11: BD-BANGLADESH | U11: =IF(ISNUMBER(SEARCH('Supplier Request FORM B'!$D$54,C11)),MAX($U$1:U10)+1,0) -> 10 | V11: ACBA BANK OJSC | Y11: =IF(ISNUMBER(SEARCH('Supplier Request FORM B'!$D$54,C11)),MAX($Y$1:Y10)+1,0) -> 10 | Z11: AGCAAM22 | AE11: =IF(LEFT('Supplier Request FORM B'!$D$42,1)="F",0,IF(AND((LEFT('Supplier Request FORM B'!$D$42,1)=LEFT(E11,1)),(LEFT('Supplier Request FORM B'!$D$43,2)=LEFT(A11,2))),MAX($AE$1:AE10)+1,0)) -> 0
A12: AR | B12: GABAARBA | C12: BANCO DE GALICIA Y BUENOS AIRES | D12: GABAARBA | E12: CM/C | G12: =IF(ISNUMBER(SEARCH('Supplier Request FORM B'!$D$45,C12)),MAX($G$1:G11)+1,0) -> 11 | H12: BANCO DE GALICIA Y BUENOS AIRES | K12: =IF(AND(('Supplier Request FORM B'!$D$45=C12),(LEFT('Supplier Request FORM B'!$D$42,1)=LEFT(E12,1)),(LEFT('Supplier Request FORM B'!$D$43,2)=LEFT(A12,2))),MAX($K$1:K11)+1,0) -> 0 | O12: BE-BELGIUM | P12: CM/C | Q12: =IF(ISNUMBER(SEARCH(LEFT('Supplier Request FORM B'!$D$42,1),P12)),MAX($Q$1:Q11)+1,0) -> 11 | R12: BE-BELGIUM | U12: =IF(ISNUMBER(SEARCH('Supplier Request FORM B'!$D$54,C12)),MAX($U$1:U11)+1,0) -> 11 | V12: BANCO DE GALICIA Y BUENOS AIRES | Y12: =IF(ISNUMBER(SEARCH('Supplier Request FORM B'!$D$54,C12)),MAX($Y$1:Y11)+1,0) -> 11 | Z12: GABAARBA | AE12: =IF(LEFT('Supplier Request FORM B'!$D$42,1)="F",0,IF(AND((LEFT('Supplier Request FORM B'!$D$42,1)=LEFT(E12,1)),(LEFT('Supplier Request FORM B'!$D$43,2)=LEFT(A12,2))),MAX($AE$1:AE11)+1,0)) -> 0
A13: AR | B13: BSCHARBA | C13: BANCO SANTANDER RIO S.A. | D13: BSCHARBA | E13: CM/C | G13: =IF(ISNUMBER(SEARCH('Supplier Request FORM B'!$D$45,C13)),MAX($G$1:G12)+1,0) -> 12 | H13: BANCO SANTANDER RIO S.A. | K13: =IF(AND(('Supplier Request FORM B'!$D$45=C13),(LEFT('Supplier Request FORM B'!$D$42,1)=LEFT(E13,1)),(LEFT('Supplier Request FORM B'!$D$43,2)=LEFT(A13,2))),MAX($K$1:K12)+1,0) -> 0 | O13: BG-BULGARIA | P13: CM/C | Q13: =IF(ISNUMBER(SEARCH(LEFT('Supplier Request FORM B'!$D$42,1),P13)),MAX($Q$1:Q12)+1,0) -> 12 | R13: BG-BULGARIA | U13: =IF(ISNUMBER(SEARCH('Supplier Request FORM B'!$D$54,C13)),MAX($U$1:U12)+1,0) -> 12 | V13: BANCO SANTANDER RIO S.A. | Y13: =IF(ISNUMBER(SEARCH('Supplier Request FORM B'!$D$54,C13)),MAX($Y$1:Y12)+1,0) -> 12 | Z13: BSCHARBA | AE13: =IF(LEFT('Supplier Request FORM B'!$D$42,1)="F",0,IF(AND((LEFT('Supplier Request FORM B'!$D$42,1)=LEFT(E13,1)),(LEFT('Supplier Request FORM B'!$D$43,2)=LEFT(A13,2))),MAX($AE$1:AE12)+1,0)) -> 0
A14: AT | B14: BTVAAT22 | C14: BANK FUER TIROL UND VORARLBERG A.G. | D14: BTVAAT22 | E14: CM/C | G14: =IF(ISNUMBER(SEARCH('Supplier Request FORM B'!$D$45,C14)),MAX($G$1:G13)+1,0) -> 13 | H14: BANK FUER TIROL UND VORARLBERG A.G. | K14: =IF(AND(('Supplier Request FORM B'!$D$45=C14),(LEFT('Supplier Request FORM B'!$D$42,1)=LEFT(E14,1)),(LEFT('Supplier Request FORM B'!$D$43,2)=LEFT(A14,2))),MAX($K$1:K13)+1,0) -> 0 | O14: BH-BAHRAIN | P14: CM/C | Q14: =IF(ISNUMBER(SEARCH(LEFT('Supplier Request FORM B'!$D$42,1),P14)),MAX($Q$1:Q13)+1,0) -> 13 | R14: BH-BAHRAIN | U14: =IF(ISNUMBER(SEARCH('Supplier Request FORM B'!$D$54,C14)),MAX($U$1:U13)+1,0) -> 13 | V14: BANK FUER TIROL UND VORARLBERG A.G. | Y14: =IF(ISNUMBER(SEARCH('Supplier Request FORM B'!$D$54,C14)),MAX($Y$1:Y13)+1,0) -> 13 | Z14: BTVAAT22 | AE14: =IF(LEFT('Supplier Request FORM B'!$D$42,1)="F",0,IF(AND((LEFT('Supplier Request FORM B'!$D$42,1)=LEFT(E14,1)),(LEFT('Supplier Request FORM B'!$D$43,2)=LEFT(A14,2))),MAX($AE$1:AE13)+1,0)) -> 0
A15: AT | B15: BTVAAT22LIE | C15: BANK FUER TIROL UND VORARLBERG A.G. | D15: BTVAAT22LIE | E15: CM/C | G15: =IF(ISNUMBER(SEARCH('Supplier Request FORM B'!$D$45,C15)),MAX($G$1:G14)+1,0) -> 14 | H15: BANK FUER TIROL UND VORARLBERG A.G. | K15: =IF(AND(('Supplier Request FORM B'!$D$45=C15),(LEFT('Supplier Request FORM B'!$D$42,1)=LEFT(E15,1)),(LEFT('Supplier Request FORM B'!$D$43,2)=LEFT(A15,2))),MAX($K$1:K14)+1,0) -> 0 | O15: BM-BERMUDA | P15: CM/C | Q15: =IF(ISNUMBER(SEARCH(LEFT('Supplier Request FORM B'!$D$42,1),P15)),MAX($Q$1:Q14)+1,0) -> 14 | R15: BM-BERMUDA | U15: =IF(ISNUMBER(SEARCH('Supplier Request FORM B'!$D$54,C15)),MAX($U$1:U14)+1,0) -> 14 | V15: BANK FUER TIROL UND VORARLBERG A.G. | Y15: =IF(ISNUMBER(SEARCH('Supplier Request FORM B'!$D$54,C15)),MAX($Y$1:Y14)+1,0) -> 14 | Z15: BTVAAT22LIE | AE15: =IF(LEFT('Supplier Request FORM B'!$D$42,1)="F",0,IF(AND((LEFT('Supplier Request FORM B'!$D$42,1)=LEFT(E15,1)),(LEFT('Supplier Request FORM B'!$D$43,2)=LEFT(A15,2))),MAX($AE$1:AE14)+1,0)) -> 0
A16: AT | B16: SPAEAT2S | C16: BANKHAUS CARL SPAENGLER UND CO. AKTIENGESELLSCHAFT | D16: SPAEAT2S | E16: CM/C | G16: =IF(ISNUMBER(SEARCH('Supplier Request FORM B'!$D$45,C16)),MAX($G$1:G15)+1,0) -> 15 | H16: BANKHAUS CARL SPAENGLER UND CO. AKTIENGESELLSCHAFT | K16: =IF(AND(('Supplier Request FORM B'!$D$45=C16),(LEFT('Supplier Request FORM B'!$D$42,1)=LEFT(E16,1)),(LEFT('Supplier Request FORM B'!$D$43,2)=LEFT(A16,2))),MAX($K$1:K15)+1,0) -> 0 | O16: BN-BRUNEI DAR-ES-S | P16: CM/C | Q16: =IF(ISNUMBER(SEARCH(LEFT('Supplier Request FORM B'!$D$42,1),P16)),MAX($Q$1:Q15)+1,0) -> 15 | R16: BN-BRUNEI DAR-ES-S | U16: =IF(ISNUMBER(SEARCH('Supplier Request FORM B'!$D$54,C16)),MAX($U$1:U15)+1,0) -> 15 | V16: BANKHAUS CARL SPAENGLER UND CO. AKTIENGESELLSCHAFT | Y16: =IF(ISNUMBER(SEARCH('Supplier Request FORM B'!$D$54,C16)),MAX($Y$1:Y15)+1,0) -> 15 | Z16: SPAEAT2S | AE16: =IF(LEFT('Supplier Request FORM B'!$D$42,1)="F",0,IF(AND((LEFT('Supplier Request FORM B'!$D$42,1)=LEFT(E16,1)),(LEFT('Supplier Request FORM B'!$D$43,2)=LEFT(A16,2))),MAX($AE$1:AE15)+1,0)) -> 0
A17: AT | B17: BAWAATWW | C17: BAWAG P.S.K. BANK FUER ARBEIT UND WIRTSCHAFT UND OESTERREICH | D17: BAWAATWW | E17: CM/C | G17: =IF(ISNUMBER(SEARCH('Supplier Request FORM B'!$D$45,C17)),MAX($G$1:G16)+1,0) -> 16 | H17: BAWAG P.S.K. BANK FUER ARBEIT UND WIRTSCHAFT UND OESTERREICH | K17: =IF(AND(('Supplier Request FORM B'!$D$45=C17),(LEFT('Supplier Request FORM B'!$D$42,1)=LEFT(E17,1)),(LEFT('Supplier Request FORM B'!$D$43,2)=LEFT(A17,2))),MAX($K$1:K16)+1,0) -> 0 | O17: BR-BRAZIL | P17: CM/C | Q17: =IF(ISNUMBER(SEARCH(LEFT('Supplier Request FORM B'!$D$42,1),P17)),MAX($Q$1:Q16)+1,0) -> 16 | R17: BR-BRAZIL | U17: =IF(ISNUMBER(SEARCH('Supplier Request FORM B'!$D$54,C17)),MAX($U$1:U16)+1,0) -> 16 | V17: BAWAG P.S.K. BANK FUER ARBEIT UND WIRTSCHAFT UND OESTERREICH | Y17: =IF(ISNUMBER(SEARCH('Supplier Request FORM B'!$D$54,C17)),MAX($Y$1:Y16)+1,0) -> 16 | Z17: BAWAATWW | AE17: =IF(LEFT('Supplier Request FORM B'!$D$42,1)="F",0,IF(AND((LEFT('Supplier Request FORM B'!$D$42,1)=LEFT(E17,1)),(LEFT('Supplier Request FORM B'!$D$43,2)=LEFT(A17,2))),MAX($AE$1:AE16)+1,0)) -> 0
A18: AT | B18: BFKKAT2K | C18: BKS BANK AG | D18: BFKKAT2K | E18: CM/C | G18: =IF(ISNUMBER(SEARCH('Supplier Request FORM B'!$D$45,C18)),MAX($G$1:G17)+1,0) -> 17 | H18: BKS BANK AG | K18: =IF(AND(('Supplier Request FORM B'!$D$45=C18),(LEFT('Supplier Request FORM B'!$D$42,1)=LEFT(E18,1)),(LEFT('Supplier Request FORM B'!$D$43,2)=LEFT(A18,2))),MAX($K$1:K17)+1,0) -> 0 | O18: BS-BAHAMAS | P18: CM/C | Q18: =IF(ISNUMBER(SEARCH(LEFT('Supplier Request FORM B'!$D$42,1),P18)),MAX($Q$1:Q17)+1,0) -> 17 | R18: BS-BAHAMAS | U18: =IF(ISNUMBER(SEARCH('Supplier Request FORM B'!$D$54,C18)),MAX($U$1:U17)+1,0) -> 17 | V18: BKS BANK AG | Y18: =IF(ISNUMBER(SEARCH('Supplier Request FORM B'!$D$54,C18)),MAX($Y$1:Y17)+1,0) -> 17 | Z18: BFKKAT2K | AE18: =IF(LEFT('Supplier Request FORM B'!$D$42,1)="F",0,IF(AND((LEFT('Supplier Request FORM B'!$D$42,1)=LEFT(E18,1)),(LEFT('Supplier Request FORM B'!$D$43,2)=LEFT(A18,2))),MAX($AE$1:AE17)+1,0)) -> 0
A19: AT | B19: DIRAAT2S | C19: BNP PARIBAS S.A. NL OESTERREICH | D19: DIRAAT2S | E19: CM/C | G19: =IF(ISNUMBER(SEARCH('Supplier Request FORM B'!$D$45,C19)),MAX($G$1:G18)+1,0) -> 18 | H19: BNP PARIBAS S.A. NL OESTERREICH | K19: =IF(AND(('Supplier Request FORM B'!$D$45=C19),(LEFT('Supplier Request FORM B'!$D$42,1)=LEFT(E19,1)),(LEFT('Supplier Request FORM B'!$D$43,2)=LEFT(A19,2))),MAX($K$1:K18)+1,0) -> 0 | O19: BT-BHUTAN | P19: CM/C | Q19: =IF(ISNUMBER(SEARCH(LEFT('Supplier Request FORM B'!$D$42,1),P19)),MAX($Q$1:Q18)+1,0) -> 18 | R19: BT-BHUTAN | U19: =IF(ISNUMBER(SEARCH('Supplier Request FORM B'!$D$54,C19)),MAX($U$1:U18)+1,0) -> 18 | V19: BNP PARIBAS S.A. NL OESTERREICH | Y19: =IF(ISNUMBER(SEARCH('Supplier Request FORM B'!$D$54,C19)),MAX($Y$1:Y18)+1,0) -> 18 | Z19: DIRAAT2S | AE19: =IF(LEFT('Supplier Request FORM B'!$D$42,1)="F",0,IF(AND((LEFT('Supplier Request FORM B'!$D$42,1)=LEFT(E19,1)),(LEFT('Supplier Request FORM B'!$D$43,2)=LEFT(A19,2))),MAX($AE$1:AE18)+1,0)) -> 0
A20: AT | B20: DEUTATWWXXX | C20: DEUTSCHE BANK AKTIENGESELLSCHAFT FILIALE WIEN (VIENNA BRANCH | D20: DEUTATWWXXX | E20: CM/C | G20: =IF(ISNUMBER(SEARCH('Supplier Request FORM B'!$D$45,C20)),MAX($G$1:G19)+1,0) -> 19 | H20: DEUTSCHE BANK AKTIENGESELLSCHAFT FILIALE WIEN (VIENNA BRANCH | K20: =IF(AND(('Supplier Request FORM B'!$D$45=C20),(LEFT('Supplier Request FORM B'!$D$42,1)=LEFT(E20,1)),(LEFT('Supplier Request FORM B'!$D$43,2)=LEFT(A20,2))),MAX($K$1:K19)+1,0) -> 0 | O20: BY-BELARUS | P20: CM/C | Q20: =IF(ISNUMBER(SEARCH(LEFT('Supplier Request FORM B'!$D$42,1),P20)),MAX($Q$1:Q19)+1,0) -> 19 | R20: BY-BELARUS | U20: =IF(ISNUMBER(SEARCH('Supplier Request FORM B'!$D$54,C20)),MAX($U$1:U19)+1,0) -> 19 | V20: DEUTSCHE BANK AKTIENGESELLSCHAFT FILIALE WIEN (VIENNA BRANCH | Y20: =IF(ISNUMBER(SEARCH('Supplier Request FORM B'!$D$54,C20)),MAX($Y$1:Y19)+1,0) -> 19 | Z20: DEUTATWWXXX | AE20: =IF(LEFT('Supplier Request FORM B'!$D$42,1)="F",0,IF(AND((LEFT('Supplier Request FORM B'!$D$42,1)=LEFT(E20,1)),(LEFT('Supplier Request FORM B'!$D$43,2)=LEFT(A20,2))),MAX($AE$1:AE19)+1,0)) -> 0
A21: AT | B21: GIBAATWW | C21: ERSTE BANK DER OESTERREICHISCHEN SPARKASSEN AG | D21: GIBAATWW | E21: CM/C | G21: =IF(ISNUMBER(SEARCH('Supplier Request FORM B'!$D$45,C21)),MAX($G$1:G20)+1,0) -> 20 | H21: ERSTE BANK DER OESTERREICHISCHEN SPARKASSEN AG | K21: =IF(AND(('Supplier Request FORM B'!$D$45=C21),(LEFT('Supplier Request FORM B'!$D$42,1)=LEFT(E21,1)),(LEFT('Supplier Request FORM B'!$D$43,2)=LEFT(A21,2))),MAX($K$1:K20)+1,0) -> 0 | O21: CA-CANADA | P21: CM/C | Q21: =IF(ISNUMBER(SEARCH(LEFT('Supplier Request FORM B'!$D$42,1),P21)),MAX($Q$1:Q20)+1,0) -> 20 | R21: CA-CANADA | U21: =IF(ISNUMBER(SEARCH('Supplier Request FORM B'!$D$54,C21)),MAX($U$1:U20)+1,0) -> 20 | V21: ERSTE BANK DER OESTERREICHISCHEN SPARKASSEN AG | Y21: =IF(ISNUMBER(SEARCH('Supplier Request FORM B'!$D$54,C21)),MAX($Y$1:Y20)+1,0) -> 20 | Z21: GIBAATWW | AE21: =IF(LEFT('Supplier Request FORM B'!$D$42,1)="F",0,IF(AND((LEFT('Supplier Request FORM B'!$D$42,1)=LEFT(E21,1)),(LEFT('Supplier Request FORM B'!$D$43,2)=LEFT(A21,2))),MAX($AE$1:AE20)+1,0)) -> 0
A22: AT | B22: GIBAATWG | C22: ERSTE GROUP BANK AG | D22: GIBAATWG | E22: CM/C | G22: =IF(ISNUMBER(SEARCH('Supplier Request FORM B'!$D$45,C22)),MAX($G$1:G21)+1,0) -> 21 | H22: ERSTE GROUP BANK AG | K22: =IF(AND(('Supplier Request FORM B'!$D$45=C22),(LEFT('Supplier Request FORM B'!$D$42,1)=LEFT(E22,1)),(LEFT('Supplier Request FORM B'!$D$43,2)=LEFT(A22,2))),MAX($K$1:K21)+1,0) -> 0 | O22: CH-SWITZERLAND | P22: CM/C | Q22: =IF(ISNUMBER(SEARCH(LEFT('Supplier Request FORM B'!$D$42,1),P22)),MAX($Q$1:Q21)+1,0) -> 21 | R22: CH-SWITZERLAND | U22: =IF(ISNUMBER(SEARCH('Supplier Request FORM B'!$D$54,C22)),MAX($U$1:U21)+1,0) -> 21 | V22: ERSTE GROUP BANK AG | Y22: =IF(ISNUMBER(SEARCH('Supplier Request FORM B'!$D$54,C22)),MAX($Y$1:Y21)+1,0) -> 21 | Z22: GIBAATWG | AE22: =IF(LEFT('Supplier Request FORM B'!$D$42,1)="F",0,IF(AND((LEFT('Supplier Request FORM B'!$D$42,1)=LEFT(E22,1)),(LEFT('Supplier Request FORM B'!$D$43,2)=LEFT(A22,2))),MAX($AE$1:AE21)+1,0)) -> 0
A23: AT | B23: HYPNATWW | C23: HYPO NOE LANDESBANK FUER NIEDEROSTERREICH UND WIEN AG | D23: HYPNATWW | E23: CM/C | G23: =IF(ISNUMBER(SEARCH('Supplier Request FORM B'!$D$45,C23)),MAX($G$1:G22)+1,0) -> 22 | H23: HYPO NOE LANDESBANK FUER NIEDEROSTERREICH UND WIEN AG | K23: =IF(AND(('Supplier Request FORM B'!$D$45=C23),(LEFT('Supplier Request FORM B'!$D$42,1)=LEFT(E23,1)),(LEFT('Supplier Request FORM B'!$D$43,2)=LEFT(A23,2))),MAX($K$1:K22)+1,0) -> 0 | O23: CL-CHILE | P23: CM/C | Q23: =IF(ISNUMBER(SEARCH(LEFT('Supplier Request FORM B'!$D$42,1),P23)),MAX($Q$1:Q22)+1,0) -> 22 | R23: CL-CHILE | U23: =IF(ISNUMBER(SEARCH('Supplier Request FORM B'!$D$54,C23)),MAX($U$1:U22)+1,0) -> 22 | V23: HYPO NOE LANDESBANK FUER NIEDEROSTERREICH UND WIEN AG | Y23: =IF(ISNUMBER(SEARCH('Supplier Request FORM B'!$D$54,C23)),MAX($Y$1:Y22)+1,0) -> 22 | Z23: HYPNATWW | AE23: =IF(LEFT('Supplier Request FORM B'!$D$42,1)="F",0,IF(AND((LEFT('Supplier Request FORM B'!$D$42,1)=LEFT(E23,1)),(LEFT('Supplier Request FORM B'!$D$43,2)=LEFT(A23,2))),MAX($AE$1:AE22)+1,0)) -> 0
A24: AT | B24: HYPTAT22 | C24: HYPO TIROL BANK AG | D24: HYPTAT22 | E24: CM/C | G24: =IF(ISNUMBER(SEARCH('Supplier Request FORM B'!$D$45,C24)),MAX($G$1:G23)+1,0) -> 23 | H24: HYPO TIROL BANK AG | K24: =IF(AND(('Supplier Request FORM B'!$D$45=C24),(LEFT('Supplier Request FORM B'!$D$42,1)=LEFT(E24,1)),(LEFT('Supplier Request FORM B'!$D$43,2)=LEFT(A24,2))),MAX($K$1:K23)+1,0) -> 0 | O24: CM-CAMEROON | P24: CM/C | Q24: =IF(ISNUMBER(SEARCH(LEFT('Supplier Request FORM B'!$D$42,1),P24)),MAX($Q$1:Q23)+1,0) -> 23 | R24: CM-CAMEROON | U24: =IF(ISNUMBER(SEARCH('Supplier Request FORM B'!$D$54,C24)),MAX($U$1:U23)+1,0) -> 23 | V24: HYPO TIROL BANK AG | Y24: =IF(ISNUMBER(SEARCH('Supplier Request FORM B'!$D$54,C24)),MAX($Y$1:Y23)+1,0) -> 23 | Z24: HYPTAT22 | AE24: =IF(LEFT('Supplier Request FORM B'!$D$42,1)="F",0,IF(AND((LEFT('Supplier Request FORM B'!$D$42,1)=LEFT(E24,1)),(LEFT('Supplier Request FORM B'!$D$43,2)=LEFT(A24,2))),MAX($AE$1:AE23)+1,0)) -> 0
A25: AT | B25: HYPVAT2B | C25: HYPO VORARLBERG BANK AG | D25: HYPVAT2B | E25: CM/C | G25: =IF(ISNUMBER(SEARCH('Supplier Request FORM B'!$D$45,C25)),MAX($G$1:G24)+1,0) -> 24 | H25: HYPO VORARLBERG BANK AG | K25: =IF(AND(('Supplier Request FORM B'!$D$45=C25),(LEFT('Supplier Request FORM B'!$D$42,1)=LEFT(E25,1)),(LEFT('Supplier Request FORM B'!$D$43,2)=LEFT(A25,2))),MAX($K$1:K24)+1,0) -> 0 | O25: CN-CHINA | P25: CM/C | Q25: =IF(ISNUMBER(SEARCH(LEFT('Supplier Request FORM B'!$D$42,1),P25)),MAX($Q$1:Q24)+1,0) -> 24 | R25: CN-CHINA | U25: =IF(ISNUMBER(SEARCH('Supplier Request FORM B'!$D$54,C25)),MAX($U$1:U24)+1,0) -> 24 | V25: HYPO VORARLBERG BANK AG | Y25: =IF(ISNUMBER(SEARCH('Supplier Request FORM B'!$D$54,C25)),MAX($Y$1:Y24)+1,0) -> 24 | Z25: HYPVAT2B | AE25: =IF(LEFT('Supplier Request FORM B'!$D$42,1)="F",0,IF(AND((LEFT('Supplier Request FORM B'!$D$42,1)=LEFT(E25,1)),(LEFT('Supplier Request FORM B'!$D$43,2)=LEFT(A25,2))),MAX($AE$1:AE24)+1,0)) -> 0
A26: AT | B26: KSPKAT2K | C26: KAERNTNER SPARKASSE AG | D26: KSPKAT2K | E26: CM/C | G26: =IF(ISNUMBER(SEARCH('Supplier Request FORM B'!$D$45,C26)),MAX($G$1:G25)+1,0) -> 25 | H26: KAERNTNER SPARKASSE AG | K26: =IF(AND(('Supplier Request FORM B'!$D$45=C26),(LEFT('Supplier Request FORM B'!$D$42,1)=LEFT(E26,1)),(LEFT('Supplier Request FORM B'!$D$43,2)=LEFT(A26,2))),MAX($K$1:K25)+1,0) -> 0 | O26: CO-COLOMBIA | P26: CM/C | Q26: =IF(ISNUMBER(SEARCH(LEFT('Supplier Request FORM B'!$D$42,1),P26)),MAX($Q$1:Q25)+1,0) -> 25 | R26: CO-COLOMBIA | U26: =IF(ISNUMBER(SEARCH('Supplier Request FORM B'!$D$54,C26)),MAX($U$1:U25)+1,0) -> 25 | V26: KAERNTNER SPARKASSE AG | Y26: =IF(ISNUMBER(SEARCH('Supplier Request FORM B'!$D$54,C26)),MAX($Y$1:Y25)+1,0) -> 25 | Z26: KSPKAT2K | AE26: =IF(LEFT('Supplier Request FORM B'!$D$42,1)="F",0,IF(AND((LEFT('Supplier Request FORM B'!$D$42,1)=LEFT(E26,1)),(LEFT('Supplier Request FORM B'!$D$43,2)=LEFT(A26,2))),MAX($AE$1:AE25)+1,0)) -> 0
A27: AT | B27: HYSTAT2G | C27: LANDES-HYPOTHEKENBANK STEIERMARK AKTIENGESELLSCHAFT | D27: HYSTAT2G | E27: CM/C | G27: =IF(ISNUMBER(SEARCH('Supplier Request FORM B'!$D$45,C27)),MAX($G$1:G26)+1,0) -> 26 | H27: LANDES-HYPOTHEKENBANK STEIERMARK AKTIENGESELLSCHAFT | K27: =IF(AND(('Supplier Request FORM B'!$D$45=C27),(LEFT('Supplier Request FORM B'!$D$42,1)=LEFT(E27,1)),(LEFT('Supplier Request FORM B'!$D$43,2)=LEFT(A27,2))),MAX($K$1:K26)+1,0) -> 0 | O27: CR-COSTA RICA | P27: CM/C | Q27: =IF(ISNUMBER(SEARCH(LEFT('Supplier Request FORM B'!$D$42,1),P27)),MAX($Q$1:Q26)+1,0) -> 26 | R27: CR-COSTA RICA | U27: =IF(ISNUMBER(SEARCH('Supplier Request FORM B'!$D$54,C27)),MAX($U$1:U26)+1,0) -> 26 | V27: LANDES-HYPOTHEKENBANK STEIERMARK AKTIENGESELLSCHAFT | Y27: =IF(ISNUMBER(SEARCH('Supplier Request FORM B'!$D$54,C27)),MAX($Y$1:Y26)+1,0) -> 26 | Z27: HYSTAT2G | AE27: =IF(LEFT('Supplier Request FORM B'!$D$42,1)="F",0,IF(AND((LEFT('Supplier Request FORM B'!$D$42,1)=LEFT(E27,1)),(LEFT('Supplier Request FORM B'!$D$43,2)=LEFT(A27,2))),MAX($AE$1:AE26)+1,0)) -> 0
A28: AT | B28: OBKLAT2L | C28: OBERBANK AG | D28: OBKLAT2L | E28: CM/C | G28: =IF(ISNUMBER(SEARCH('Supplier Request FORM B'!$D$45,C28)),MAX($G$1:G27)+1,0) -> 27 | H28: OBERBANK AG | K28: =IF(AND(('Supplier Request FORM B'!$D$45=C28),(LEFT('Supplier Request FORM B'!$D$42,1)=LEFT(E28,1)),(LEFT('Supplier Request FORM B'!$D$43,2)=LEFT(A28,2))),MAX($K$1:K27)+1,0) -> 0 | O28: CY-CYPRUS | P28: CM/C | Q28: =IF(ISNUMBER(SEARCH(LEFT('Supplier Request FORM B'!$D$42,1),P28)),MAX($Q$1:Q27)+1,0) -> 27 | R28: CY-CYPRUS | U28: =IF(ISNUMBER(SEARCH('Supplier Request FORM B'!$D$54,C28)),MAX($U$1:U27)+1,0) -> 27 | V28: OBERBANK AG | Y28: =IF(ISNUMBER(SEARCH('Supplier Request FORM B'!$D$54,C28)),MAX($Y$1:Y27)+1,0) -> 27 | Z28: OBKLAT2L | AE28: =IF(LEFT('Supplier Request FORM B'!$D$42,1)="F",0,IF(AND((LEFT('Supplier Request FORM B'!$D$42,1)=LEFT(E28,1)),(LEFT('Supplier Request FORM B'!$D$43,2)=LEFT(A28,2))),MAX($AE$1:AE27)+1,0)) -> 0
A29: AT | B29: OBLAAT2L | C29: OBEROESTERREICHISCHE LANDESBANK AKTIENGESELLSCHAFT | D29: OBLAAT2L | E29: CM/C | G29: =IF(ISNUMBER(SEARCH('Supplier Request FORM B'!$D$45,C29)),MAX($G$1:G28)+1,0) -> 28 | H29: OBEROESTERREICHISCHE LANDESBANK AKTIENGESELLSCHAFT | K29: =IF(AND(('Supplier Request FORM B'!$D$45=C29),(LEFT('Supplier Request FORM B'!$D$42,1)=LEFT(E29,1)),(LEFT('Supplier Request FORM B'!$D$43,2)=LEFT(A29,2))),MAX($K$1:K28)+1,0) -> 0 | O29: CZ-CZECH REPUBLIC | P29: CM/C | Q29: =IF(ISNUMBER(SEARCH(LEFT('Supplier Request FORM B'!$D$42,1),P29)),MAX($Q$1:Q28)+1,0) -> 28 | R29: CZ-CZECH REPUBLIC | U29: =IF(ISNUMBER(SEARCH('Supplier Request FORM B'!$D$54,C29)),MAX($U$1:U28)+1,0) -> 28 | V29: OBEROESTERREICHISCHE LANDESBANK AKTIENGESELLSCHAFT | Y29: =IF(ISNUMBER(SEARCH('Supplier Request FORM B'!$D$54,C29)),MAX($Y$1:Y28)+1,0) -> 28 | Z29: OBLAAT2L | AE29: =IF(LEFT('Supplier Request FORM B'!$D$42,1)="F",0,IF(AND((LEFT('Supplier Request FORM B'!$D$42,1)=LEFT(E29,1)),(LEFT('Supplier Request FORM B'!$D$43,2)=LEFT(A29,2))),MAX($AE$1:AE28)+1,0)) -> 0
A30: AT | B30: BWFBATW1 | C30: OESTERREICHISCHE AERZTE- UND APOTHEKERBANK AG | D30: BWFBATW1 | E30: CM/C | G30: =IF(ISNUMBER(SEARCH('Supplier Request FORM B'!$D$45,C30)),MAX($G$1:G29)+1,0) -> 29 | H30: OESTERREICHISCHE AERZTE- UND APOTHEKERBANK AG | K30: =IF(AND(('Supplier Request FORM B'!$D$45=C30),(LEFT('Supplier Request FORM B'!$D$42,1)=LEFT(E30,1)),(LEFT('Supplier Request FORM B'!$D$43,2)=LEFT(A30,2))),MAX($K$1:K29)+1,0) -> 0 | O30: DE-GERMANY | P30: CM/C | Q30: =IF(ISNUMBER(SEARCH(LEFT('Supplier Request FORM B'!$D$42,1),P30)),MAX($Q$1:Q29)+1,0) -> 29 | R30: DE-GERMANY | U30: =IF(ISNUMBER(SEARCH('Supplier Request FORM B'!$D$54,C30)),MAX($U$1:U29)+1,0) -> 29 | V30: OESTERREICHISCHE AERZTE- UND APOTHEKERBANK AG | Y30: =IF(ISNUMBER(SEARCH('Supplier Request FORM B'!$D$54,C30)),MAX($Y$1:Y29)+1,0) -> 29 | Z30: BWFBATW1 | AE30: =IF(LEFT('Supplier Request FORM B'!$D$42,1)="F",0,IF(AND((LEFT('Supplier Request FORM B'!$D$42,1)=LEFT(E30,1)),(LEFT('Supplier Request FORM B'!$D$43,2)=LEFT(A30,2))),MAX($AE$1:AE29)+1,0)) -> 0
A31: AT | B31: VSGKAT2K | C31: POSOJILNICA BANK EGEN | D31: VSGKAT2K | E31: CM/C | G31: =IF(ISNUMBER(SEARCH('Supplier Request FORM B'!$D$45,C31)),MAX($G$1:G30)+1,0) -> 30 | H31: POSOJILNICA BANK EGEN | K31: =IF(AND(('Supplier Request FORM B'!$D$45=C31),(LEFT('Supplier Request FORM B'!$D$42,1)=LEFT(E31,1)),(LEFT('Supplier Request FORM B'!$D$43,2)=LEFT(A31,2))),MAX($K$1:K30)+1,0) -> 0 | O31: DK-DENMARK | P31: CM/C | Q31: =IF(ISNUMBER(SEARCH(LEFT('Supplier Request FORM B'!$D$42,1),P31)),MAX($Q$1:Q30)+1,0) -> 30 | R31: DK-DENMARK | U31: =IF(ISNUMBER(SEARCH('Supplier Request FORM B'!$D$54,C31)),MAX($U$1:U30)+1,0) -> 30 | V31: POSOJILNICA BANK EGEN | Y31: =IF(ISNUMBER(SEARCH('Supplier Request FORM B'!$D$54,C31)),MAX($Y$1:Y30)+1,0) -> 30 | Z31: VSGKAT2K | AE31: =IF(LEFT('Supplier Request FORM B'!$D$42,1)="F",0,IF(AND((LEFT('Supplier Request FORM B'!$D$42,1)=LEFT(E31,1)),(LEFT('Supplier Request FORM B'!$D$43,2)=LEFT(A31,2))),MAX($AE$1:AE30)+1,0)) -> 0
A32: AT | B32: RZBAATWW | C32: RAIFFEISEN BANK INTERNATIONAL AG | D32: RZBAATWW | E32: CM/C | G32: =IF(ISNUMBER(SEARCH('Supplier Request FORM B'!$D$45,C32)),MAX($G$1:G31)+1,0) -> 31 | H32: RAIFFEISEN BANK INTERNATIONAL AG | K32: =IF(AND(('Supplier Request FORM B'!$D$45=C32),(LEFT('Supplier Request FORM B'!$D$42,1)=LEFT(E32,1)),(LEFT('Supplier Request FORM B'!$D$43,2)=LEFT(A32,2))),MAX($K$1:K31)+1,0) -> 0 | O32: EC-ECUADOR | P32: CM/C | Q32: =IF(ISNUMBER(SEARCH(LEFT('Supplier Request FORM B'!$D$42,1),P32)),MAX($Q$1:Q31)+1,0) -> 31 | R32: EC-ECUADOR | U32: =IF(ISNUMBER(SEARCH('Supplier Request FORM B'!$D$54,C32)),MAX($U$1:U31)+1,0) -> 31 | V32: RAIFFEISEN BANK INTERNATIONAL AG | Y32: =IF(ISNUMBER(SEARCH('Supplier Request FORM B'!$D$54,C32)),MAX($Y$1:Y31)+1,0) -> 31 | Z32: RZBAATWW | AE32: =IF(LEFT('Supplier Request FORM B'!$D$42,1)="F",0,IF(AND((LEFT('Supplier Request FORM B'!$D$42,1)=LEFT(E32,1)),(LEFT('Supplier Request FORM B'!$D$43,2)=LEFT(A32,2))),MAX($AE$1:AE31)+1,0)) -> 0
A33: AT | B33: RZOOAT2L075 | C33: RAIFFEISENBANK DONAU-AMEISBERG | D33: RZOOAT2L075 | E33: CM/C | G33: =IF(ISNUMBER(SEARCH('Supplier Request FORM B'!$D$45,C33)),MAX($G$1:G32)+1,0) -> 32 | H33: RAIFFEISENBANK DONAU-AMEISBERG | K33: =IF(AND(('Supplier Request FORM B'!$D$45=C33),(LEFT('Supplier Request FORM B'!$D$42,1)=LEFT(E33,1)),(LEFT('Supplier Request FORM B'!$D$43,2)=LEFT(A33,2))),MAX($K$1:K32)+1,0) -> 0 | O33: EE-ESTONIA | P33: CM/C | Q33: =IF(ISNUMBER(SEARCH(LEFT('Supplier Request FORM B'!$D$42,1),P33)),MAX($Q$1:Q32)+1,0) -> 32 | R33: EE-ESTONIA | U33: =IF(ISNUMBER(SEARCH('Supplier Request FORM B'!$D$54,C33)),MAX($U$1:U32)+1,0) -> 32 | V33: RAIFFEISENBANK DONAU-AMEISBERG | Y33: =IF(ISNUMBER(SEARCH('Supplier Request FORM B'!$D$54,C33)),MAX($Y$1:Y32)+1,0) -> 32 | Z33: RZOOAT2L075 | AE33: =IF(LEFT('Supplier Request FORM B'!$D$42,1)="F",0,IF(AND((LEFT('Supplier Request FORM B'!$D$42,1)=LEFT(E33,1)),(LEFT('Supplier Request FORM B'!$D$43,2)=LEFT(A33,2))),MAX($AE$1:AE32)+1,0)) -> 0
A34: AT | B34: RZOOAT2L157 | C34: RAIFFEISENBANK ENNS | D34: RZOOAT2L157 | E34: CM/C | G34: =IF(ISNUMBER(SEARCH('Supplier Request FORM B'!$D$45,C34)),MAX($G$1:G33)+1,0) -> 33 | H34: RAIFFEISENBANK ENNS | K34: =IF(AND(('Supplier Request FORM B'!$D$45=C34),(LEFT('Supplier Request FORM B'!$D$42,1)=LEFT(E34,1)),(LEFT('Supplier Request FORM B'!$D$43,2)=LEFT(A34,2))),MAX($K$1:K33)+1,0) -> 0 | O34: EG-EGYPT | P34: CM/C | Q34: =IF(ISNUMBER(SEARCH(LEFT('Supplier Request FORM B'!$D$42,1),P34)),MAX($Q$1:Q33)+1,0) -> 33 | R34: =IFERROR(INDEX(O:O,MATCH(ROW(R33),$Q:$Q,0)),"") -> EG-EGYPT | U34: =IF(ISNUMBER(SEARCH('Supplier Request FORM B'!$D$54,C34)),MAX($U$1:U33)+1,0) -> 33 | V34: RAIFFEISENBANK ENNS | Y34: =IF(ISNUMBER(SEARCH('Supplier Request FORM B'!$D$54,C34)),MAX($Y$1:Y33)+1,0) -> 33 | Z34: RZOOAT2L157 | AE34: =IF(LEFT('Supplier Request FORM B'!$D$42,1)="F",0,IF(AND((LEFT('Supplier Request FORM B'!$D$42,1)=LEFT(E34,1)),(LEFT('Supplier Request FORM B'!$D$43,2)=LEFT(A34,2))),MAX($AE$1:AE33)+1,0)) -> 0
A35: AT | B35: RZOOAT2L135 | C35: RAIFFEISENBANK GRAMASTETTEN-HERZOGSDORF | D35: RZOOAT2L135 | E35: CM/C | G35: =IF(ISNUMBER(SEARCH('Supplier Request FORM B'!$D$45,C35)),MAX($G$1:G34)+1,0) -> 34 | H35: RAIFFEISENBANK GRAMASTETTEN-HERZOGSDORF | K35: =IF(AND(('Supplier Request FORM B'!$D$45=C35),(LEFT('Supplier Request FORM B'!$D$42,1)=LEFT(E35,1)),(LEFT('Supplier Request FORM B'!$D$43,2)=LEFT(A35,2))),MAX($K$1:K34)+1,0) -> 0 | O35: ES-SPAIN | P35: CM/C | Q35: =IF(ISNUMBER(SEARCH(LEFT('Supplier Request FORM B'!$D$42,1),P35)),MAX($Q$1:Q34)+1,0) -> 34 | R35: ES-SPAIN | U35: =IF(ISNUMBER(SEARCH('Supplier Request FORM B'!$D$54,C35)),MAX($U$1:U34)+1,0) -> 34 | V35: RAIFFEISENBANK GRAMASTETTEN-HERZOGSDORF | Y35: =IF(ISNUMBER(SEARCH('Supplier Request FORM B'!$D$54,C35)),MAX($Y$1:Y34)+1,0) -> 34 | Z35: RZOOAT2L135 | AE35: =IF(LEFT('Supplier Request FORM B'!$D$42,1)="F",0,IF(AND((LEFT('Supplier Request FORM B'!$D$42,1)=LEFT(E35,1)),(LEFT('Supplier Request FORM B'!$D$43,2)=LEFT(A35,2))),MAX($AE$1:AE34)+1,0)) -> 0
A36: AT | B36: RZTIAT22260 | C36: RAIFFEISENBANK KEMATEN EGEN | D36: RZTIAT22260 | E36: CM/C | G36: =IF(ISNUMBER(SEARCH('Supplier Request FORM B'!$D$45,C36)),MAX($G$1:G35)+1,0) -> 35 | H36: RAIFFEISENBANK KEMATEN EGEN | K36: =IF(AND(('Supplier Request FORM B'!$D$45=C36),(LEFT('Supplier Request FORM B'!$D$42,1)=LEFT(E36,1)),(LEFT('Supplier Request FORM B'!$D$43,2)=LEFT(A36,2))),MAX($K$1:K35)+1,0) -> 0 | O36: ET-ETHIOPIA | P36: CM/C | Q36: =IF(ISNUMBER(SEARCH(LEFT('Supplier Request FORM B'!$D$42,1),P36)),MAX($Q$1:Q35)+1,0) -> 35 | R36: ET-ETHIOPIA | U36: =IF(ISNUMBER(SEARCH('Supplier Request FORM B'!$D$54,C36)),MAX($U$1:U35)+1,0) -> 35 | V36: RAIFFEISENBANK KEMATEN EGEN | Y36: =IF(ISNUMBER(SEARCH('Supplier Request FORM B'!$D$54,C36)),MAX($Y$1:Y35)+1,0) -> 35 | Z36: RZTIAT22260 | AE36: =IF(LEFT('Supplier Request FORM B'!$D$42,1)="F",0,IF(AND((LEFT('Supplier Request FORM B'!$D$42,1)=LEFT(E36,1)),(LEFT('Supplier Request FORM B'!$D$43,2)=LEFT(A36,2))),MAX($AE$1:AE35)+1,0)) -> 0
A37: AT | B37: RLNWATWW367 | C37: RAIFFEISENBANK KLOSTERNEUBURG | D37: RLNWATWW367 | E37: CM/C | G37: =IF(ISNUMBER(SEARCH('Supplier Request FORM B'!$D$45,C37)),MAX($G$1:G36)+1,0) -> 36 | H37: RAIFFEISENBANK KLOSTERNEUBURG | K37: =IF(AND(('Supplier Request FORM B'!$D$45=C37),(LEFT('Supplier Request FORM B'!$D$42,1)=LEFT(E37,1)),(LEFT('Supplier Request FORM B'!$D$43,2)=LEFT(A37,2))),MAX($K$1:K36)+1,0) -> 0 | O37: FI-FINLAND | P37: CM/C | Q37: =IF(ISNUMBER(SEARCH(LEFT('Supplier Request FORM B'!$D$42,1),P37)),MAX($Q$1:Q36)+1,0) -> 36 | R37: FI-FINLAND | U37: =IF(ISNUMBER(SEARCH('Supplier Request FORM B'!$D$54,C37)),MAX($U$1:U36)+1,0) -> 36 | V37: RAIFFEISENBANK KLOSTERNEUBURG | Y37: =IF(ISNUMBER(SEARCH('Supplier Request FORM B'!$D$54,C37)),MAX($Y$1:Y36)+1,0) -> 36 | Z37: RLNWATWW367 | AE37: =IF(LEFT('Supplier Request FORM B'!$D$42,1)="F",0,IF(AND((LEFT('Supplier Request FORM B'!$D$42,1)=LEFT(E37,1)),(LEFT('Supplier Request FORM B'!$D$43,2)=LEFT(A37,2))),MAX($AE$1:AE36)+1,0)) -> 0
A38: AT | B38: RLNWATWWKOR | C38: RAIFFEISENBANK KORNEUBURG | D38: RLNWATWWKOR | E38: CM/C | G38: =IF(ISNUMBER(SEARCH('Supplier Request FORM B'!$D$45,C38)),MAX($G$1:G37)+1,0) -> 37 | H38: RAIFFEISENBANK KORNEUBURG | K38: =IF(AND(('Supplier Request FORM B'!$D$45=C38),(LEFT('Supplier Request FORM B'!$D$42,1)=LEFT(E38,1)),(LEFT('Supplier Request FORM B'!$D$43,2)=LEFT(A38,2))),MAX($K$1:K37)+1,0) -> 0 | O38: FJ-FIJI | P38: CM/C | Q38: =IF(ISNUMBER(SEARCH(LEFT('Supplier Request FORM B'!$D$42,1),P38)),MAX($Q$1:Q37)+1,0) -> 37 | R38: FJ-FIJI | U38: =IF(ISNUMBER(SEARCH('Supplier Request FORM B'!$D$54,C38)),MAX($U$1:U37)+1,0) -> 37 | V38: RAIFFEISENBANK KORNEUBURG | Y38: =IF(ISNUMBER(SEARCH('Supplier Request FORM B'!$D$54,C38)),MAX($Y$1:Y37)+1,0) -> 37 | Z38: RLNWATWWKOR | AE38: =IF(LEFT('Supplier Request FORM B'!$D$42,1)="F",0,IF(AND((LEFT('Supplier Request FORM B'!$D$42,1)=LEFT(E38,1)),(LEFT('Supplier Request FORM B'!$D$43,2)=LEFT(A38,2))),MAX($AE$1:AE37)+1,0)) -> 0
A39: AT | B39: RLNWATWWKRE | C39: RAIFFEISENBANK KREMS | D39: RLNWATWWKRE | E39: CM/C | G39: =IF(ISNUMBER(SEARCH('Supplier Request FORM B'!$D$45,C39)),MAX($G$1:G38)+1,0) -> 38 | H39: RAIFFEISENBANK KREMS | K39: =IF(AND(('Supplier Request FORM B'!$D$45=C39),(LEFT('Supplier Request FORM B'!$D$42,1)=LEFT(E39,1)),(LEFT('Supplier Request FORM B'!$D$43,2)=LEFT(A39,2))),MAX($K$1:K38)+1,0) -> 0 | O39: FO-FAROE ISLANDS | P39: CM/C | Q39: =IF(ISNUMBER(SEARCH(LEFT('Supplier Request FORM B'!$D$42,1),P39)),MAX($Q$1:Q38)+1,0) -> 38 | R39: FO-FAROE ISLANDS | U39: =IF(ISNUMBER(SEARCH('Supplier Request FORM B'!$D$54,C39)),MAX($U$1:U38)+1,0) -> 38 | V39: RAIFFEISENBANK KREMS | Y39: =IF(ISNUMBER(SEARCH('Supplier Request FORM B'!$D$54,C39)),MAX($Y$1:Y38)+1,0) -> 38 | Z39: RLNWATWWKRE | AE39: =IF(LEFT('Supplier Request FORM B'!$D$42,1)="F",0,IF(AND((LEFT('Supplier Request FORM B'!$D$42,1)=LEFT(E39,1)),(LEFT('Supplier Request FORM B'!$D$43,2)=LEFT(A39,2))),MAX($AE$1:AE38)+1,0)) -> 0
A40: AT | B40: RZKTAT2K381 | C40: RAIFFEISENBANK LANDSKRON - GEGENDTAL | D40: RZKTAT2K381 | E40: CM/C | G40: =IF(ISNUMBER(SEARCH('Supplier Request FORM B'!$D$45,C40)),MAX($G$1:G39)+1,0) -> 39 | H40: RAIFFEISENBANK LANDSKRON - GEGENDTAL | K40: =IF(AND(('Supplier Request FORM B'!$D$45=C40),(LEFT('Supplier Request FORM B'!$D$42,1)=LEFT(E40,1)),(LEFT('Supplier Request FORM B'!$D$43,2)=LEFT(A40,2))),MAX($K$1:K39)+1,0) -> 0 | O40: FR-FRANCE | P40: CM/C | Q40: =IF(ISNUMBER(SEARCH(LEFT('Supplier Request FORM B'!$D$42,1),P40)),MAX($Q$1:Q39)+1,0) -> 39 | R40: FR-FRANCE | U40: =IF(ISNUMBER(SEARCH('Supplier Request FORM B'!$D$54,C40)),MAX($U$1:U39)+1,0) -> 39 | V40: RAIFFEISENBANK LANDSKRON - GEGENDTAL | Y40: =IF(ISNUMBER(SEARCH('Supplier Request FORM B'!$D$54,C40)),MAX($Y$1:Y39)+1,0) -> 39 | Z40: RZKTAT2K381 | AE40: =IF(LEFT('Supplier Request FORM B'!$D$42,1)="F",0,IF(AND((LEFT('Supplier Request FORM B'!$D$42,1)=LEFT(E40,1)),(LEFT('Supplier Request FORM B'!$D$43,2)=LEFT(A40,2))),MAX($AE$1:AE39)+1,0)) -> 0
A41: AT | B41: RLNWATWW823 | C41: RAIFFEISENBANK REGION SCHWECHAT | D41: RLNWATWW823 | E41: CM/C | G41: =IF(ISNUMBER(SEARCH('Supplier Request FORM B'!$D$45,C41)),MAX($G$1:G40)+1,0) -> 40 | H41: RAIFFEISENBANK REGION SCHWECHAT | K41: =IF(AND(('Supplier Request FORM B'!$D$45=C41),(LEFT('Supplier Request FORM B'!$D$42,1)=LEFT(E41,1)),(LEFT('Supplier Request FORM B'!$D$43,2)=LEFT(A41,2))),MAX($K$1:K40)+1,0) -> 0 | O41: GB-UNITED KINGDOM | P41: CM/C | Q41: =IF(ISNUMBER(SEARCH(LEFT('Supplier Request FORM B'!$D$42,1),P41)),MAX($Q$1:Q40)+1,0) -> 40 | R41: GB-UNITED KINGDOM | U41: =IF(ISNUMBER(SEARCH('Supplier Request FORM B'!$D$54,C41)),MAX($U$1:U40)+1,0) -> 40 | V41: RAIFFEISENBANK REGION SCHWECHAT | Y41: =IF(ISNUMBER(SEARCH('Supplier Request FORM B'!$D$54,C41)),MAX($Y$1:Y40)+1,0) -> 40 | Z41: RLNWATWW823 | AE41: =IF(LEFT('Supplier Request FORM B'!$D$42,1)="F",0,IF(AND((LEFT('Supplier Request FORM B'!$D$42,1)=LEFT(E41,1)),(LEFT('Supplier Request FORM B'!$D$43,2)=LEFT(A41,2))),MAX($AE$1:AE40)+1,0)) -> 0
A42: AT | B42: RVSAAT2S034 | C42: RAIFFEISENBANK SALZBURG - LIEFERING | D42: RVSAAT2S034 | E42: CM/C | G42: =IF(ISNUMBER(SEARCH('Supplier Request FORM B'!$D$45,C42)),MAX($G$1:G41)+1,0) -> 41 | H42: RAIFFEISENBANK SALZBURG - LIEFERING | K42: =IF(AND(('Supplier Request FORM B'!$D$45=C42),(LEFT('Supplier Request FORM B'!$D$42,1)=LEFT(E42,1)),(LEFT('Supplier Request FORM B'!$D$43,2)=LEFT(A42,2))),MAX($K$1:K41)+1,0) -> 0 | O42: GE-GEORGIA | P42: CM/C | Q42: =IF(ISNUMBER(SEARCH(LEFT('Supplier Request FORM B'!$D$42,1),P42)),MAX($Q$1:Q41)+1,0) -> 41 | R42: GE-GEORGIA | U42: =IF(ISNUMBER(SEARCH('Supplier Request FORM B'!$D$54,C42)),MAX($U$1:U41)+1,0) -> 41 | V42: RAIFFEISENBANK SALZBURG - LIEFERING | Y42: =IF(ISNUMBER(SEARCH('Supplier Request FORM B'!$D$54,C42)),MAX($Y$1:Y41)+1,0) -> 41 | Z42: RVSAAT2S034 | AE42: =IF(LEFT('Supplier Request FORM B'!$D$42,1)="F",0,IF(AND((LEFT('Supplier Request FORM B'!$D$42,1)=LEFT(E42,1)),(LEFT('Supplier Request FORM B'!$D$43,2)=LEFT(A42,2))),MAX($AE$1:AE41)+1,0)) -> 0
A43: AT | B43: RZSTAT2G187 | C43: RAIFFEISENBANK WEIZ-ANGER | D43: RZSTAT2G187 | E43: CM/C | G43: =IF(ISNUMBER(SEARCH('Supplier Request FORM B'!$D$45,C43)),MAX($G$1:G42)+1,0) -> 42 | H43: RAIFFEISENBANK WEIZ-ANGER | K43: =IF(AND(('Supplier Request FORM B'!$D$45=C43),(LEFT('Supplier Request FORM B'!$D$42,1)=LEFT(E43,1)),(LEFT('Supplier Request FORM B'!$D$43,2)=LEFT(A43,2))),MAX($K$1:K42)+1,0) -> 0 | O43: GH-GHANA | P43: CM/C | Q43: =IF(ISNUMBER(SEARCH(LEFT('Supplier Request FORM B'!$D$42,1),P43)),MAX($Q$1:Q42)+1,0) -> 42 | R43: GH-GHANA | U43: =IF(ISNUMBER(SEARCH('Supplier Request FORM B'!$D$54,C43)),MAX($U$1:U42)+1,0) -> 42 | V43: RAIFFEISENBANK WEIZ-ANGER | Y43: =IF(ISNUMBER(SEARCH('Supplier Request FORM B'!$D$54,C43)),MAX($Y$1:Y42)+1,0) -> 42 | Z43: RZSTAT2G187 | AE43: =IF(LEFT('Supplier Request FORM B'!$D$42,1)="F",0,IF(AND((LEFT('Supplier Request FORM B'!$D$42,1)=LEFT(E43,1)),(LEFT('Supplier Request FORM B'!$D$43,2)=LEFT(A43,2))),MAX($AE$1:AE42)+1,0)) -> 0
A44: AT | B44: RZOOAT2L770 | C44: RAIFFEISENBANK WELS SUED | D44: RZOOAT2L770 | E44: CM/C | G44: =IF(ISNUMBER(SEARCH('Supplier Request FORM B'!$D$45,C44)),MAX($G$1:G43)+1,0) -> 43 | H44: RAIFFEISENBANK WELS SUED | K44: =IF(AND(('Supplier Request FORM B'!$D$45=C44),(LEFT('Supplier Request FORM B'!$D$42,1)=LEFT(E44,1)),(LEFT('Supplier Request FORM B'!$D$43,2)=LEFT(A44,2))),MAX($K$1:K43)+1,0) -> 0 | O44: GI-GIBRALTAR | P44: CM/C | Q44: =IF(ISNUMBER(SEARCH(LEFT('Supplier Request FORM B'!$D$42,1),P44)),MAX($Q$1:Q43)+1,0) -> 43 | R44: GI-GIBRALTAR | U44: =IF(ISNUMBER(SEARCH('Supplier Request FORM B'!$D$54,C44)),MAX($U$1:U43)+1,0) -> 43 | V44: RAIFFEISENBANK WELS SUED | Y44: =IF(ISNUMBER(SEARCH('Supplier Request FORM B'!$D$54,C44)),MAX($Y$1:Y43)+1,0) -> 43 | Z44: RZOOAT2L770 | AE44: =IF(LEFT('Supplier Request FORM B'!$D$42,1)="F",0,IF(AND((LEFT('Supplier Request FORM B'!$D$42,1)=LEFT(E44,1)),(LEFT('Supplier Request FORM B'!$D$43,2)=LEFT(A44,2))),MAX($AE$1:AE43)+1,0)) -> 0
A45: AT | B45: RZKTAT2K | C45: RAIFFEISENLANDESBANK KAERNTEN, REG.GEN.M.B.H. | D45: RZKTAT2K | E45: CM/C | G45: =IF(ISNUMBER(SEARCH('Supplier Request FORM B'!$D$45,C45)),MAX($G$1:G44)+1,0) -> 44 | H45: RAIFFEISENLANDESBANK KAERNTEN, REG.GEN.M.B.H. | K45: =IF(AND(('Supplier Request FORM B'!$D$45=C45),(LEFT('Supplier Request FORM B'!$D$42,1)=LEFT(E45,1)),(LEFT('Supplier Request FORM B'!$D$43,2)=LEFT(A45,2))),MAX($K$1:K44)+1,0) -> 0 | O45: GR-GREECE | P45: CM/C | Q45: =IF(ISNUMBER(SEARCH(LEFT('Supplier Request FORM B'!$D$42,1),P45)),MAX($Q$1:Q44)+1,0) -> 44 | R45: GR-GREECE | U45: =IF(ISNUMBER(SEARCH('Supplier Request FORM B'!$D$54,C45)),MAX($U$1:U44)+1,0) -> 44 | V45: RAIFFEISENLANDESBANK KAERNTEN, REG.GEN.M.B.H. | Y45: =IF(ISNUMBER(SEARCH('Supplier Request FORM B'!$D$54,C45)),MAX($Y$1:Y44)+1,0) -> 44 | Z45: RZKTAT2K | AE45: =IF(LEFT('Supplier Request FORM B'!$D$42,1)="F",0,IF(AND((LEFT('Supplier Request FORM B'!$D$42,1)=LEFT(E45,1)),(LEFT('Supplier Request FORM B'!$D$43,2)=LEFT(A45,2))),MAX($AE$1:AE44)+1,0)) -> 0
A46: AT | B46: RLNWATWW | C46: RAIFFEISENLANDESBANK NIEDEROESTERREICH-WIEN AG | D46: RLNWATWW | E46: CM/C | G46: =IF(ISNUMBER(SEARCH('Supplier Request FORM B'!$D$45,C46)),MAX($G$1:G45)+1,0) -> 45 | H46: RAIFFEISENLANDESBANK NIEDEROESTERREICH-WIEN AG | K46: =IF(AND(('Supplier Request FORM B'!$D$45=C46),(LEFT('Supplier Request FORM B'!$D$42,1)=LEFT(E46,1)),(LEFT('Supplier Request FORM B'!$D$43,2)=LEFT(A46,2))),MAX($K$1:K45)+1,0) -> 0 | O46: HK-HONG KONG | P46: CM/C | Q46: =IF(ISNUMBER(SEARCH(LEFT('Supplier Request FORM B'!$D$42,1),P46)),MAX($Q$1:Q45)+1,0) -> 45 | R46: HK-HONG KONG | U46: =IF(ISNUMBER(SEARCH('Supplier Request FORM B'!$D$54,C46)),MAX($U$1:U45)+1,0) -> 45 | V46: RAIFFEISENLANDESBANK NIEDEROESTERREICH-WIEN AG | Y46: =IF(ISNUMBER(SEARCH('Supplier Request FORM B'!$D$54,C46)),MAX($Y$1:Y45)+1,0) -> 45 | Z46: RLNWATWW | AE46: =IF(LEFT('Supplier Request FORM B'!$D$42,1)="F",0,IF(AND((LEFT('Supplier Request FORM B'!$D$42,1)=LEFT(E46,1)),(LEFT('Supplier Request FORM B'!$D$43,2)=LEFT(A46,2))),MAX($AE$1:AE45)+1,0)) -> 0
A47: AT | B47: RZOOAT2L | C47: RAIFFEISENLANDESBANK OBEROESTERREICH AKTIENGESELLSCHAFT | D47: RZOOAT2L | E47: CM/C | G47: =IF(ISNUMBER(SEARCH('Supplier Request FORM B'!$D$45,C47)),MAX($G$1:G46)+1,0) -> 46 | H47: RAIFFEISENLANDESBANK OBEROESTERREICH AKTIENGESELLSCHAFT | K47: =IF(AND(('Supplier Request FORM B'!$D$45=C47),(LEFT('Supplier Request FORM B'!$D$42,1)=LEFT(E47,1)),(LEFT('Supplier Request FORM B'!$D$43,2)=LEFT(A47,2))),MAX($K$1:K46)+1,0) -> 0 | O47: HR-CROATIA | P47: CM/C | Q47: =IF(ISNUMBER(SEARCH(LEFT('Supplier Request FORM B'!$D$42,1),P47)),MAX($Q$1:Q46)+1,0) -> 46 | R47: HR-CROATIA | U47: =IF(ISNUMBER(SEARCH('Supplier Request FORM B'!$D$54,C47)),MAX($U$1:U46)+1,0) -> 46 | V47: RAIFFEISENLANDESBANK OBEROESTERREICH AKTIENGESELLSCHAFT | Y47: =IF(ISNUMBER(SEARCH('Supplier Request FORM B'!$D$54,C47)),MAX($Y$1:Y46)+1,0) -> 46 | Z47: RZOOAT2L | AE47: =IF(LEFT('Supplier Request FORM B'!$D$42,1)="F",0,IF(AND((LEFT('Supplier Request FORM B'!$D$42,1)=LEFT(E47,1)),(LEFT('Supplier Request FORM B'!$D$43,2)=LEFT(A47,2))),MAX($AE$1:AE46)+1,0)) -> 0
A48: AT | B48: RZSTAT2G | C48: RAIFFEISEN-LANDESBANK STEIERMARK AG | D48: RZSTAT2G | E48: CM/C | G48: =IF(ISNUMBER(SEARCH('Supplier Request FORM B'!$D$45,C48)),MAX($G$1:G47)+1,0) -> 47 | H48: RAIFFEISEN-LANDESBANK STEIERMARK AG | K48: =IF(AND(('Supplier Request FORM B'!$D$45=C48),(LEFT('Supplier Request FORM B'!$D$42,1)=LEFT(E48,1)),(LEFT('Supplier Request FORM B'!$D$43,2)=LEFT(A48,2))),MAX($K$1:K47)+1,0) -> 0 | O48: HU-HUNGARY | P48: CM/C | Q48: =IF(ISNUMBER(SEARCH(LEFT('Supplier Request FORM B'!$D$42,1),P48)),MAX($Q$1:Q47)+1,0) -> 47 | R48: HU-HUNGARY | U48: =IF(ISNUMBER(SEARCH('Supplier Request FORM B'!$D$54,C48)),MAX($U$1:U47)+1,0) -> 47 | V48: RAIFFEISEN-LANDESBANK STEIERMARK AG | Y48: =IF(ISNUMBER(SEARCH('Supplier Request FORM B'!$D$54,C48)),MAX($Y$1:Y47)+1,0) -> 47 | Z48: RZSTAT2G | AE48: =IF(LEFT('Supplier Request FORM B'!$D$42,1)="F",0,IF(AND((LEFT('Supplier Request FORM B'!$D$42,1)=LEFT(E48,1)),(LEFT('Supplier Request FORM B'!$D$43,2)=LEFT(A48,2))),MAX($AE$1:AE47)+1,0)) -> 0
A49: AT | B49: RZTIAT22 | C49: RAIFFEISEN-LANDESBANK TIROL AKTIENGESELLSCHAFT | D49: RZTIAT22 | E49: CM/C | G49: =IF(ISNUMBER(SEARCH('Supplier Request FORM B'!$D$45,C49)),MAX($G$1:G48)+1,0) -> 48 | H49: RAIFFEISEN-LANDESBANK TIROL AKTIENGESELLSCHAFT | K49: =IF(AND(('Supplier Request FORM B'!$D$45=C49),(LEFT('Supplier Request FORM B'!$D$42,1)=LEFT(E49,1)),(LEFT('Supplier Request FORM B'!$D$43,2)=LEFT(A49,2))),MAX($K$1:K48)+1,0) -> 0 | O49: ID-INDONESIA | P49: CM/C | Q49: =IF(ISNUMBER(SEARCH(LEFT('Supplier Request FORM B'!$D$42,1),P49)),MAX($Q$1:Q48)+1,0) -> 48 | R49: ID-INDONESIA | U49: =IF(ISNUMBER(SEARCH('Supplier Request FORM B'!$D$54,C49)),MAX($U$1:U48)+1,0) -> 48 | V49: RAIFFEISEN-LANDESBANK TIROL AKTIENGESELLSCHAFT | Y49: =IF(ISNUMBER(SEARCH('Supplier Request FORM B'!$D$54,C49)),MAX($Y$1:Y48)+1,0) -> 48 | Z49: RZTIAT22 | AE49: =IF(LEFT('Supplier Request FORM B'!$D$42,1)="F",0,IF(AND((LEFT('Supplier Request FORM B'!$D$42,1)=LEFT(E49,1)),(LEFT('Supplier Request FORM B'!$D$43,2)=LEFT(A49,2))),MAX($AE$1:AE48)+1,0)) -> 0
A50: AT | B50: RVSAAT2S | C50: RAIFFEISENVERBAND SALZBURG, REG.GEN.M.B.H. | D50: RVSAAT2S | E50: CM/C | G50: =IF(ISNUMBER(SEARCH('Supplier Request FORM B'!$D$45,C50)),MAX($G$1:G49)+1,0) -> 49 | H50: RAIFFEISENVERBAND SALZBURG, REG.GEN.M.B.H. | K50: =IF(AND(('Supplier Request FORM B'!$D$45=C50),(LEFT('Supplier Request FORM B'!$D$42,1)=LEFT(E50,1)),(LEFT('Supplier Request FORM B'!$D$43,2)=LEFT(A50,2))),MAX($K$1:K49)+1,0) -> 0 | O50: IE-IRELAND | P50: CM/C | Q50: =IF(ISNUMBER(SEARCH(LEFT('Supplier Request FORM B'!$D$42,1),P50)),MAX($Q$1:Q49)+1,0) -> 49 | R50: IE-IRELAND | U50: =IF(ISNUMBER(SEARCH('Supplier Request FORM B'!$D$54,C50)),MAX($U$1:U49)+1,0) -> 49 | V50: RAIFFEISENVERBAND SALZBURG, REG.GEN.M.B.H. | Y50: =IF(ISNUMBER(SEARCH('Supplier Request FORM B'!$D$54,C50)),MAX($Y$1:Y49)+1,0) -> 49 | Z50: RVSAAT2S | AE50: =IF(LEFT('Supplier Request FORM B'!$D$42,1)="F",0,IF(AND((LEFT('Supplier Request FORM B'!$D$42,1)=LEFT(E50,1)),(LEFT('Supplier Request FORM B'!$D$43,2)=LEFT(A50,2))),MAX($AE$1:AE49)+1,0)) -> 0
A51: AT | B51: SBGSAT2S | C51: SALZBURGER SPARKASSE BANK AG | D51: SBGSAT2S | E51: CM/C | G51: =IF(ISNUMBER(SEARCH('Supplier Request FORM B'!$D$45,C51)),MAX($G$1:G50)+1,0) -> 50 | H51: SALZBURGER SPARKASSE BANK AG | K51: =IF(AND(('Supplier Request FORM B'!$D$45=C51),(LEFT('Supplier Request FORM B'!$D$42,1)=LEFT(E51,1)),(LEFT('Supplier Request FORM B'!$D$43,2)=LEFT(A51,2))),MAX($K$1:K50)+1,0) -> 0 | O51: IL-ISRAEL | P51: CM/C | Q51: =IF(ISNUMBER(SEARCH(LEFT('Supplier Request FORM B'!$D$42,1),P51)),MAX($Q$1:Q50)+1,0) -> 50 | R51: IL-ISRAEL | U51: =IF(ISNUMBER(SEARCH('Supplier Request FORM B'!$D$54,C51)),MAX($U$1:U50)+1,0) -> 50 | V51: SALZBURGER SPARKASSE BANK AG | Y51: =IF(ISNUMBER(SEARCH('Supplier Request FORM B'!$D$54,C51)),MAX($Y$1:Y50)+1,0) -> 50 | Z51: SBGSAT2S | AE51: =IF(LEFT('Supplier Request FORM B'!$D$42,1)="F",0,IF(AND((LEFT('Supplier Request FORM B'!$D$42,1)=LEFT(E51,1)),(LEFT('Supplier Request FORM B'!$D$43,2)=LEFT(A51,2))),MAX($AE$1:AE50)+1,0)) -> 0
A52: AT | B52: SPBRAT2B | C52: SPARKASSE BREGENZ BANK AKTIENGESELLSCHAFT | D52: SPBRAT2B | E52: CM/C | G52: =IF(ISNUMBER(SEARCH('Supplier Request FORM B'!$D$45,C52)),MAX($G$1:G51)+1,0) -> 51 | H52: SPARKASSE BREGENZ BANK AKTIENGESELLSCHAFT | K52: =IF(AND(('Supplier Request FORM B'!$D$45=C52),(LEFT('Supplier Request FORM B'!$D$42,1)=LEFT(E52,1)),(LEFT('Supplier Request FORM B'!$D$43,2)=LEFT(A52,2))),MAX($K$1:K51)+1,0) -> 0 | O52: IM-Isle of Man | P52: CM/C | Q52: =IF(ISNUMBER(SEARCH(LEFT('Supplier Request FORM B'!$D$42,1),P52)),MAX($Q$1:Q51)+1,0) -> 51 | R52: IM-Isle of Man | U52: =IF(ISNUMBER(SEARCH('Supplier Request FORM B'!$D$54,C52)),MAX($U$1:U51)+1,0) -> 51 | V52: SPARKASSE BREGENZ BANK AKTIENGESELLSCHAFT | Y52: =IF(ISNUMBER(SEARCH('Supplier Request FORM B'!$D$54,C52)),MAX($Y$1:Y51)+1,0) -> 51 | Z52: SPBRAT2B | AE52: =IF(LEFT('Supplier Request FORM B'!$D$42,1)="F",0,IF(AND((LEFT('Supplier Request FORM B'!$D$42,1)=LEFT(E52,1)),(LEFT('Supplier Request FORM B'!$D$43,2)=LEFT(A52,2))),MAX($AE$1:AE51)+1,0)) -> 0
A53: AT | B53: SMWRAT21 | C53: SPARKASSE MUEHLVIERTEL-WEST | D53: SMWRAT21 | E53: CM/C | G53: =IF(ISNUMBER(SEARCH('Supplier Request FORM B'!$D$45,C53)),MAX($G$1:G52)+1,0) -> 52 | H53: SPARKASSE MUEHLVIERTEL-WEST | K53: =IF(AND(('Supplier Request FORM B'!$D$45=C53),(LEFT('Supplier Request FORM B'!$D$42,1)=LEFT(E53,1)),(LEFT('Supplier Request FORM B'!$D$43,2)=LEFT(A53,2))),MAX($K$1:K52)+1,0) -> 0 | O53: IN-INDIA | P53: CM/C | Q53: =IF(ISNUMBER(SEARCH(LEFT('Supplier Request FORM B'!$D$42,1),P53)),MAX($Q$1:Q52)+1,0) -> 52 | R53: IN-INDIA | U53: =IF(ISNUMBER(SEARCH('Supplier Request FORM B'!$D$54,C53)),MAX($U$1:U52)+1,0) -> 52 | V53: SPARKASSE MUEHLVIERTEL-WEST | Y53: =IF(ISNUMBER(SEARCH('Supplier Request FORM B'!$D$54,C53)),MAX($Y$1:Y52)+1,0) -> 52 | Z53: SMWRAT21 | AE53: =IF(LEFT('Supplier Request FORM B'!$D$42,1)="F",0,IF(AND((LEFT('Supplier Request FORM B'!$D$42,1)=LEFT(E53,1)),(LEFT('Supplier Request FORM B'!$D$43,2)=LEFT(A53,2))),MAX($AE$1:AE52)+1,0)) -> 0
A54: AT | B54: STSPAT2G | C54: STEIERMAERKISCHE BANK UND SPARKASSEN AG | D54: STSPAT2G | E54: CM/C | G54: =IF(ISNUMBER(SEARCH('Supplier Request FORM B'!$D$45,C54)),MAX($G$1:G53)+1,0) -> 53 | H54: STEIERMAERKISCHE BANK UND SPARKASSEN AG | K54: =IF(AND(('Supplier Request FORM B'!$D$45=C54),(LEFT('Supplier Request FORM B'!$D$42,1)=LEFT(E54,1)),(LEFT('Supplier Request FORM B'!$D$43,2)=LEFT(A54,2))),MAX($K$1:K53)+1,0) -> 0 | O54: IR-IRAN | P54: CM/C | Q54: =IF(ISNUMBER(SEARCH(LEFT('Supplier Request FORM B'!$D$42,1),P54)),MAX($Q$1:Q53)+1,0) -> 53 | R54: IR-IRAN | U54: =IF(ISNUMBER(SEARCH('Supplier Request FORM B'!$D$54,C54)),MAX($U$1:U53)+1,0) -> 53 | V54: STEIERMAERKISCHE BANK UND SPARKASSEN AG | Y54: =IF(ISNUMBER(SEARCH('Supplier Request FORM B'!$D$54,C54)),MAX($Y$1:Y53)+1,0) -> 53 | Z54: STSPAT2G | AE54: =IF(LEFT('Supplier Request FORM B'!$D$42,1)="F",0,IF(AND((LEFT('Supplier Request FORM B'!$D$42,1)=LEFT(E54,1)),(LEFT('Supplier Request FORM B'!$D$43,2)=LEFT(A54,2))),MAX($AE$1:AE53)+1,0)) -> 0
A55: AT | B55: SPIHAT22 | C55: TIROLER SPARKASSE BANKAKTIENGESELLSCHAFT INNSBRUCK | D55: SPIHAT22 | E55: CM/C | G55: =IF(ISNUMBER(SEARCH('Supplier Request FORM B'!$D$45,C55)),MAX($G$1:G54)+1,0) -> 54 | H55: TIROLER SPARKASSE BANKAKTIENGESELLSCHAFT INNSBRUCK | K55: =IF(AND(('Supplier Request FORM B'!$D$45=C55),(LEFT('Supplier Request FORM B'!$D$42,1)=LEFT(E55,1)),(LEFT('Supplier Request FORM B'!$D$43,2)=LEFT(A55,2))),MAX($K$1:K54)+1,0) -> 0 | O55: IS-ICELAND | P55: CM/C | Q55: =IF(ISNUMBER(SEARCH(LEFT('Supplier Request FORM B'!$D$42,1),P55)),MAX($Q$1:Q54)+1,0) -> 54 | R55: IS-ICELAND | U55: =IF(ISNUMBER(SEARCH('Supplier Request FORM B'!$D$54,C55)),MAX($U$1:U54)+1,0) -> 54 | V55: TIROLER SPARKASSE BANKAKTIENGESELLSCHAFT INNSBRUCK | Y55: =IF(ISNUMBER(SEARCH('Supplier Request FORM B'!$D$54,C55)),MAX($Y$1:Y54)+1,0) -> 54 | Z55: SPIHAT22 | AE55: =IF(LEFT('Supplier Request FORM B'!$D$42,1)="F",0,IF(AND((LEFT('Supplier Request FORM B'!$D$42,1)=LEFT(E55,1)),(LEFT('Supplier Request FORM B'!$D$43,2)=LEFT(A55,2))),MAX($AE$1:AE54)+1,0)) -> 0
A56: AT | B56: BKAUATWW | C56: UNICREDIT BANK AUSTRIA AG | D56: BKAUATWW | E56: CM/C | G56: =IF(ISNUMBER(SEARCH('Supplier Request FORM B'!$D$45,C56)),MAX($G$1:G55)+1,0) -> 55 | H56: UNICREDIT BANK AUSTRIA AG | K56: =IF(AND(('Supplier Request FORM B'!$D$45=C56),(LEFT('Supplier Request FORM B'!$D$42,1)=LEFT(E56,1)),(LEFT('Supplier Request FORM B'!$D$43,2)=LEFT(A56,2))),MAX($K$1:K55)+1,0) -> 0 | O56: IT-ITALY | P56: CM/C | Q56: =IF(ISNUMBER(SEARCH(LEFT('Supplier Request FORM B'!$D$42,1),P56)),MAX($Q$1:Q55)+1,0) -> 55 | R56: IT-ITALY | U56: =IF(ISNUMBER(SEARCH('Supplier Request FORM B'!$D$54,C56)),MAX($U$1:U55)+1,0) -> 55 | V56: UNICREDIT BANK AUSTRIA AG | Y56: =IF(ISNUMBER(SEARCH('Supplier Request FORM B'!$D$54,C56)),MAX($Y$1:Y55)+1,0) -> 55 | Z56: BKAUATWW | AE56: =IF(LEFT('Supplier Request FORM B'!$D$42,1)="F",0,IF(AND((LEFT('Supplier Request FORM B'!$D$42,1)=LEFT(E56,1)),(LEFT('Supplier Request FORM B'!$D$43,2)=LEFT(A56,2))),MAX($AE$1:AE55)+1,0)) -> 0
A57: AT | B57: VBOEATWWLIN | C57: VOLKSBANK OBEROESTERREICH AG (FORMER VOLKSBANK LINZ-WELS-MUE | D57: VBOEATWWLIN | E57: CM/C | G57: =IF(ISNUMBER(SEARCH('Supplier Request FORM B'!$D$45,C57)),MAX($G$1:G56)+1,0) -> 56 | H57: VOLKSBANK OBEROESTERREICH AG (FORMER VOLKSBANK LINZ-WELS-MUE | K57: =IF(AND(('Supplier Request FORM B'!$D$45=C57),(LEFT('Supplier Request FORM B'!$D$42,1)=LEFT(E57,1)),(LEFT('Supplier Request FORM B'!$D$43,2)=LEFT(A57,2))),MAX($K$1:K56)+1,0) -> 0 | O57: JE-JERSEY | P57: CM/C | Q57: =IF(ISNUMBER(SEARCH(LEFT('Supplier Request FORM B'!$D$42,1),P57)),MAX($Q$1:Q56)+1,0) -> 56 | R57: JE-JERSEY | U57: =IF(ISNUMBER(SEARCH('Supplier Request FORM B'!$D$54,C57)),MAX($U$1:U56)+1,0) -> 56 | V57: VOLKSBANK OBEROESTERREICH AG (FORMER VOLKSBANK LINZ-WELS-MUE | Y57: =IF(ISNUMBER(SEARCH('Supplier Request FORM B'!$D$54,C57)),MAX($Y$1:Y56)+1,0) -> 56 | Z57: VBOEATWWLIN | AE57: =IF(LEFT('Supplier Request FORM B'!$D$42,1)="F",0,IF(AND((LEFT('Supplier Request FORM B'!$D$42,1)=LEFT(E57,1)),(LEFT('Supplier Request FORM B'!$D$43,2)=LEFT(A57,2))),MAX($AE$1:AE56)+1,0)) -> 0
A58: AT | B58: VOVVAT21 | C58: VOLKSBANK SALZBURG EG (FORMER VOLKSBANK STRASSWALCHEN-VOECKL | D58: VOVVAT21 | E58: CM/C | G58: =IF(ISNUMBER(SEARCH('Supplier Request FORM B'!$D$45,C58)),MAX($G$1:G57)+1,0) -> 57 | H58: VOLKSBANK SALZBURG EG (FORMER VOLKSBANK STRASSWALCHEN-VOECKL | K58: =IF(AND(('Supplier Request FORM B'!$D$45=C58),(LEFT('Supplier Request FORM B'!$D$42,1)=LEFT(E58,1)),(LEFT('Supplier Request FORM B'!$D$43,2)=LEFT(A58,2))),MAX($K$1:K57)+1,0) -> 0 | O58: JM-JAMAICA | P58: CM/C | Q58: =IF(ISNUMBER(SEARCH(LEFT('Supplier Request FORM B'!$D$42,1),P58)),MAX($Q$1:Q57)+1,0) -> 57 | R58: JM-JAMAICA | U58: =IF(ISNUMBER(SEARCH('Supplier Request FORM B'!$D$54,C58)),MAX($U$1:U57)+1,0) -> 57 | V58: VOLKSBANK SALZBURG EG (FORMER VOLKSBANK STRASSWALCHEN-VOECKL | Y58: =IF(ISNUMBER(SEARCH('Supplier Request FORM B'!$D$54,C58)),MAX($Y$1:Y57)+1,0) -> 57 | Z58: VOVVAT21 | AE58: =IF(LEFT('Supplier Request FORM B'!$D$42,1)="F",0,IF(AND((LEFT('Supplier Request FORM B'!$D$42,1)=LEFT(E58,1)),(LEFT('Supplier Request FORM B'!$D$43,2)=LEFT(A58,2))),MAX($AE$1:AE57)+1,0)) -> 0
A59: AT | B59: VBOEATWWINN | C59: VOLKSBANK TIROL INNSBRUCK-SCHWAZ AG | D59: VBOEATWWINN | E59: CM/C | G59: =IF(ISNUMBER(SEARCH('Supplier Request FORM B'!$D$45,C59)),MAX($G$1:G58)+1,0) -> 58 | H59: VOLKSBANK TIROL INNSBRUCK-SCHWAZ AG | K59: =IF(AND(('Supplier Request FORM B'!$D$45=C59),(LEFT('Supplier Request FORM B'!$D$42,1)=LEFT(E59,1)),(LEFT('Supplier Request FORM B'!$D$43,2)=LEFT(A59,2))),MAX($K$1:K58)+1,0) -> 0 | O59: JO-JORDAN | P59: CM/C | Q59: =IF(ISNUMBER(SEARCH(LEFT('Supplier Request FORM B'!$D$42,1),P59)),MAX($Q$1:Q58)+1,0) -> 58 | R59: JO-JORDAN | U59: =IF(ISNUMBER(SEARCH('Supplier Request FORM B'!$D$54,C59)),MAX($U$1:U58)+1,0) -> 58 | V59: VOLKSBANK TIROL INNSBRUCK-SCHWAZ AG | Y59: =IF(ISNUMBER(SEARCH('Supplier Request FORM B'!$D$54,C59)),MAX($Y$1:Y58)+1,0) -> 58 | Z59: VBOEATWWINN | AE59: =IF(LEFT('Supplier Request FORM B'!$D$42,1)="F",0,IF(AND((LEFT('Supplier Request FORM B'!$D$42,1)=LEFT(E59,1)),(LEFT('Supplier Request FORM B'!$D$43,2)=LEFT(A59,2))),MAX($AE$1:AE58)+1,0)) -> 0
A60: AT | B60: VBOEATWW | C60: VOLKSBANK WIEN AG | D60: VBOEATWW | E60: CM/C | G60: =IF(ISNUMBER(SEARCH('Supplier Request FORM B'!$D$45,C60)),MAX($G$1:G59)+1,0) -> 59 | H60: VOLKSBANK WIEN AG | K60: =IF(AND(('Supplier Request FORM B'!$D$45=C60),(LEFT('Supplier Request FORM B'!$D$42,1)=LEFT(E60,1)),(LEFT('Supplier Request FORM B'!$D$43,2)=LEFT(A60,2))),MAX($K$1:K59)+1,0) -> 0 | O60: JP-JAPAN | P60: CM/C | Q60: =IF(ISNUMBER(SEARCH(LEFT('Supplier Request FORM B'!$D$42,1),P60)),MAX($Q$1:Q59)+1,0) -> 59 | R60: JP-JAPAN | U60: =IF(ISNUMBER(SEARCH('Supplier Request FORM B'!$D$54,C60)),MAX($U$1:U59)+1,0) -> 59 | V60: VOLKSBANK WIEN AG | Y60: =IF(ISNUMBER(SEARCH('Supplier Request FORM B'!$D$54,C60)),MAX($Y$1:Y59)+1,0) -> 59 | Z60: VBOEATWW | AE60: =IF(LEFT('Supplier Request FORM B'!$D$42,1)="F",0,IF(AND((LEFT('Supplier Request FORM B'!$D$42,1)=LEFT(E60,1)),(LEFT('Supplier Request FORM B'!$D$43,2)=LEFT(A60,2))),MAX($AE$1:AE59)+1,0)) -> 0
A61: AT | B61: VOPIAT2102G | C61: VOLKSBANK WIEN AG | D61: VOPIAT2102G | E61: CM/C | G61: =IF(ISNUMBER(SEARCH('Supplier Request FORM B'!$D$45,C61)),MAX($G$1:G60)+1,0) -> 60 | H61: VOLKSBANK WIEN AG | K61: =IF(AND(('Supplier Request FORM B'!$D$45=C61),(LEFT('Supplier Request FORM B'!$D$42,1)=LEFT(E61,1)),(LEFT('Supplier Request FORM B'!$D$43,2)=LEFT(A61,2))),MAX($K$1:K60)+1,0) -> 0 | O61: KE-KENYA | P61: CM/C | Q61: =IF(ISNUMBER(SEARCH(LEFT('Supplier Request FORM B'!$D$42,1),P61)),MAX($Q$1:Q60)+1,0) -> 60 | R61: KE-KENYA | U61: =IF(ISNUMBER(SEARCH('Supplier Request FORM B'!$D$54,C61)),MAX($U$1:U60)+1,0) -> 60 | V61: VOLKSBANK WIEN AG | Y61: =IF(ISNUMBER(SEARCH('Supplier Request FORM B'!$D$54,C61)),MAX($Y$1:Y60)+1,0) -> 60 | Z61: VOPIAT2102G | AE61: =IF(LEFT('Supplier Request FORM B'!$D$42,1)="F",0,IF(AND((LEFT('Supplier Request FORM B'!$D$42,1)=LEFT(E61,1)),(LEFT('Supplier Request FORM B'!$D$43,2)=LEFT(A61,2))),MAX($AE$1:AE60)+1,0)) -> 0
A62: AT | B62: VKBLAT2L | C62: VOLKSKREDITBANK AG | D62: VKBLAT2L | E62: CM/C | G62: =IF(ISNUMBER(SEARCH('Supplier Request FORM B'!$D$45,C62)),MAX($G$1:G61)+1,0) -> 61 | H62: VOLKSKREDITBANK AG | K62: =IF(AND(('Supplier Request FORM B'!$D$45=C62),(LEFT('Supplier Request FORM B'!$D$42,1)=LEFT(E62,1)),(LEFT('Supplier Request FORM B'!$D$43,2)=LEFT(A62,2))),MAX($K$1:K61)+1,0) -> 0 | O62: KG-KYRGYZSTAN | P62: CM/C | Q62: =IF(ISNUMBER(SEARCH(LEFT('Supplier Request FORM B'!$D$42,1),P62)),MAX($Q$1:Q61)+1,0) -> 61 | R62: KG-KYRGYZSTAN | U62: =IF(ISNUMBER(SEARCH('Supplier Request FORM B'!$D$54,C62)),MAX($U$1:U61)+1,0) -> 61 | V62: VOLKSKREDITBANK AG | Y62: =IF(ISNUMBER(SEARCH('Supplier Request FORM B'!$D$54,C62)),MAX($Y$1:Y61)+1,0) -> 61 | Z62: VKBLAT2L | AE62: =IF(LEFT('Supplier Request FORM B'!$D$42,1)="F",0,IF(AND((LEFT('Supplier Request FORM B'!$D$42,1)=LEFT(E62,1)),(LEFT('Supplier Request FORM B'!$D$43,2)=LEFT(A62,2))),MAX($AE$1:AE61)+1,0)) -> 0
A63: AU | B63: AMPBAU2S | C63: AMP BANK LIMITED | D63: AMPBAU2S | E63: CM/C | G63: =IF(ISNUMBER(SEARCH('Supplier Request FORM B'!$D$45,C63)),MAX($G$1:G62)+1,0) -> 62 | H63: AMP BANK LIMITED | K63: =IF(AND(('Supplier Request FORM B'!$D$45=C63),(LEFT('Supplier Request FORM B'!$D$42,1)=LEFT(E63,1)),(LEFT('Supplier Request FORM B'!$D$43,2)=LEFT(A63,2))),MAX($K$1:K62)+1,0) -> 0 | O63: KH-CAMBODIA | P63: CM/C | Q63: =IF(ISNUMBER(SEARCH(LEFT('Supplier Request FORM B'!$D$42,1),P63)),MAX($Q$1:Q62)+1,0) -> 62 | R63: KH-CAMBODIA | U63: =IF(ISNUMBER(SEARCH('Supplier Request FORM B'!$D$54,C63)),MAX($U$1:U62)+1,0) -> 62 | V63: AMP BANK LIMITED | Y63: =IF(ISNUMBER(SEARCH('Supplier Request FORM B'!$D$54,C63)),MAX($Y$1:Y62)+1,0) -> 62 | Z63: AMPBAU2S | AE63: =IF(LEFT('Supplier Request FORM B'!$D$42,1)="F",0,IF(AND((LEFT('Supplier Request FORM B'!$D$42,1)=LEFT(E63,1)),(LEFT('Supplier Request FORM B'!$D$43,2)=LEFT(A63,2))),MAX($AE$1:AE62)+1,0)) -> 0
A64: AU | B64: AMPBAU2SRET | C64: AMP BANK LIMITED | D64: AMPBAU2SRET | E64: CM/C | G64: =IF(ISNUMBER(SEARCH('Supplier Request FORM B'!$D$45,C64)),MAX($G$1:G63)+1,0) -> 63 | H64: AMP BANK LIMITED | K64: =IF(AND(('Supplier Request FORM B'!$D$45=C64),(LEFT('Supplier Request FORM B'!$D$42,1)=LEFT(E64,1)),(LEFT('Supplier Request FORM B'!$D$43,2)=LEFT(A64,2))),MAX($K$1:K63)+1,0) -> 0 | O64: KR-SOUTH KOREA | P64: CM/C | Q64: =IF(ISNUMBER(SEARCH(LEFT('Supplier Request FORM B'!$D$42,1),P64)),MAX($Q$1:Q63)+1,0) -> 63 | R64: KR-SOUTH KOREA | U64: =IF(ISNUMBER(SEARCH('Supplier Request FORM B'!$D$54,C64)),MAX($U$1:U63)+1,0) -> 63 | V64: AMP BANK LIMITED | Y64: =IF(ISNUMBER(SEARCH('Supplier Request FORM B'!$D$54,C64)),MAX($Y$1:Y63)+1,0) -> 63 | Z64: AMPBAU2SRET | AE64: =IF(LEFT('Supplier Request FORM B'!$D$42,1)="F",0,IF(AND((LEFT('Supplier Request FORM B'!$D$42,1)=LEFT(E64,1)),(LEFT('Supplier Request FORM B'!$D$43,2)=LEFT(A64,2))),MAX($AE$1:AE63)+1,0)) -> 0
A65: AU | B65: ANZSAU31 | C65: ANZ SECURITIES LIMITED | D65: ANZSAU31 | E65: CM/C | G65: =IF(ISNUMBER(SEARCH('Supplier Request FORM B'!$D$45,C65)),MAX($G$1:G64)+1,0) -> 64 | H65: ANZ SECURITIES LIMITED | K65: =IF(AND(('Supplier Request FORM B'!$D$45=C65),(LEFT('Supplier Request FORM B'!$D$42,1)=LEFT(E65,1)),(LEFT('Supplier Request FORM B'!$D$43,2)=LEFT(A65,2))),MAX($K$1:K64)+1,0) -> 0 | O65: KW-KUWAIT | P65: CM/C | Q65: =IF(ISNUMBER(SEARCH(LEFT('Supplier Request FORM B'!$D$42,1),P65)),MAX($Q$1:Q64)+1,0) -> 64 | R65: KW-KUWAIT | U65: =IF(ISNUMBER(SEARCH('Supplier Request FORM B'!$D$54,C65)),MAX($U$1:U64)+1,0) -> 64 | V65: ANZ SECURITIES LIMITED | Y65: =IF(ISNUMBER(SEARCH('Supplier Request FORM B'!$D$54,C65)),MAX($Y$1:Y64)+1,0) -> 64 | Z65: ANZSAU31 | AE65: =IF(LEFT('Supplier Request FORM B'!$D$42,1)="F",0,IF(AND((LEFT('Supplier Request FORM B'!$D$42,1)=LEFT(E65,1)),(LEFT('Supplier Request FORM B'!$D$43,2)=LEFT(A65,2))),MAX($AE$1:AE64)+1,0)) -> 0
A66: AU | B66: ANZBAU3M | C66: AUSTRALIA AND NEW ZEALAND BANKING GROUP LIMITED | D66: ANZBAU3M | E66: CM/C | G66: =IF(ISNUMBER(SEARCH('Supplier Request FORM B'!$D$45,C66)),MAX($G$1:G65)+1,0) -> 65 | H66: =IFERROR(INDEX($C:$C,MATCH(ROW(H65),$G:$G,0)),"") -> AUSTRALIA AND NEW ZEALAND BANKING GROUP LIMITED | K66: =IF(AND(('Supplier Request FORM B'!$D$45=C66),(LEFT('Supplier Request FORM B'!$D$42,1)=LEFT(E66,1)),(LEFT('Supplier Request FORM B'!$D$43,2)=LEFT(A66,2))),MAX($K$1:K65)+1,0) -> 0 | L66: =IFERROR(INDEX($D:$D,MATCH(ROW(L65),$K:$K,0)),"") ->  | O66: KY-CAYMAN ISLANDS | P66: CM/C | Q66: =IF(ISNUMBER(SEARCH(LEFT('Supplier Request FORM B'!$D$42,1),P66)),MAX($Q$1:Q65)+1,0) -> 65 | R66: =IFERROR(INDEX(O:O,MATCH(ROW(R65),$Q:$Q,0)),"") -> KY-CAYMAN ISLANDS | U66: =IF(ISNUMBER(SEARCH('Supplier Request FORM B'!$D$54,C66)),MAX($U$1:U65)+1,0) -> 65 | V66: =IFERROR(INDEX($C:$C,MATCH(ROW(V65),U:U,0)),"") -> AUSTRALIA AND NEW ZEALAND BANKING GROUP LIMITED | Y66: =IF(ISNUMBER(SEARCH('Supplier Request FORM B'!$D$54,C66)),MAX($Y$1:Y65)+1,0) -> 65 | Z66: =IFERROR(INDEX($D:$D,MATCH(ROW(Z65),$Y:$Y,0)),"") -> ANZBAU3M | AE66: =IF(LEFT('Supplier Request FORM B'!$D$42,1)="F",0,IF(AND((LEFT('Supplier Request FORM B'!$D$42,1)=LEFT(E66,1)),(LEFT('Supplier Request FORM B'!$D$43,2)=LEFT(A66,2))),MAX($AE$1:AE65)+1,0)) -> 0 | AF66: =IFERROR(INDEX(C:C,MATCH(ROW(AF65),AE:AE,0)),"") -> 
A67: AU | B67: ASLLAU2C | C67: AUSTRALIAN SETTLEMENTS LIMITED | D67: ASLLAU2C | E67: CM/C | G67: =IF(ISNUMBER(SEARCH('Supplier Request FORM B'!$D$45,C67)),MAX($G$1:G66)+1,0) -> 66 | H67: AUSTRALIAN SETTLEMENTS LIMITED | K67: =IF(AND(('Supplier Request FORM B'!$D$45=C67),(LEFT('Supplier Request FORM B'!$D$42,1)=LEFT(E67,1)),(LEFT('Supplier Request FORM B'!$D$43,2)=LEFT(A67,2))),MAX($K$1:K66)+1,0) -> 0 | O67: KZ-KAZAKHSTAN | P67: CM/C | Q67: =IF(ISNUMBER(SEARCH(LEFT('Supplier Request FORM B'!$D$42,1),P67)),MAX($Q$1:Q66)+1,0) -> 66 | R67: KZ-KAZAKHSTAN | U67: =IF(ISNUMBER(SEARCH('Supplier Request FORM B'!$D$54,C67)),MAX($U$1:U66)+1,0) -> 66 | V67: AUSTRALIAN SETTLEMENTS LIMITED | Y67: =IF(ISNUMBER(SEARCH('Supplier Request FORM B'!$D$54,C67)),MAX($Y$1:Y66)+1,0) -> 66 | Z67: ASLLAU2C | AE67: =IF(LEFT('Supplier Request FORM B'!$D$42,1)="F",0,IF(AND((LEFT('Supplier Request FORM B'!$D$42,1)=LEFT(E67,1)),(LEFT('Supplier Request FORM B'!$D$43,2)=LEFT(A67,2))),MAX($AE$1:AE66)+1,0)) -> 0
A68: AU | B68: ASLLAU2CGBS | C68: AUSTRALIAN SETTLEMENTS LIMITED | D68: ASLLAU2CGBS | E68: CM/C | G68: =IF(ISNUMBER(SEARCH('Supplier Request FORM B'!$D$45,C68)),MAX($G$1:G67)+1,0) -> 67 | H68: AUSTRALIAN SETTLEMENTS LIMITED | K68: =IF(AND(('Supplier Request FORM B'!$D$45=C68),(LEFT('Supplier Request FORM B'!$D$42,1)=LEFT(E68,1)),(LEFT('Supplier Request FORM B'!$D$43,2)=LEFT(A68,2))),MAX($K$1:K67)+1,0) -> 0 | O68: LA-LAOS | P68: CM/C | Q68: =IF(ISNUMBER(SEARCH(LEFT('Supplier Request FORM B'!$D$42,1),P68)),MAX($Q$1:Q67)+1,0) -> 67 | R68: LA-LAOS | U68: =IF(ISNUMBER(SEARCH('Supplier Request FORM B'!$D$54,C68)),MAX($U$1:U67)+1,0) -> 67 | V68: AUSTRALIAN SETTLEMENTS LIMITED | Y68: =IF(ISNUMBER(SEARCH('Supplier Request FORM B'!$D$54,C68)),MAX($Y$1:Y67)+1,0) -> 67 | Z68: ASLLAU2CGBS | AE68: =IF(LEFT('Supplier Request FORM B'!$D$42,1)="F",0,IF(AND((LEFT('Supplier Request FORM B'!$D$42,1)=LEFT(E68,1)),(LEFT('Supplier Request FORM B'!$D$43,2)=LEFT(A68,2))),MAX($AE$1:AE67)+1,0)) -> 0
A69: AU | B69: BOFAAUSX | C69: BANK OF AMERICA, N.A. SYDNEY | D69: BOFAAUSX | E69: CM/C | G69: =IF(ISNUMBER(SEARCH('Supplier Request FORM B'!$D$45,C69)),MAX($G$1:G68)+1,0) -> 68 | H69: BANK OF AMERICA, N.A. SYDNEY | K69: =IF(AND(('Supplier Request FORM B'!$D$45=C69),(LEFT('Supplier Request FORM B'!$D$42,1)=LEFT(E69,1)),(LEFT('Supplier Request FORM B'!$D$43,2)=LEFT(A69,2))),MAX($K$1:K68)+1,0) -> 0 | O69: LB-LEBANON | P69: CM/C | Q69: =IF(ISNUMBER(SEARCH(LEFT('Supplier Request FORM B'!$D$42,1),P69)),MAX($Q$1:Q68)+1,0) -> 68 | R69: LB-LEBANON | U69: =IF(ISNUMBER(SEARCH('Supplier Request FORM B'!$D$54,C69)),MAX($U$1:U68)+1,0) -> 68 | V69: BANK OF AMERICA, N.A. SYDNEY | Y69: =IF(ISNUMBER(SEARCH('Supplier Request FORM B'!$D$54,C69)),MAX($Y$1:Y68)+1,0) -> 68 | Z69: BOFAAUSX | AE69: =IF(LEFT('Supplier Request FORM B'!$D$42,1)="F",0,IF(AND((LEFT('Supplier Request FORM B'!$D$42,1)=LEFT(E69,1)),(LEFT('Supplier Request FORM B'!$D$43,2)=LEFT(A69,2))),MAX($AE$1:AE68)+1,0)) -> 0
A70: AU | B70: BKCHAU2S | C70: BANK OF CHINA LIMITED, SYDNEY BRANCH | D70: BKCHAU2S | E70: CM/C | G70: =IF(ISNUMBER(SEARCH('Supplier Request FORM B'!$D$45,C70)),MAX($G$1:G69)+1,0) -> 69 | H70: BANK OF CHINA LIMITED, SYDNEY BRANCH | K70: =IF(AND(('Supplier Request FORM B'!$D$45=C70),(LEFT('Supplier Request FORM B'!$D$42,1)=LEFT(E70,1)),(LEFT('Supplier Request FORM B'!$D$43,2)=LEFT(A70,2))),MAX($K$1:K69)+1,0) -> 0 | O70: LI-LIECHTENSTEIN | P70: CM/C | Q70: =IF(ISNUMBER(SEARCH(LEFT('Supplier Request FORM B'!$D$42,1),P70)),MAX($Q$1:Q69)+1,0) -> 69 | R70: LI-LIECHTENSTEIN | U70: =IF(ISNUMBER(SEARCH('Supplier Request FORM B'!$D$54,C70)),MAX($U$1:U69)+1,0) -> 69 | V70: BANK OF CHINA LIMITED, SYDNEY BRANCH | Y70: =IF(ISNUMBER(SEARCH('Supplier Request FORM B'!$D$54,C70)),MAX($Y$1:Y69)+1,0) -> 69 | Z70: BKCHAU2S | AE70: =IF(LEFT('Supplier Request FORM B'!$D$42,1)="F",0,IF(AND((LEFT('Supplier Request FORM B'!$D$42,1)=LEFT(E70,1)),(LEFT('Supplier Request FORM B'!$D$43,2)=LEFT(A70,2))),MAX($AE$1:AE69)+1,0)) -> 0
A71: AU | B71: QBANAU4B | C71: BANK OF QUEENSLAND LTD. | D71: QBANAU4B | E71: CM/C | G71: =IF(ISNUMBER(SEARCH('Supplier Request FORM B'!$D$45,C71)),MAX($G$1:G70)+1,0) -> 70 | H71: BANK OF QUEENSLAND LTD. | K71: =IF(AND(('Supplier Request FORM B'!$D$45=C71),(LEFT('Supplier Request FORM B'!$D$42,1)=LEFT(E71,1)),(LEFT('Supplier Request FORM B'!$D$43,2)=LEFT(A71,2))),MAX($K$1:K70)+1,0) -> 0 | O71: LK-SRI LANKA | P71: CM/C | Q71: =IF(ISNUMBER(SEARCH(LEFT('Supplier Request FORM B'!$D$42,1),P71)),MAX($Q$1:Q70)+1,0) -> 70 | R71: LK-SRI LANKA | U71: =IF(ISNUMBER(SEARCH('Supplier Request FORM B'!$D$54,C71)),MAX($U$1:U70)+1,0) -> 70 | V71: BANK OF QUEENSLAND LTD. | Y71: =IF(ISNUMBER(SEARCH('Supplier Request FORM B'!$D$54,C71)),MAX($Y$1:Y70)+1,0) -> 70 | Z71: QBANAU4B | AE71: =IF(LEFT('Supplier Request FORM B'!$D$42,1)="F",0,IF(AND((LEFT('Supplier Request FORM B'!$D$42,1)=LEFT(E71,1)),(LEFT('Supplier Request FORM B'!$D$43,2)=LEFT(A71,2))),MAX($AE$1:AE70)+1,0)) -> 0
A72: AU | B72: BKWAAU6P | C72: BANKWEST A DIVISION OF COMMONWEALTH BANK OF AUSTRALIA | D72: BKWAAU6P | E72: CM/C | G72: =IF(ISNUMBER(SEARCH('Supplier Request FORM B'!$D$45,C72)),MAX($G$1:G71)+1,0) -> 71 | H72: BANKWEST A DIVISION OF COMMONWEALTH BANK OF AUSTRALIA | K72: =IF(AND(('Supplier Request FORM B'!$D$45=C72),(LEFT('Supplier Request FORM B'!$D$42,1)=LEFT(E72,1)),(LEFT('Supplier Request FORM B'!$D$43,2)=LEFT(A72,2))),MAX($K$1:K71)+1,0) -> 0 | O72: LT-LITHUANIA | P72: CM/C | Q72: =IF(ISNUMBER(SEARCH(LEFT('Supplier Request FORM B'!$D$42,1),P72)),MAX($Q$1:Q71)+1,0) -> 71 | R72: LT-LITHUANIA | U72: =IF(ISNUMBER(SEARCH('Supplier Request FORM B'!$D$54,C72)),MAX($U$1:U71)+1,0) -> 71 | V72: BANKWEST A DIVISION OF COMMONWEALTH BANK OF AUSTRALIA | Y72: =IF(ISNUMBER(SEARCH('Supplier Request FORM B'!$D$54,C72)),MAX($Y$1:Y71)+1,0) -> 71 | Z72: BKWAAU6P | AE72: =IF(LEFT('Supplier Request FORM B'!$D$42,1)="F",0,IF(AND((LEFT('Supplier Request FORM B'!$D$42,1)=LEFT(E72,1)),(LEFT('Supplier Request FORM B'!$D$43,2)=LEFT(A72,2))),MAX($AE$1:AE71)+1,0)) -> 0
A73: AU | B73: BENDAU3B | C73: BENDIGO BANK LIMITED | D73: BENDAU3B | E73: CM/C | G73: =IF(ISNUMBER(SEARCH('Supplier Request FORM B'!$D$45,C73)),MAX($G$1:G72)+1,0) -> 72 | H73: BENDIGO BANK LIMITED | K73: =IF(AND(('Supplier Request FORM B'!$D$45=C73),(LEFT('Supplier Request FORM B'!$D$42,1)=LEFT(E73,1)),(LEFT('Supplier Request FORM B'!$D$43,2)=LEFT(A73,2))),MAX($K$1:K72)+1,0) -> 0 | O73: LU-LUXEMBOURG | P73: CM/C | Q73: =IF(ISNUMBER(SEARCH(LEFT('Supplier Request FORM B'!$D$42,1),P73)),MAX($Q$1:Q72)+1,0) -> 72 | R73: LU-LUXEMBOURG | U73: =IF(ISNUMBER(SEARCH('Supplier Request FORM B'!$D$54,C73)),MAX($U$1:U72)+1,0) -> 72 | V73: BENDIGO BANK LIMITED | Y73: =IF(ISNUMBER(SEARCH('Supplier Request FORM B'!$D$54,C73)),MAX($Y$1:Y72)+1,0) -> 72 | Z73: BENDAU3B | AE73: =IF(LEFT('Supplier Request FORM B'!$D$42,1)="F",0,IF(AND((LEFT('Supplier Request FORM B'!$D$42,1)=LEFT(E73,1)),(LEFT('Supplier Request FORM B'!$D$43,2)=LEFT(A73,2))),MAX($AE$1:AE72)+1,0)) -> 0
A74: AU | B74: CITIAU2X | C74: CITIGROUP PTY LIMITED, SYDNEY | D74: CITIAU2X | E74: CM/C | G74: =IF(ISNUMBER(SEARCH('Supplier Request FORM B'!$D$45,C74)),MAX($G$1:G73)+1,0) -> 73 | H74: CITIGROUP PTY LIMITED, SYDNEY | K74: =IF(AND(('Supplier Request FORM B'!$D$45=C74),(LEFT('Supplier Request FORM B'!$D$42,1)=LEFT(E74,1)),(LEFT('Supplier Request FORM B'!$D$43,2)=LEFT(A74,2))),MAX($K$1:K73)+1,0) -> 0 | O74: LV-LATVIA | P74: CM/C | Q74: =IF(ISNUMBER(SEARCH(LEFT('Supplier Request FORM B'!$D$42,1),P74)),MAX($Q$1:Q73)+1,0) -> 73 | R74: LV-LATVIA | U74: =IF(ISNUMBER(SEARCH('Supplier Request FORM B'!$D$54,C74)),MAX($U$1:U73)+1,0) -> 73 | V74: CITIGROUP PTY LIMITED, SYDNEY | Y74: =IF(ISNUMBER(SEARCH('Supplier Request FORM B'!$D$54,C74)),MAX($Y$1:Y73)+1,0) -> 73 | Z74: CITIAU2X | AE74: =IF(LEFT('Supplier Request FORM B'!$D$42,1)="F",0,IF(AND((LEFT('Supplier Request FORM B'!$D$42,1)=LEFT(E74,1)),(LEFT('Supplier Request FORM B'!$D$43,2)=LEFT(A74,2))),MAX($AE$1:AE73)+1,0)) -> 0
A75: AU | B75: COMWBSNS | C75: COMMONWEALTH BANK LIMITED | D75: COMWBSNS | E75: CM/C | G75: =IF(ISNUMBER(SEARCH('Supplier Request FORM B'!$D$45,C75)),MAX($G$1:G74)+1,0) -> 74 | H75: COMMONWEALTH BANK LIMITED | K75: =IF(AND(('Supplier Request FORM B'!$D$45=C75),(LEFT('Supplier Request FORM B'!$D$42,1)=LEFT(E75,1)),(LEFT('Supplier Request FORM B'!$D$43,2)=LEFT(A75,2))),MAX($K$1:K74)+1,0) -> 0 | O75: MA-MOROCCO | P75: CM/C | Q75: =IF(ISNUMBER(SEARCH(LEFT('Supplier Request FORM B'!$D$42,1),P75)),MAX($Q$1:Q74)+1,0) -> 74 | R75: MA-MOROCCO | U75: =IF(ISNUMBER(SEARCH('Supplier Request FORM B'!$D$54,C75)),MAX($U$1:U74)+1,0) -> 74 | V75: COMMONWEALTH BANK LIMITED | Y75: =IF(ISNUMBER(SEARCH('Supplier Request FORM B'!$D$54,C75)),MAX($Y$1:Y74)+1,0) -> 74 | Z75: COMWBSNS | AE75: =IF(LEFT('Supplier Request FORM B'!$D$42,1)="F",0,IF(AND((LEFT('Supplier Request FORM B'!$D$42,1)=LEFT(E75,1)),(LEFT('Supplier Request FORM B'!$D$43,2)=LEFT(A75,2))),MAX($AE$1:AE74)+1,0)) -> 0
A76: AU | B76: CTBAAU2S | C76: COMMONWEALTH BANK OF AUSTRALIA | D76: CTBAAU2S | E76: CM/C | G76: =IF(ISNUMBER(SEARCH('Supplier Request FORM B'!$D$45,C76)),MAX($G$1:G75)+1,0) -> 75 | H76: COMMONWEALTH BANK OF AUSTRALIA | K76: =IF(AND(('Supplier Request FORM B'!$D$45=C76),(LEFT('Supplier Request FORM B'!$D$42,1)=LEFT(E76,1)),(LEFT('Supplier Request FORM B'!$D$43,2)=LEFT(A76,2))),MAX($K$1:K75)+1,0) -> 0 | O76: MC-MONACO | P76: CM/C | Q76: =IF(ISNUMBER(SEARCH(LEFT('Supplier Request FORM B'!$D$42,1),P76)),MAX($Q$1:Q75)+1,0) -> 75 | R76: MC-MONACO | U76: =IF(ISNUMBER(SEARCH('Supplier Request FORM B'!$D$54,C76)),MAX($U$1:U75)+1,0) -> 75 | V76: COMMONWEALTH BANK OF AUSTRALIA | Y76: =IF(ISNUMBER(SEARCH('Supplier Request FORM B'!$D$54,C76)),MAX($Y$1:Y75)+1,0) -> 75 | Z76: CTBAAU2S | AE76: =IF(LEFT('Supplier Request FORM B'!$D$42,1)="F",0,IF(AND((LEFT('Supplier Request FORM B'!$D$42,1)=LEFT(E76,1)),(LEFT('Supplier Request FORM B'!$D$43,2)=LEFT(A76,2))),MAX($AE$1:AE75)+1,0)) -> 0
A77: AU | B77: CTBAAU2SFXD | C77: COMMONWEALTH BANK OF AUSTRALIA | D77: CTBAAU2SFXD | E77: CM/C | G77: =IF(ISNUMBER(SEARCH('Supplier Request FORM B'!$D$45,C77)),MAX($G$1:G76)+1,0) -> 76 | H77: COMMONWEALTH BANK OF AUSTRALIA | K77: =IF(AND(('Supplier Request FORM B'!$D$45=C77),(LEFT('Supplier Request FORM B'!$D$42,1)=LEFT(E77,1)),(LEFT('Supplier Request FORM B'!$D$43,2)=LEFT(A77,2))),MAX($K$1:K76)+1,0) -> 0 | O77: MD-MOLDAVIA | P77: CM/C | Q77: =IF(ISNUMBER(SEARCH(LEFT('Supplier Request FORM B'!$D$42,1),P77)),MAX($Q$1:Q76)+1,0) -> 76 | R77: MD-MOLDAVIA | U77: =IF(ISNUMBER(SEARCH('Supplier Request FORM B'!$D$54,C77)),MAX($U$1:U76)+1,0) -> 76 | V77: COMMONWEALTH BANK OF AUSTRALIA | Y77: =IF(ISNUMBER(SEARCH('Supplier Request FORM B'!$D$54,C77)),MAX($Y$1:Y76)+1,0) -> 76 | Z77: CTBAAU2SFXD | AE77: =IF(LEFT('Supplier Request FORM B'!$D$42,1)="F",0,IF(AND((LEFT('Supplier Request FORM B'!$D$42,1)=LEFT(E77,1)),(LEFT('Supplier Request FORM B'!$D$43,2)=LEFT(A77,2))),MAX($AE$1:AE76)+1,0)) -> 0
A78: AU | B78: CTBAAU2SITS | C78: COMMONWEALTH BANK OF AUSTRALIA | D78: CTBAAU2SITS | E78: CM/C | G78: =IF(ISNUMBER(SEARCH('Supplier Request FORM B'!$D$45,C78)),MAX($G$1:G77)+1,0) -> 77 | H78: COMMONWEALTH BANK OF AUSTRALIA | K78: =IF(AND(('Supplier Request FORM B'!$D$45=C78),(LEFT('Supplier Request FORM B'!$D$42,1)=LEFT(E78,1)),(LEFT('Supplier Request FORM B'!$D$43,2)=LEFT(A78,2))),MAX($K$1:K77)+1,0) -> 0 | O78: ME-MONTENEGRO | P78: CM/C | Q78: =IF(ISNUMBER(SEARCH(LEFT('Supplier Request FORM B'!$D$42,1),P78)),MAX($Q$1:Q77)+1,0) -> 77 | R78: ME-MONTENEGRO | U78: =IF(ISNUMBER(SEARCH('Supplier Request FORM B'!$D$54,C78)),MAX($U$1:U77)+1,0) -> 77 | V78: COMMONWEALTH BANK OF AUSTRALIA | Y78: =IF(ISNUMBER(SEARCH('Supplier Request FORM B'!$D$54,C78)),MAX($Y$1:Y77)+1,0) -> 77 | Z78: CTBAAU2SITS | AE78: =IF(LEFT('Supplier Request FORM B'!$D$42,1)="F",0,IF(AND((LEFT('Supplier Request FORM B'!$D$42,1)=LEFT(E78,1)),(LEFT('Supplier Request FORM B'!$D$43,2)=LEFT(A78,2))),MAX($AE$1:AE77)+1,0)) -> 0
A79: AU | B79: CUSCAU2S | C79: CUSCAL LIMITED | D79: CUSCAU2S | E79: CM/C | G79: =IF(ISNUMBER(SEARCH('Supplier Request FORM B'!$D$45,C79)),MAX($G$1:G78)+1,0) -> 78 | H79: CUSCAL LIMITED | K79: =IF(AND(('Supplier Request FORM B'!$D$45=C79),(LEFT('Supplier Request FORM B'!$D$42,1)=LEFT(E79,1)),(LEFT('Supplier Request FORM B'!$D$43,2)=LEFT(A79,2))),MAX($K$1:K78)+1,0) -> 0 | O79: MK-MACEDONIA | P79: CM/C | Q79: =IF(ISNUMBER(SEARCH(LEFT('Supplier Request FORM B'!$D$42,1),P79)),MAX($Q$1:Q78)+1,0) -> 78 | R79: MK-MACEDONIA | U79: =IF(ISNUMBER(SEARCH('Supplier Request FORM B'!$D$54,C79)),MAX($U$1:U78)+1,0) -> 78 | V79: CUSCAL LIMITED | Y79: =IF(ISNUMBER(SEARCH('Supplier Request FORM B'!$D$54,C79)),MAX($Y$1:Y78)+1,0) -> 78 | Z79: CUSCAU2S | AE79: =IF(LEFT('Supplier Request FORM B'!$D$42,1)="F",0,IF(AND((LEFT('Supplier Request FORM B'!$D$42,1)=LEFT(E79,1)),(LEFT('Supplier Request FORM B'!$D$43,2)=LEFT(A79,2))),MAX($AE$1:AE78)+1,0)) -> 0
A80: AU | B80: HBSLAU4T | C80: HERITAGE BANK LIMITED | D80: HBSLAU4T | E80: CM/C | G80: =IF(ISNUMBER(SEARCH('Supplier Request FORM B'!$D$45,C80)),MAX($G$1:G79)+1,0) -> 79 | H80: HERITAGE BANK LIMITED | K80: =IF(AND(('Supplier Request FORM B'!$D$45=C80),(LEFT('Supplier Request FORM B'!$D$42,1)=LEFT(E80,1)),(LEFT('Supplier Request FORM B'!$D$43,2)=LEFT(A80,2))),MAX($K$1:K79)+1,0) -> 0 | O80: MM-MYANMAR | P80: CM/C | Q80: =IF(ISNUMBER(SEARCH(LEFT('Supplier Request FORM B'!$D$42,1),P80)),MAX($Q$1:Q79)+1,0) -> 79 | R80: MM-MYANMAR | U80: =IF(ISNUMBER(SEARCH('Supplier Request FORM B'!$D$54,C80)),MAX($U$1:U79)+1,0) -> 79 | V80: HERITAGE BANK LIMITED | Y80: =IF(ISNUMBER(SEARCH('Supplier Request FORM B'!$D$54,C80)),MAX($Y$1:Y79)+1,0) -> 79 | Z80: HBSLAU4T | AE80: =IF(LEFT('Supplier Request FORM B'!$D$42,1)="F",0,IF(AND((LEFT('Supplier Request FORM B'!$D$42,1)=LEFT(E80,1)),(LEFT('Supplier Request FORM B'!$D$43,2)=LEFT(A80,2))),MAX($AE$1:AE79)+1,0)) -> 0
A81: AU | B81: HKBAAU2S | C81: HSBC BANK AUSTRALIA LIMITED | D81: HKBAAU2S | E81: CM/C | G81: =IF(ISNUMBER(SEARCH('Supplier Request FORM B'!$D$45,C81)),MAX($G$1:G80)+1,0) -> 80 | H81: HSBC BANK AUSTRALIA LIMITED | K81: =IF(AND(('Supplier Request FORM B'!$D$45=C81),(LEFT('Supplier Request FORM B'!$D$42,1)=LEFT(E81,1)),(LEFT('Supplier Request FORM B'!$D$43,2)=LEFT(A81,2))),MAX($K$1:K80)+1,0) -> 0 | O81: MN-MONGOLIA | P81: CM/C | Q81: =IF(ISNUMBER(SEARCH(LEFT('Supplier Request FORM B'!$D$42,1),P81)),MAX($Q$1:Q80)+1,0) -> 80 | R81: MN-MONGOLIA | U81: =IF(ISNUMBER(SEARCH('Supplier Request FORM B'!$D$54,C81)),MAX($U$1:U80)+1,0) -> 80 | V81: HSBC BANK AUSTRALIA LIMITED | Y81: =IF(ISNUMBER(SEARCH('Supplier Request FORM B'!$D$54,C81)),MAX($Y$1:Y80)+1,0) -> 80 | Z81: HKBAAU2S | AE81: =IF(LEFT('Supplier Request FORM B'!$D$42,1)="F",0,IF(AND((LEFT('Supplier Request FORM B'!$D$42,1)=LEFT(E81,1)),(LEFT('Supplier Request FORM B'!$D$43,2)=LEFT(A81,2))),MAX($AE$1:AE80)+1,0)) -> 0
A82: AU | B82: HKBAAU2SBNE | C82: HSBC BANK AUSTRALIA LIMITED | D82: HKBAAU2SBNE | E82: CM/C | G82: =IF(ISNUMBER(SEARCH('Supplier Request FORM B'!$D$45,C82)),MAX($G$1:G81)+1,0) -> 81 | H82: HSBC BANK AUSTRALIA LIMITED | K82: =IF(AND(('Supplier Request FORM B'!$D$45=C82),(LEFT('Supplier Request FORM B'!$D$42,1)=LEFT(E82,1)),(LEFT('Supplier Request FORM B'!$D$43,2)=LEFT(A82,2))),MAX($K$1:K81)+1,0) -> 0 | O82: MO-MACAU | P82: CM/C | Q82: =IF(ISNUMBER(SEARCH(LEFT('Supplier Request FORM B'!$D$42,1),P82)),MAX($Q$1:Q81)+1,0) -> 81 | R82: MO-MACAU | U82: =IF(ISNUMBER(SEARCH('Supplier Request FORM B'!$D$54,C82)),MAX($U$1:U81)+1,0) -> 81 | V82: HSBC BANK AUSTRALIA LIMITED | Y82: =IF(ISNUMBER(SEARCH('Supplier Request FORM B'!$D$54,C82)),MAX($Y$1:Y81)+1,0) -> 81 | Z82: HKBAAU2SBNE | AE82: =IF(LEFT('Supplier Request FORM B'!$D$42,1)="F",0,IF(AND((LEFT('Supplier Request FORM B'!$D$42,1)=LEFT(E82,1)),(LEFT('Supplier Request FORM B'!$D$43,2)=LEFT(A82,2))),MAX($AE$1:AE81)+1,0)) -> 0
A83: AU | B83: HKBAAU2SMEL | C83: HSBC BANK AUSTRALIA LIMITED | D83: HKBAAU2SMEL | E83: CM/C | G83: =IF(ISNUMBER(SEARCH('Supplier Request FORM B'!$D$45,C83)),MAX($G$1:G82)+1,0) -> 82 | H83: HSBC BANK AUSTRALIA LIMITED | K83: =IF(AND(('Supplier Request FORM B'!$D$45=C83),(LEFT('Supplier Request FORM B'!$D$42,1)=LEFT(E83,1)),(LEFT('Supplier Request FORM B'!$D$43,2)=LEFT(A83,2))),MAX($K$1:K82)+1,0) -> 0 | O83: MT-MALTA | P83: CM/C | Q83: =IF(ISNUMBER(SEARCH(LEFT('Supplier Request FORM B'!$D$42,1),P83)),MAX($Q$1:Q82)+1,0) -> 82 | R83: MT-MALTA | U83: =IF(ISNUMBER(SEARCH('Supplier Request FORM B'!$D$54,C83)),MAX($U$1:U82)+1,0) -> 82 | V83: HSBC BANK AUSTRALIA LIMITED | Y83: =IF(ISNUMBER(SEARCH('Supplier Request FORM B'!$D$54,C83)),MAX($Y$1:Y82)+1,0) -> 82 | Z83: HKBAAU2SMEL | AE83: =IF(LEFT('Supplier Request FORM B'!$D$42,1)="F",0,IF(AND((LEFT('Supplier Request FORM B'!$D$42,1)=LEFT(E83,1)),(LEFT('Supplier Request FORM B'!$D$43,2)=LEFT(A83,2))),MAX($AE$1:AE82)+1,0)) -> 0
A84: AU | B84: HKBAAU2SSYD | C84: HSBC BANK AUSTRALIA LIMITED | D84: HKBAAU2SSYD | E84: CM/C | G84: =IF(ISNUMBER(SEARCH('Supplier Request FORM B'!$D$45,C84)),MAX($G$1:G83)+1,0) -> 83 | H84: HSBC BANK AUSTRALIA LIMITED | K84: =IF(AND(('Supplier Request FORM B'!$D$45=C84),(LEFT('Supplier Request FORM B'!$D$42,1)=LEFT(E84,1)),(LEFT('Supplier Request FORM B'!$D$43,2)=LEFT(A84,2))),MAX($K$1:K83)+1,0) -> 0 | O84: MU-MAURITIUS | P84: CM/C | Q84: =IF(ISNUMBER(SEARCH(LEFT('Supplier Request FORM B'!$D$42,1),P84)),MAX($Q$1:Q83)+1,0) -> 83 | R84: MU-MAURITIUS | U84: =IF(ISNUMBER(SEARCH('Supplier Request FORM B'!$D$54,C84)),MAX($U$1:U83)+1,0) -> 83 | V84: HSBC BANK AUSTRALIA LIMITED | Y84: =IF(ISNUMBER(SEARCH('Supplier Request FORM B'!$D$54,C84)),MAX($Y$1:Y83)+1,0) -> 83 | Z84: HKBAAU2SSYD | AE84: =IF(LEFT('Supplier Request FORM B'!$D$42,1)="F",0,IF(AND((LEFT('Supplier Request FORM B'!$D$42,1)=LEFT(E84,1)),(LEFT('Supplier Request FORM B'!$D$43,2)=LEFT(A84,2))),MAX($AE$1:AE83)+1,0)) -> 0
A85: AU | B85: INGBAU2S | C85: ING BANK (AUSTRALIA) LIMITED | D85: INGBAU2S | E85: CM/C | G85: =IF(ISNUMBER(SEARCH('Supplier Request FORM B'!$D$45,C85)),MAX($G$1:G84)+1,0) -> 84 | H85: ING BANK (AUSTRALIA) LIMITED | K85: =IF(AND(('Supplier Request FORM B'!$D$45=C85),(LEFT('Supplier Request FORM B'!$D$42,1)=LEFT(E85,1)),(LEFT('Supplier Request FORM B'!$D$43,2)=LEFT(A85,2))),MAX($K$1:K84)+1,0) -> 0 | O85: MV-MALDIVES | P85: CM/C | Q85: =IF(ISNUMBER(SEARCH(LEFT('Supplier Request FORM B'!$D$42,1),P85)),MAX($Q$1:Q84)+1,0) -> 84 | R85: MV-MALDIVES | U85: =IF(ISNUMBER(SEARCH('Supplier Request FORM B'!$D$54,C85)),MAX($U$1:U84)+1,0) -> 84 | V85: ING BANK (AUSTRALIA) LIMITED | Y85: =IF(ISNUMBER(SEARCH('Supplier Request FORM B'!$D$54,C85)),MAX($Y$1:Y84)+1,0) -> 84 | Z85: INGBAU2S | AE85: =IF(LEFT('Supplier Request FORM B'!$D$42,1)="F",0,IF(AND((LEFT('Supplier Request FORM B'!$D$42,1)=LEFT(E85,1)),(LEFT('Supplier Request FORM B'!$D$43,2)=LEFT(A85,2))),MAX($AE$1:AE84)+1,0)) -> 0
A86: AU | B86: CHASAU2X | C86: JPMORGAN CHASE BANK, N.A., SYDNEY BRANCH | D86: CHASAU2X | E86: CM/C | G86: =IF(ISNUMBER(SEARCH('Supplier Request FORM B'!$D$45,C86)),MAX($G$1:G85)+1,0) -> 85 | H86: JPMORGAN CHASE BANK, N.A., SYDNEY BRANCH | K86: =IF(AND(('Supplier Request FORM B'!$D$45=C86),(LEFT('Supplier Request FORM B'!$D$42,1)=LEFT(E86,1)),(LEFT('Supplier Request FORM B'!$D$43,2)=LEFT(A86,2))),MAX($K$1:K85)+1,0) -> 0 | O86: MX-MEXICO | P86: CM/C | Q86: =IF(ISNUMBER(SEARCH(LEFT('Supplier Request FORM B'!$D$42,1),P86)),MAX($Q$1:Q85)+1,0) -> 85 | R86: MX-MEXICO | U86: =IF(ISNUMBER(SEARCH('Supplier Request FORM B'!$D$54,C86)),MAX($U$1:U85)+1,0) -> 85 | V86: JPMORGAN CHASE BANK, N.A., SYDNEY BRANCH | Y86: =IF(ISNUMBER(SEARCH('Supplier Request FORM B'!$D$54,C86)),MAX($Y$1:Y85)+1,0) -> 85 | Z86: CHASAU2X | AE86: =IF(LEFT('Supplier Request FORM B'!$D$42,1)="F",0,IF(AND((LEFT('Supplier Request FORM B'!$D$42,1)=LEFT(E86,1)),(LEFT('Supplier Request FORM B'!$D$43,2)=LEFT(A86,2))),MAX($AE$1:AE85)+1,0)) -> 0
A87: AU | B87: MACQAU2S | C87: MACQUARIE BANK LIMITED | D87: MACQAU2S | E87: CM/C | G87: =IF(ISNUMBER(SEARCH('Supplier Request FORM B'!$D$45,C87)),MAX($G$1:G86)+1,0) -> 86 | H87: MACQUARIE BANK LIMITED | K87: =IF(AND(('Supplier Request FORM B'!$D$45=C87),(LEFT('Supplier Request FORM B'!$D$42,1)=LEFT(E87,1)),(LEFT('Supplier Request FORM B'!$D$43,2)=LEFT(A87,2))),MAX($K$1:K86)+1,0) -> 0 | O87: MY-MALAYSIA | P87: CM/C | Q87: =IF(ISNUMBER(SEARCH(LEFT('Supplier Request FORM B'!$D$42,1),P87)),MAX($Q$1:Q86)+1,0) -> 86 | R87: MY-MALAYSIA | U87: =IF(ISNUMBER(SEARCH('Supplier Request FORM B'!$D$54,C87)),MAX($U$1:U86)+1,0) -> 86 | V87: MACQUARIE BANK LIMITED | Y87: =IF(ISNUMBER(SEARCH('Supplier Request FORM B'!$D$54,C87)),MAX($Y$1:Y86)+1,0) -> 86 | Z87: MACQAU2S | AE87: =IF(LEFT('Supplier Request FORM B'!$D$42,1)="F",0,IF(AND((LEFT('Supplier Request FORM B'!$D$42,1)=LEFT(E87,1)),(LEFT('Supplier Request FORM B'!$D$43,2)=LEFT(A87,2))),MAX($AE$1:AE86)+1,0)) -> 0
A88: AU | B88: MEQBAU3M | C88: MEMBERS EQUITY BANK LIMITED | D88: MEQBAU3M | E88: CM/C | G88: =IF(ISNUMBER(SEARCH('Supplier Request FORM B'!$D$45,C88)),MAX($G$1:G87)+1,0) -> 87 | H88: MEMBERS EQUITY BANK LIMITED | K88: =IF(AND(('Supplier Request FORM B'!$D$45=C88),(LEFT('Supplier Request FORM B'!$D$42,1)=LEFT(E88,1)),(LEFT('Supplier Request FORM B'!$D$43,2)=LEFT(A88,2))),MAX($K$1:K87)+1,0) -> 0 | O88: NA-NAMIBIA | P88: CM/C | Q88: =IF(ISNUMBER(SEARCH(LEFT('Supplier Request FORM B'!$D$42,1),P88)),MAX($Q$1:Q87)+1,0) -> 87 | R88: NA-NAMIBIA | U88: =IF(ISNUMBER(SEARCH('Supplier Request FORM B'!$D$54,C88)),MAX($U$1:U87)+1,0) -> 87 | V88: MEMBERS EQUITY BANK LIMITED | Y88: =IF(ISNUMBER(SEARCH('Supplier Request FORM B'!$D$54,C88)),MAX($Y$1:Y87)+1,0) -> 87 | Z88: MEQBAU3M | AE88: =IF(LEFT('Supplier Request FORM B'!$D$42,1)="F",0,IF(AND((LEFT('Supplier Request FORM B'!$D$42,1)=LEFT(E88,1)),(LEFT('Supplier Request FORM B'!$D$43,2)=LEFT(A88,2))),MAX($AE$1:AE87)+1,0)) -> 0
A89: AU | B89: NATAAU33 | C89: NATIONAL AUSTRALIA BANK LIMITED | D89: NATAAU33 | E89: CM/C | G89: =IF(ISNUMBER(SEARCH('Supplier Request FORM B'!$D$45,C89)),MAX($G$1:G88)+1,0) -> 88 | H89: NATIONAL AUSTRALIA BANK LIMITED | K89: =IF(AND(('Supplier Request FORM B'!$D$45=C89),(LEFT('Supplier Request FORM B'!$D$42,1)=LEFT(E89,1)),(LEFT('Supplier Request FORM B'!$D$43,2)=LEFT(A89,2))),MAX($K$1:K88)+1,0) -> 0 | O89: NC-NEW CALEDONIA | P89: CM/C | Q89: =IF(ISNUMBER(SEARCH(LEFT('Supplier Request FORM B'!$D$42,1),P89)),MAX($Q$1:Q88)+1,0) -> 88 | R89: NC-NEW CALEDONIA | U89: =IF(ISNUMBER(SEARCH('Supplier Request FORM B'!$D$54,C89)),MAX($U$1:U88)+1,0) -> 88 | V89: NATIONAL AUSTRALIA BANK LIMITED | Y89: =IF(ISNUMBER(SEARCH('Supplier Request FORM B'!$D$54,C89)),MAX($Y$1:Y88)+1,0) -> 88 | Z89: NATAAU33 | AE89: =IF(LEFT('Supplier Request FORM B'!$D$42,1)="F",0,IF(AND((LEFT('Supplier Request FORM B'!$D$42,1)=LEFT(E89,1)),(LEFT('Supplier Request FORM B'!$D$43,2)=LEFT(A89,2))),MAX($AE$1:AE88)+1,0)) -> 0
A90: AU | B90: NATAAU3302S | C90: NATIONAL AUSTRALIA BANK LIMITED | D90: NATAAU3302S | E90: CM/C | G90: =IF(ISNUMBER(SEARCH('Supplier Request FORM B'!$D$45,C90)),MAX($G$1:G89)+1,0) -> 89 | H90: NATIONAL AUSTRALIA BANK LIMITED | K90: =IF(AND(('Supplier Request FORM B'!$D$45=C90),(LEFT('Supplier Request FORM B'!$D$42,1)=LEFT(E90,1)),(LEFT('Supplier Request FORM B'!$D$43,2)=LEFT(A90,2))),MAX($K$1:K89)+1,0) -> 0 | O90: NG-NIGERIA | P90: CM/C | Q90: =IF(ISNUMBER(SEARCH(LEFT('Supplier Request FORM B'!$D$42,1),P90)),MAX($Q$1:Q89)+1,0) -> 89 | R90: NG-NIGERIA | U90: =IF(ISNUMBER(SEARCH('Supplier Request FORM B'!$D$54,C90)),MAX($U$1:U89)+1,0) -> 89 | V90: NATIONAL AUSTRALIA BANK LIMITED | Y90: =IF(ISNUMBER(SEARCH('Supplier Request FORM B'!$D$54,C90)),MAX($Y$1:Y89)+1,0) -> 89 | Z90: NATAAU3302S | AE90: =IF(LEFT('Supplier Request FORM B'!$D$42,1)="F",0,IF(AND((LEFT('Supplier Request FORM B'!$D$42,1)=LEFT(E90,1)),(LEFT('Supplier Request FORM B'!$D$43,2)=LEFT(A90,2))),MAX($AE$1:AE89)+1,0)) -> 0
A91: AU | B91: NATAAU3302X | C91: NATIONAL AUSTRALIA BANK LIMITED | D91: NATAAU3302X | E91: CM/C | G91: =IF(ISNUMBER(SEARCH('Supplier Request FORM B'!$D$45,C91)),MAX($G$1:G90)+1,0) -> 90 | H91: NATIONAL AUSTRALIA BANK LIMITED | K91: =IF(AND(('Supplier Request FORM B'!$D$45=C91),(LEFT('Supplier Request FORM B'!$D$42,1)=LEFT(E91,1)),(LEFT('Supplier Request FORM B'!$D$43,2)=LEFT(A91,2))),MAX($K$1:K90)+1,0) -> 0 | O91: NL-NETHERLANDS | P91: CM/C | Q91: =IF(ISNUMBER(SEARCH(LEFT('Supplier Request FORM B'!$D$42,1),P91)),MAX($Q$1:Q90)+1,0) -> 90 | R91: NL-NETHERLANDS | U91: =IF(ISNUMBER(SEARCH('Supplier Request FORM B'!$D$54,C91)),MAX($U$1:U90)+1,0) -> 90 | V91: NATIONAL AUSTRALIA BANK LIMITED | Y91: =IF(ISNUMBER(SEARCH('Supplier Request FORM B'!$D$54,C91)),MAX($Y$1:Y90)+1,0) -> 90 | Z91: NATAAU3302X | AE91: =IF(LEFT('Supplier Request FORM B'!$D$42,1)="F",0,IF(AND((LEFT('Supplier Request FORM B'!$D$42,1)=LEFT(E91,1)),(LEFT('Supplier Request FORM B'!$D$43,2)=LEFT(A91,2))),MAX($AE$1:AE90)+1,0)) -> 0
A92: AU | B92: NATAAU33033 | C92: NATIONAL AUSTRALIA BANK LIMITED | D92: NATAAU33033 | E92: CM/C | G92: =IF(ISNUMBER(SEARCH('Supplier Request FORM B'!$D$45,C92)),MAX($G$1:G91)+1,0) -> 91 | H92: NATIONAL AUSTRALIA BANK LIMITED | K92: =IF(AND(('Supplier Request FORM B'!$D$45=C92),(LEFT('Supplier Request FORM B'!$D$42,1)=LEFT(E92,1)),(LEFT('Supplier Request FORM B'!$D$43,2)=LEFT(A92,2))),MAX($K$1:K91)+1,0) -> 0 | O92: NO-NORWAY | P92: CM/C | Q92: =IF(ISNUMBER(SEARCH(LEFT('Supplier Request FORM B'!$D$42,1),P92)),MAX($Q$1:Q91)+1,0) -> 91 | R92: NO-NORWAY | U92: =IF(ISNUMBER(SEARCH('Supplier Request FORM B'!$D$54,C92)),MAX($U$1:U91)+1,0) -> 91 | V92: NATIONAL AUSTRALIA BANK LIMITED | Y92: =IF(ISNUMBER(SEARCH('Supplier Request FORM B'!$D$54,C92)),MAX($Y$1:Y91)+1,0) -> 91 | Z92: NATAAU33033 | AE92: =IF(LEFT('Supplier Request FORM B'!$D$42,1)="F",0,IF(AND((LEFT('Supplier Request FORM B'!$D$42,1)=LEFT(E92,1)),(LEFT('Supplier Request FORM B'!$D$43,2)=LEFT(A92,2))),MAX($AE$1:AE91)+1,0)) -> 0
A93: AU | B93: NATAAU3303M | C93: NATIONAL AUSTRALIA BANK LIMITED | D93: NATAAU3303M | E93: CM/C | G93: =IF(ISNUMBER(SEARCH('Supplier Request FORM B'!$D$45,C93)),MAX($G$1:G92)+1,0) -> 92 | H93: NATIONAL AUSTRALIA BANK LIMITED | K93: =IF(AND(('Supplier Request FORM B'!$D$45=C93),(LEFT('Supplier Request FORM B'!$D$42,1)=LEFT(E93,1)),(LEFT('Supplier Request FORM B'!$D$43,2)=LEFT(A93,2))),MAX($K$1:K92)+1,0) -> 0 | O93: NP-NEPAL | P93: CM/C | Q93: =IF(ISNUMBER(SEARCH(LEFT('Supplier Request FORM B'!$D$42,1),P93)),MAX($Q$1:Q92)+1,0) -> 92 | R93: NP-NEPAL | U93: =IF(ISNUMBER(SEARCH('Supplier Request FORM B'!$D$54,C93)),MAX($U$1:U92)+1,0) -> 92 | V93: NATIONAL AUSTRALIA BANK LIMITED | Y93: =IF(ISNUMBER(SEARCH('Supplier Request FORM B'!$D$54,C93)),MAX($Y$1:Y92)+1,0) -> 92 | Z93: NATAAU3303M | AE93: =IF(LEFT('Supplier Request FORM B'!$D$42,1)="F",0,IF(AND((LEFT('Supplier Request FORM B'!$D$42,1)=LEFT(E93,1)),(LEFT('Supplier Request FORM B'!$D$43,2)=LEFT(A93,2))),MAX($AE$1:AE92)+1,0)) -> 0
A94: AU | B94: NATAAU3304B | C94: NATIONAL AUSTRALIA BANK LIMITED | D94: NATAAU3304B | E94: CM/C | G94: =IF(ISNUMBER(SEARCH('Supplier Request FORM B'!$D$45,C94)),MAX($G$1:G93)+1,0) -> 93 | H94: NATIONAL AUSTRALIA BANK LIMITED | K94: =IF(AND(('Supplier Request FORM B'!$D$45=C94),(LEFT('Supplier Request FORM B'!$D$42,1)=LEFT(E94,1)),(LEFT('Supplier Request FORM B'!$D$43,2)=LEFT(A94,2))),MAX($K$1:K93)+1,0) -> 0 | O94: NZ-NEW ZEALAND | P94: CM/C | Q94: =IF(ISNUMBER(SEARCH(LEFT('Supplier Request FORM B'!$D$42,1),P94)),MAX($Q$1:Q93)+1,0) -> 93 | R94: NZ-NEW ZEALAND | U94: =IF(ISNUMBER(SEARCH('Supplier Request FORM B'!$D$54,C94)),MAX($U$1:U93)+1,0) -> 93 | V94: NATIONAL AUSTRALIA BANK LIMITED | Y94: =IF(ISNUMBER(SEARCH('Supplier Request FORM B'!$D$54,C94)),MAX($Y$1:Y93)+1,0) -> 93 | Z94: NATAAU3304B | AE94: =IF(LEFT('Supplier Request FORM B'!$D$42,1)="F",0,IF(AND((LEFT('Supplier Request FORM B'!$D$42,1)=LEFT(E94,1)),(LEFT('Supplier Request FORM B'!$D$43,2)=LEFT(A94,2))),MAX($AE$1:AE93)+1,0)) -> 0
A95: AU | B95: NATAAU3305A | C95: NATIONAL AUSTRALIA BANK LIMITED | D95: NATAAU3305A | E95: CM/C | G95: =IF(ISNUMBER(SEARCH('Supplier Request FORM B'!$D$45,C95)),MAX($G$1:G94)+1,0) -> 94 | H95: NATIONAL AUSTRALIA BANK LIMITED | K95: =IF(AND(('Supplier Request FORM B'!$D$45=C95),(LEFT('Supplier Request FORM B'!$D$42,1)=LEFT(E95,1)),(LEFT('Supplier Request FORM B'!$D$43,2)=LEFT(A95,2))),MAX($K$1:K94)+1,0) -> 0 | O95: OM-OMAN | P95: CM/C | Q95: =IF(ISNUMBER(SEARCH(LEFT('Supplier Request FORM B'!$D$42,1),P95)),MAX($Q$1:Q94)+1,0) -> 94 | R95: OM-OMAN | U95: =IF(ISNUMBER(SEARCH('Supplier Request FORM B'!$D$54,C95)),MAX($U$1:U94)+1,0) -> 94 | V95: NATIONAL AUSTRALIA BANK LIMITED | Y95: =IF(ISNUMBER(SEARCH('Supplier Request FORM B'!$D$54,C95)),MAX($Y$1:Y94)+1,0) -> 94 | Z95: NATAAU3305A | AE95: =IF(LEFT('Supplier Request FORM B'!$D$42,1)="F",0,IF(AND((LEFT('Supplier Request FORM B'!$D$42,1)=LEFT(E95,1)),(LEFT('Supplier Request FORM B'!$D$43,2)=LEFT(A95,2))),MAX($AE$1:AE94)+1,0)) -> 0
A96: AU | B96: NATAAU3306P | C96: NATIONAL AUSTRALIA BANK LIMITED | D96: NATAAU3306P | E96: CM/C | G96: =IF(ISNUMBER(SEARCH('Supplier Request FORM B'!$D$45,C96)),MAX($G$1:G95)+1,0) -> 95 | H96: NATIONAL AUSTRALIA BANK LIMITED | K96: =IF(AND(('Supplier Request FORM B'!$D$45=C96),(LEFT('Supplier Request FORM B'!$D$42,1)=LEFT(E96,1)),(LEFT('Supplier Request FORM B'!$D$43,2)=LEFT(A96,2))),MAX($K$1:K95)+1,0) -> 0 | O96: PA-PANAMA | P96: CM/C | Q96: =IF(ISNUMBER(SEARCH(LEFT('Supplier Request FORM B'!$D$42,1),P96)),MAX($Q$1:Q95)+1,0) -> 95 | R96: PA-PANAMA | U96: =IF(ISNUMBER(SEARCH('Supplier Request FORM B'!$D$54,C96)),MAX($U$1:U95)+1,0) -> 95 | V96: NATIONAL AUSTRALIA BANK LIMITED | Y96: =IF(ISNUMBER(SEARCH('Supplier Request FORM B'!$D$54,C96)),MAX($Y$1:Y95)+1,0) -> 95 | Z96: NATAAU3306P | AE96: =IF(LEFT('Supplier Request FORM B'!$D$42,1)="F",0,IF(AND((LEFT('Supplier Request FORM B'!$D$42,1)=LEFT(E96,1)),(LEFT('Supplier Request FORM B'!$D$43,2)=LEFT(A96,2))),MAX($AE$1:AE95)+1,0)) -> 0
A97: AU | B97: RSBKAU2S | C97: RESERVE BANK OF AUSTRALIA | D97: RSBKAU2S | E97: CM/C | G97: =IF(ISNUMBER(SEARCH('Supplier Request FORM B'!$D$45,C97)),MAX($G$1:G96)+1,0) -> 96 | H97: RESERVE BANK OF AUSTRALIA | K97: =IF(AND(('Supplier Request FORM B'!$D$45=C97),(LEFT('Supplier Request FORM B'!$D$42,1)=LEFT(E97,1)),(LEFT('Supplier Request FORM B'!$D$43,2)=LEFT(A97,2))),MAX($K$1:K96)+1,0) -> 0 | O97: PE-PERU | P97: CM/C | Q97: =IF(ISNUMBER(SEARCH(LEFT('Supplier Request FORM B'!$D$42,1),P97)),MAX($Q$1:Q96)+1,0) -> 96 | R97: PE-PERU | U97: =IF(ISNUMBER(SEARCH('Supplier Request FORM B'!$D$54,C97)),MAX($U$1:U96)+1,0) -> 96 | V97: RESERVE BANK OF AUSTRALIA | Y97: =IF(ISNUMBER(SEARCH('Supplier Request FORM B'!$D$54,C97)),MAX($Y$1:Y96)+1,0) -> 96 | Z97: RSBKAU2S | AE97: =IF(LEFT('Supplier Request FORM B'!$D$42,1)="F",0,IF(AND((LEFT('Supplier Request FORM B'!$D$42,1)=LEFT(E97,1)),(LEFT('Supplier Request FORM B'!$D$43,2)=LEFT(A97,2))),MAX($AE$1:AE96)+1,0)) -> 0
A98: AU | B98: SGBLAU2S | C98: ST. GEORGE BANK LIMITED | D98: SGBLAU2S | E98: CM/C | G98: =IF(ISNUMBER(SEARCH('Supplier Request FORM B'!$D$45,C98)),MAX($G$1:G97)+1,0) -> 97 | H98: ST. GEORGE BANK LIMITED | K98: =IF(AND(('Supplier Request FORM B'!$D$45=C98),(LEFT('Supplier Request FORM B'!$D$42,1)=LEFT(E98,1)),(LEFT('Supplier Request FORM B'!$D$43,2)=LEFT(A98,2))),MAX($K$1:K97)+1,0) -> 0 | O98: PG-PAPUA NW GUINEA | P98: CM/C | Q98: =IF(ISNUMBER(SEARCH(LEFT('Supplier Request FORM B'!$D$42,1),P98)),MAX($Q$1:Q97)+1,0) -> 97 | R98: =IFERROR(INDEX(O:O,MATCH(ROW(R97),$Q:$Q,0)),"") -> PG-PAPUA NW GUINEA | U98: =IF(ISNUMBER(SEARCH('Supplier Request FORM B'!$D$54,C98)),MAX($U$1:U97)+1,0) -> 97 | V98: ST. GEORGE BANK LIMITED | Y98: =IF(ISNUMBER(SEARCH('Supplier Request FORM B'!$D$54,C98)),MAX($Y$1:Y97)+1,0) -> 97 | Z98: SGBLAU2S | AE98: =IF(LEFT('Supplier Request FORM B'!$D$42,1)="F",0,IF(AND((LEFT('Supplier Request FORM B'!$D$42,1)=LEFT(E98,1)),(LEFT('Supplier Request FORM B'!$D$43,2)=LEFT(A98,2))),MAX($AE$1:AE97)+1,0)) -> 0
A99: AU | B99: METWAU4B | C99: SUNCORP-METWAY LIMITED | D99: METWAU4B | E99: CM/C | G99: =IF(ISNUMBER(SEARCH('Supplier Request FORM B'!$D$45,C99)),MAX($G$1:G98)+1,0) -> 98 | H99: SUNCORP-METWAY LIMITED | K99: =IF(AND(('Supplier Request FORM B'!$D$45=C99),(LEFT('Supplier Request FORM B'!$D$42,1)=LEFT(E99,1)),(LEFT('Supplier Request FORM B'!$D$43,2)=LEFT(A99,2))),MAX($K$1:K98)+1,0) -> 0 | O99: PH-PHILIPPINES | P99: CM/C | Q99: =IF(ISNUMBER(SEARCH(LEFT('Supplier Request FORM B'!$D$42,1),P99)),MAX($Q$1:Q98)+1,0) -> 98 | R99: PH-PHILIPPINES | U99: =IF(ISNUMBER(SEARCH('Supplier Request FORM B'!$D$54,C99)),MAX($U$1:U98)+1,0) -> 98 | V99: SUNCORP-METWAY LIMITED | Y99: =IF(ISNUMBER(SEARCH('Supplier Request FORM B'!$D$54,C99)),MAX($Y$1:Y98)+1,0) -> 98 | Z99: METWAU4B | AE99: =IF(LEFT('Supplier Request FORM B'!$D$42,1)="F",0,IF(AND((LEFT('Supplier Request FORM B'!$D$42,1)=LEFT(E99,1)),(LEFT('Supplier Request FORM B'!$D$43,2)=LEFT(A99,2))),MAX($AE$1:AE98)+1,0)) -> 0
A100: AU | B100: WPACAU2F | C100: WESTPAC BANKING CORPORATION | D100: WPACAU2F | E100: CM/C | G100: =IF(ISNUMBER(SEARCH('Supplier Request FORM B'!$D$45,C100)),MAX($G$1:G99)+1,0) -> 99 | H100: WESTPAC BANKING CORPORATION | K100: =IF(AND(('Supplier Request FORM B'!$D$45=C100),(LEFT('Supplier Request FORM B'!$D$42,1)=LEFT(E100,1)),(LEFT('Supplier Request FORM B'!$D$43,2)=LEFT(A100,2))),MAX($K$1:K99)+1,0) -> 0 | O100: PK-PAKISTAN | P100: CM/C | Q100: =IF(ISNUMBER(SEARCH(LEFT('Supplier Request FORM B'!$D$42,1),P100)),MAX($Q$1:Q99)+1,0) -> 99 | R100: PK-PAKISTAN | U100: =IF(ISNUMBER(SEARCH('Supplier Request FORM B'!$D$54,C100)),MAX($U$1:U99)+1,0) -> 99 | V100: WESTPAC BANKING CORPORATION | Y100: =IF(ISNUMBER(SEARCH('Supplier Request FORM B'!$D$54,C100)),MAX($Y$1:Y99)+1,0) -> 99 | Z100: WPACAU2F | AE100: =IF(LEFT('Supplier Request FORM B'!$D$42,1)="F",0,IF(AND((LEFT('Supplier Request FORM B'!$D$42,1)=LEFT(E100,1)),(LEFT('Supplier Request FORM B'!$D$43,2)=LEFT(A100,2))),MAX($AE$1:AE99)+1,0)) -> 0
A101: AU | B101: WPACAU2FOBU | C101: WESTPAC BANKING CORPORATION | D101: WPACAU2FOBU | E101: CM/C | G101: =IF(ISNUMBER(SEARCH('Supplier Request FORM B'!$D$45,C101)),MAX($G$1:G100)+1,0) -> 100 | H101: WESTPAC BANKING CORPORATION | K101: =IF(AND(('Supplier Request FORM B'!$D$45=C101),(LEFT('Supplier Request FORM B'!$D$42,1)=LEFT(E101,1)),(LEFT('Supplier Request FORM B'!$D$43,2)=LEFT(A101,2))),MAX($K$1:K100)+1,0) -> 0 | O101: PL-POLAND | P101: CM/C | Q101: =IF(ISNUMBER(SEARCH(LEFT('Supplier Request FORM B'!$D$42,1),P101)),MAX($Q$1:Q100)+1,0) -> 100 | R101: PL-POLAND | U101: =IF(ISNUMBER(SEARCH('Supplier Request FORM B'!$D$54,C101)),MAX($U$1:U100)+1,0) -> 100 | V101: WESTPAC BANKING CORPORATION | Y101: =IF(ISNUMBER(SEARCH('Supplier Request FORM B'!$D$54,C101)),MAX($Y$1:Y100)+1,0) -> 100 | Z101: WPACAU2FOBU | AE101: =IF(LEFT('Supplier Request FORM B'!$D$42,1)="F",0,IF(AND((LEFT('Supplier Request FORM B'!$D$42,1)=LEFT(E101,1)),(LEFT('Supplier Request FORM B'!$D$43,2)=LEFT(A101,2))),MAX($AE$1:AE100)+1,0)) -> 0
A102: AU | B102: WPACAU2S | C102: WESTPAC BANKING CORPORATION | D102: WPACAU2S | E102: CM/C | G102: =IF(ISNUMBER(SEARCH('Supplier Request FORM B'!$D$45,C102)),MAX($G$1:G101)+1,0) -> 101 | H102: WESTPAC BANKING CORPORATION | K102: =IF(AND(('Supplier Request FORM B'!$D$45=C102),(LEFT('Supplier Request FORM B'!$D$42,1)=LEFT(E102,1)),(LEFT('Supplier Request FORM B'!$D$43,2)=LEFT(A102,2))),MAX($K$1:K101)+1,0) -> 0 | O102: PR-PUERTO RICO | P102: CM/C | Q102: =IF(ISNUMBER(SEARCH(LEFT('Supplier Request FORM B'!$D$42,1),P102)),MAX($Q$1:Q101)+1,0) -> 101 | R102: PR-PUERTO RICO | U102: =IF(ISNUMBER(SEARCH('Supplier Request FORM B'!$D$54,C102)),MAX($U$1:U101)+1,0) -> 101 | V102: WESTPAC BANKING CORPORATION | Y102: =IF(ISNUMBER(SEARCH('Supplier Request FORM B'!$D$54,C102)),MAX($Y$1:Y101)+1,0) -> 101 | Z102: WPACAU2S | AE102: =IF(LEFT('Supplier Request FORM B'!$D$42,1)="F",0,IF(AND((LEFT('Supplier Request FORM B'!$D$42,1)=LEFT(E102,1)),(LEFT('Supplier Request FORM B'!$D$43,2)=LEFT(A102,2))),MAX($AE$1:AE101)+1,0)) -> 0
A103: AZ | B103: AIIBAZ2X | C103: KAPITAL BANK | D103: AIIBAZ2X | E103: CM/C | G103: =IF(ISNUMBER(SEARCH('Supplier Request FORM B'!$D$45,C103)),MAX($G$1:G102)+1,0) -> 102 | H103: KAPITAL BANK | K103: =IF(AND(('Supplier Request FORM B'!$D$45=C103),(LEFT('Supplier Request FORM B'!$D$42,1)=LEFT(E103,1)),(LEFT('Supplier Request FORM B'!$D$43,2)=LEFT(A103,2))),MAX($K$1:K102)+1,0) -> 0 | O103: PS-PALESTINE | P103: CM/C | Q103: =IF(ISNUMBER(SEARCH(LEFT('Supplier Request FORM B'!$D$42,1),P103)),MAX($Q$1:Q102)+1,0) -> 102 | R103: PS-PALESTINE | U103: =IF(ISNUMBER(SEARCH('Supplier Request FORM B'!$D$54,C103)),MAX($U$1:U102)+1,0) -> 102 | V103: KAPITAL BANK | Y103: =IF(ISNUMBER(SEARCH('Supplier Request FORM B'!$D$54,C103)),MAX($Y$1:Y102)+1,0) -> 102 | Z103: AIIBAZ2X | AE103: =IF(LEFT('Supplier Request FORM B'!$D$42,1)="F",0,IF(AND((LEFT('Supplier Request FORM B'!$D$42,1)=LEFT(E103,1)),(LEFT('Supplier Request FORM B'!$D$43,2)=LEFT(A103,2))),MAX($AE$1:AE102)+1,0)) -> 0
A104: AZ | B104: IBAZAZ2X | C104: THE INTERNATIONAL BANK OF AZERBAIJAN OJSC | D104: IBAZAZ2X | E104: CM/C | G104: =IF(ISNUMBER(SEARCH('Supplier Request FORM B'!$D$45,C104)),MAX($G$1:G103)+1,0) -> 103 | H104: THE INTERNATIONAL BANK OF AZERBAIJAN OJSC | K104: =IF(AND(('Supplier Request FORM B'!$D$45=C104),(LEFT('Supplier Request FORM B'!$D$42,1)=LEFT(E104,1)),(LEFT('Supplier Request FORM B'!$D$43,2)=LEFT(A104,2))),MAX($K$1:K103)+1,0) -> 0 | O104: PT-PORTUGAL | P104: CM/C | Q104: =IF(ISNUMBER(SEARCH(LEFT('Supplier Request FORM B'!$D$42,1),P104)),MAX($Q$1:Q103)+1,0) -> 103 | R104: PT-PORTUGAL | U104: =IF(ISNUMBER(SEARCH('Supplier Request FORM B'!$D$54,C104)),MAX($U$1:U103)+1,0) -> 103 | V104: THE INTERNATIONAL BANK OF AZERBAIJAN OJSC | Y104: =IF(ISNUMBER(SEARCH('Supplier Request FORM B'!$D$54,C104)),MAX($Y$1:Y103)+1,0) -> 103 | Z104: IBAZAZ2X | AE104: =IF(LEFT('Supplier Request FORM B'!$D$42,1)="F",0,IF(AND((LEFT('Supplier Request FORM B'!$D$42,1)=LEFT(E104,1)),(LEFT('Supplier Request FORM B'!$D$43,2)=LEFT(A104,2))),MAX($AE$1:AE103)+1,0)) -> 0
A105: BA | B105: BBIBBA22 | C105: BOSNA BANK INTERNATIONAL DD | D105: BBIBBA22 | E105: CM/C | G105: =IF(ISNUMBER(SEARCH('Supplier Request FORM B'!$D$45,C105)),MAX($G$1:G104)+1,0) -> 104 | H105: BOSNA BANK INTERNATIONAL DD | K105: =IF(AND(('Supplier Request FORM B'!$D$45=C105),(LEFT('Supplier Request FORM B'!$D$42,1)=LEFT(E105,1)),(LEFT('Supplier Request FORM B'!$D$43,2)=LEFT(A105,2))),MAX($K$1:K104)+1,0) -> 0 | O105: PY-PARAGUAY | P105: CM/C | Q105: =IF(ISNUMBER(SEARCH(LEFT('Supplier Request FORM B'!$D$42,1),P105)),MAX($Q$1:Q104)+1,0) -> 104 | R105: PY-PARAGUAY | U105: =IF(ISNUMBER(SEARCH('Supplier Request FORM B'!$D$54,C105)),MAX($U$1:U104)+1,0) -> 104 | V105: BOSNA BANK INTERNATIONAL DD | Y105: =IF(ISNUMBER(SEARCH('Supplier Request FORM B'!$D$54,C105)),MAX($Y$1:Y104)+1,0) -> 104 | Z105: BBIBBA22 | AE105: =IF(LEFT('Supplier Request FORM B'!$D$42,1)="F",0,IF(AND((LEFT('Supplier Request FORM B'!$D$42,1)=LEFT(E105,1)),(LEFT('Supplier Request FORM B'!$D$43,2)=LEFT(A105,2))),MAX($AE$1:AE104)+1,0)) -> 0
A106: BA | B106: RZBABA2S | C106: RAIFFEISEN BANK D.D. BOSNA I HERCEGOVINA | D106: RZBABA2S | E106: CM/C | G106: =IF(ISNUMBER(SEARCH('Supplier Request FORM B'!$D$45,C106)),MAX($G$1:G105)+1,0) -> 105 | H106: RAIFFEISEN BANK D.D. BOSNA I HERCEGOVINA | K106: =IF(AND(('Supplier Request FORM B'!$D$45=C106),(LEFT('Supplier Request FORM B'!$D$42,1)=LEFT(E106,1)),(LEFT('Supplier Request FORM B'!$D$43,2)=LEFT(A106,2))),MAX($K$1:K105)+1,0) -> 0 | O106: QA-QATAR | P106: CM/C | Q106: =IF(ISNUMBER(SEARCH(LEFT('Supplier Request FORM B'!$D$42,1),P106)),MAX($Q$1:Q105)+1,0) -> 105 | R106: QA-QATAR | U106: =IF(ISNUMBER(SEARCH('Supplier Request FORM B'!$D$54,C106)),MAX($U$1:U105)+1,0) -> 105 | V106: RAIFFEISEN BANK D.D. BOSNA I HERCEGOVINA | Y106: =IF(ISNUMBER(SEARCH('Supplier Request FORM B'!$D$54,C106)),MAX($Y$1:Y105)+1,0) -> 105 | Z106: RZBABA2S | AE106: =IF(LEFT('Supplier Request FORM B'!$D$42,1)="F",0,IF(AND((LEFT('Supplier Request FORM B'!$D$42,1)=LEFT(E106,1)),(LEFT('Supplier Request FORM B'!$D$43,2)=LEFT(A106,2))),MAX($AE$1:AE105)+1,0)) -> 0
A107: BA | B107: UNCRBA22 | C107: UNICREDIT BANK | D107: UNCRBA22 | E107: CM/C | G107: =IF(ISNUMBER(SEARCH('Supplier Request FORM B'!$D$45,C107)),MAX($G$1:G106)+1,0) -> 106 | H107: UNICREDIT BANK | K107: =IF(AND(('Supplier Request FORM B'!$D$45=C107),(LEFT('Supplier Request FORM B'!$D$42,1)=LEFT(E107,1)),(LEFT('Supplier Request FORM B'!$D$43,2)=LEFT(A107,2))),MAX($K$1:K106)+1,0) -> 0 | O107: RO-ROMANIA | P107: CM/C | Q107: =IF(ISNUMBER(SEARCH(LEFT('Supplier Request FORM B'!$D$42,1),P107)),MAX($Q$1:Q106)+1,0) -> 106 | R107: RO-ROMANIA | U107: =IF(ISNUMBER(SEARCH('Supplier Request FORM B'!$D$54,C107)),MAX($U$1:U106)+1,0) -> 106 | V107: UNICREDIT BANK | Y107: =IF(ISNUMBER(SEARCH('Supplier Request FORM B'!$D$54,C107)),MAX($Y$1:Y106)+1,0) -> 106 | Z107: UNCRBA22 | AE107: =IF(LEFT('Supplier Request FORM B'!$D$42,1)="F",0,IF(AND((LEFT('Supplier Request FORM B'!$D$42,1)=LEFT(E107,1)),(LEFT('Supplier Request FORM B'!$D$43,2)=LEFT(A107,2))),MAX($AE$1:AE106)+1,0)) -> 0
A108: BA | B108: UBKSBA22 | C108: UNION BANKA D.D. SARAJEVO | D108: UBKSBA22 | E108: CM/C | G108: =IF(ISNUMBER(SEARCH('Supplier Request FORM B'!$D$45,C108)),MAX($G$1:G107)+1,0) -> 107 | H108: UNION BANKA D.D. SARAJEVO | K108: =IF(AND(('Supplier Request FORM B'!$D$45=C108),(LEFT('Supplier Request FORM B'!$D$42,1)=LEFT(E108,1)),(LEFT('Supplier Request FORM B'!$D$43,2)=LEFT(A108,2))),MAX($K$1:K107)+1,0) -> 0 | O108: RS-SERBIA | P108: CM/C | Q108: =IF(ISNUMBER(SEARCH(LEFT('Supplier Request FORM B'!$D$42,1),P108)),MAX($Q$1:Q107)+1,0) -> 107 | R108: RS-SERBIA | U108: =IF(ISNUMBER(SEARCH('Supplier Request FORM B'!$D$54,C108)),MAX($U$1:U107)+1,0) -> 107 | V108: UNION BANKA D.D. SARAJEVO | Y108: =IF(ISNUMBER(SEARCH('Supplier Request FORM B'!$D$54,C108)),MAX($Y$1:Y107)+1,0) -> 107 | Z108: UBKSBA22 | AE108: =IF(LEFT('Supplier Request FORM B'!$D$42,1)="F",0,IF(AND((LEFT('Supplier Request FORM B'!$D$42,1)=LEFT(E108,1)),(LEFT('Supplier Request FORM B'!$D$43,2)=LEFT(A108,2))),MAX($AE$1:AE107)+1,0)) -> 0
A109: BB | B109: FCIBBBB2 | C109: FIRSTCARIBBEAN INTERNATIONAL BANK (OFFSHORE) LIMITED | D109: FCIBBBB2 | E109: CM/C | G109: =IF(ISNUMBER(SEARCH('Supplier Request FORM B'!$D$45,C109)),MAX($G$1:G108)+1,0) -> 108 | H109: FIRSTCARIBBEAN INTERNATIONAL BANK (OFFSHORE) LIMITED | K109: =IF(AND(('Supplier Request FORM B'!$D$45=C109),(LEFT('Supplier Request FORM B'!$D$42,1)=LEFT(E109,1)),(LEFT('Supplier Request FORM B'!$D$43,2)=LEFT(A109,2))),MAX($K$1:K108)+1,0) -> 0 | O109: RU-RUSSIAN FED. | P109: CM/C | Q109: =IF(ISNUMBER(SEARCH(LEFT('Supplier Request FORM B'!$D$42,1),P109)),MAX($Q$1:Q108)+1,0) -> 108 | R109: RU-RUSSIAN FED. | U109: =IF(ISNUMBER(SEARCH('Supplier Request FORM B'!$D$54,C109)),MAX($U$1:U108)+1,0) -> 108 | V109: FIRSTCARIBBEAN INTERNATIONAL BANK (OFFSHORE) LIMITED | Y109: =IF(ISNUMBER(SEARCH('Supplier Request FORM B'!$D$54,C109)),MAX($Y$1:Y108)+1,0) -> 108 | Z109: FCIBBBB2 | AE109: =IF(LEFT('Supplier Request FORM B'!$D$42,1)="F",0,IF(AND((LEFT('Supplier Request FORM B'!$D$42,1)=LEFT(E109,1)),(LEFT('Supplier Request FORM B'!$D$43,2)=LEFT(A109,2))),MAX($AE$1:AE108)+1,0)) -> 0
A110: BD | B110: AGBKBDDH | C110: AGRANI BANK LIMITED | D110: AGBKBDDH | E110: CM/C | G110: =IF(ISNUMBER(SEARCH('Supplier Request FORM B'!$D$45,C110)),MAX($G$1:G109)+1,0) -> 109 | H110: AGRANI BANK LIMITED | K110: =IF(AND(('Supplier Request FORM B'!$D$45=C110),(LEFT('Supplier Request FORM B'!$D$42,1)=LEFT(E110,1)),(LEFT('Supplier Request FORM B'!$D$43,2)=LEFT(A110,2))),MAX($K$1:K109)+1,0) -> 0 | O110: RW-RUANDA | P110: CM/C | Q110: =IF(ISNUMBER(SEARCH(LEFT('Supplier Request FORM B'!$D$42,1),P110)),MAX($Q$1:Q109)+1,0) -> 109 | R110: RW-RUANDA | U110: =IF(ISNUMBER(SEARCH('Supplier Request FORM B'!$D$54,C110)),MAX($U$1:U109)+1,0) -> 109 | V110: AGRANI BANK LIMITED | Y110: =IF(ISNUMBER(SEARCH('Supplier Request FORM B'!$D$54,C110)),MAX($Y$1:Y109)+1,0) -> 109 | Z110: AGBKBDDH | AE110: =IF(LEFT('Supplier Request FORM B'!$D$42,1)="F",0,IF(AND((LEFT('Supplier Request FORM B'!$D$42,1)=LEFT(E110,1)),(LEFT('Supplier Request FORM B'!$D$43,2)=LEFT(A110,2))),MAX($AE$1:AE109)+1,0)) -> 0
A111: BD | B111: AGBKBDDH001 | C111: AGRANI BANK LIMITED | D111: AGBKBDDH001 | E111: CM/C | G111: =IF(ISNUMBER(SEARCH('Supplier Request FORM B'!$D$45,C111)),MAX($G$1:G110)+1,0) -> 110 | H111: AGRANI BANK LIMITED | K111: =IF(AND(('Supplier Request FORM B'!$D$45=C111),(LEFT('Supplier Request FORM B'!$D$42,1)=LEFT(E111,1)),(LEFT('Supplier Request FORM B'!$D$43,2)=LEFT(A111,2))),MAX($K$1:K110)+1,0) -> 0 | O111: SA-SAUDI ARABIA | P111: CM/C | Q111: =IF(ISNUMBER(SEARCH(LEFT('Supplier Request FORM B'!$D$42,1),P111)),MAX($Q$1:Q110)+1,0) -> 110 | R111: SA-SAUDI ARABIA | U111: =IF(ISNUMBER(SEARCH('Supplier Request FORM B'!$D$54,C111)),MAX($U$1:U110)+1,0) -> 110 | V111: AGRANI BANK LIMITED | Y111: =IF(ISNUMBER(SEARCH('Supplier Request FORM B'!$D$54,C111)),MAX($Y$1:Y110)+1,0) -> 110 | Z111: AGBKBDDH001 | AE111: =IF(LEFT('Supplier Request FORM B'!$D$42,1)="F",0,IF(AND((LEFT('Supplier Request FORM B'!$D$42,1)=LEFT(E111,1)),(LEFT('Supplier Request FORM B'!$D$43,2)=LEFT(A111,2))),MAX($AE$1:AE110)+1,0)) -> 0
A112: BD | B112: AGBKBDDH006 | C112: AGRANI BANK LIMITED | D112: AGBKBDDH006 | E112: CM/C | G112: =IF(ISNUMBER(SEARCH('Supplier Request FORM B'!$D$45,C112)),MAX($G$1:G111)+1,0) -> 111 | H112: AGRANI BANK LIMITED | K112: =IF(AND(('Supplier Request FORM B'!$D$45=C112),(LEFT('Supplier Request FORM B'!$D$42,1)=LEFT(E112,1)),(LEFT('Supplier Request FORM B'!$D$43,2)=LEFT(A112,2))),MAX($K$1:K111)+1,0) -> 0 | O112: SC-SEYCHELLES | P112: CM/C | Q112: =IF(ISNUMBER(SEARCH(LEFT('Supplier Request FORM B'!$D$42,1),P112)),MAX($Q$1:Q111)+1,0) -> 111 | R112: SC-SEYCHELLES | U112: =IF(ISNUMBER(SEARCH('Supplier Request FORM B'!$D$54,C112)),MAX($U$1:U111)+1,0) -> 111 | V112: AGRANI BANK LIMITED | Y112: =IF(ISNUMBER(SEARCH('Supplier Request FORM B'!$D$54,C112)),MAX($Y$1:Y111)+1,0) -> 111 | Z112: AGBKBDDH006 | AE112: =IF(LEFT('Supplier Request FORM B'!$D$42,1)="F",0,IF(AND((LEFT('Supplier Request FORM B'!$D$42,1)=LEFT(E112,1)),(LEFT('Supplier Request FORM B'!$D$43,2)=LEFT(A112,2))),MAX($AE$1:AE111)+1,0)) -> 0
A113: BD | B113: AGBKBDDH023 | C113: AGRANI BANK LIMITED | D113: AGBKBDDH023 | E113: CM/C | G113: =IF(ISNUMBER(SEARCH('Supplier Request FORM B'!$D$45,C113)),MAX($G$1:G112)+1,0) -> 112 | H113: AGRANI BANK LIMITED | K113: =IF(AND(('Supplier Request FORM B'!$D$45=C113),(LEFT('Supplier Request FORM B'!$D$42,1)=LEFT(E113,1)),(LEFT('Supplier Request FORM B'!$D$43,2)=LEFT(A113,2))),MAX($K$1:K112)+1,0) -> 0 | O113: SE-SWEDEN | P113: CM/C | Q113: =IF(ISNUMBER(SEARCH(LEFT('Supplier Request FORM B'!$D$42,1),P113)),MAX($Q$1:Q112)+1,0) -> 112 | R113: SE-SWEDEN | U113: =IF(ISNUMBER(SEARCH('Supplier Request FORM B'!$D$54,C113)),MAX($U$1:U112)+1,0) -> 112 | V113: AGRANI BANK LIMITED | Y113: =IF(ISNUMBER(SEARCH('Supplier Request FORM B'!$D$54,C113)),MAX($Y$1:Y112)+1,0) -> 112 | Z113: AGBKBDDH023 | AE113: =IF(LEFT('Supplier Request FORM B'!$D$42,1)="F",0,IF(AND((LEFT('Supplier Request FORM B'!$D$42,1)=LEFT(E113,1)),(LEFT('Supplier Request FORM B'!$D$43,2)=LEFT(A113,2))),MAX($AE$1:AE112)+1,0)) -> 0
A114: BD | B114: AGBKBDDH027 | C114: AGRANI BANK LIMITED | D114: AGBKBDDH027 | E114: CM/C | G114: =IF(ISNUMBER(SEARCH('Supplier Request FORM B'!$D$45,C114)),MAX($G$1:G113)+1,0) -> 113 | H114: AGRANI BANK LIMITED | K114: =IF(AND(('Supplier Request FORM B'!$D$45=C114),(LEFT('Supplier Request FORM B'!$D$42,1)=LEFT(E114,1)),(LEFT('Supplier Request FORM B'!$D$43,2)=LEFT(A114,2))),MAX($K$1:K113)+1,0) -> 0 | O114: SG-SINGAPORE | P114: CM/C/GQ/G/FP/PAYNOW | Q114: =IF(ISNUMBER(SEARCH(LEFT('Supplier Request FORM B'!$D$42,1),P114)),MAX($Q$1:Q113)+1,0) -> 113 | R114: SG-SINGAPORE | U114: =IF(ISNUMBER(SEARCH('Supplier Request FORM B'!$D$54,C114)),MAX($U$1:U113)+1,0) -> 113 | V114: AGRANI BANK LIMITED | Y114: =IF(ISNUMBER(SEARCH('Supplier Request FORM B'!$D$54,C114)),MAX($Y$1:Y113)+1,0) -> 113 | Z114: AGBKBDDH027 | AE114: =IF(LEFT('Supplier Request FORM B'!$D$42,1)="F",0,IF(AND((LEFT('Supplier Request FORM B'!$D$42,1)=LEFT(E114,1)),(LEFT('Supplier Request FORM B'!$D$43,2)=LEFT(A114,2))),MAX($AE$1:AE113)+1,0)) -> 0
A115: BD | B115: BALBBDDH | C115: BANK ASIA LTD | D115: BALBBDDH | E115: CM/C | G115: =IF(ISNUMBER(SEARCH('Supplier Request FORM B'!$D$45,C115)),MAX($G$1:G114)+1,0) -> 114 | H115: BANK ASIA LTD | K115: =IF(AND(('Supplier Request FORM B'!$D$45=C115),(LEFT('Supplier Request FORM B'!$D$42,1)=LEFT(E115,1)),(LEFT('Supplier Request FORM B'!$D$43,2)=LEFT(A115,2))),MAX($K$1:K114)+1,0) -> 0 | O115: SI-SLOVENIA | P115: CM/C | Q115: =IF(ISNUMBER(SEARCH(LEFT('Supplier Request FORM B'!$D$42,1),P115)),MAX($Q$1:Q114)+1,0) -> 114 | R115: SI-SLOVENIA | U115: =IF(ISNUMBER(SEARCH('Supplier Request FORM B'!$D$54,C115)),MAX($U$1:U114)+1,0) -> 114 | V115: BANK ASIA LTD | Y115: =IF(ISNUMBER(SEARCH('Supplier Request FORM B'!$D$54,C115)),MAX($Y$1:Y114)+1,0) -> 114 | Z115: BALBBDDH | AE115: =IF(LEFT('Supplier Request FORM B'!$D$42,1)="F",0,IF(AND((LEFT('Supplier Request FORM B'!$D$42,1)=LEFT(E115,1)),(LEFT('Supplier Request FORM B'!$D$43,2)=LEFT(A115,2))),MAX($AE$1:AE114)+1,0)) -> 0
A116: BD | B116: BALBBDDH004 | C116: BANK ASIA LTD | D116: BALBBDDH004 | E116: CM/C | G116: =IF(ISNUMBER(SEARCH('Supplier Request FORM B'!$D$45,C116)),MAX($G$1:G115)+1,0) -> 115 | H116: BANK ASIA LTD | K116: =IF(AND(('Supplier Request FORM B'!$D$45=C116),(LEFT('Supplier Request FORM B'!$D$42,1)=LEFT(E116,1)),(LEFT('Supplier Request FORM B'!$D$43,2)=LEFT(A116,2))),MAX($K$1:K115)+1,0) -> 0 | O116: SK-SLOVAKIA | P116: CM/C | Q116: =IF(ISNUMBER(SEARCH(LEFT('Supplier Request FORM B'!$D$42,1),P116)),MAX($Q$1:Q115)+1,0) -> 115 | R116: SK-SLOVAKIA | U116: =IF(ISNUMBER(SEARCH('Supplier Request FORM B'!$D$54,C116)),MAX($U$1:U115)+1,0) -> 115 | V116: BANK ASIA LTD | Y116: =IF(ISNUMBER(SEARCH('Supplier Request FORM B'!$D$54,C116)),MAX($Y$1:Y115)+1,0) -> 115 | Z116: BALBBDDH004 | AE116: =IF(LEFT('Supplier Request FORM B'!$D$42,1)="F",0,IF(AND((LEFT('Supplier Request FORM B'!$D$42,1)=LEFT(E116,1)),(LEFT('Supplier Request FORM B'!$D$43,2)=LEFT(A116,2))),MAX($AE$1:AE115)+1,0)) -> 0
A117: BD | B117: BALBBDDH012 | C117: BANK ASIA LTD | D117: BALBBDDH012 | E117: CM/C | G117: =IF(ISNUMBER(SEARCH('Supplier Request FORM B'!$D$45,C117)),MAX($G$1:G116)+1,0) -> 116 | H117: BANK ASIA LTD | K117: =IF(AND(('Supplier Request FORM B'!$D$45=C117),(LEFT('Supplier Request FORM B'!$D$42,1)=LEFT(E117,1)),(LEFT('Supplier Request FORM B'!$D$43,2)=LEFT(A117,2))),MAX($K$1:K116)+1,0) -> 0 | O117: SY-SYRIA | P117: CM/C | Q117: =IF(ISNUMBER(SEARCH(LEFT('Supplier Request FORM B'!$D$42,1),P117)),MAX($Q$1:Q116)+1,0) -> 116 | R117: SY-SYRIA | U117: =IF(ISNUMBER(SEARCH('Supplier Request FORM B'!$D$54,C117)),MAX($U$1:U116)+1,0) -> 116 | V117: BANK ASIA LTD | Y117: =IF(ISNUMBER(SEARCH('Supplier Request FORM B'!$D$54,C117)),MAX($Y$1:Y116)+1,0) -> 116 | Z117: BALBBDDH012 | AE117: =IF(LEFT('Supplier Request FORM B'!$D$42,1)="F",0,IF(AND((LEFT('Supplier Request FORM B'!$D$42,1)=LEFT(E117,1)),(LEFT('Supplier Request FORM B'!$D$43,2)=LEFT(A117,2))),MAX($AE$1:AE116)+1,0)) -> 0
A118: BD | B118: BRAKBDDH | C118: BRAC BANK LIMITED | D118: BRAKBDDH | E118: CM/C | G118: =IF(ISNUMBER(SEARCH('Supplier Request FORM B'!$D$45,C118)),MAX($G$1:G117)+1,0) -> 117 | H118: BRAC BANK LIMITED | K118: =IF(AND(('Supplier Request FORM B'!$D$45=C118),(LEFT('Supplier Request FORM B'!$D$42,1)=LEFT(E118,1)),(LEFT('Supplier Request FORM B'!$D$43,2)=LEFT(A118,2))),MAX($K$1:K117)+1,0) -> 0 | O118: TH-THAILAND | P118: CM/C | Q118: =IF(ISNUMBER(SEARCH(LEFT('Supplier Request FORM B'!$D$42,1),P118)),MAX($Q$1:Q117)+1,0) -> 117 | R118: TH-THAILAND | U118: =IF(ISNUMBER(SEARCH('Supplier Request FORM B'!$D$54,C118)),MAX($U$1:U117)+1,0) -> 117 | V118: BRAC BANK LIMITED | Y118: =IF(ISNUMBER(SEARCH('Supplier Request FORM B'!$D$54,C118)),MAX($Y$1:Y117)+1,0) -> 117 | Z118: BRAKBDDH | AE118: =IF(LEFT('Supplier Request FORM B'!$D$42,1)="F",0,IF(AND((LEFT('Supplier Request FORM B'!$D$42,1)=LEFT(E118,1)),(LEFT('Supplier Request FORM B'!$D$43,2)=LEFT(A118,2))),MAX($AE$1:AE117)+1,0)) -> 0
A119: BD | B119: CIBLBDDH | C119: CITY BANK LIMITED THE | D119: CIBLBDDH | E119: CM/C | G119: =IF(ISNUMBER(SEARCH('Supplier Request FORM B'!$D$45,C119)),MAX($G$1:G118)+1,0) -> 118 | H119: CITY BANK LIMITED THE | K119: =IF(AND(('Supplier Request FORM B'!$D$45=C119),(LEFT('Supplier Request FORM B'!$D$42,1)=LEFT(E119,1)),(LEFT('Supplier Request FORM B'!$D$43,2)=LEFT(A119,2))),MAX($K$1:K118)+1,0) -> 0 | O119: TJ-TAJIKSTAN | P119: CM/C | Q119: =IF(ISNUMBER(SEARCH(LEFT('Supplier Request FORM B'!$D$42,1),P119)),MAX($Q$1:Q118)+1,0) -> 118 | R119: TJ-TAJIKSTAN | U119: =IF(ISNUMBER(SEARCH('Supplier Request FORM B'!$D$54,C119)),MAX($U$1:U118)+1,0) -> 118 | V119: CITY BANK LIMITED THE | Y119: =IF(ISNUMBER(SEARCH('Supplier Request FORM B'!$D$54,C119)),MAX($Y$1:Y118)+1,0) -> 118 | Z119: CIBLBDDH | AE119: =IF(LEFT('Supplier Request FORM B'!$D$42,1)="F",0,IF(AND((LEFT('Supplier Request FORM B'!$D$42,1)=LEFT(E119,1)),(LEFT('Supplier Request FORM B'!$D$43,2)=LEFT(A119,2))),MAX($AE$1:AE118)+1,0)) -> 0
A120: BD | B120: DHBLBDDH | C120: DHAKA BANK LIMITED | D120: DHBLBDDH | E120: CM/C | G120: =IF(ISNUMBER(SEARCH('Supplier Request FORM B'!$D$45,C120)),MAX($G$1:G119)+1,0) -> 119 | H120: DHAKA BANK LIMITED | K120: =IF(AND(('Supplier Request FORM B'!$D$45=C120),(LEFT('Supplier Request FORM B'!$D$42,1)=LEFT(E120,1)),(LEFT('Supplier Request FORM B'!$D$43,2)=LEFT(A120,2))),MAX($K$1:K119)+1,0) -> 0 | O120: TL-TIMOR LESTE | P120: CM/C | Q120: =IF(ISNUMBER(SEARCH(LEFT('Supplier Request FORM B'!$D$42,1),P120)),MAX($Q$1:Q119)+1,0) -> 119 | R120: TL-TIMOR LESTE | U120: =IF(ISNUMBER(SEARCH('Supplier Request FORM B'!$D$54,C120)),MAX($U$1:U119)+1,0) -> 119 | V120: DHAKA BANK LIMITED | Y120: =IF(ISNUMBER(SEARCH('Supplier Request FORM B'!$D$54,C120)),MAX($Y$1:Y119)+1,0) -> 119 | Z120: DHBLBDDH | AE120: =IF(LEFT('Supplier Request FORM B'!$D$42,1)="F",0,IF(AND((LEFT('Supplier Request FORM B'!$D$42,1)=LEFT(E120,1)),(LEFT('Supplier Request FORM B'!$D$43,2)=LEFT(A120,2))),MAX($AE$1:AE119)+1,0)) -> 0
A121: BD | B121: DHBLBDDHIB1 | C121: DHAKA BANK LIMITED | D121: DHBLBDDHIB1 | E121: CM/C | G121: =IF(ISNUMBER(SEARCH('Supplier Request FORM B'!$D$45,C121)),MAX($G$1:G120)+1,0) -> 120 | H121: DHAKA BANK LIMITED | K121: =IF(AND(('Supplier Request FORM B'!$D$45=C121),(LEFT('Supplier Request FORM B'!$D$42,1)=LEFT(E121,1)),(LEFT('Supplier Request FORM B'!$D$43,2)=LEFT(A121,2))),MAX($K$1:K120)+1,0) -> 0 | O121: TN-TUNISIA | P121: CM/C | Q121: =IF(ISNUMBER(SEARCH(LEFT('Supplier Request FORM B'!$D$42,1),P121)),MAX($Q$1:Q120)+1,0) -> 120 | R121: TN-TUNISIA | U121: =IF(ISNUMBER(SEARCH('Supplier Request FORM B'!$D$54,C121)),MAX($U$1:U120)+1,0) -> 120 | V121: DHAKA BANK LIMITED | Y121: =IF(ISNUMBER(SEARCH('Supplier Request FORM B'!$D$54,C121)),MAX($Y$1:Y120)+1,0) -> 120 | Z121: DHBLBDDHIB1 | AE121: =IF(LEFT('Supplier Request FORM B'!$D$42,1)="F",0,IF(AND((LEFT('Supplier Request FORM B'!$D$42,1)=LEFT(E121,1)),(LEFT('Supplier Request FORM B'!$D$43,2)=LEFT(A121,2))),MAX($AE$1:AE120)+1,0)) -> 0
A122: BD | B122: DBBLBDDH | C122: DUTCH-BANGLA BANK LTD | D122: DBBLBDDH | E122: CM/C | G122: =IF(ISNUMBER(SEARCH('Supplier Request FORM B'!$D$45,C122)),MAX($G$1:G121)+1,0) -> 121 | H122: DUTCH-BANGLA BANK LTD | K122: =IF(AND(('Supplier Request FORM B'!$D$45=C122),(LEFT('Supplier Request FORM B'!$D$42,1)=LEFT(E122,1)),(LEFT('Supplier Request FORM B'!$D$43,2)=LEFT(A122,2))),MAX($K$1:K121)+1,0) -> 0 | O122: TO-TONGA | P122: CM/C | Q122: =IF(ISNUMBER(SEARCH(LEFT('Supplier Request FORM B'!$D$42,1),P122)),MAX($Q$1:Q121)+1,0) -> 121 | R122: TO-TONGA | U122: =IF(ISNUMBER(SEARCH('Supplier Request FORM B'!$D$54,C122)),MAX($U$1:U121)+1,0) -> 121 | V122: DUTCH-BANGLA BANK LTD | Y122: =IF(ISNUMBER(SEARCH('Supplier Request FORM B'!$D$54,C122)),MAX($Y$1:Y121)+1,0) -> 121 | Z122: DBBLBDDH | AE122: =IF(LEFT('Supplier Request FORM B'!$D$42,1)="F",0,IF(AND((LEFT('Supplier Request FORM B'!$D$42,1)=LEFT(E122,1)),(LEFT('Supplier Request FORM B'!$D$43,2)=LEFT(A122,2))),MAX($AE$1:AE121)+1,0)) -> 0
A123: BD | B123: DBBLBDDH101 | C123: DUTCH-BANGLA BANK LTD | D123: DBBLBDDH101 | E123: CM/C | G123: =IF(ISNUMBER(SEARCH('Supplier Request FORM B'!$D$45,C123)),MAX($G$1:G122)+1,0) -> 122 | H123: DUTCH-BANGLA BANK LTD | K123: =IF(AND(('Supplier Request FORM B'!$D$45=C123),(LEFT('Supplier Request FORM B'!$D$42,1)=LEFT(E123,1)),(LEFT('Supplier Request FORM B'!$D$43,2)=LEFT(A123,2))),MAX($K$1:K122)+1,0) -> 0 | O123: TR-TURKEY | P123: CM/C | Q123: =IF(ISNUMBER(SEARCH(LEFT('Supplier Request FORM B'!$D$42,1),P123)),MAX($Q$1:Q122)+1,0) -> 122 | R123: TR-TURKEY | U123: =IF(ISNUMBER(SEARCH('Supplier Request FORM B'!$D$54,C123)),MAX($U$1:U122)+1,0) -> 122 | V123: DUTCH-BANGLA BANK LTD | Y123: =IF(ISNUMBER(SEARCH('Supplier Request FORM B'!$D$54,C123)),MAX($Y$1:Y122)+1,0) -> 122 | Z123: DBBLBDDH101 | AE123: =IF(LEFT('Supplier Request FORM B'!$D$42,1)="F",0,IF(AND((LEFT('Supplier Request FORM B'!$D$42,1)=LEFT(E123,1)),(LEFT('Supplier Request FORM B'!$D$43,2)=LEFT(A123,2))),MAX($AE$1:AE122)+1,0)) -> 0
A124: BD | B124: DBBLBDDH102 | C124: DUTCH-BANGLA BANK LTD | D124: DBBLBDDH102 | E124: CM/C | G124: =IF(ISNUMBER(SEARCH('Supplier Request FORM B'!$D$45,C124)),MAX($G$1:G123)+1,0) -> 123 | H124: DUTCH-BANGLA BANK LTD | K124: =IF(AND(('Supplier Request FORM B'!$D$45=C124),(LEFT('Supplier Request FORM B'!$D$42,1)=LEFT(E124,1)),(LEFT('Supplier Request FORM B'!$D$43,2)=LEFT(A124,2))),MAX($K$1:K123)+1,0) -> 0 | O124: TW-TAIWAN | P124: CM/C | Q124: =IF(ISNUMBER(SEARCH(LEFT('Supplier Request FORM B'!$D$42,1),P124)),MAX($Q$1:Q123)+1,0) -> 123 | R124: TW-TAIWAN | U124: =IF(ISNUMBER(SEARCH('Supplier Request FORM B'!$D$54,C124)),MAX($U$1:U123)+1,0) -> 123 | V124: DUTCH-BANGLA BANK LTD | Y124: =IF(ISNUMBER(SEARCH('Supplier Request FORM B'!$D$54,C124)),MAX($Y$1:Y123)+1,0) -> 123 | Z124: DBBLBDDH102 | AE124: =IF(LEFT('Supplier Request FORM B'!$D$42,1)="F",0,IF(AND((LEFT('Supplier Request FORM B'!$D$42,1)=LEFT(E124,1)),(LEFT('Supplier Request FORM B'!$D$43,2)=LEFT(A124,2))),MAX($AE$1:AE123)+1,0)) -> 0
A125: BD | B125: DBBLBDDH103 | C125: DUTCH-BANGLA BANK LTD | D125: DBBLBDDH103 | E125: CM/C | G125: =IF(ISNUMBER(SEARCH('Supplier Request FORM B'!$D$45,C125)),MAX($G$1:G124)+1,0) -> 124 | H125: DUTCH-BANGLA BANK LTD | K125: =IF(AND(('Supplier Request FORM B'!$D$45=C125),(LEFT('Supplier Request FORM B'!$D$42,1)=LEFT(E125,1)),(LEFT('Supplier Request FORM B'!$D$43,2)=LEFT(A125,2))),MAX($K$1:K124)+1,0) -> 0 | O125: TZ-TANZANIA | P125: CM/C | Q125: =IF(ISNUMBER(SEARCH(LEFT('Supplier Request FORM B'!$D$42,1),P125)),MAX($Q$1:Q124)+1,0) -> 124 | R125: TZ-TANZANIA | U125: =IF(ISNUMBER(SEARCH('Supplier Request FORM B'!$D$54,C125)),MAX($U$1:U124)+1,0) -> 124 | V125: DUTCH-BANGLA BANK LTD | Y125: =IF(ISNUMBER(SEARCH('Supplier Request FORM B'!$D$54,C125)),MAX($Y$1:Y124)+1,0) -> 124 | Z125: DBBLBDDH103 | AE125: =IF(LEFT('Supplier Request FORM B'!$D$42,1)="F",0,IF(AND((LEFT('Supplier Request FORM B'!$D$42,1)=LEFT(E125,1)),(LEFT('Supplier Request FORM B'!$D$43,2)=LEFT(A125,2))),MAX($AE$1:AE124)+1,0)) -> 0
A126: BD | B126: DBBLBDDH107 | C126: DUTCH-BANGLA BANK LTD | D126: DBBLBDDH107 | E126: CM/C | G126: =IF(ISNUMBER(SEARCH('Supplier Request FORM B'!$D$45,C126)),MAX($G$1:G125)+1,0) -> 125 | H126: DUTCH-BANGLA BANK LTD | K126: =IF(AND(('Supplier Request FORM B'!$D$45=C126),(LEFT('Supplier Request FORM B'!$D$42,1)=LEFT(E126,1)),(LEFT('Supplier Request FORM B'!$D$43,2)=LEFT(A126,2))),MAX($K$1:K125)+1,0) -> 0 | O126: UA-UKRAINE | P126: CM/C | Q126: =IF(ISNUMBER(SEARCH(LEFT('Supplier Request FORM B'!$D$42,1),P126)),MAX($Q$1:Q125)+1,0) -> 125 | R126: UA-UKRAINE | U126: =IF(ISNUMBER(SEARCH('Supplier Request FORM B'!$D$54,C126)),MAX($U$1:U125)+1,0) -> 125 | V126: DUTCH-BANGLA BANK LTD | Y126: =IF(ISNUMBER(SEARCH('Supplier Request FORM B'!$D$54,C126)),MAX($Y$1:Y125)+1,0) -> 125 | Z126: DBBLBDDH107 | AE126: =IF(LEFT('Supplier Request FORM B'!$D$42,1)="F",0,IF(AND((LEFT('Supplier Request FORM B'!$D$42,1)=LEFT(E126,1)),(LEFT('Supplier Request FORM B'!$D$43,2)=LEFT(A126,2))),MAX($AE$1:AE125)+1,0)) -> 0
A127: BD | B127: DBBLBDDHCTS | C127: DUTCH-BANGLA BANK LTD | D127: DBBLBDDHCTS | E127: CM/C | G127: =IF(ISNUMBER(SEARCH('Supplier Request FORM B'!$D$45,C127)),MAX($G$1:G126)+1,0) -> 126 | H127: DUTCH-BANGLA BANK LTD | K127: =IF(AND(('Supplier Request FORM B'!$D$45=C127),(LEFT('Supplier Request FORM B'!$D$42,1)=LEFT(E127,1)),(LEFT('Supplier Request FORM B'!$D$43,2)=LEFT(A127,2))),MAX($K$1:K126)+1,0) -> 0 | O127: UG-UGANDA | P127: CM/C | Q127: =IF(ISNUMBER(SEARCH(LEFT('Supplier Request FORM B'!$D$42,1),P127)),MAX($Q$1:Q126)+1,0) -> 126 | R127: UG-UGANDA | U127: =IF(ISNUMBER(SEARCH('Supplier Request FORM B'!$D$54,C127)),MAX($U$1:U126)+1,0) -> 126 | V127: DUTCH-BANGLA BANK LTD | Y127: =IF(ISNUMBER(SEARCH('Supplier Request FORM B'!$D$54,C127)),MAX($Y$1:Y126)+1,0) -> 126 | Z127: DBBLBDDHCTS | AE127: =IF(LEFT('Supplier Request FORM B'!$D$42,1)="F",0,IF(AND((LEFT('Supplier Request FORM B'!$D$42,1)=LEFT(E127,1)),(LEFT('Supplier Request FORM B'!$D$43,2)=LEFT(A127,2))),MAX($AE$1:AE126)+1,0)) -> 0
A128: BD | B128: EBLDBDDH | C128: EASTERN BANK LTD | D128: EBLDBDDH | E128: CM/C | G128: =IF(ISNUMBER(SEARCH('Supplier Request FORM B'!$D$45,C128)),MAX($G$1:G127)+1,0) -> 127 | H128: EASTERN BANK LTD | K128: =IF(AND(('Supplier Request FORM B'!$D$45=C128),(LEFT('Supplier Request FORM B'!$D$42,1)=LEFT(E128,1)),(LEFT('Supplier Request FORM B'!$D$43,2)=LEFT(A128,2))),MAX($K$1:K127)+1,0) -> 0 | O128: US-USA | P128: CM/C | Q128: =IF(ISNUMBER(SEARCH(LEFT('Supplier Request FORM B'!$D$42,1),P128)),MAX($Q$1:Q127)+1,0) -> 127 | R128: US-USA | U128: =IF(ISNUMBER(SEARCH('Supplier Request FORM B'!$D$54,C128)),MAX($U$1:U127)+1,0) -> 127 | V128: EASTERN BANK LTD | Y128: =IF(ISNUMBER(SEARCH('Supplier Request FORM B'!$D$54,C128)),MAX($Y$1:Y127)+1,0) -> 127 | Z128: EBLDBDDH | AE128: =IF(LEFT('Supplier Request FORM B'!$D$42,1)="F",0,IF(AND((LEFT('Supplier Request FORM B'!$D$42,1)=LEFT(E128,1)),(LEFT('Supplier Request FORM B'!$D$43,2)=LEFT(A128,2))),MAX($AE$1:AE127)+1,0)) -> 0
A129: BD | B129: EXBKBDDH017 | C129: EXPORT IMPORT BANK OF BANGLADESH LTD | D129: EXBKBDDH017 | E129: CM/C | G129: =IF(ISNUMBER(SEARCH('Supplier Request FORM B'!$D$45,C129)),MAX($G$1:G128)+1,0) -> 128 | H129: EXPORT IMPORT BANK OF BANGLADESH LTD | K129: =IF(AND(('Supplier Request FORM B'!$D$45=C129),(LEFT('Supplier Request FORM B'!$D$42,1)=LEFT(E129,1)),(LEFT('Supplier Request FORM B'!$D$43,2)=LEFT(A129,2))),MAX($K$1:K128)+1,0) -> 0 | O129: UZ-UZBEKISTAN | P129: CM/C | Q129: =IF(ISNUMBER(SEARCH(LEFT('Supplier Request FORM B'!$D$42,1),P129)),MAX($Q$1:Q128)+1,0) -> 128 | R129: UZ-UZBEKISTAN | U129: =IF(ISNUMBER(SEARCH('Supplier Request FORM B'!$D$54,C129)),MAX($U$1:U128)+1,0) -> 128 | V129: EXPORT IMPORT BANK OF BANGLADESH LTD | Y129: =IF(ISNUMBER(SEARCH('Supplier Request FORM B'!$D$54,C129)),MAX($Y$1:Y128)+1,0) -> 128 | Z129: EXBKBDDH017 | AE129: =IF(LEFT('Supplier Request FORM B'!$D$42,1)="F",0,IF(AND((LEFT('Supplier Request FORM B'!$D$42,1)=LEFT(E129,1)),(LEFT('Supplier Request FORM B'!$D$43,2)=LEFT(A129,2))),MAX($AE$1:AE128)+1,0)) -> 0
A130: BD | B130: HSBCBDDH | C130: HONGKONG AND SHANGHAI BANKING CORPORATION LTD, THE | D130: HSBCBDDH | E130: CM/C | G130: =IF(ISNUMBER(SEARCH('Supplier Request FORM B'!$D$45,C130)),MAX($G$1:G129)+1,0) -> 129 | H130: =IFERROR(INDEX($C:$C,MATCH(ROW(H129),$G:$G,0)),"") -> HONGKONG AND SHANGHAI BANKING CORPORATION LTD, THE | K130: =IF(AND(('Supplier Request FORM B'!$D$45=C130),(LEFT('Supplier Request FORM B'!$D$42,1)=LEFT(E130,1)),(LEFT('Supplier Request FORM B'!$D$43,2)=LEFT(A130,2))),MAX($K$1:K129)+1,0) -> 0 | L130: =IFERROR(INDEX($D:$D,MATCH(ROW(L129),$K:$K,0)),"") ->  | O130: VN-VIETNAM | P130: CM/C | Q130: =IF(ISNUMBER(SEARCH(LEFT('Supplier Request FORM B'!$D$42,1),P130)),MAX($Q$1:Q129)+1,0) -> 129 | R130: =IFERROR(INDEX(O:O,MATCH(ROW(R129),$Q:$Q,0)),"") -> VN-VIETNAM | U130: =IF(ISNUMBER(SEARCH('Supplier Request FORM B'!$D$54,C130)),MAX($U$1:U129)+1,0) -> 129 | V130: =IFERROR(INDEX($C:$C,MATCH(ROW(V129),U:U,0)),"") -> HONGKONG AND SHANGHAI BANKING CORPORATION LTD, THE | Y130: =IF(ISNUMBER(SEARCH('Supplier Request FORM B'!$D$54,C130)),MAX($Y$1:Y129)+1,0) -> 129 | Z130: =IFERROR(INDEX($D:$D,MATCH(ROW(Z129),$Y:$Y,0)),"") -> HSBCBDDH | AE130: =IF(LEFT('Supplier Request FORM B'!$D$42,1)="F",0,IF(AND((LEFT('Supplier Request FORM B'!$D$42,1)=LEFT(E130,1)),(LEFT('Supplier Request FORM B'!$D$43,2)=LEFT(A130,2))),MAX($AE$1:AE129)+1,0)) -> 0 | AF130: =IFERROR(INDEX(C:C,MATCH(ROW(AF129),AE:AE,0)),"") -> 
A131: BD | B131: IFICBDDH017 | C131: INTERNATIONAL FINANCE INVESTMENT AND COMMERCE BANK LTD | D131: IFICBDDH017 | E131: CM/C | G131: =IF(ISNUMBER(SEARCH('Supplier Request FORM B'!$D$45,C131)),MAX($G$1:G130)+1,0) -> 130 | H131: INTERNATIONAL FINANCE INVESTMENT AND COMMERCE BANK LTD | K131: =IF(AND(('Supplier Request FORM B'!$D$45=C131),(LEFT('Supplier Request FORM B'!$D$42,1)=LEFT(E131,1)),(LEFT('Supplier Request FORM B'!$D$43,2)=LEFT(A131,2))),MAX($K$1:K130)+1,0) -> 0 | O131: WS-SAMOA | P131: CM/C | Q131: =IF(ISNUMBER(SEARCH(LEFT('Supplier Request FORM B'!$D$42,1),P131)),MAX($Q$1:Q130)+1,0) -> 130 | R131: WS-SAMOA | U131: =IF(ISNUMBER(SEARCH('Supplier Request FORM B'!$D$54,C131)),MAX($U$1:U130)+1,0) -> 130 | V131: INTERNATIONAL FINANCE INVESTMENT AND COMMERCE BANK LTD | Y131: =IF(ISNUMBER(SEARCH('Supplier Request FORM B'!$D$54,C131)),MAX($Y$1:Y130)+1,0) -> 130 | Z131: IFICBDDH017 | AE131: =IF(LEFT('Supplier Request FORM B'!$D$42,1)="F",0,IF(AND((LEFT('Supplier Request FORM B'!$D$42,1)=LEFT(E131,1)),(LEFT('Supplier Request FORM B'!$D$43,2)=LEFT(A131,2))),MAX($AE$1:AE130)+1,0)) -> 0
A132: BD | B132: IFICBDDH002 | C132: INTERNATIONAL FINANCE INVESTMENT AND COMMERCE BANK LTD. | D132: IFICBDDH002 | E132: CM/C | G132: =IF(ISNUMBER(SEARCH('Supplier Request FORM B'!$D$45,C132)),MAX($G$1:G131)+1,0) -> 131 | H132: INTERNATIONAL FINANCE INVESTMENT AND COMMERCE BANK LTD. | K132: =IF(AND(('Supplier Request FORM B'!$D$45=C132),(LEFT('Supplier Request FORM B'!$D$42,1)=LEFT(E132,1)),(LEFT('Supplier Request FORM B'!$D$43,2)=LEFT(A132,2))),MAX($K$1:K131)+1,0) -> 0 | O132: YE-YEMEN | P132: CM/C | Q132: =IF(ISNUMBER(SEARCH(LEFT('Supplier Request FORM B'!$D$42,1),P132)),MAX($Q$1:Q131)+1,0) -> 131 | R132: YE-YEMEN | U132: =IF(ISNUMBER(SEARCH('Supplier Request FORM B'!$D$54,C132)),MAX($U$1:U131)+1,0) -> 131 | V132: INTERNATIONAL FINANCE INVESTMENT AND COMMERCE BANK LTD. | Y132: =IF(ISNUMBER(SEARCH('Supplier Request FORM B'!$D$54,C132)),MAX($Y$1:Y131)+1,0) -> 131 | Z132: IFICBDDH002 | AE132: =IF(LEFT('Supplier Request FORM B'!$D$42,1)="F",0,IF(AND((LEFT('Supplier Request FORM B'!$D$42,1)=LEFT(E132,1)),(LEFT('Supplier Request FORM B'!$D$43,2)=LEFT(A132,2))),MAX($AE$1:AE131)+1,0)) -> 0
A133: BD | B133: IBBLBDDH102 | C133: ISLAMI BANK BANGLADESH LTD | D133: IBBLBDDH102 | E133: CM/C | G133: =IF(ISNUMBER(SEARCH('Supplier Request FORM B'!$D$45,C133)),MAX($G$1:G132)+1,0) -> 132 | H133: ISLAMI BANK BANGLADESH LTD | K133: =IF(AND(('Supplier Request FORM B'!$D$45=C133),(LEFT('Supplier Request FORM B'!$D$42,1)=LEFT(E133,1)),(LEFT('Supplier Request FORM B'!$D$43,2)=LEFT(A133,2))),MAX($K$1:K132)+1,0) -> 0 | O133: ZA-SOUTH AFRICA | P133: CM/C | Q133: =IF(ISNUMBER(SEARCH(LEFT('Supplier Request FORM B'!$D$42,1),P133)),MAX($Q$1:Q132)+1,0) -> 132 | R133: ZA-SOUTH AFRICA | U133: =IF(ISNUMBER(SEARCH('Supplier Request FORM B'!$D$54,C133)),MAX($U$1:U132)+1,0) -> 132 | V133: ISLAMI BANK BANGLADESH LTD | Y133: =IF(ISNUMBER(SEARCH('Supplier Request FORM B'!$D$54,C133)),MAX($Y$1:Y132)+1,0) -> 132 | Z133: IBBLBDDH102 | AE133: =IF(LEFT('Supplier Request FORM B'!$D$42,1)="F",0,IF(AND((LEFT('Supplier Request FORM B'!$D$42,1)=LEFT(E133,1)),(LEFT('Supplier Request FORM B'!$D$43,2)=LEFT(A133,2))),MAX($AE$1:AE132)+1,0)) -> 0
A134: BD | B134: JAMUBDDH039 | C134: JAMUNA BANK LIMITED | D134: JAMUBDDH039 | E134: CM/C | G134: =IF(ISNUMBER(SEARCH('Supplier Request FORM B'!$D$45,C134)),MAX($G$1:G133)+1,0) -> 133 | H134: JAMUNA BANK LIMITED | K134: =IF(AND(('Supplier Request FORM B'!$D$45=C134),(LEFT('Supplier Request FORM B'!$D$42,1)=LEFT(E134,1)),(LEFT('Supplier Request FORM B'!$D$43,2)=LEFT(A134,2))),MAX($K$1:K133)+1,0) -> 0 | O134: ZM-ZAMBIA | P134: CM/C | Q134: =IF(ISNUMBER(SEARCH(LEFT('Supplier Request FORM B'!$D$42,1),P134)),MAX($Q$1:Q133)+1,0) -> 133 | R134: ZM-ZAMBIA | U134: =IF(ISNUMBER(SEARCH('Supplier Request FORM B'!$D$54,C134)),MAX($U$1:U133)+1,0) -> 133 | V134: JAMUNA BANK LIMITED | Y134: =IF(ISNUMBER(SEARCH('Supplier Request FORM B'!$D$54,C134)),MAX($Y$1:Y133)+1,0) -> 133 | Z134: JAMUBDDH039 | AE134: =IF(LEFT('Supplier Request FORM B'!$D$42,1)="F",0,IF(AND((LEFT('Supplier Request FORM B'!$D$42,1)=LEFT(E134,1)),(LEFT('Supplier Request FORM B'!$D$43,2)=LEFT(A134,2))),MAX($AE$1:AE133)+1,0)) -> 0
A135: BD | B135: JANBBDDH | C135: JANATA BANK LIMITED | D135: JANBBDDH | E135: CM/C | G135: =IF(ISNUMBER(SEARCH('Supplier Request FORM B'!$D$45,C135)),MAX($G$1:G134)+1,0) -> 134 | H135: JANATA BANK LIMITED | K135: =IF(AND(('Supplier Request FORM B'!$D$45=C135),(LEFT('Supplier Request FORM B'!$D$42,1)=LEFT(E135,1)),(LEFT('Supplier Request FORM B'!$D$43,2)=LEFT(A135,2))),MAX($K$1:K134)+1,0) -> 0 | O135: ZW-ZIMBABWE | P135: CM/C | Q135: =IF(ISNUMBER(SEARCH(LEFT('Supplier Request FORM B'!$D$42,1),P135)),MAX($Q$1:Q134)+1,0) -> 134 | R135: ZW-ZIMBABWE | U135: =IF(ISNUMBER(SEARCH('Supplier Request FORM B'!$D$54,C135)),MAX($U$1:U134)+1,0) -> 134 | V135: JANATA BANK LIMITED | Y135: =IF(ISNUMBER(SEARCH('Supplier Request FORM B'!$D$54,C135)),MAX($Y$1:Y134)+1,0) -> 134 | Z135: JANBBDDH | AE135: =IF(LEFT('Supplier Request FORM B'!$D$42,1)="F",0,IF(AND((LEFT('Supplier Request FORM B'!$D$42,1)=LEFT(E135,1)),(LEFT('Supplier Request FORM B'!$D$43,2)=LEFT(A135,2))),MAX($AE$1:AE134)+1,0)) -> 0
A136: BD | B136: JANBBDDHJBD | C136: JANATA BANK LIMITED | D136: JANBBDDHJBD | E136: CM/C | G136: =IF(ISNUMBER(SEARCH('Supplier Request FORM B'!$D$45,C136)),MAX($G$1:G135)+1,0) -> 135 | H136: JANATA BANK LIMITED | K136: =IF(AND(('Supplier Request FORM B'!$D$45=C136),(LEFT('Supplier Request FORM B'!$D$42,1)=LEFT(E136,1)),(LEFT('Supplier Request FORM B'!$D$43,2)=LEFT(A136,2))),MAX($K$1:K135)+1,0) -> 0 | U136: =IF(ISNUMBER(SEARCH('Supplier Request FORM B'!$D$54,C136)),MAX($U$1:U135)+1,0) -> 135 | V136: JANATA BANK LIMITED | Y136: =IF(ISNUMBER(SEARCH('Supplier Request FORM B'!$D$54,C136)),MAX($Y$1:Y135)+1,0) -> 135 | Z136: JANBBDDHJBD | AE136: =IF(LEFT('Supplier Request FORM B'!$D$42,1)="F",0,IF(AND((LEFT('Supplier Request FORM B'!$D$42,1)=LEFT(E136,1)),(LEFT('Supplier Request FORM B'!$D$43,2)=LEFT(A136,2))),MAX($AE$1:AE135)+1,0)) -> 0
A137: BD | B137: JANBBDDHMPD | C137: JANATA BANK LIMITED | D137: JANBBDDHMPD | E137: CM/C | G137: =IF(ISNUMBER(SEARCH('Supplier Request FORM B'!$D$45,C137)),MAX($G$1:G136)+1,0) -> 136 | H137: JANATA BANK LIMITED | K137: =IF(AND(('Supplier Request FORM B'!$D$45=C137),(LEFT('Supplier Request FORM B'!$D$42,1)=LEFT(E137,1)),(LEFT('Supplier Request FORM B'!$D$43,2)=LEFT(A137,2))),MAX($K$1:K136)+1,0) -> 0 | U137: =IF(ISNUMBER(SEARCH('Supplier Request FORM B'!$D$54,C137)),MAX($U$1:U136)+1,0) -> 136 | V137: JANATA BANK LIMITED | Y137: =IF(ISNUMBER(SEARCH('Supplier Request FORM B'!$D$54,C137)),MAX($Y$1:Y136)+1,0) -> 136 | Z137: JANBBDDHMPD | AE137: =IF(LEFT('Supplier Request FORM B'!$D$42,1)="F",0,IF(AND((LEFT('Supplier Request FORM B'!$D$42,1)=LEFT(E137,1)),(LEFT('Supplier Request FORM B'!$D$43,2)=LEFT(A137,2))),MAX($AE$1:AE136)+1,0)) -> 0
A138: BD | B138: MBLBBDDH014 | C138: MERCANTILE BANK LIMITED | D138: MBLBBDDH014 | E138: CM/C | G138: =IF(ISNUMBER(SEARCH('Supplier Request FORM B'!$D$45,C138)),MAX($G$1:G137)+1,0) -> 137 | H138: MERCANTILE BANK LIMITED | K138: =IF(AND(('Supplier Request FORM B'!$D$45=C138),(LEFT('Supplier Request FORM B'!$D$42,1)=LEFT(E138,1)),(LEFT('Supplier Request FORM B'!$D$43,2)=LEFT(A138,2))),MAX($K$1:K137)+1,0) -> 0 | U138: =IF(ISNUMBER(SEARCH('Supplier Request FORM B'!$D$54,C138)),MAX($U$1:U137)+1,0) -> 137 | V138: MERCANTILE BANK LIMITED | Y138: =IF(ISNUMBER(SEARCH('Supplier Request FORM B'!$D$54,C138)),MAX($Y$1:Y137)+1,0) -> 137 | Z138: MBLBBDDH014 | AE138: =IF(LEFT('Supplier Request FORM B'!$D$42,1)="F",0,IF(AND((LEFT('Supplier Request FORM B'!$D$42,1)=LEFT(E138,1)),(LEFT('Supplier Request FORM B'!$D$43,2)=LEFT(A138,2))),MAX($AE$1:AE137)+1,0)) -> 0
A139: BD | B139: MTBLBDDH | C139: MUTUAL TRUST BANK LIMITED | D139: MTBLBDDH | E139: CM/C | G139: =IF(ISNUMBER(SEARCH('Supplier Request FORM B'!$D$45,C139)),MAX($G$1:G138)+1,0) -> 138 | H139: MUTUAL TRUST BANK LIMITED | K139: =IF(AND(('Supplier Request FORM B'!$D$45=C139),(LEFT('Supplier Request FORM B'!$D$42,1)=LEFT(E139,1)),(LEFT('Supplier Request FORM B'!$D$43,2)=LEFT(A139,2))),MAX($K$1:K138)+1,0) -> 0 | U139: =IF(ISNUMBER(SEARCH('Supplier Request FORM B'!$D$54,C139)),MAX($U$1:U138)+1,0) -> 138 | V139: MUTUAL TRUST BANK LIMITED | Y139: =IF(ISNUMBER(SEARCH('Supplier Request FORM B'!$D$54,C139)),MAX($Y$1:Y138)+1,0) -> 138 | Z139: MTBLBDDH | AE139: =IF(LEFT('Supplier Request FORM B'!$D$42,1)="F",0,IF(AND((LEFT('Supplier Request FORM B'!$D$42,1)=LEFT(E139,1)),(LEFT('Supplier Request FORM B'!$D$43,2)=LEFT(A139,2))),MAX($AE$1:AE138)+1,0)) -> 0
A140: BD | B140: MTBLBDDHAGB | C140: MUTUAL TRUST BANK LIMITED | D140: MTBLBDDHAGB | E140: CM/C | G140: =IF(ISNUMBER(SEARCH('Supplier Request FORM B'!$D$45,C140)),MAX($G$1:G139)+1,0) -> 139 | H140: MUTUAL TRUST BANK LIMITED | K140: =IF(AND(('Supplier Request FORM B'!$D$45=C140),(LEFT('Supplier Request FORM B'!$D$42,1)=LEFT(E140,1)),(LEFT('Supplier Request FORM B'!$D$43,2)=LEFT(A140,2))),MAX($K$1:K139)+1,0) -> 0 | U140: =IF(ISNUMBER(SEARCH('Supplier Request FORM B'!$D$54,C140)),MAX($U$1:U139)+1,0) -> 139 | V140: MUTUAL TRUST BANK LIMITED | Y140: =IF(ISNUMBER(SEARCH('Supplier Request FORM B'!$D$54,C140)),MAX($Y$1:Y139)+1,0) -> 139 | Z140: MTBLBDDHAGB | AE140: =IF(LEFT('Supplier Request FORM B'!$D$42,1)="F",0,IF(AND((LEFT('Supplier Request FORM B'!$D$42,1)=LEFT(E140,1)),(LEFT('Supplier Request FORM B'!$D$43,2)=LEFT(A140,2))),MAX($AE$1:AE139)+1,0)) -> 0
A141: BD | B141: MTBLBDDHPBR | C141: MUTUAL TRUST BANK LIMITED | D141: MTBLBDDHPBR | E141: CM/C | G141: =IF(ISNUMBER(SEARCH('Supplier Request FORM B'!$D$45,C141)),MAX($G$1:G140)+1,0) -> 140 | H141: MUTUAL TRUST BANK LIMITED | K141: =IF(AND(('Supplier Request FORM B'!$D$45=C141),(LEFT('Supplier Request FORM B'!$D$42,1)=LEFT(E141,1)),(LEFT('Supplier Request FORM B'!$D$43,2)=LEFT(A141,2))),MAX($K$1:K140)+1,0) -> 0 | U141: =IF(ISNUMBER(SEARCH('Supplier Request FORM B'!$D$54,C141)),MAX($U$1:U140)+1,0) -> 140 | V141: MUTUAL TRUST BANK LIMITED | Y141: =IF(ISNUMBER(SEARCH('Supplier Request FORM B'!$D$54,C141)),MAX($Y$1:Y140)+1,0) -> 140 | Z141: MTBLBDDHPBR | AE141: =IF(LEFT('Supplier Request FORM B'!$D$42,1)="F",0,IF(AND((LEFT('Supplier Request FORM B'!$D$42,1)=LEFT(E141,1)),(LEFT('Supplier Request FORM B'!$D$43,2)=LEFT(A141,2))),MAX($AE$1:AE140)+1,0)) -> 0
A142: BD | B142: NCCLBDDH | C142: NATIONAL CREDIT AND COMMERCE BANK LIMITED | D142: NCCLBDDH | E142: CM/C | G142: =IF(ISNUMBER(SEARCH('Supplier Request FORM B'!$D$45,C142)),MAX($G$1:G141)+1,0) -> 141 | H142: NATIONAL CREDIT AND COMMERCE BANK LIMITED | K142: =IF(AND(('Supplier Request FORM B'!$D$45=C142),(LEFT('Supplier Request FORM B'!$D$42,1)=LEFT(E142,1)),(LEFT('Supplier Request FORM B'!$D$43,2)=LEFT(A142,2))),MAX($K$1:K141)+1,0) -> 0 | U142: =IF(ISNUMBER(SEARCH('Supplier Request FORM B'!$D$54,C142)),MAX($U$1:U141)+1,0) -> 141 | V142: NATIONAL CREDIT AND COMMERCE BANK LIMITED | Y142: =IF(ISNUMBER(SEARCH('Supplier Request FORM B'!$D$54,C142)),MAX($Y$1:Y141)+1,0) -> 141 | Z142: NCCLBDDH | AE142: =IF(LEFT('Supplier Request FORM B'!$D$42,1)="F",0,IF(AND((LEFT('Supplier Request FORM B'!$D$42,1)=LEFT(E142,1)),(LEFT('Supplier Request FORM B'!$D$43,2)=LEFT(A142,2))),MAX($AE$1:AE141)+1,0)) -> 0
A143: BD | B143: NCCLBDDHDMB | C143: NATIONAL CREDIT AND COMMERCE BANK LIMITED | D143: NCCLBDDHDMB | E143: CM/C | G143: =IF(ISNUMBER(SEARCH('Supplier Request FORM B'!$D$45,C143)),MAX($G$1:G142)+1,0) -> 142 | H143: NATIONAL CREDIT AND COMMERCE BANK LIMITED | K143: =IF(AND(('Supplier Request FORM B'!$D$45=C143),(LEFT('Supplier Request FORM B'!$D$42,1)=LEFT(E143,1)),(LEFT('Supplier Request FORM B'!$D$43,2)=LEFT(A143,2))),MAX($K$1:K142)+1,0) -> 0 | U143: =IF(ISNUMBER(SEARCH('Supplier Request FORM B'!$D$54,C143)),MAX($U$1:U142)+1,0) -> 142 | V143: NATIONAL CREDIT AND COMMERCE BANK LIMITED | Y143: =IF(ISNUMBER(SEARCH('Supplier Request FORM B'!$D$54,C143)),MAX($Y$1:Y142)+1,0) -> 142 | Z143: NCCLBDDHDMB | AE143: =IF(LEFT('Supplier Request FORM B'!$D$42,1)="F",0,IF(AND((LEFT('Supplier Request FORM B'!$D$42,1)=LEFT(E143,1)),(LEFT('Supplier Request FORM B'!$D$43,2)=LEFT(A143,2))),MAX($AE$1:AE142)+1,0)) -> 0
A144: BD | B144: NCCLBDDHMGB | C144: NATIONAL CREDIT AND COMMERCE BANK LIMITED | D144: NCCLBDDHMGB | E144: CM/C | G144: =IF(ISNUMBER(SEARCH('Supplier Request FORM B'!$D$45,C144)),MAX($G$1:G143)+1,0) -> 143 | H144: NATIONAL CREDIT AND COMMERCE BANK LIMITED | K144: =IF(AND(('Supplier Request FORM B'!$D$45=C144),(LEFT('Supplier Request FORM B'!$D$42,1)=LEFT(E144,1)),(LEFT('Supplier Request FORM B'!$D$43,2)=LEFT(A144,2))),MAX($K$1:K143)+1,0) -> 0 | U144: =IF(ISNUMBER(SEARCH('Supplier Request FORM B'!$D$54,C144)),MAX($U$1:U143)+1,0) -> 143 | V144: NATIONAL CREDIT AND COMMERCE BANK LIMITED | Y144: =IF(ISNUMBER(SEARCH('Supplier Request FORM B'!$D$54,C144)),MAX($Y$1:Y143)+1,0) -> 143 | Z144: NCCLBDDHMGB | AE144: =IF(LEFT('Supplier Request FORM B'!$D$42,1)="F",0,IF(AND((LEFT('Supplier Request FORM B'!$D$42,1)=LEFT(E144,1)),(LEFT('Supplier Request FORM B'!$D$43,2)=LEFT(A144,2))),MAX($AE$1:AE143)+1,0)) -> 0
A145: BD | B145: ONEBBDDH012 | C145: ONE BANK LIMITED | D145: ONEBBDDH012 | E145: CM/C | G145: =IF(ISNUMBER(SEARCH('Supplier Request FORM B'!$D$45,C145)),MAX($G$1:G144)+1,0) -> 144 | H145: ONE BANK LIMITED | K145: =IF(AND(('Supplier Request FORM B'!$D$45=C145),(LEFT('Supplier Request FORM B'!$D$42,1)=LEFT(E145,1)),(LEFT('Supplier Request FORM B'!$D$43,2)=LEFT(A145,2))),MAX($K$1:K144)+1,0) -> 0 | U145: =IF(ISNUMBER(SEARCH('Supplier Request FORM B'!$D$54,C145)),MAX($U$1:U144)+1,0) -> 144 | V145: ONE BANK LIMITED | Y145: =IF(ISNUMBER(SEARCH('Supplier Request FORM B'!$D$54,C145)),MAX($Y$1:Y144)+1,0) -> 144 | Z145: ONEBBDDH012 | AE145: =IF(LEFT('Supplier Request FORM B'!$D$42,1)="F",0,IF(AND((LEFT('Supplier Request FORM B'!$D$42,1)=LEFT(E145,1)),(LEFT('Supplier Request FORM B'!$D$43,2)=LEFT(A145,2))),MAX($AE$1:AE144)+1,0)) -> 0
A146: BD | B146: PRBLBDDH | C146: PRIME BANK LIMITED | D146: PRBLBDDH | E146: CM/C | G146: =IF(ISNUMBER(SEARCH('Supplier Request FORM B'!$D$45,C146)),MAX($G$1:G145)+1,0) -> 145 | H146: PRIME BANK LIMITED | K146: =IF(AND(('Supplier Request FORM B'!$D$45=C146),(LEFT('Supplier Request FORM B'!$D$42,1)=LEFT(E146,1)),(LEFT('Supplier Request FORM B'!$D$43,2)=LEFT(A146,2))),MAX($K$1:K145)+1,0) -> 0 | U146: =IF(ISNUMBER(SEARCH('Supplier Request FORM B'!$D$54,C146)),MAX($U$1:U145)+1,0) -> 145 | V146: PRIME BANK LIMITED | Y146: =IF(ISNUMBER(SEARCH('Supplier Request FORM B'!$D$54,C146)),MAX($Y$1:Y145)+1,0) -> 145 | Z146: PRBLBDDH | AE146: =IF(LEFT('Supplier Request FORM B'!$D$42,1)="F",0,IF(AND((LEFT('Supplier Request FORM B'!$D$42,1)=LEFT(E146,1)),(LEFT('Supplier Request FORM B'!$D$43,2)=LEFT(A146,2))),MAX($AE$1:AE145)+1,0)) -> 0
A147: BD | B147: PRBLBDDH023 | C147: PRIME BANK LIMITED | D147: PRBLBDDH023 | E147: CM/C | G147: =IF(ISNUMBER(SEARCH('Supplier Request FORM B'!$D$45,C147)),MAX($G$1:G146)+1,0) -> 146 | H147: PRIME BANK LIMITED | K147: =IF(AND(('Supplier Request FORM B'!$D$45=C147),(LEFT('Supplier Request FORM B'!$D$42,1)=LEFT(E147,1)),(LEFT('Supplier Request FORM B'!$D$43,2)=LEFT(A147,2))),MAX($K$1:K146)+1,0) -> 0 | U147: =IF(ISNUMBER(SEARCH('Supplier Request FORM B'!$D$54,C147)),MAX($U$1:U146)+1,0) -> 146 | V147: PRIME BANK LIMITED | Y147: =IF(ISNUMBER(SEARCH('Supplier Request FORM B'!$D$54,C147)),MAX($Y$1:Y146)+1,0) -> 146 | Z147: PRBLBDDH023 | AE147: =IF(LEFT('Supplier Request FORM B'!$D$42,1)="F",0,IF(AND((LEFT('Supplier Request FORM B'!$D$42,1)=LEFT(E147,1)),(LEFT('Supplier Request FORM B'!$D$43,2)=LEFT(A147,2))),MAX($AE$1:AE146)+1,0)) -> 0
A148: BD | B148: RUPBBDDH | C148: RUPALI BANK LTD | D148: RUPBBDDH | E148: CM/C | G148: =IF(ISNUMBER(SEARCH('Supplier Request FORM B'!$D$45,C148)),MAX($G$1:G147)+1,0) -> 147 | H148: RUPALI BANK LTD | K148: =IF(AND(('Supplier Request FORM B'!$D$45=C148),(LEFT('Supplier Request FORM B'!$D$42,1)=LEFT(E148,1)),(LEFT('Supplier Request FORM B'!$D$43,2)=LEFT(A148,2))),MAX($K$1:K147)+1,0) -> 0 | U148: =IF(ISNUMBER(SEARCH('Supplier Request FORM B'!$D$54,C148)),MAX($U$1:U147)+1,0) -> 147 | V148: RUPALI BANK LTD | Y148: =IF(ISNUMBER(SEARCH('Supplier Request FORM B'!$D$54,C148)),MAX($Y$1:Y147)+1,0) -> 147 | Z148: RUPBBDDH | AE148: =IF(LEFT('Supplier Request FORM B'!$D$42,1)="F",0,IF(AND((LEFT('Supplier Request FORM B'!$D$42,1)=LEFT(E148,1)),(LEFT('Supplier Request FORM B'!$D$43,2)=LEFT(A148,2))),MAX($AE$1:AE147)+1,0)) -> 0
A149: BD | B149: SJBLBDDHDHN | C149: SHAHJALAL ISLAMI BANK LIMITED | D149: SJBLBDDHDHN | E149: CM/C | G149: =IF(ISNUMBER(SEARCH('Supplier Request FORM B'!$D$45,C149)),MAX($G$1:G148)+1,0) -> 148 | H149: SHAHJALAL ISLAMI BANK LIMITED | K149: =IF(AND(('Supplier Request FORM B'!$D$45=C149),(LEFT('Supplier Request FORM B'!$D$42,1)=LEFT(E149,1)),(LEFT('Supplier Request FORM B'!$D$43,2)=LEFT(A149,2))),MAX($K$1:K148)+1,0) -> 0 | U149: =IF(ISNUMBER(SEARCH('Supplier Request FORM B'!$D$54,C149)),MAX($U$1:U148)+1,0) -> 148 | V149: SHAHJALAL ISLAMI BANK LIMITED | Y149: =IF(ISNUMBER(SEARCH('Supplier Request FORM B'!$D$54,C149)),MAX($Y$1:Y148)+1,0) -> 148 | Z149: SJBLBDDHDHN | AE149: =IF(LEFT('Supplier Request FORM B'!$D$42,1)="F",0,IF(AND((LEFT('Supplier Request FORM B'!$D$42,1)=LEFT(E149,1)),(LEFT('Supplier Request FORM B'!$D$43,2)=LEFT(A149,2))),MAX($AE$1:AE148)+1,0)) -> 0
A150: BD | B150: SOIVBDDH | C150: SOCIAL ISLAMI BANK LIMITED | D150: SOIVBDDH | E150: CM/C | G150: =IF(ISNUMBER(SEARCH('Supplier Request FORM B'!$D$45,C150)),MAX($G$1:G149)+1,0) -> 149 | H150: SOCIAL ISLAMI BANK LIMITED | K150: =IF(AND(('Supplier Request FORM B'!$D$45=C150),(LEFT('Supplier Request FORM B'!$D$42,1)=LEFT(E150,1)),(LEFT('Supplier Request FORM B'!$D$43,2)=LEFT(A150,2))),MAX($K$1:K149)+1,0) -> 0 | U150: =IF(ISNUMBER(SEARCH('Supplier Request FORM B'!$D$54,C150)),MAX($U$1:U149)+1,0) -> 149 | V150: SOCIAL ISLAMI BANK LIMITED | Y150: =IF(ISNUMBER(SEARCH('Supplier Request FORM B'!$D$54,C150)),MAX($Y$1:Y149)+1,0) -> 149 | Z150: SOIVBDDH | AE150: =IF(LEFT('Supplier Request FORM B'!$D$42,1)="F",0,IF(AND((LEFT('Supplier Request FORM B'!$D$42,1)=LEFT(E150,1)),(LEFT('Supplier Request FORM B'!$D$43,2)=LEFT(A150,2))),MAX($AE$1:AE149)+1,0)) -> 0
A151: BD | B151: BSONBDDH | C151: SONALI BANK LIMITED | D151: BSONBDDH | E151: CM/C | G151: =IF(ISNUMBER(SEARCH('Supplier Request FORM B'!$D$45,C151)),MAX($G$1:G150)+1,0) -> 150 | H151: SONALI BANK LIMITED | K151: =IF(AND(('Supplier Request FORM B'!$D$45=C151),(LEFT('Supplier Request FORM B'!$D$42,1)=LEFT(E151,1)),(LEFT('Supplier Request FORM B'!$D$43,2)=LEFT(A151,2))),MAX($K$1:K150)+1,0) -> 0 | U151: =IF(ISNUMBER(SEARCH('Supplier Request FORM B'!$D$54,C151)),MAX($U$1:U150)+1,0) -> 150 | V151: SONALI BANK LIMITED | Y151: =IF(ISNUMBER(SEARCH('Supplier Request FORM B'!$D$54,C151)),MAX($Y$1:Y150)+1,0) -> 150 | Z151: BSONBDDH | AE151: =IF(LEFT('Supplier Request FORM B'!$D$42,1)="F",0,IF(AND((LEFT('Supplier Request FORM B'!$D$42,1)=LEFT(E151,1)),(LEFT('Supplier Request FORM B'!$D$43,2)=LEFT(A151,2))),MAX($AE$1:AE150)+1,0)) -> 0
A152: BD | B152: BSONBDDHDGT | C152: SONALI BANK LIMITED | D152: BSONBDDHDGT | E152: CM/C | G152: =IF(ISNUMBER(SEARCH('Supplier Request FORM B'!$D$45,C152)),MAX($G$1:G151)+1,0) -> 151 | H152: SONALI BANK LIMITED | K152: =IF(AND(('Supplier Request FORM B'!$D$45=C152),(LEFT('Supplier Request FORM B'!$D$42,1)=LEFT(E152,1)),(LEFT('Supplier Request FORM B'!$D$43,2)=LEFT(A152,2))),MAX($K$1:K151)+1,0) -> 0 | U152: =IF(ISNUMBER(SEARCH('Supplier Request FORM B'!$D$54,C152)),MAX($U$1:U151)+1,0) -> 151 | V152: SONALI BANK LIMITED | Y152: =IF(ISNUMBER(SEARCH('Supplier Request FORM B'!$D$54,C152)),MAX($Y$1:Y151)+1,0) -> 151 | Z152: BSONBDDHDGT | AE152: =IF(LEFT('Supplier Request FORM B'!$D$42,1)="F",0,IF(AND((LEFT('Supplier Request FORM B'!$D$42,1)=LEFT(E152,1)),(LEFT('Supplier Request FORM B'!$D$43,2)=LEFT(A152,2))),MAX($AE$1:AE151)+1,0)) -> 0
A153: BD | B153: BSONBDDHLOD | C153: SONALI BANK LIMITED | D153: BSONBDDHLOD | E153: CM/C | G153: =IF(ISNUMBER(SEARCH('Supplier Request FORM B'!$D$45,C153)),MAX($G$1:G152)+1,0) -> 152 | H153: SONALI BANK LIMITED | K153: =IF(AND(('Supplier Request FORM B'!$D$45=C153),(LEFT('Supplier Request FORM B'!$D$42,1)=LEFT(E153,1)),(LEFT('Supplier Request FORM B'!$D$43,2)=LEFT(A153,2))),MAX($K$1:K152)+1,0) -> 0 | U153: =IF(ISNUMBER(SEARCH('Supplier Request FORM B'!$D$54,C153)),MAX($U$1:U152)+1,0) -> 152 | V153: SONALI BANK LIMITED | Y153: =IF(ISNUMBER(SEARCH('Supplier Request FORM B'!$D$54,C153)),MAX($Y$1:Y152)+1,0) -> 152 | Z153: BSONBDDHLOD | AE153: =IF(LEFT('Supplier Request FORM B'!$D$42,1)="F",0,IF(AND((LEFT('Supplier Request FORM B'!$D$42,1)=LEFT(E153,1)),(LEFT('Supplier Request FORM B'!$D$43,2)=LEFT(A153,2))),MAX($AE$1:AE152)+1,0)) -> 0
A154: BD | B154: BSONBDDHWEB | C154: SONALI BANK LIMITED | D154: BSONBDDHWEB | E154: CM/C | G154: =IF(ISNUMBER(SEARCH('Supplier Request FORM B'!$D$45,C154)),MAX($G$1:G153)+1,0) -> 153 | H154: SONALI BANK LIMITED | K154: =IF(AND(('Supplier Request FORM B'!$D$45=C154),(LEFT('Supplier Request FORM B'!$D$42,1)=LEFT(E154,1)),(LEFT('Supplier Request FORM B'!$D$43,2)=LEFT(A154,2))),MAX($K$1:K153)+1,0) -> 0 | U154: =IF(ISNUMBER(SEARCH('Supplier Request FORM B'!$D$54,C154)),MAX($U$1:U153)+1,0) -> 153 | V154: SONALI BANK LIMITED | Y154: =IF(ISNUMBER(SEARCH('Supplier Request FORM B'!$D$54,C154)),MAX($Y$1:Y153)+1,0) -> 153 | Z154: BSONBDDHWEB | AE154: =IF(LEFT('Supplier Request FORM B'!$D$42,1)="F",0,IF(AND((LEFT('Supplier Request FORM B'!$D$42,1)=LEFT(E154,1)),(LEFT('Supplier Request FORM B'!$D$43,2)=LEFT(A154,2))),MAX($AE$1:AE153)+1,0)) -> 0
A155: BD | B155: SEBDBDDH | C155: SOUTHEAST BANK LIMITED | D155: SEBDBDDH | E155: CM/C | G155: =IF(ISNUMBER(SEARCH('Supplier Request FORM B'!$D$45,C155)),MAX($G$1:G154)+1,0) -> 154 | H155: SOUTHEAST BANK LIMITED | K155: =IF(AND(('Supplier Request FORM B'!$D$45=C155),(LEFT('Supplier Request FORM B'!$D$42,1)=LEFT(E155,1)),(LEFT('Supplier Request FORM B'!$D$43,2)=LEFT(A155,2))),MAX($K$1:K154)+1,0) -> 0 | U155: =IF(ISNUMBER(SEARCH('Supplier Request FORM B'!$D$54,C155)),MAX($U$1:U154)+1,0) -> 154 | V155: SOUTHEAST BANK LIMITED | Y155: =IF(ISNUMBER(SEARCH('Supplier Request FORM B'!$D$54,C155)),MAX($Y$1:Y154)+1,0) -> 154 | Z155: SEBDBDDH | AE155: =IF(LEFT('Supplier Request FORM B'!$D$42,1)="F",0,IF(AND((LEFT('Supplier Request FORM B'!$D$42,1)=LEFT(E155,1)),(LEFT('Supplier Request FORM B'!$D$43,2)=LEFT(A155,2))),MAX($AE$1:AE154)+1,0)) -> 0
A156: BD | B156: SEBDBDDHBNG | C156: SOUTHEAST BANK LIMITED | D156: SEBDBDDHBNG | E156: CM/C | G156: =IF(ISNUMBER(SEARCH('Supplier Request FORM B'!$D$45,C156)),MAX($G$1:G155)+1,0) -> 155 | H156: SOUTHEAST BANK LIMITED | K156: =IF(AND(('Supplier Request FORM B'!$D$45=C156),(LEFT('Supplier Request FORM B'!$D$42,1)=LEFT(E156,1)),(LEFT('Supplier Request FORM B'!$D$43,2)=LEFT(A156,2))),MAX($K$1:K155)+1,0) -> 0 | U156: =IF(ISNUMBER(SEARCH('Supplier Request FORM B'!$D$54,C156)),MAX($U$1:U155)+1,0) -> 155 | V156: SOUTHEAST BANK LIMITED | Y156: =IF(ISNUMBER(SEARCH('Supplier Request FORM B'!$D$54,C156)),MAX($Y$1:Y155)+1,0) -> 155 | Z156: SEBDBDDHBNG | AE156: =IF(LEFT('Supplier Request FORM B'!$D$42,1)="F",0,IF(AND((LEFT('Supplier Request FORM B'!$D$42,1)=LEFT(E156,1)),(LEFT('Supplier Request FORM B'!$D$43,2)=LEFT(A156,2))),MAX($AE$1:AE155)+1,0)) -> 0
A157: BD | B157: SEBDBDDHESK | C157: SOUTHEAST BANK LIMITED | D157: SEBDBDDHESK | E157: CM/C | G157: =IF(ISNUMBER(SEARCH('Supplier Request FORM B'!$D$45,C157)),MAX($G$1:G156)+1,0) -> 156 | H157: SOUTHEAST BANK LIMITED | K157: =IF(AND(('Supplier Request FORM B'!$D$45=C157),(LEFT('Supplier Request FORM B'!$D$42,1)=LEFT(E157,1)),(LEFT('Supplier Request FORM B'!$D$43,2)=LEFT(A157,2))),MAX($K$1:K156)+1,0) -> 0 | U157: =IF(ISNUMBER(SEARCH('Supplier Request FORM B'!$D$54,C157)),MAX($U$1:U156)+1,0) -> 156 | V157: SOUTHEAST BANK LIMITED | Y157: =IF(ISNUMBER(SEARCH('Supplier Request FORM B'!$D$54,C157)),MAX($Y$1:Y156)+1,0) -> 156 | Z157: SEBDBDDHESK | AE157: =IF(LEFT('Supplier Request FORM B'!$D$42,1)="F",0,IF(AND((LEFT('Supplier Request FORM B'!$D$42,1)=LEFT(E157,1)),(LEFT('Supplier Request FORM B'!$D$43,2)=LEFT(A157,2))),MAX($AE$1:AE156)+1,0)) -> 0
A158: BD | B158: SEBDBDDHSPB | C158: SOUTHEAST BANK LIMITED | D158: SEBDBDDHSPB | E158: CM/C | G158: =IF(ISNUMBER(SEARCH('Supplier Request FORM B'!$D$45,C158)),MAX($G$1:G157)+1,0) -> 157 | H158: SOUTHEAST BANK LIMITED | K158: =IF(AND(('Supplier Request FORM B'!$D$45=C158),(LEFT('Supplier Request FORM B'!$D$42,1)=LEFT(E158,1)),(LEFT('Supplier Request FORM B'!$D$43,2)=LEFT(A158,2))),MAX($K$1:K157)+1,0) -> 0 | U158: =IF(ISNUMBER(SEARCH('Supplier Request FORM B'!$D$54,C158)),MAX($U$1:U157)+1,0) -> 157 | V158: SOUTHEAST BANK LIMITED | Y158: =IF(ISNUMBER(SEARCH('Supplier Request FORM B'!$D$54,C158)),MAX($Y$1:Y157)+1,0) -> 157 | Z158: SEBDBDDHSPB | AE158: =IF(LEFT('Supplier Request FORM B'!$D$42,1)="F",0,IF(AND((LEFT('Supplier Request FORM B'!$D$42,1)=LEFT(E158,1)),(LEFT('Supplier Request FORM B'!$D$43,2)=LEFT(A158,2))),MAX($AE$1:AE157)+1,0)) -> 0
A159: BD | B159: SEBDBDDHSYM | C159: SOUTHEAST BANK LIMITED | D159: SEBDBDDHSYM | E159: CM/C | G159: =IF(ISNUMBER(SEARCH('Supplier Request FORM B'!$D$45,C159)),MAX($G$1:G158)+1,0) -> 158 | H159: SOUTHEAST BANK LIMITED | K159: =IF(AND(('Supplier Request FORM B'!$D$45=C159),(LEFT('Supplier Request FORM B'!$D$42,1)=LEFT(E159,1)),(LEFT('Supplier Request FORM B'!$D$43,2)=LEFT(A159,2))),MAX($K$1:K158)+1,0) -> 0 | U159: =IF(ISNUMBER(SEARCH('Supplier Request FORM B'!$D$54,C159)),MAX($U$1:U158)+1,0) -> 158 | V159: SOUTHEAST BANK LIMITED | Y159: =IF(ISNUMBER(SEARCH('Supplier Request FORM B'!$D$54,C159)),MAX($Y$1:Y158)+1,0) -> 158 | Z159: SEBDBDDHSYM | AE159: =IF(LEFT('Supplier Request FORM B'!$D$42,1)="F",0,IF(AND((LEFT('Supplier Request FORM B'!$D$42,1)=LEFT(E159,1)),(LEFT('Supplier Request FORM B'!$D$43,2)=LEFT(A159,2))),MAX($AE$1:AE158)+1,0)) -> 0
A160: BD | B160: SDBLBDDH113 | C160: STANDARD BANK LIMITED | D160: SDBLBDDH113 | E160: CM/C | G160: =IF(ISNUMBER(SEARCH('Supplier Request FORM B'!$D$45,C160)),MAX($G$1:G159)+1,0) -> 159 | H160: STANDARD BANK LIMITED | K160: =IF(AND(('Supplier Request FORM B'!$D$45=C160),(LEFT('Supplier Request FORM B'!$D$42,1)=LEFT(E160,1)),(LEFT('Supplier Request FORM B'!$D$43,2)=LEFT(A160,2))),MAX($K$1:K159)+1,0) -> 0 | U160: =IF(ISNUMBER(SEARCH('Supplier Request FORM B'!$D$54,C160)),MAX($U$1:U159)+1,0) -> 159 | V160: STANDARD BANK LIMITED | Y160: =IF(ISNUMBER(SEARCH('Supplier Request FORM B'!$D$54,C160)),MAX($Y$1:Y159)+1,0) -> 159 | Z160: SDBLBDDH113 | AE160: =IF(LEFT('Supplier Request FORM B'!$D$42,1)="F",0,IF(AND((LEFT('Supplier Request FORM B'!$D$42,1)=LEFT(E160,1)),(LEFT('Supplier Request FORM B'!$D$43,2)=LEFT(A160,2))),MAX($AE$1:AE159)+1,0)) -> 0
A161: BD | B161: SCBLBDDX | C161: STANDARD CHARTERED BANK | D161: SCBLBDDX | E161: CM/C | G161: =IF(ISNUMBER(SEARCH('Supplier Request FORM B'!$D$45,C161)),MAX($G$1:G160)+1,0) -> 160 | H161: STANDARD CHARTERED BANK | K161: =IF(AND(('Supplier Request FORM B'!$D$45=C161),(LEFT('Supplier Request FORM B'!$D$42,1)=LEFT(E161,1)),(LEFT('Supplier Request FORM B'!$D$43,2)=LEFT(A161,2))),MAX($K$1:K160)+1,0) -> 0 | U161: =IF(ISNUMBER(SEARCH('Supplier Request FORM B'!$D$54,C161)),MAX($U$1:U160)+1,0) -> 160 | V161: STANDARD CHARTERED BANK | Y161: =IF(ISNUMBER(SEARCH('Supplier Request FORM B'!$D$54,C161)),MAX($Y$1:Y160)+1,0) -> 160 | Z161: SCBLBDDX | AE161: =IF(LEFT('Supplier Request FORM B'!$D$42,1)="F",0,IF(AND((LEFT('Supplier Request FORM B'!$D$42,1)=LEFT(E161,1)),(LEFT('Supplier Request FORM B'!$D$43,2)=LEFT(A161,2))),MAX($AE$1:AE160)+1,0)) -> 0
A162: BD | B162: PRMRBDDHELE | C162: THE PREMIER BANK LIMITED | D162: PRMRBDDHELE | E162: CM/C | G162: =IF(ISNUMBER(SEARCH('Supplier Request FORM B'!$D$45,C162)),MAX($G$1:G161)+1,0) -> 161 | H162: THE PREMIER BANK LIMITED | K162: =IF(AND(('Supplier Request FORM B'!$D$45=C162),(LEFT('Supplier Request FORM B'!$D$42,1)=LEFT(E162,1)),(LEFT('Supplier Request FORM B'!$D$43,2)=LEFT(A162,2))),MAX($K$1:K161)+1,0) -> 0 | U162: =IF(ISNUMBER(SEARCH('Supplier Request FORM B'!$D$54,C162)),MAX($U$1:U161)+1,0) -> 161 | V162: THE PREMIER BANK LIMITED | Y162: =IF(ISNUMBER(SEARCH('Supplier Request FORM B'!$D$54,C162)),MAX($Y$1:Y161)+1,0) -> 161 | Z162: PRMRBDDHELE | AE162: =IF(LEFT('Supplier Request FORM B'!$D$42,1)="F",0,IF(AND((LEFT('Supplier Request FORM B'!$D$42,1)=LEFT(E162,1)),(LEFT('Supplier Request FORM B'!$D$43,2)=LEFT(A162,2))),MAX($AE$1:AE161)+1,0)) -> 0
A163: BD | B163: TTBLBDDH | C163: TRUST BANK LTD., THE | D163: TTBLBDDH | E163: CM/C | G163: =IF(ISNUMBER(SEARCH('Supplier Request FORM B'!$D$45,C163)),MAX($G$1:G162)+1,0) -> 162 | H163: TRUST BANK LTD., THE | K163: =IF(AND(('Supplier Request FORM B'!$D$45=C163),(LEFT('Supplier Request FORM B'!$D$42,1)=LEFT(E163,1)),(LEFT('Supplier Request FORM B'!$D$43,2)=LEFT(A163,2))),MAX($K$1:K162)+1,0) -> 0 | U163: =IF(ISNUMBER(SEARCH('Supplier Request FORM B'!$D$54,C163)),MAX($U$1:U162)+1,0) -> 162 | V163: TRUST BANK LTD., THE | Y163: =IF(ISNUMBER(SEARCH('Supplier Request FORM B'!$D$54,C163)),MAX($Y$1:Y162)+1,0) -> 162 | Z163: TTBLBDDH | AE163: =IF(LEFT('Supplier Request FORM B'!$D$42,1)="F",0,IF(AND((LEFT('Supplier Request FORM B'!$D$42,1)=LEFT(E163,1)),(LEFT('Supplier Request FORM B'!$D$43,2)=LEFT(A163,2))),MAX($AE$1:AE162)+1,0)) -> 0
A164: BD | B164: TTBLBDDH002 | C164: TRUST BANK LTD., THE | D164: TTBLBDDH002 | E164: CM/C | G164: =IF(ISNUMBER(SEARCH('Supplier Request FORM B'!$D$45,C164)),MAX($G$1:G163)+1,0) -> 163 | H164: TRUST BANK LTD., THE | K164: =IF(AND(('Supplier Request FORM B'!$D$45=C164),(LEFT('Supplier Request FORM B'!$D$42,1)=LEFT(E164,1)),(LEFT('Supplier Request FORM B'!$D$43,2)=LEFT(A164,2))),MAX($K$1:K163)+1,0) -> 0 | U164: =IF(ISNUMBER(SEARCH('Supplier Request FORM B'!$D$54,C164)),MAX($U$1:U163)+1,0) -> 163 | V164: TRUST BANK LTD., THE | Y164: =IF(ISNUMBER(SEARCH('Supplier Request FORM B'!$D$54,C164)),MAX($Y$1:Y163)+1,0) -> 163 | Z164: TTBLBDDH002 | AE164: =IF(LEFT('Supplier Request FORM B'!$D$42,1)="F",0,IF(AND((LEFT('Supplier Request FORM B'!$D$42,1)=LEFT(E164,1)),(LEFT('Supplier Request FORM B'!$D$43,2)=LEFT(A164,2))),MAX($AE$1:AE163)+1,0)) -> 0
A165: BD | B165: UCBLBDDH | C165: UNITED COMMERCIAL BANK LTD | D165: UCBLBDDH | E165: CM/C | G165: =IF(ISNUMBER(SEARCH('Supplier Request FORM B'!$D$45,C165)),MAX($G$1:G164)+1,0) -> 164 | H165: UNITED COMMERCIAL BANK LTD | K165: =IF(AND(('Supplier Request FORM B'!$D$45=C165),(LEFT('Supplier Request FORM B'!$D$42,1)=LEFT(E165,1)),(LEFT('Supplier Request FORM B'!$D$43,2)=LEFT(A165,2))),MAX($K$1:K164)+1,0) -> 0 | U165: =IF(ISNUMBER(SEARCH('Supplier Request FORM B'!$D$54,C165)),MAX($U$1:U164)+1,0) -> 164 | V165: UNITED COMMERCIAL BANK LTD | Y165: =IF(ISNUMBER(SEARCH('Supplier Request FORM B'!$D$54,C165)),MAX($Y$1:Y164)+1,0) -> 164 | Z165: UCBLBDDH | AE165: =IF(LEFT('Supplier Request FORM B'!$D$42,1)="F",0,IF(AND((LEFT('Supplier Request FORM B'!$D$42,1)=LEFT(E165,1)),(LEFT('Supplier Request FORM B'!$D$43,2)=LEFT(A165,2))),MAX($AE$1:AE164)+1,0)) -> 0
A166: BD | B166: UCBLBDDHPRB | C166: UNITED COMMERCIAL BANK LTD | D166: UCBLBDDHPRB | E166: CM/C | G166: =IF(ISNUMBER(SEARCH('Supplier Request FORM B'!$D$45,C166)),MAX($G$1:G165)+1,0) -> 165 | H166: UNITED COMMERCIAL BANK LTD | K166: =IF(AND(('Supplier Request FORM B'!$D$45=C166),(LEFT('Supplier Request FORM B'!$D$42,1)=LEFT(E166,1)),(LEFT('Supplier Request FORM B'!$D$43,2)=LEFT(A166,2))),MAX($K$1:K165)+1,0) -> 0 | U166: =IF(ISNUMBER(SEARCH('Supplier Request FORM B'!$D$54,C166)),MAX($U$1:U165)+1,0) -> 165 | V166: UNITED COMMERCIAL BANK LTD | Y166: =IF(ISNUMBER(SEARCH('Supplier Request FORM B'!$D$54,C166)),MAX($Y$1:Y165)+1,0) -> 165 | Z166: UCBLBDDHPRB | AE166: =IF(LEFT('Supplier Request FORM B'!$D$42,1)="F",0,IF(AND((LEFT('Supplier Request FORM B'!$D$42,1)=LEFT(E166,1)),(LEFT('Supplier Request FORM B'!$D$43,2)=LEFT(A166,2))),MAX($AE$1:AE165)+1,0)) -> 0
A167: BD | B167: UTBLBDDH | C167: UTTARA BANK LIMITED | D167: UTBLBDDH | E167: CM/C | G167: =IF(ISNUMBER(SEARCH('Supplier Request FORM B'!$D$45,C167)),MAX($G$1:G166)+1,0) -> 166 | H167: UTTARA BANK LIMITED | K167: =IF(AND(('Supplier Request FORM B'!$D$45=C167),(LEFT('Supplier Request FORM B'!$D$42,1)=LEFT(E167,1)),(LEFT('Supplier Request FORM B'!$D$43,2)=LEFT(A167,2))),MAX($K$1:K166)+1,0) -> 0 | U167: =IF(ISNUMBER(SEARCH('Supplier Request FORM B'!$D$54,C167)),MAX($U$1:U166)+1,0) -> 166 | V167: UTTARA BANK LIMITED | Y167: =IF(ISNUMBER(SEARCH('Supplier Request FORM B'!$D$54,C167)),MAX($Y$1:Y166)+1,0) -> 166 | Z167: UTBLBDDH | AE167: =IF(LEFT('Supplier Request FORM B'!$D$42,1)="F",0,IF(AND((LEFT('Supplier Request FORM B'!$D$42,1)=LEFT(E167,1)),(LEFT('Supplier Request FORM B'!$D$43,2)=LEFT(A167,2))),MAX($AE$1:AE166)+1,0)) -> 0
A168: BD | B168: UTBLBDDH431 | C168: UTTARA BANK LIMITED | D168: UTBLBDDH431 | E168: CM/C | G168: =IF(ISNUMBER(SEARCH('Supplier Request FORM B'!$D$45,C168)),MAX($G$1:G167)+1,0) -> 167 | H168: UTTARA BANK LIMITED | K168: =IF(AND(('Supplier Request FORM B'!$D$45=C168),(LEFT('Supplier Request FORM B'!$D$42,1)=LEFT(E168,1)),(LEFT('Supplier Request FORM B'!$D$43,2)=LEFT(A168,2))),MAX($K$1:K167)+1,0) -> 0 | U168: =IF(ISNUMBER(SEARCH('Supplier Request FORM B'!$D$54,C168)),MAX($U$1:U167)+1,0) -> 167 | V168: UTTARA BANK LIMITED | Y168: =IF(ISNUMBER(SEARCH('Supplier Request FORM B'!$D$54,C168)),MAX($Y$1:Y167)+1,0) -> 167 | Z168: UTBLBDDH431 | AE168: =IF(LEFT('Supplier Request FORM B'!$D$42,1)="F",0,IF(AND((LEFT('Supplier Request FORM B'!$D$42,1)=LEFT(E168,1)),(LEFT('Supplier Request FORM B'!$D$43,2)=LEFT(A168,2))),MAX($AE$1:AE167)+1,0)) -> 0
A169: BE | B169: BMPBBEBB | C169: AION | D169: BMPBBEBB | E169: CM/C | G169: =IF(ISNUMBER(SEARCH('Supplier Request FORM B'!$D$45,C169)),MAX($G$1:G168)+1,0) -> 168 | H169: AION | K169: =IF(AND(('Supplier Request FORM B'!$D$45=C169),(LEFT('Supplier Request FORM B'!$D$42,1)=LEFT(E169,1)),(LEFT('Supplier Request FORM B'!$D$43,2)=LEFT(A169,2))),MAX($K$1:K168)+1,0) -> 0 | U169: =IF(ISNUMBER(SEARCH('Supplier Request FORM B'!$D$54,C169)),MAX($U$1:U168)+1,0) -> 168 | V169: AION | Y169: =IF(ISNUMBER(SEARCH('Supplier Request FORM B'!$D$54,C169)),MAX($Y$1:Y168)+1,0) -> 168 | Z169: BMPBBEBB | AE169: =IF(LEFT('Supplier Request FORM B'!$D$42,1)="F",0,IF(AND((LEFT('Supplier Request FORM B'!$D$42,1)=LEFT(E169,1)),(LEFT('Supplier Request FORM B'!$D$43,2)=LEFT(A169,2))),MAX($AE$1:AE168)+1,0)) -> 0
A170: BE | B170: ARSPBE22 | C170: ARGENTA | D170: ARSPBE22 | E170: CM/C | G170: =IF(ISNUMBER(SEARCH('Supplier Request FORM B'!$D$45,C170)),MAX($G$1:G169)+1,0) -> 169 | H170: ARGENTA | K170: =IF(AND(('Supplier Request FORM B'!$D$45=C170),(LEFT('Supplier Request FORM B'!$D$42,1)=LEFT(E170,1)),(LEFT('Supplier Request FORM B'!$D$43,2)=LEFT(A170,2))),MAX($K$1:K169)+1,0) -> 0 | U170: =IF(ISNUMBER(SEARCH('Supplier Request FORM B'!$D$54,C170)),MAX($U$1:U169)+1,0) -> 169 | V170: ARGENTA | Y170: =IF(ISNUMBER(SEARCH('Supplier Request FORM B'!$D$54,C170)),MAX($Y$1:Y169)+1,0) -> 169 | Z170: ARSPBE22 | AE170: =IF(LEFT('Supplier Request FORM B'!$D$42,1)="F",0,IF(AND((LEFT('Supplier Request FORM B'!$D$42,1)=LEFT(E170,1)),(LEFT('Supplier Request FORM B'!$D$43,2)=LEFT(A170,2))),MAX($AE$1:AE169)+1,0)) -> 0
A171: BE | B171: AXABBE22 | C171: AXA BANK EUROPE (FORMERLY AXA BANK BELGIUM) | D171: AXABBE22 | E171: CM/C | G171: =IF(ISNUMBER(SEARCH('Supplier Request FORM B'!$D$45,C171)),MAX($G$1:G170)+1,0) -> 170 | H171: AXA BANK EUROPE (FORMERLY AXA BANK BELGIUM) | K171: =IF(AND(('Supplier Request FORM B'!$D$45=C171),(LEFT('Supplier Request FORM B'!$D$42,1)=LEFT(E171,1)),(LEFT('Supplier Request FORM B'!$D$43,2)=LEFT(A171,2))),MAX($K$1:K170)+1,0) -> 0 | U171: =IF(ISNUMBER(SEARCH('Supplier Request FORM B'!$D$54,C171)),MAX($U$1:U170)+1,0) -> 170 | V171: AXA BANK EUROPE (FORMERLY AXA BANK BELGIUM) | Y171: =IF(ISNUMBER(SEARCH('Supplier Request FORM B'!$D$54,C171)),MAX($Y$1:Y170)+1,0) -> 170 | Z171: AXABBE22 | AE171: =IF(LEFT('Supplier Request FORM B'!$D$42,1)="F",0,IF(AND((LEFT('Supplier Request FORM B'!$D$42,1)=LEFT(E171,1)),(LEFT('Supplier Request FORM B'!$D$43,2)=LEFT(A171,2))),MAX($AE$1:AE170)+1,0)) -> 0
A172: BE | B172: JVBABE22 | C172: BANK J. VAN BREDA AND CO NV | D172: JVBABE22 | E172: CM/C | G172: =IF(ISNUMBER(SEARCH('Supplier Request FORM B'!$D$45,C172)),MAX($G$1:G171)+1,0) -> 171 | H172: BANK J. VAN BREDA AND CO NV | K172: =IF(AND(('Supplier Request FORM B'!$D$45=C172),(LEFT('Supplier Request FORM B'!$D$42,1)=LEFT(E172,1)),(LEFT('Supplier Request FORM B'!$D$43,2)=LEFT(A172,2))),MAX($K$1:K171)+1,0) -> 0 | U172: =IF(ISNUMBER(SEARCH('Supplier Request FORM B'!$D$54,C172)),MAX($U$1:U171)+1,0) -> 171 | V172: BANK J. VAN BREDA AND CO NV | Y172: =IF(ISNUMBER(SEARCH('Supplier Request FORM B'!$D$54,C172)),MAX($Y$1:Y171)+1,0) -> 171 | Z172: JVBABE22 | AE172: =IF(LEFT('Supplier Request FORM B'!$D$42,1)="F",0,IF(AND((LEFT('Supplier Request FORM B'!$D$42,1)=LEFT(E172,1)),(LEFT('Supplier Request FORM B'!$D$43,2)=LEFT(A172,2))),MAX($AE$1:AE171)+1,0)) -> 0
A173: BE | B173: BARBBEBB | C173: BANK OF BARODA (BRUSSELS BRANCH) | D173: BARBBEBB | E173: CM/C | G173: =IF(ISNUMBER(SEARCH('Supplier Request FORM B'!$D$45,C173)),MAX($G$1:G172)+1,0) -> 172 | H173: BANK OF BARODA (BRUSSELS BRANCH) | K173: =IF(AND(('Supplier Request FORM B'!$D$45=C173),(LEFT('Supplier Request FORM B'!$D$42,1)=LEFT(E173,1)),(LEFT('Supplier Request FORM B'!$D$43,2)=LEFT(A173,2))),MAX($K$1:K172)+1,0) -> 0 | U173: =IF(ISNUMBER(SEARCH('Supplier Request FORM B'!$D$54,C173)),MAX($U$1:U172)+1,0) -> 172 | V173: BANK OF BARODA (BRUSSELS BRANCH) | Y173: =IF(ISNUMBER(SEARCH('Supplier Request FORM B'!$D$54,C173)),MAX($Y$1:Y172)+1,0) -> 172 | Z173: BARBBEBB | AE173: =IF(LEFT('Supplier Request FORM B'!$D$42,1)="F",0,IF(AND((LEFT('Supplier Request FORM B'!$D$42,1)=LEFT(E173,1)),(LEFT('Supplier Request FORM B'!$D$43,2)=LEFT(A173,2))),MAX($AE$1:AE172)+1,0)) -> 0
A174: BE | B174: DEGRBEBB | C174: BANQUE DEGROOF | D174: DEGRBEBB | E174: CM/C | G174: =IF(ISNUMBER(SEARCH('Supplier Request FORM B'!$D$45,C174)),MAX($G$1:G173)+1,0) -> 173 | H174: BANQUE DEGROOF | K174: =IF(AND(('Supplier Request FORM B'!$D$45=C174),(LEFT('Supplier Request FORM B'!$D$42,1)=LEFT(E174,1)),(LEFT('Supplier Request FORM B'!$D$43,2)=LEFT(A174,2))),MAX($K$1:K173)+1,0) -> 0 | U174: =IF(ISNUMBER(SEARCH('Supplier Request FORM B'!$D$54,C174)),MAX($U$1:U173)+1,0) -> 173 | V174: BANQUE DEGROOF | Y174: =IF(ISNUMBER(SEARCH('Supplier Request FORM B'!$D$54,C174)),MAX($Y$1:Y173)+1,0) -> 173 | Z174: DEGRBEBB | AE174: =IF(LEFT('Supplier Request FORM B'!$D$42,1)="F",0,IF(AND((LEFT('Supplier Request FORM B'!$D$42,1)=LEFT(E174,1)),(LEFT('Supplier Request FORM B'!$D$43,2)=LEFT(A174,2))),MAX($AE$1:AE173)+1,0)) -> 0
A175: BE | B175: GKCCBEBB | C175: BELFIUS BANK SA/NV | D175: GKCCBEBB | E175: CM/C | G175: =IF(ISNUMBER(SEARCH('Supplier Request FORM B'!$D$45,C175)),MAX($G$1:G174)+1,0) -> 174 | H175: BELFIUS BANK SA/NV | K175: =IF(AND(('Supplier Request FORM B'!$D$45=C175),(LEFT('Supplier Request FORM B'!$D$42,1)=LEFT(E175,1)),(LEFT('Supplier Request FORM B'!$D$43,2)=LEFT(A175,2))),MAX($K$1:K174)+1,0) -> 0 | U175: =IF(ISNUMBER(SEARCH('Supplier Request FORM B'!$D$54,C175)),MAX($U$1:U174)+1,0) -> 174 | V175: BELFIUS BANK SA/NV | Y175: =IF(ISNUMBER(SEARCH('Supplier Request FORM B'!$D$54,C175)),MAX($Y$1:Y174)+1,0) -> 174 | Z175: GKCCBEBB | AE175: =IF(LEFT('Supplier Request FORM B'!$D$42,1)="F",0,IF(AND((LEFT('Supplier Request FORM B'!$D$42,1)=LEFT(E175,1)),(LEFT('Supplier Request FORM B'!$D$43,2)=LEFT(A175,2))),MAX($AE$1:AE174)+1,0)) -> 0
A176: BE | B176: BPOTBEB1 | C176: BPOST BANQUE BPOST BANK BPOST BANK | D176: BPOTBEB1 | E176: CM/C | G176: =IF(ISNUMBER(SEARCH('Supplier Request FORM B'!$D$45,C176)),MAX($G$1:G175)+1,0) -> 175 | H176: BPOST BANQUE BPOST BANK BPOST BANK | K176: =IF(AND(('Supplier Request FORM B'!$D$45=C176),(LEFT('Supplier Request FORM B'!$D$42,1)=LEFT(E176,1)),(LEFT('Supplier Request FORM B'!$D$43,2)=LEFT(A176,2))),MAX($K$1:K175)+1,0) -> 0 | U176: =IF(ISNUMBER(SEARCH('Supplier Request FORM B'!$D$54,C176)),MAX($U$1:U175)+1,0) -> 175 | V176: BPOST BANQUE BPOST BANK BPOST BANK | Y176: =IF(ISNUMBER(SEARCH('Supplier Request FORM B'!$D$54,C176)),MAX($Y$1:Y175)+1,0) -> 175 | Z176: BPOTBEB1 | AE176: =IF(LEFT('Supplier Request FORM B'!$D$42,1)="F",0,IF(AND((LEFT('Supplier Request FORM B'!$D$42,1)=LEFT(E176,1)),(LEFT('Supplier Request FORM B'!$D$43,2)=LEFT(A176,2))),MAX($AE$1:AE175)+1,0)) -> 0
A177: BE | B177: CREGBEBB | C177: CBC BANQUE SA | D177: CREGBEBB | E177: CM/C | G177: =IF(ISNUMBER(SEARCH('Supplier Request FORM B'!$D$45,C177)),MAX($G$1:G176)+1,0) -> 176 | H177: CBC BANQUE SA | K177: =IF(AND(('Supplier Request FORM B'!$D$45=C177),(LEFT('Supplier Request FORM B'!$D$42,1)=LEFT(E177,1)),(LEFT('Supplier Request FORM B'!$D$43,2)=LEFT(A177,2))),MAX($K$1:K176)+1,0) -> 0 | U177: =IF(ISNUMBER(SEARCH('Supplier Request FORM B'!$D$54,C177)),MAX($U$1:U176)+1,0) -> 176 | V177: CBC BANQUE SA | Y177: =IF(ISNUMBER(SEARCH('Supplier Request FORM B'!$D$54,C177)),MAX($Y$1:Y176)+1,0) -> 176 | Z177: CREGBEBB | AE177: =IF(LEFT('Supplier Request FORM B'!$D$42,1)="F",0,IF(AND((LEFT('Supplier Request FORM B'!$D$42,1)=LEFT(E177,1)),(LEFT('Supplier Request FORM B'!$D$43,2)=LEFT(A177,2))),MAX($AE$1:AE176)+1,0)) -> 0
A178: BE | B178: CTBKBEBX | C178: CITIBANK BELGIUM NV/SA | D178: CTBKBEBX | E178: CM/C | G178: =IF(ISNUMBER(SEARCH('Supplier Request FORM B'!$D$45,C178)),MAX($G$1:G177)+1,0) -> 177 | H178: CITIBANK BELGIUM NV/SA | K178: =IF(AND(('Supplier Request FORM B'!$D$45=C178),(LEFT('Supplier Request FORM B'!$D$42,1)=LEFT(E178,1)),(LEFT('Supplier Request FORM B'!$D$43,2)=LEFT(A178,2))),MAX($K$1:K177)+1,0) -> 0 | U178: =IF(ISNUMBER(SEARCH('Supplier Request FORM B'!$D$54,C178)),MAX($U$1:U177)+1,0) -> 177 | V178: CITIBANK BELGIUM NV/SA | Y178: =IF(ISNUMBER(SEARCH('Supplier Request FORM B'!$D$54,C178)),MAX($Y$1:Y177)+1,0) -> 177 | Z178: CTBKBEBX | AE178: =IF(LEFT('Supplier Request FORM B'!$D$42,1)="F",0,IF(AND((LEFT('Supplier Request FORM B'!$D$42,1)=LEFT(E178,1)),(LEFT('Supplier Request FORM B'!$D$43,2)=LEFT(A178,2))),MAX($AE$1:AE177)+1,0)) -> 0
A179: BE | B179: NICABEBB | C179: CRELAN SA/NV (FORMERLY CREDIT AGRICOLE SA/LANDBOUWKREDIET NV | D179: NICABEBB | E179: CM/C | G179: =IF(ISNUMBER(SEARCH('Supplier Request FORM B'!$D$45,C179)),MAX($G$1:G178)+1,0) -> 178 | H179: CRELAN SA/NV (FORMERLY CREDIT AGRICOLE SA/LANDBOUWKREDIET NV | K179: =IF(AND(('Supplier Request FORM B'!$D$45=C179),(LEFT('Supplier Request FORM B'!$D$42,1)=LEFT(E179,1)),(LEFT('Supplier Request FORM B'!$D$43,2)=LEFT(A179,2))),MAX($K$1:K178)+1,0) -> 0 | U179: =IF(ISNUMBER(SEARCH('Supplier Request FORM B'!$D$54,C179)),MAX($U$1:U178)+1,0) -> 178 | V179: CRELAN SA/NV (FORMERLY CREDIT AGRICOLE SA/LANDBOUWKREDIET NV | Y179: =IF(ISNUMBER(SEARCH('Supplier Request FORM B'!$D$54,C179)),MAX($Y$1:Y178)+1,0) -> 178 | Z179: NICABEBB | AE179: =IF(LEFT('Supplier Request FORM B'!$D$42,1)="F",0,IF(AND((LEFT('Supplier Request FORM B'!$D$42,1)=LEFT(E179,1)),(LEFT('Supplier Request FORM B'!$D$43,2)=LEFT(A179,2))),MAX($AE$1:AE178)+1,0)) -> 0
A180: BE | B180: PCHQBEBB | C180: DE POST | D180: PCHQBEBB | E180: CM/C | G180: =IF(ISNUMBER(SEARCH('Supplier Request FORM B'!$D$45,C180)),MAX($G$1:G179)+1,0) -> 179 | H180: DE POST | K180: =IF(AND(('Supplier Request FORM B'!$D$45=C180),(LEFT('Supplier Request FORM B'!$D$42,1)=LEFT(E180,1)),(LEFT('Supplier Request FORM B'!$D$43,2)=LEFT(A180,2))),MAX($K$1:K179)+1,0) -> 0 | U180: =IF(ISNUMBER(SEARCH('Supplier Request FORM B'!$D$54,C180)),MAX($U$1:U179)+1,0) -> 179 | V180: DE POST | Y180: =IF(ISNUMBER(SEARCH('Supplier Request FORM B'!$D$54,C180)),MAX($Y$1:Y179)+1,0) -> 179 | Z180: PCHQBEBB | AE180: =IF(LEFT('Supplier Request FORM B'!$D$42,1)="F",0,IF(AND((LEFT('Supplier Request FORM B'!$D$42,1)=LEFT(E180,1)),(LEFT('Supplier Request FORM B'!$D$43,2)=LEFT(A180,2))),MAX($AE$1:AE179)+1,0)) -> 0
A181: BE | B181: BNAGBEBB | C181: DELTA LLOYD BANK NV (BELGIUM) | D181: BNAGBEBB | E181: CM/C | G181: =IF(ISNUMBER(SEARCH('Supplier Request FORM B'!$D$45,C181)),MAX($G$1:G180)+1,0) -> 180 | H181: DELTA LLOYD BANK NV (BELGIUM) | K181: =IF(AND(('Supplier Request FORM B'!$D$45=C181),(LEFT('Supplier Request FORM B'!$D$42,1)=LEFT(E181,1)),(LEFT('Supplier Request FORM B'!$D$43,2)=LEFT(A181,2))),MAX($K$1:K180)+1,0) -> 0 | U181: =IF(ISNUMBER(SEARCH('Supplier Request FORM B'!$D$54,C181)),MAX($U$1:U180)+1,0) -> 180 | V181: DELTA LLOYD BANK NV (BELGIUM) | Y181: =IF(ISNUMBER(SEARCH('Supplier Request FORM B'!$D$54,C181)),MAX($Y$1:Y180)+1,0) -> 180 | Z181: BNAGBEBB | AE181: =IF(LEFT('Supplier Request FORM B'!$D$42,1)="F",0,IF(AND((LEFT('Supplier Request FORM B'!$D$42,1)=LEFT(E181,1)),(LEFT('Supplier Request FORM B'!$D$43,2)=LEFT(A181,2))),MAX($AE$1:AE180)+1,0)) -> 0
A182: BE | B182: DEUTBEBE | C182: DEUTSCHE BANK A.G. | D182: DEUTBEBE | E182: CM/C | G182: =IF(ISNUMBER(SEARCH('Supplier Request FORM B'!$D$45,C182)),MAX($G$1:G181)+1,0) -> 181 | H182: DEUTSCHE BANK A.G. | K182: =IF(AND(('Supplier Request FORM B'!$D$45=C182),(LEFT('Supplier Request FORM B'!$D$42,1)=LEFT(E182,1)),(LEFT('Supplier Request FORM B'!$D$43,2)=LEFT(A182,2))),MAX($K$1:K181)+1,0) -> 0 | U182: =IF(ISNUMBER(SEARCH('Supplier Request FORM B'!$D$54,C182)),MAX($U$1:U181)+1,0) -> 181 | V182: DEUTSCHE BANK A.G. | Y182: =IF(ISNUMBER(SEARCH('Supplier Request FORM B'!$D$54,C182)),MAX($Y$1:Y181)+1,0) -> 181 | Z182: DEUTBEBE | AE182: =IF(LEFT('Supplier Request FORM B'!$D$42,1)="F",0,IF(AND((LEFT('Supplier Request FORM B'!$D$42,1)=LEFT(E182,1)),(LEFT('Supplier Request FORM B'!$D$43,2)=LEFT(A182,2))),MAX($AE$1:AE181)+1,0)) -> 0
A183: BE | B183: EURBBE99 | C183: EUROPABANK N.V. | D183: EURBBE99 | E183: CM/C | G183: =IF(ISNUMBER(SEARCH('Supplier Request FORM B'!$D$45,C183)),MAX($G$1:G182)+1,0) -> 182 | H183: EUROPABANK N.V. | K183: =IF(AND(('Supplier Request FORM B'!$D$45=C183),(LEFT('Supplier Request FORM B'!$D$42,1)=LEFT(E183,1)),(LEFT('Supplier Request FORM B'!$D$43,2)=LEFT(A183,2))),MAX($K$1:K182)+1,0) -> 0 | U183: =IF(ISNUMBER(SEARCH('Supplier Request FORM B'!$D$54,C183)),MAX($U$1:U182)+1,0) -> 182 | V183: EUROPABANK N.V. | Y183: =IF(ISNUMBER(SEARCH('Supplier Request FORM B'!$D$54,C183)),MAX($Y$1:Y182)+1,0) -> 182 | Z183: EURBBE99 | AE183: =IF(LEFT('Supplier Request FORM B'!$D$42,1)="F",0,IF(AND((LEFT('Supplier Request FORM B'!$D$42,1)=LEFT(E183,1)),(LEFT('Supplier Request FORM B'!$D$43,2)=LEFT(A183,2))),MAX($AE$1:AE182)+1,0)) -> 0
A184: BE | B184: GEBABEBB | C184: FORTIS BANK S.A./N.V. | D184: GEBABEBB | E184: CM/C | G184: =IF(ISNUMBER(SEARCH('Supplier Request FORM B'!$D$45,C184)),MAX($G$1:G183)+1,0) -> 183 | H184: FORTIS BANK S.A./N.V. | K184: =IF(AND(('Supplier Request FORM B'!$D$45=C184),(LEFT('Supplier Request FORM B'!$D$42,1)=LEFT(E184,1)),(LEFT('Supplier Request FORM B'!$D$43,2)=LEFT(A184,2))),MAX($K$1:K183)+1,0) -> 0 | U184: =IF(ISNUMBER(SEARCH('Supplier Request FORM B'!$D$54,C184)),MAX($U$1:U183)+1,0) -> 183 | V184: FORTIS BANK S.A./N.V. | Y184: =IF(ISNUMBER(SEARCH('Supplier Request FORM B'!$D$54,C184)),MAX($Y$1:Y183)+1,0) -> 183 | Z184: GEBABEBB | AE184: =IF(LEFT('Supplier Request FORM B'!$D$42,1)="F",0,IF(AND((LEFT('Supplier Request FORM B'!$D$42,1)=LEFT(E184,1)),(LEFT('Supplier Request FORM B'!$D$43,2)=LEFT(A184,2))),MAX($AE$1:AE183)+1,0)) -> 0
A185: BE | B185: GEBABEBB18A | C185: FORTIS BANK S.A./N.V. | D185: GEBABEBB18A | E185: CM/C | G185: =IF(ISNUMBER(SEARCH('Supplier Request FORM B'!$D$45,C185)),MAX($G$1:G184)+1,0) -> 184 | H185: FORTIS BANK S.A./N.V. | K185: =IF(AND(('Supplier Request FORM B'!$D$45=C185),(LEFT('Supplier Request FORM B'!$D$42,1)=LEFT(E185,1)),(LEFT('Supplier Request FORM B'!$D$43,2)=LEFT(A185,2))),MAX($K$1:K184)+1,0) -> 0 | U185: =IF(ISNUMBER(SEARCH('Supplier Request FORM B'!$D$54,C185)),MAX($U$1:U184)+1,0) -> 184 | V185: FORTIS BANK S.A./N.V. | Y185: =IF(ISNUMBER(SEARCH('Supplier Request FORM B'!$D$54,C185)),MAX($Y$1:Y184)+1,0) -> 184 | Z185: GEBABEBB18A | AE185: =IF(LEFT('Supplier Request FORM B'!$D$42,1)="F",0,IF(AND((LEFT('Supplier Request FORM B'!$D$42,1)=LEFT(E185,1)),(LEFT('Supplier Request FORM B'!$D$43,2)=LEFT(A185,2))),MAX($AE$1:AE184)+1,0)) -> 0
A186: BE | B186: GEBABEBB08A | C186: FORTIS BANK S.A./N.V. (FORMERLY GENERALE BANK N.V. LEUVEN) | D186: GEBABEBB08A | E186: CM/C | G186: =IF(ISNUMBER(SEARCH('Supplier Request FORM B'!$D$45,C186)),MAX($G$1:G185)+1,0) -> 185 | H186: FORTIS BANK S.A./N.V. (FORMERLY GENERALE BANK N.V. LEUVEN) | K186: =IF(AND(('Supplier Request FORM B'!$D$45=C186),(LEFT('Supplier Request FORM B'!$D$42,1)=LEFT(E186,1)),(LEFT('Supplier Request FORM B'!$D$43,2)=LEFT(A186,2))),MAX($K$1:K185)+1,0) -> 0 | U186: =IF(ISNUMBER(SEARCH('Supplier Request FORM B'!$D$54,C186)),MAX($U$1:U185)+1,0) -> 185 | V186: FORTIS BANK S.A./N.V. (FORMERLY GENERALE BANK N.V. LEUVEN) | Y186: =IF(ISNUMBER(SEARCH('Supplier Request FORM B'!$D$54,C186)),MAX($Y$1:Y185)+1,0) -> 185 | Z186: GEBABEBB08A | AE186: =IF(LEFT('Supplier Request FORM B'!$D$42,1)="F",0,IF(AND((LEFT('Supplier Request FORM B'!$D$42,1)=LEFT(E186,1)),(LEFT('Supplier Request FORM B'!$D$43,2)=LEFT(A186,2))),MAX($AE$1:AE185)+1,0)) -> 0
A187: BE | B187: GEBABEBB05A | C187: FORTIS BANK S.A./N.V. (FORMERLY GENRALE BANK N.V. GENT) | D187: GEBABEBB05A | E187: CM/C | G187: =IF(ISNUMBER(SEARCH('Supplier Request FORM B'!$D$45,C187)),MAX($G$1:G186)+1,0) -> 186 | H187: FORTIS BANK S.A./N.V. (FORMERLY GENRALE BANK N.V. GENT) | K187: =IF(AND(('Supplier Request FORM B'!$D$45=C187),(LEFT('Supplier Request FORM B'!$D$42,1)=LEFT(E187,1)),(LEFT('Supplier Request FORM B'!$D$43,2)=LEFT(A187,2))),MAX($K$1:K186)+1,0) -> 0 | U187: =IF(ISNUMBER(SEARCH('Supplier Request FORM B'!$D$54,C187)),MAX($U$1:U186)+1,0) -> 186 | V187: FORTIS BANK S.A./N.V. (FORMERLY GENRALE BANK N.V. GENT) | Y187: =IF(ISNUMBER(SEARCH('Supplier Request FORM B'!$D$54,C187)),MAX($Y$1:Y186)+1,0) -> 186 | Z187: GEBABEBB05A | AE187: =IF(LEFT('Supplier Request FORM B'!$D$42,1)="F",0,IF(AND((LEFT('Supplier Request FORM B'!$D$42,1)=LEFT(E187,1)),(LEFT('Supplier Request FORM B'!$D$43,2)=LEFT(A187,2))),MAX($AE$1:AE186)+1,0)) -> 0
A188: BE | B188: GEBABEBB36A | C188: FORTIS BANQUE S.A./N.V. | D188: GEBABEBB36A | E188: CM/C | G188: =IF(ISNUMBER(SEARCH('Supplier Request FORM B'!$D$45,C188)),MAX($G$1:G187)+1,0) -> 187 | H188: FORTIS BANQUE S.A./N.V. | K188: =IF(AND(('Supplier Request FORM B'!$D$45=C188),(LEFT('Supplier Request FORM B'!$D$42,1)=LEFT(E188,1)),(LEFT('Supplier Request FORM B'!$D$43,2)=LEFT(A188,2))),MAX($K$1:K187)+1,0) -> 0 | U188: =IF(ISNUMBER(SEARCH('Supplier Request FORM B'!$D$54,C188)),MAX($U$1:U187)+1,0) -> 187 | V188: FORTIS BANQUE S.A./N.V. | Y188: =IF(ISNUMBER(SEARCH('Supplier Request FORM B'!$D$54,C188)),MAX($Y$1:Y187)+1,0) -> 187 | Z188: GEBABEBB36A | AE188: =IF(LEFT('Supplier Request FORM B'!$D$42,1)="F",0,IF(AND((LEFT('Supplier Request FORM B'!$D$42,1)=LEFT(E188,1)),(LEFT('Supplier Request FORM B'!$D$43,2)=LEFT(A188,2))),MAX($AE$1:AE187)+1,0)) -> 0
A189: BE | B189: GEBABEBB07A | C189: FORTIS BANQUE S.A./N.V. (FORMERLY GENERALE DE BANQUE S.A. LI | D189: GEBABEBB07A | E189: CM/C | G189: =IF(ISNUMBER(SEARCH('Supplier Request FORM B'!$D$45,C189)),MAX($G$1:G188)+1,0) -> 188 | H189: FORTIS BANQUE S.A./N.V. (FORMERLY GENERALE DE BANQUE S.A. LI | K189: =IF(AND(('Supplier Request FORM B'!$D$45=C189),(LEFT('Supplier Request FORM B'!$D$42,1)=LEFT(E189,1)),(LEFT('Supplier Request FORM B'!$D$43,2)=LEFT(A189,2))),MAX($K$1:K188)+1,0) -> 0 | U189: =IF(ISNUMBER(SEARCH('Supplier Request FORM B'!$D$54,C189)),MAX($U$1:U188)+1,0) -> 188 | V189: FORTIS BANQUE S.A./N.V. (FORMERLY GENERALE DE BANQUE S.A. LI | Y189: =IF(ISNUMBER(SEARCH('Supplier Request FORM B'!$D$54,C189)),MAX($Y$1:Y188)+1,0) -> 188 | Z189: GEBABEBB07A | AE189: =IF(LEFT('Supplier Request FORM B'!$D$42,1)="F",0,IF(AND((LEFT('Supplier Request FORM B'!$D$42,1)=LEFT(E189,1)),(LEFT('Supplier Request FORM B'!$D$43,2)=LEFT(A189,2))),MAX($AE$1:AE188)+1,0)) -> 0
A190: BE | B190: BBRUBEBB | C190: ING BELGIUM NV/SA (FORMERLY BANK BRUSSELS LAMBERT SA), BRUSS | D190: BBRUBEBB | E190: CM/C | G190: =IF(ISNUMBER(SEARCH('Supplier Request FORM B'!$D$45,C190)),MAX($G$1:G189)+1,0) -> 189 | H190: ING BELGIUM NV/SA (FORMERLY BANK BRUSSELS LAMBERT SA), BRUSS | K190: =IF(AND(('Supplier Request FORM B'!$D$45=C190),(LEFT('Supplier Request FORM B'!$D$42,1)=LEFT(E190,1)),(LEFT('Supplier Request FORM B'!$D$43,2)=LEFT(A190,2))),MAX($K$1:K189)+1,0) -> 0 | U190: =IF(ISNUMBER(SEARCH('Supplier Request FORM B'!$D$54,C190)),MAX($U$1:U189)+1,0) -> 189 | V190: ING BELGIUM NV/SA (FORMERLY BANK BRUSSELS LAMBERT SA), BRUSS | Y190: =IF(ISNUMBER(SEARCH('Supplier Request FORM B'!$D$54,C190)),MAX($Y$1:Y189)+1,0) -> 189 | Z190: BBRUBEBB | AE190: =IF(LEFT('Supplier Request FORM B'!$D$42,1)="F",0,IF(AND((LEFT('Supplier Request FORM B'!$D$42,1)=LEFT(E190,1)),(LEFT('Supplier Request FORM B'!$D$43,2)=LEFT(A190,2))),MAX($AE$1:AE189)+1,0)) -> 0
A191: BE | B191: BBRUBEBB100 | C191: ING BELGIUM NV/SA (FORMERLY BANK BRUSSELS LAMBERT SA), BRUSS | D191: BBRUBEBB100 | E191: CM/C | G191: =IF(ISNUMBER(SEARCH('Supplier Request FORM B'!$D$45,C191)),MAX($G$1:G190)+1,0) -> 190 | H191: ING BELGIUM NV/SA (FORMERLY BANK BRUSSELS LAMBERT SA), BRUSS | K191: =IF(AND(('Supplier Request FORM B'!$D$45=C191),(LEFT('Supplier Request FORM B'!$D$42,1)=LEFT(E191,1)),(LEFT('Supplier Request FORM B'!$D$43,2)=LEFT(A191,2))),MAX($K$1:K190)+1,0) -> 0 | U191: =IF(ISNUMBER(SEARCH('Supplier Request FORM B'!$D$54,C191)),MAX($U$1:U190)+1,0) -> 190 | V191: ING BELGIUM NV/SA (FORMERLY BANK BRUSSELS LAMBERT SA), BRUSS | Y191: =IF(ISNUMBER(SEARCH('Supplier Request FORM B'!$D$54,C191)),MAX($Y$1:Y190)+1,0) -> 190 | Z191: BBRUBEBB100 | AE191: =IF(LEFT('Supplier Request FORM B'!$D$42,1)="F",0,IF(AND((LEFT('Supplier Request FORM B'!$D$42,1)=LEFT(E191,1)),(LEFT('Supplier Request FORM B'!$D$43,2)=LEFT(A191,2))),MAX($AE$1:AE190)+1,0)) -> 0
A192: BE | B192: BBRUBEBB900 | C192: ING BELGIUM NV/SA (FORMERLY BANK BRUSSELS LAMBERT SA), GENT | D192: BBRUBEBB900 | E192: CM/C | G192: =IF(ISNUMBER(SEARCH('Supplier Request FORM B'!$D$45,C192)),MAX($G$1:G191)+1,0) -> 191 | H192: ING BELGIUM NV/SA (FORMERLY BANK BRUSSELS LAMBERT SA), GENT | K192: =IF(AND(('Supplier Request FORM B'!$D$45=C192),(LEFT('Supplier Request FORM B'!$D$42,1)=LEFT(E192,1)),(LEFT('Supplier Request FORM B'!$D$43,2)=LEFT(A192,2))),MAX($K$1:K191)+1,0) -> 0 | U192: =IF(ISNUMBER(SEARCH('Supplier Request FORM B'!$D$54,C192)),MAX($U$1:U191)+1,0) -> 191 | V192: ING BELGIUM NV/SA (FORMERLY BANK BRUSSELS LAMBERT SA), GENT | Y192: =IF(ISNUMBER(SEARCH('Supplier Request FORM B'!$D$54,C192)),MAX($Y$1:Y191)+1,0) -> 191 | Z192: BBRUBEBB900 | AE192: =IF(LEFT('Supplier Request FORM B'!$D$42,1)="F",0,IF(AND((LEFT('Supplier Request FORM B'!$D$42,1)=LEFT(E192,1)),(LEFT('Supplier Request FORM B'!$D$43,2)=LEFT(A192,2))),MAX($AE$1:AE191)+1,0)) -> 0
A193: BE | B193: BBRUBEBB400 | C193: ING BELGIUM NV/SA (FORMERLY BANK BRUSSELS LAMBERT SA), LIE | D193: BBRUBEBB400 | E193: CM/C | G193: =IF(ISNUMBER(SEARCH('Supplier Request FORM B'!$D$45,C193)),MAX($G$1:G192)+1,0) -> 192 | H193: ING BELGIUM NV/SA (FORMERLY BANK BRUSSELS LAMBERT SA), LIE | K193: =IF(AND(('Supplier Request FORM B'!$D$45=C193),(LEFT('Supplier Request FORM B'!$D$42,1)=LEFT(E193,1)),(LEFT('Supplier Request FORM B'!$D$43,2)=LEFT(A193,2))),MAX($K$1:K192)+1,0) -> 0 | U193: =IF(ISNUMBER(SEARCH('Supplier Request FORM B'!$D$54,C193)),MAX($U$1:U192)+1,0) -> 192 | V193: ING BELGIUM NV/SA (FORMERLY BANK BRUSSELS LAMBERT SA), LIE | Y193: =IF(ISNUMBER(SEARCH('Supplier Request FORM B'!$D$54,C193)),MAX($Y$1:Y192)+1,0) -> 192 | Z193: BBRUBEBB400 | AE193: =IF(LEFT('Supplier Request FORM B'!$D$42,1)="F",0,IF(AND((LEFT('Supplier Request FORM B'!$D$42,1)=LEFT(E193,1)),(LEFT('Supplier Request FORM B'!$D$43,2)=LEFT(A193,2))),MAX($AE$1:AE192)+1,0)) -> 0
A194: BE | B194: JPMGBEBB | C194: JP MORGAN INTERNATIONAL BANK | D194: JPMGBEBB | E194: CM/C | G194: =IF(ISNUMBER(SEARCH('Supplier Request FORM B'!$D$45,C194)),MAX($G$1:G193)+1,0) -> 193 | H194: =IFERROR(INDEX($C:$C,MATCH(ROW(H193),$G:$G,0)),"") -> JP MORGAN INTERNATIONAL BANK | K194: =IF(AND(('Supplier Request FORM B'!$D$45=C194),(LEFT('Supplier Request FORM B'!$D$42,1)=LEFT(E194,1)),(LEFT('Supplier Request FORM B'!$D$43,2)=LEFT(A194,2))),MAX($K$1:K193)+1,0) -> 0 | L194: =IFERROR(INDEX($D:$D,MATCH(ROW(L193),$K:$K,0)),"") ->  | U194: =IF(ISNUMBER(SEARCH('Supplier Request FORM B'!$D$54,C194)),MAX($U$1:U193)+1,0) -> 193 | V194: =IFERROR(INDEX($C:$C,MATCH(ROW(V193),U:U,0)),"") -> JP MORGAN INTERNATIONAL BANK | Y194: =IF(ISNUMBER(SEARCH('Supplier Request FORM B'!$D$54,C194)),MAX($Y$1:Y193)+1,0) -> 193 | Z194: =IFERROR(INDEX($D:$D,MATCH(ROW(Z193),$Y:$Y,0)),"") -> JPMGBEBB | AE194: =IF(LEFT('Supplier Request FORM B'!$D$42,1)="F",0,IF(AND((LEFT('Supplier Request FORM B'!$D$42,1)=LEFT(E194,1)),(LEFT('Supplier Request FORM B'!$D$43,2)=LEFT(A194,2))),MAX($AE$1:AE193)+1,0)) -> 0 | AF194: =IFERROR(INDEX(C:C,MATCH(ROW(AF193),AE:AE,0)),"") -> 
A195: BE | B195: KREDBEBB | C195: KBC BANK NV | D195: KREDBEBB | E195: CM/C | G195: =IF(ISNUMBER(SEARCH('Supplier Request FORM B'!$D$45,C195)),MAX($G$1:G194)+1,0) -> 194 | H195: KBC BANK NV | K195: =IF(AND(('Supplier Request FORM B'!$D$45=C195),(LEFT('Supplier Request FORM B'!$D$42,1)=LEFT(E195,1)),(LEFT('Supplier Request FORM B'!$D$43,2)=LEFT(A195,2))),MAX($K$1:K194)+1,0) -> 0 | U195: =IF(ISNUMBER(SEARCH('Supplier Request FORM B'!$D$54,C195)),MAX($U$1:U194)+1,0) -> 194 | V195: KBC BANK NV | Y195: =IF(ISNUMBER(SEARCH('Supplier Request FORM B'!$D$54,C195)),MAX($Y$1:Y194)+1,0) -> 194 | Z195: KREDBEBB | AE195: =IF(LEFT('Supplier Request FORM B'!$D$42,1)="F",0,IF(AND((LEFT('Supplier Request FORM B'!$D$42,1)=LEFT(E195,1)),(LEFT('Supplier Request FORM B'!$D$43,2)=LEFT(A195,2))),MAX($AE$1:AE194)+1,0)) -> 0
A196: BE | B196: KEYTBEBB | C196: KEYTRADE BANK SA/NV | D196: KEYTBEBB | E196: CM/C | G196: =IF(ISNUMBER(SEARCH('Supplier Request FORM B'!$D$45,C196)),MAX($G$1:G195)+1,0) -> 195 | H196: KEYTRADE BANK SA/NV | K196: =IF(AND(('Supplier Request FORM B'!$D$45=C196),(LEFT('Supplier Request FORM B'!$D$42,1)=LEFT(E196,1)),(LEFT('Supplier Request FORM B'!$D$43,2)=LEFT(A196,2))),MAX($K$1:K195)+1,0) -> 0 | U196: =IF(ISNUMBER(SEARCH('Supplier Request FORM B'!$D$54,C196)),MAX($U$1:U195)+1,0) -> 195 | V196: KEYTRADE BANK SA/NV | Y196: =IF(ISNUMBER(SEARCH('Supplier Request FORM B'!$D$54,C196)),MAX($Y$1:Y195)+1,0) -> 195 | Z196: KEYTBEBB | AE196: =IF(LEFT('Supplier Request FORM B'!$D$42,1)="F",0,IF(AND((LEFT('Supplier Request FORM B'!$D$42,1)=LEFT(E196,1)),(LEFT('Supplier Request FORM B'!$D$43,2)=LEFT(A196,2))),MAX($AE$1:AE195)+1,0)) -> 0
A197: BE | B197: TRWIBEB1 | C197: TRANSFERWISE EUROPE SA/NV | D197: TRWIBEB1 | E197: CM/C | G197: =IF(ISNUMBER(SEARCH('Supplier Request FORM B'!$D$45,C197)),MAX($G$1:G196)+1,0) -> 196 | H197: TRANSFERWISE EUROPE SA/NV | K197: =IF(AND(('Supplier Request FORM B'!$D$45=C197),(LEFT('Supplier Request FORM B'!$D$42,1)=LEFT(E197,1)),(LEFT('Supplier Request FORM B'!$D$43,2)=LEFT(A197,2))),MAX($K$1:K196)+1,0) -> 0 | U197: =IF(ISNUMBER(SEARCH('Supplier Request FORM B'!$D$54,C197)),MAX($U$1:U196)+1,0) -> 196 | V197: TRANSFERWISE EUROPE SA/NV | Y197: =IF(ISNUMBER(SEARCH('Supplier Request FORM B'!$D$54,C197)),MAX($Y$1:Y196)+1,0) -> 196 | Z197: TRWIBEB1 | AE197: =IF(LEFT('Supplier Request FORM B'!$D$42,1)="F",0,IF(AND((LEFT('Supplier Request FORM B'!$D$42,1)=LEFT(E197,1)),(LEFT('Supplier Request FORM B'!$D$43,2)=LEFT(A197,2))),MAX($AE$1:AE196)+1,0)) -> 0
A198: BG | B198: FINVBGSF | C198: FIRST INVESTMENT BANK LTD | D198: FINVBGSF | E198: CM/C | G198: =IF(ISNUMBER(SEARCH('Supplier Request FORM B'!$D$45,C198)),MAX($G$1:G197)+1,0) -> 197 | H198: FIRST INVESTMENT BANK LTD | K198: =IF(AND(('Supplier Request FORM B'!$D$45=C198),(LEFT('Supplier Request FORM B'!$D$42,1)=LEFT(E198,1)),(LEFT('Supplier Request FORM B'!$D$43,2)=LEFT(A198,2))),MAX($K$1:K197)+1,0) -> 0 | U198: =IF(ISNUMBER(SEARCH('Supplier Request FORM B'!$D$54,C198)),MAX($U$1:U197)+1,0) -> 197 | V198: FIRST INVESTMENT BANK LTD | Y198: =IF(ISNUMBER(SEARCH('Supplier Request FORM B'!$D$54,C198)),MAX($Y$1:Y197)+1,0) -> 197 | Z198: FINVBGSF | AE198: =IF(LEFT('Supplier Request FORM B'!$D$42,1)="F",0,IF(AND((LEFT('Supplier Request FORM B'!$D$42,1)=LEFT(E198,1)),(LEFT('Supplier Request FORM B'!$D$43,2)=LEFT(A198,2))),MAX($AE$1:AE197)+1,0)) -> 0
A199: BG | B199: RZBBBGSF | C199: RAIFFEISENBANK (BULGARIA) EAD | D199: RZBBBGSF | E199: CM/C | G199: =IF(ISNUMBER(SEARCH('Supplier Request FORM B'!$D$45,C199)),MAX($G$1:G198)+1,0) -> 198 | H199: RAIFFEISENBANK (BULGARIA) EAD | K199: =IF(AND(('Supplier Request FORM B'!$D$45=C199),(LEFT('Supplier Request FORM B'!$D$42,1)=LEFT(E199,1)),(LEFT('Supplier Request FORM B'!$D$43,2)=LEFT(A199,2))),MAX($K$1:K198)+1,0) -> 0 | U199: =IF(ISNUMBER(SEARCH('Supplier Request FORM B'!$D$54,C199)),MAX($U$1:U198)+1,0) -> 198 | V199: RAIFFEISENBANK (BULGARIA) EAD | Y199: =IF(ISNUMBER(SEARCH('Supplier Request FORM B'!$D$54,C199)),MAX($Y$1:Y198)+1,0) -> 198 | Z199: RZBBBGSF | AE199: =IF(LEFT('Supplier Request FORM B'!$D$42,1)="F",0,IF(AND((LEFT('Supplier Request FORM B'!$D$42,1)=LEFT(E199,1)),(LEFT('Supplier Request FORM B'!$D$43,2)=LEFT(A199,2))),MAX($AE$1:AE198)+1,0)) -> 0
A200: BG | B200: UNCRBGSF | C200: UNICREDIT BULBANK AD | D200: UNCRBGSF | E200: CM/C | G200: =IF(ISNUMBER(SEARCH('Supplier Request FORM B'!$D$45,C200)),MAX($G$1:G199)+1,0) -> 199 | H200: UNICREDIT BULBANK AD | K200: =IF(AND(('Supplier Request FORM B'!$D$45=C200),(LEFT('Supplier Request FORM B'!$D$42,1)=LEFT(E200,1)),(LEFT('Supplier Request FORM B'!$D$43,2)=LEFT(A200,2))),MAX($K$1:K199)+1,0) -> 0 | U200: =IF(ISNUMBER(SEARCH('Supplier Request FORM B'!$D$54,C200)),MAX($U$1:U199)+1,0) -> 199 | V200: UNICREDIT BULBANK AD | Y200: =IF(ISNUMBER(SEARCH('Supplier Request FORM B'!$D$54,C200)),MAX($Y$1:Y199)+1,0) -> 199 | Z200: UNCRBGSF | AE200: =IF(LEFT('Supplier Request FORM B'!$D$42,1)="F",0,IF(AND((LEFT('Supplier Request FORM B'!$D$42,1)=LEFT(E200,1)),(LEFT('Supplier Request FORM B'!$D$43,2)=LEFT(A200,2))),MAX($AE$1:AE199)+1,0)) -> 0
... 2050 more rows

Sheet Mapping (hidden)
B1: Payment method | C1: Industry | D1: Country | E1: Working (A) | F1: Country List (A) | G1: Working (B) | H1: Country List (B) | I1: DropdownList | J1: Working (C) | K1: Country List (C) | L1: DropdownList | M1: Company code | N1: Bank number | O1: Bank number | P1: Type | Q1: Department code | R1: Working (A) | S1: Department List (A) | T1: Working (B) | U1: Department List (B) | V1: Working (C) | W1: Department List (C) | Y1: Currency | Z1: Restricted Country | AA1: Restricted-Currency | AB1: BP Account name (60 Chars) | AD1: Co code & paymt method | AE1: Paymt method
B2: C-Cross Border Transfer (TT) | C2: AS-NUS ASSOCIATED CO | D2: 1A-BRIT.NATL.OVS. | E2: =IF(ISNUMBER(SEARCH(#REF!,D2)),MAX($E$1:E1)+1,0) -> 0 | F2: =IFERROR(INDEX($D:$D,MATCH(ROW(F1),$E:$E,0)),"") ->  | G2: =IF(ISNUMBER(SEARCH('Supplier Request FORM B'!$D$25,D2)),MAX($G$1:G1)+1,0) -> 1 | H2: =IFERROR(INDEX($D:$D,MATCH(ROW(H1),$G:$G,0)),"") -> 1A-BRIT.NATL.OVS. | I2: =OFFSET(Mapping!$H$2,,,MAX(Mapping!$G$2:$G$262)) -> 1A-BRIT.NATL.OVS. | J2: =IF(ISNUMBER(SEARCH(#REF!,D2)),MAX($J$1:J1)+1,0) -> 0 | K2: =IFERROR(INDEX($D:$D,MATCH(ROW(K1),$J:$J,0)),"") ->  | M2: N001 National University of Singapore | N2: FW031312026 | O2: FW031312026 | P2: NRIC / FIN | Q2: 002-OFFICE OF STUDENT AFFAIRS (OSA) | R2: =IF(ISNUMBER(SEARCH(#REF!,Q2)),MAX($R$1:R1)+1,0) -> 0 | S2: =IFERROR(INDEX(Q:Q,MATCH(ROW(S1),R:R,0)),"") ->  | T2: =IF(ISNUMBER(SEARCH('Supplier Request FORM B'!$D$11,Q2)),MAX($T$1:T1)+1,0) -> 1 | U2: =IFERROR(INDEX(Q:Q,MATCH(ROW(U1),T:T,0)),"") -> 002-OFFICE OF STUDENT AFFAIRS (OSA) | V2: =IF(ISNUMBER(SEARCH(#REF!,Q2)),MAX($V$1:V1)+1,0) -> 0 | W2: =IFERROR(INDEX(Q:Q,MATCH(ROW(W1),V:V,0)),"") ->  | Y2: ATS -Austrian Schilling | Z2: BD | AA2: BDT | AB2: TEL | AC2: =Z2&" - "&AA2& " - "&AB2 -> BD - BDT - TEL | AD2: N001A | AE2: AK
B3: G-GIRO for SG banks | C3: C -COMPANIES | D3: AD-ANDORRA | E3: =IF(ISNUMBER(SEARCH(#REF!,D3)),MAX($E$1:E2)+1,0) -> 0 | F3: =IFERROR(INDEX($D:$D,MATCH(ROW(F2),$E:$E,0)),"") ->  | G3: =IF(ISNUMBER(SEARCH('Supplier Request FORM B'!$D$25,D3)),MAX($G$1:G2)+1,0) -> 2 | H3: =IFERROR(INDEX($D:$D,MATCH(ROW(H2),$G:$G,0)),"") -> AD-ANDORRA | J3: =IF(ISNUMBER(SEARCH(#REF!,D3)),MAX($J$1:J2)+1,0) -> 0 | K3: =IFERROR(INDEX($D:$D,MATCH(ROW(K2),$J:$J,0)),"") ->  | M3: N002 NUS High School of Mathematics and Science (NUSHS) | N3: FW071212128 | O3: FW071212128 | P3: Passport No. | Q3: 003-OFFICE OF THE UNIVERSITY REGISTRAR (OUR) | R3: =IF(ISNUMBER(SEARCH(#REF!,Q3)),MAX($R$1:R2)+1,0) -> 0 | S3: =IFERROR(INDEX(Q:Q,MATCH(ROW(S2),R:R,0)),"") ->  | T3: =IF(ISNUMBER(SEARCH('Supplier Request FORM B'!$D$11,Q3)),MAX($T$1:T2)+1,0) -> 2 | U3: =IFERROR(INDEX(Q:Q,MATCH(ROW(U2),T:T,0)),"") -> 003-OFFICE OF THE UNIVERSITY REGISTRAR (OUR) | V3: =IF(ISNUMBER(SEARCH(#REF!,Q3)),MAX($V$1:V2)+1,0) -> 0 | W3: =IFERROR(INDEX(Q:Q,MATCH(ROW(W2),V:V,0)),"") ->  | Y3: AUD -Australian Dollar | Z3: CN | AA3: CNY | AB3: TEL | AC3: CN - CNY - TEL | AD3: N001C | AE3: CM
B4: F-PayNow Fast for local bank | C4: F -FOUNDATIONS | D4: AE-UTD.ARAB EMIR. | E4: =IF(ISNUMBER(SEARCH(#REF!,D4)),MAX($E$1:E3)+1,0) -> 0 | G4: =IF(ISNUMBER(SEARCH('Supplier Request FORM B'!$D$25,D4)),MAX($G$1:G3)+1,0) -> 3 | H4: =IFERROR(INDEX($D:$D,MATCH(ROW(H3),$G:$G,0)),"") -> AE-UTD.ARAB EMIR. | J4: =IF(ISNUMBER(SEARCH(#REF!,D4)),MAX($J$1:J3)+1,0) -> 0 | M4: N003 Singapore International Mediation Institute Limited (SIMI) | N4: SC090127 | O4: SC090127 | P4: Local | Q4: 015-NUS MUSEUM | R4: =IF(ISNUMBER(SEARCH(#REF!,Q4)),MAX($R$1:R3)+1,0) -> 0 | T4: =IF(ISNUMBER(SEARCH('Supplier Request FORM B'!$D$11,Q4)),MAX($T$1:T3)+1,0) -> 3 | U4: 015-NUS MUSEUM | V4: =IF(ISNUMBER(SEARCH(#REF!,Q4)),MAX($V$1:V3)+1,0) -> 0 | Y4: BDT -BANGLADESH TAKA | Z4: IN | AA4: INR | AB4: IFSC | AC4: IN - INR - IFSC | AD4: N001G | AE4: GQ
C5: G -GOVT MINISTRIES | D5: AF-AFGHANISTAN | E5: =IF(ISNUMBER(SEARCH(#REF!,D5)),MAX($E$1:E4)+1,0) -> 0 | G5: =IF(ISNUMBER(SEARCH('Supplier Request FORM B'!$D$25,D5)),MAX($G$1:G4)+1,0) -> 4 | H5: AF-AFGHANISTAN | J5: =IF(ISNUMBER(SEARCH(#REF!,D5)),MAX($J$1:J4)+1,0) -> 0 | N5: SC090126 | O5: SC090126 | P5: Overseas | Q5: 016-OFFICE OF ESTATE DEVELOPMENT (OED) | R5: =IF(ISNUMBER(SEARCH(#REF!,Q5)),MAX($R$1:R4)+1,0) -> 0 | T5: =IF(ISNUMBER(SEARCH('Supplier Request FORM B'!$D$11,Q5)),MAX($T$1:T4)+1,0) -> 4 | U5: 016-OFFICE OF ESTATE DEVELOPMENT (OED) | V5: =IF(ISNUMBER(SEARCH(#REF!,Q5)),MAX($V$1:V4)+1,0) -> 0 | Y5: BEF -Belgian Franc | Z5: KR | AA5: KRW | AB5: TEL | AC5: KR - KRW - TEL | AD5: N001F | AE5: FP
C6: GE-GOVT MIN - eINVOICE | D6: AG-ANTIGUA/BARBUDA | E6: =IF(ISNUMBER(SEARCH(#REF!,D6)),MAX($E$1:E5)+1,0) -> 0 | G6: =IF(ISNUMBER(SEARCH('Supplier Request FORM B'!$D$25,D6)),MAX($G$1:G5)+1,0) -> 5 | H6: AG-ANTIGUA/BARBUDA | J6: =IF(ISNUMBER(SEARCH(#REF!,D6)),MAX($J$1:J5)+1,0) -> 0 | N6: FW026009580 | O6: FW026009580 | Q6: 019-OFFICE OF ADMISSIONS (OAM) | R6: =IF(ISNUMBER(SEARCH(#REF!,Q6)),MAX($R$1:R5)+1,0) -> 0 | T6: =IF(ISNUMBER(SEARCH('Supplier Request FORM B'!$D$11,Q6)),MAX($T$1:T5)+1,0) -> 5 | U6: 019-OFFICE OF ADMISSIONS (OAM) | V6: =IF(ISNUMBER(SEARCH(#REF!,Q6)),MAX($V$1:V5)+1,0) -> 0 | Y6: BND -BRUNEI DOLLAR | Z6: MY | AA6: MYR | AB6: TEL | AC6: MY - MYR - TEL | AD6: N002A | AE6: A
C7: N -NON-PROFIT ORGN | D7: AI-ANGUILLA | E7: =IF(ISNUMBER(SEARCH(#REF!,D7)),MAX($E$1:E6)+1,0) -> 0 | G7: =IF(ISNUMBER(SEARCH('Supplier Request FORM B'!$D$25,D7)),MAX($G$1:G6)+1,0) -> 6 | H7: AI-ANGUILLA | J7: =IF(ISNUMBER(SEARCH(#REF!,D7)),MAX($J$1:J6)+1,0) -> 0 | N7: FW221379895 | O7: FW221379895 | Q7: 021-OFFICE OF HUMAN RESOURCE (OHR) | R7: =IF(ISNUMBER(SEARCH(#REF!,Q7)),MAX($R$1:R6)+1,0) -> 0 | T7: =IF(ISNUMBER(SEARCH('Supplier Request FORM B'!$D$11,Q7)),MAX($T$1:T6)+1,0) -> 6 | U7: 021-OFFICE OF HUMAN RESOURCE (OHR) | V7: =IF(ISNUMBER(SEARCH(#REF!,Q7)),MAX($V$1:V6)+1,0) -> 0 | Y7: CAD -Canadian Dollar | Z7: PK | AA7: PKR | AB7: TEL | AC7: PK - PKR - TEL | AD7: N002C | AE7: C
C8: O -OTHERS | D8: AL-ALBANIA | E8: =IF(ISNUMBER(SEARCH(#REF!,D8)),MAX($E$1:E7)+1,0) -> 0 | G8: =IF(ISNUMBER(SEARCH('Supplier Request FORM B'!$D$25,D8)),MAX($G$1:G7)+1,0) -> 7 | H8: AL-ALBANIA | J8: =IF(ISNUMBER(SEARCH(#REF!,D8)),MAX($J$1:J7)+1,0) -> 0 | N8: FW056009039 | O8: FW056009039 | Q8: 027-OFFICE OF THE SR DY PRESIDENT & PROVOST (SDPPVO) | R8: =IF(ISNUMBER(SEARCH(#REF!,Q8)),MAX($R$1:R7)+1,0) -> 0 | T8: =IF(ISNUMBER(SEARCH('Supplier Request FORM B'!$D$11,Q8)),MAX($T$1:T7)+1,0) -> 7 | U8: 027-OFFICE OF THE SR DY PRESIDENT & PROVOST (SDPPVO) | V8: =IF(ISNUMBER(SEARCH(#REF!,Q8)),MAX($V$1:V7)+1,0) -> 0 | Y8: CHF -Swiss Franc | Z8: TW | AA8: TWD | AB8: TEL | AC8: TW - TWD - TEL | AD8: N002G | AE8: G
C9: P -INDIVIDUAL | D9: AM-ARMENIA | E9: =IF(ISNUMBER(SEARCH(#REF!,D9)),MAX($E$1:E8)+1,0) -> 0 | G9: =IF(ISNUMBER(SEARCH('Supplier Request FORM B'!$D$25,D9)),MAX($G$1:G8)+1,0) -> 8 | H9: AM-ARMENIA | J9: =IF(ISNUMBER(SEARCH(#REF!,D9)),MAX($J$1:J8)+1,0) -> 0 | N9: AU610101 | O9: AU610101 | Q9: 031-OFFICE OF THE PRESIDENT (UPR) | R9: =IF(ISNUMBER(SEARCH(#REF!,Q9)),MAX($R$1:R8)+1,0) -> 0 | T9: =IF(ISNUMBER(SEARCH('Supplier Request FORM B'!$D$11,Q9)),MAX($T$1:T8)+1,0) -> 8 | U9: 031-OFFICE OF THE PRESIDENT (UPR) | V9: =IF(ISNUMBER(SEARCH(#REF!,Q9)),MAX($V$1:V8)+1,0) -> 0 | Y9: CNY -YUAN RENMINBI | Z9: ID | AA9: IDR | AB9: SKN | AC9: ID - IDR - SKN | AD9: N002F | AE9: F
C10: S -STATUTORY BOARDS | D10: AN-DUTCH ANTILLES | E10: =IF(ISNUMBER(SEARCH(#REF!,D10)),MAX($E$1:E9)+1,0) -> 0 | G10: =IF(ISNUMBER(SEARCH('Supplier Request FORM B'!$D$25,D10)),MAX($G$1:G9)+1,0) -> 9 | H10: AN-DUTCH ANTILLES | J10: =IF(ISNUMBER(SEARCH(#REF!,D10)),MAX($J$1:J9)+1,0) -> 0 | N10: FW323075181 | O10: FW323075181 | Q10: 033-CORPORATE ADMINISTRATION | R10: =IF(ISNUMBER(SEARCH(#REF!,Q10)),MAX($R$1:R9)+1,0) -> 0 | T10: =IF(ISNUMBER(SEARCH('Supplier Request FORM B'!$D$11,Q10)),MAX($T$1:T9)+1,0) -> 9 | U10: 033-CORPORATE ADMINISTRATION | V10: =IF(ISNUMBER(SEARCH(#REF!,Q10)),MAX($V$1:V9)+1,0) -> 0 | Y10: CYP -CYPRUS POUND | Z10: TH | AA10: THB | AB10: NA | AC10: TH - THB - NA | AD10: N003A | AE10: A
C11: SE-STAT BOARD -eINVOICE | D11: AO-ANGOLA | E11: =IF(ISNUMBER(SEARCH(#REF!,D11)),MAX($E$1:E10)+1,0) -> 0 | G11: =IF(ISNUMBER(SEARCH('Supplier Request FORM B'!$D$25,D11)),MAX($G$1:G10)+1,0) -> 10 | H11: AO-ANGOLA | J11: =IF(ISNUMBER(SEARCH(#REF!,D11)),MAX($J$1:J10)+1,0) -> 0 | N11: FW261170931 | O11: FW261170931 | Q11: 034-NUS OVERSEAS COLLEGES (NUS OVS COLL) | R11: =IF(ISNUMBER(SEARCH(#REF!,Q11)),MAX($R$1:R10)+1,0) -> 0 | T11: =IF(ISNUMBER(SEARCH('Supplier Request FORM B'!$D$11,Q11)),MAX($T$1:T10)+1,0) -> 10 | U11: 034-NUS OVERSEAS COLLEGES (NUS OVS COLL) | V11: =IF(ISNUMBER(SEARCH(#REF!,Q11)),MAX($V$1:V10)+1,0) -> 0 | Y11: DEM -German Mark | Z11: BR | AA11: BRL | AB11: TEL | AC11: BR - BRL - TEL | AD11: N003C | AE11: C
C12: SU-NUS SUBSIDIARIES | D12: AQ-ANTARCTICA | E12: =IF(ISNUMBER(SEARCH(#REF!,D12)),MAX($E$1:E11)+1,0) -> 0 | G12: =IF(ISNUMBER(SEARCH('Supplier Request FORM B'!$D$25,D12)),MAX($G$1:G11)+1,0) -> 11 | H12: AQ-ANTARCTICA | J12: =IF(ISNUMBER(SEARCH(#REF!,D12)),MAX($J$1:J11)+1,0) -> 0 | N12: FW296076301 | O12: FW296076301 | Q12: 036-ECOSYSTEM BUILDER PROGRAMMES | R12: =IF(ISNUMBER(SEARCH(#REF!,Q12)),MAX($R$1:R11)+1,0) -> 0 | T12: =IF(ISNUMBER(SEARCH('Supplier Request FORM B'!$D$11,Q12)),MAX($T$1:T11)+1,0) -> 11 | U12: 036-ECOSYSTEM BUILDER PROGRAMMES | V12: =IF(ISNUMBER(SEARCH(#REF!,Q12)),MAX($V$1:V11)+1,0) -> 0 | Y12: DKK -Danish Krone | Z12: RU | AA12: RUB | AB12: VO | AC12: RU - RUB - VO | AD12: N003G | AE12: G
C13: T -TRUSTS FUND/ ESTATES | D13: AR-ARGENTINA | E13: =IF(ISNUMBER(SEARCH(#REF!,D13)),MAX($E$1:E12)+1,0) -> 0 | G13: =IF(ISNUMBER(SEARCH('Supplier Request FORM B'!$D$25,D13)),MAX($G$1:G12)+1,0) -> 12 | H13: AR-ARGENTINA | J13: =IF(ISNUMBER(SEARCH(#REF!,D13)),MAX($J$1:J12)+1,0) -> 0 | N13: SC932132 | O13: SC932132 | Q13: 039-NUS ENTERPRISE ACADEMY (NEA) | R13: =IF(ISNUMBER(SEARCH(#REF!,Q13)),MAX($R$1:R12)+1,0) -> 0 | T13: =IF(ISNUMBER(SEARCH('Supplier Request FORM B'!$D$11,Q13)),MAX($T$1:T12)+1,0) -> 12 | U13: 039-NUS ENTERPRISE ACADEMY (NEA) | V13: =IF(ISNUMBER(SEARCH(#REF!,Q13)),MAX($V$1:V12)+1,0) -> 0 | Y13: ECU -European currency unit | Z13: US | AA13: USD | AB13: NA | AC13: US - USD - NA | AD13: N003F | AE13: F
C14: UN-UNI UNDER MOE | D14: AS-SAMOA,AMERICAN | E14: =IF(ISNUMBER(SEARCH(#REF!,D14)),MAX($E$1:E13)+1,0) -> 0 | G14: =IF(ISNUMBER(SEARCH('Supplier Request FORM B'!$D$25,D14)),MAX($G$1:G13)+1,0) -> 13 | H14: AS-SAMOA,AMERICAN | J14: =IF(ISNUMBER(SEARCH(#REF!,D14)),MAX($J$1:J13)+1,0) -> 0 | N14: FW091300159 | O14: FW091300159 | Q14: 040-OFFICE OF UNIVERSITY COMMUNICATIONS (UCO) | R14: =IF(ISNUMBER(SEARCH(#REF!,Q14)),MAX($R$1:R13)+1,0) -> 0 | T14: =IF(ISNUMBER(SEARCH('Supplier Request FORM B'!$D$11,Q14)),MAX($T$1:T13)+1,0) -> 13 | U14: 040-OFFICE OF UNIVERSITY COMMUNICATIONS (UCO) | V14: =IF(ISNUMBER(SEARCH(#REF!,Q14)),MAX($V$1:V13)+1,0) -> 0 | Y14: ESP -Spanish Peseta | Z14: CA | AA14: CAD | AB14: NA | AC14: CA - CAD - NA
C15: V -FOREIGN GOV/HIGHCOMM | D15: AT-AUSTRIA | E15: =IF(ISNUMBER(SEARCH(#REF!,D15)),MAX($E$1:E14)+1,0) -> 0 | G15: =IF(ISNUMBER(SEARCH('Supplier Request FORM B'!$D$25,D15)),MAX($G$1:G14)+1,0) -> 14 | H15: AT-AUSTRIA | J15: =IF(ISNUMBER(SEARCH(#REF!,D15)),MAX($J$1:J14)+1,0) -> 0 | N15: SC725004 | O15: SC725004 | Q15: 041-OFFICE OF LEGAL AFFAIRS (OLA) | R15: =IF(ISNUMBER(SEARCH(#REF!,Q15)),MAX($R$1:R14)+1,0) -> 0 | T15: =IF(ISNUMBER(SEARCH('Supplier Request FORM B'!$D$11,Q15)),MAX($T$1:T14)+1,0) -> 14 | U15: 041-OFFICE OF LEGAL AFFAIRS (OLA) | V15: =IF(ISNUMBER(SEARCH(#REF!,Q15)),MAX($V$1:V14)+1,0) -> 0 | Y15: EUR -Currency of EMU members | Z15: GB | AA15: GBP | AB15: NA | AC15: GB - GBP - NA
D16: AU-AUSTRALIA | E16: =IF(ISNUMBER(SEARCH(#REF!,D16)),MAX($E$1:E15)+1,0) -> 0 | G16: =IF(ISNUMBER(SEARCH('Supplier Request FORM B'!$D$25,D16)),MAX($G$1:G15)+1,0) -> 15 | H16: AU-AUSTRALIA | J16: =IF(ISNUMBER(SEARCH(#REF!,D16)),MAX($J$1:J15)+1,0) -> 0 | N16: SC725005 | O16: SC725005 | Q16: 042-INVESTMENT OFFICE | R16: =IF(ISNUMBER(SEARCH(#REF!,Q16)),MAX($R$1:R15)+1,0) -> 0 | T16: =IF(ISNUMBER(SEARCH('Supplier Request FORM B'!$D$11,Q16)),MAX($T$1:T15)+1,0) -> 15 | U16: 042-INVESTMENT OFFICE | V16: =IF(ISNUMBER(SEARCH(#REF!,Q16)),MAX($V$1:V15)+1,0) -> 0 | Y16: FIM -Finnish Markka | Z16: AU | AA16: AUD | AB16: NA | AC16: AU - AUD - NA
D17: AW-ARUBA | E17: =IF(ISNUMBER(SEARCH(#REF!,D17)),MAX($E$1:E16)+1,0) -> 0 | G17: =IF(ISNUMBER(SEARCH('Supplier Request FORM B'!$D$25,D17)),MAX($G$1:G16)+1,0) -> 16 | H17: AW-ARUBA | J17: =IF(ISNUMBER(SEARCH(#REF!,D17)),MAX($J$1:J16)+1,0) -> 0 | N17: FW021303511 | O17: FW021303511 | Q17: 051-NUS INFORMATION TECHNOLOGY (NUS IT) | R17: =IF(ISNUMBER(SEARCH(#REF!,Q17)),MAX($R$1:R16)+1,0) -> 0 | T17: =IF(ISNUMBER(SEARCH('Supplier Request FORM B'!$D$11,Q17)),MAX($T$1:T16)+1,0) -> 16 | U17: 051-NUS INFORMATION TECHNOLOGY (NUS IT) | V17: =IF(ISNUMBER(SEARCH(#REF!,Q17)),MAX($V$1:V16)+1,0) -> 0 | Y17: FRF -French Franc | Z17: VN | AA17: VND | AB17: NA | AC17: VN - VND - NA
D18: AZ-AZERBAIJAN | E18: =IF(ISNUMBER(SEARCH(#REF!,D18)),MAX($E$1:E17)+1,0) -> 0 | G18: =IF(ISNUMBER(SEARCH('Supplier Request FORM B'!$D$25,D18)),MAX($G$1:G17)+1,0) -> 17 | H18: AZ-AZERBAIJAN | J18: =IF(ISNUMBER(SEARCH(#REF!,D18)),MAX($J$1:J17)+1,0) -> 0 | N18: FW271081528 | O18: FW271081528 | Q18: 053-LIBRARY | R18: =IF(ISNUMBER(SEARCH(#REF!,Q18)),MAX($R$1:R17)+1,0) -> 0 | T18: =IF(ISNUMBER(SEARCH('Supplier Request FORM B'!$D$11,Q18)),MAX($T$1:T17)+1,0) -> 17 | U18: 053-LIBRARY | V18: =IF(ISNUMBER(SEARCH(#REF!,Q18)),MAX($V$1:V17)+1,0) -> 0 | Y18: GBP -British Pound
D19: BA-BOSNIA-HERZ. | E19: =IF(ISNUMBER(SEARCH(#REF!,D19)),MAX($E$1:E18)+1,0) -> 0 | G19: =IF(ISNUMBER(SEARCH('Supplier Request FORM B'!$D$25,D19)),MAX($G$1:G18)+1,0) -> 18 | H19: BA-BOSNIA-HERZ. | J19: =IF(ISNUMBER(SEARCH(#REF!,D19)),MAX($J$1:J18)+1,0) -> 0 | N19: FW271987635 | O19: FW271987635 | Q19: 055-CENTRE FOR DEVT. OF TEACHING & LEARNING (CDTL) *Till 31 Mar 2024 | R19: =IF(ISNUMBER(SEARCH(#REF!,Q19)),MAX($R$1:R18)+1,0) -> 0 | T19: =IF(ISNUMBER(SEARCH('Supplier Request FORM B'!$D$11,Q19)),MAX($T$1:T18)+1,0) -> 18 | U19: 055-CENTRE FOR DEVT. OF TEACHING & LEARNING (CDTL) *Till 31 Mar 2024 | V19: =IF(ISNUMBER(SEARCH(#REF!,Q19)),MAX($V$1:V18)+1,0) -> 0 | Y19: HKD -HONG KONG DOLLAR
D20: BB-BARBADOS | E20: =IF(ISNUMBER(SEARCH(#REF!,D20)),MAX($E$1:E19)+1,0) -> 0 | G20: =IF(ISNUMBER(SEARCH('Supplier Request FORM B'!$D$25,D20)),MAX($G$1:G19)+1,0) -> 19 | H20: BB-BARBADOS | J20: =IF(ISNUMBER(SEARCH(#REF!,D20)),MAX($J$1:J19)+1,0) -> 0 | N20: FW124003116 | O20: FW124003116 | Q20: 062-CENTRE FOR INSTRUCTIONAL TECHNOLOGY (CIT) *Till 31 Mar 2024 | R20: =IF(ISNUMBER(SEARCH(#REF!,Q20)),MAX($R$1:R19)+1,0) -> 0 | T20: =IF(ISNUMBER(SEARCH('Supplier Request FORM B'!$D$11,Q20)),MAX($T$1:T19)+1,0) -> 19 | U20: 062-CENTRE FOR INSTRUCTIONAL TECHNOLOGY (CIT) *Till 31 Mar 2024 | V20: =IF(ISNUMBER(SEARCH(#REF!,Q20)),MAX($V$1:V19)+1,0) -> 0 | Y20: IDR -INDONESIAN RUPIAH
D21: BD-BANGLADESH | E21: =IF(ISNUMBER(SEARCH(#REF!,D21)),MAX($E$1:E20)+1,0) -> 0 | G21: =IF(ISNUMBER(SEARCH('Supplier Request FORM B'!$D$25,D21)),MAX($G$1:G20)+1,0) -> 20 | H21: BD-BANGLADESH | J21: =IF(ISNUMBER(SEARCH(#REF!,D21)),MAX($J$1:J20)+1,0) -> 0 | N21: FW102103407 | O21: FW102103407 | Q21: 063-OFFICE OF SAFETY,HEALTH AND ENVIRONMENT (OSHE) | R21: =IF(ISNUMBER(SEARCH(#REF!,Q21)),MAX($R$1:R20)+1,0) -> 0 | T21: =IF(ISNUMBER(SEARCH('Supplier Request FORM B'!$D$11,Q21)),MAX($T$1:T20)+1,0) -> 20 | U21: 063-OFFICE OF SAFETY,HEALTH AND ENVIRONMENT (OSHE) | V21: =IF(ISNUMBER(SEARCH(#REF!,Q21)),MAX($V$1:V20)+1,0) -> 0 | Y21: IEP -Irish punt
D22: BE-BELGIUM | E22: =IF(ISNUMBER(SEARCH(#REF!,D22)),MAX($E$1:E21)+1,0) -> 0 | G22: =IF(ISNUMBER(SEARCH('Supplier Request FORM B'!$D$25,D22)),MAX($G$1:G21)+1,0) -> 21 | H22: BE-BELGIUM | J22: =IF(ISNUMBER(SEARCH(#REF!,D22)),MAX($J$1:J21)+1,0) -> 0 | N22: FW221381867 | O22: FW221381867 | Q22: 065-OFFICE OF ALUMNI RELATIONS (OAR) | R22: =IF(ISNUMBER(SEARCH(#REF!,Q22)),MAX($R$1:R21)+1,0) -> 0 | T22: =IF(ISNUMBER(SEARCH('Supplier Request FORM B'!$D$11,Q22)),MAX($T$1:T21)+1,0) -> 21 | U22: 065-OFFICE OF ALUMNI RELATIONS (OAR) | V22: =IF(ISNUMBER(SEARCH(#REF!,Q22)),MAX($V$1:V21)+1,0) -> 0 | Y22: INR -INDIAN RUPEE
D23: BF-BURKINA-FASO | E23: =IF(ISNUMBER(SEARCH(#REF!,D23)),MAX($E$1:E22)+1,0) -> 0 | G23: =IF(ISNUMBER(SEARCH('Supplier Request FORM B'!$D$25,D23)),MAX($G$1:G22)+1,0) -> 22 | H23: BF-BURKINA-FASO | J23: =IF(ISNUMBER(SEARCH(#REF!,D23)),MAX($J$1:J22)+1,0) -> 0 | N23: FW321370765 | O23: FW321370765 | Q23: 066-DEVELOPMENT OFFICE (DVO) | R23: =IF(ISNUMBER(SEARCH(#REF!,Q23)),MAX($R$1:R22)+1,0) -> 0 | T23: =IF(ISNUMBER(SEARCH('Supplier Request FORM B'!$D$11,Q23)),MAX($T$1:T22)+1,0) -> 22 | U23: 066-DEVELOPMENT OFFICE (DVO) | V23: =IF(ISNUMBER(SEARCH(#REF!,Q23)),MAX($V$1:V22)+1,0) -> 0 | Y23: ITL -Italian Lira
D24: BG-BULGARIA | E24: =IF(ISNUMBER(SEARCH(#REF!,D24)),MAX($E$1:E23)+1,0) -> 0 | G24: =IF(ISNUMBER(SEARCH('Supplier Request FORM B'!$D$25,D24)),MAX($G$1:G23)+1,0) -> 23 | H24: BG-BULGARIA | J24: =IF(ISNUMBER(SEARCH(#REF!,D24)),MAX($J$1:J23)+1,0) -> 0 | N24: FW026003379 | O24: FW026003379 | Q24: 069-OFFICE OF DEPUTY PRESIDENT (RES & TECH) | R24: =IF(ISNUMBER(SEARCH(#REF!,Q24)),MAX($R$1:R23)+1,0) -> 0 | T24: =IF(ISNUMBER(SEARCH('Supplier Request FORM B'!$D$11,Q24)),MAX($T$1:T23)+1,0) -> 23 | U24: 069-OFFICE OF DEPUTY PRESIDENT (RES & TECH) | V24: =IF(ISNUMBER(SEARCH(#REF!,Q24)),MAX($V$1:V23)+1,0) -> 0 | Y24: JPY -Japanese Yen
D25: BH-BAHRAIN | E25: =IF(ISNUMBER(SEARCH(#REF!,D25)),MAX($E$1:E24)+1,0) -> 0 | G25: =IF(ISNUMBER(SEARCH('Supplier Request FORM B'!$D$25,D25)),MAX($G$1:G24)+1,0) -> 24 | H25: BH-BAHRAIN | J25: =IF(ISNUMBER(SEARCH(#REF!,D25)),MAX($J$1:J24)+1,0) -> 0 | N25: FW113011258 | O25: FW113011258 | Q25: 072-OFFICE OF FINANCE (OFN) | R25: =IF(ISNUMBER(SEARCH(#REF!,Q25)),MAX($R$1:R24)+1,0) -> 0 | T25: =IF(ISNUMBER(SEARCH('Supplier Request FORM B'!$D$11,Q25)),MAX($T$1:T24)+1,0) -> 24 | U25: 072-OFFICE OF FINANCE (OFN) | V25: =IF(ISNUMBER(SEARCH(#REF!,Q25)),MAX($V$1:V24)+1,0) -> 0 | Y25: KRW -KOREAN WON
D26: BI-BURUNDI | E26: =IF(ISNUMBER(SEARCH(#REF!,D26)),MAX($E$1:E25)+1,0) -> 0 | G26: =IF(ISNUMBER(SEARCH('Supplier Request FORM B'!$D$25,D26)),MAX($G$1:G25)+1,0) -> 25 | H26: BI-BURUNDI | J26: =IF(ISNUMBER(SEARCH(#REF!,D26)),MAX($J$1:J25)+1,0) -> 0 | N26: FW031302997 | O26: FW031302997 | Q26: 073-OFFICE OF RISK MANAGEMENT AND COMPLIANCE | R26: =IF(ISNUMBER(SEARCH(#REF!,Q26)),MAX($R$1:R25)+1,0) -> 0 | T26: =IF(ISNUMBER(SEARCH('Supplier Request FORM B'!$D$11,Q26)),MAX($T$1:T25)+1,0) -> 25 | U26: 073-OFFICE OF RISK MANAGEMENT AND COMPLIANCE | V26: =IF(ISNUMBER(SEARCH(#REF!,Q26)),MAX($V$1:V25)+1,0) -> 0 | Y26: KWD -Kuwaiti Dinar
D27: BJ-BENIN | E27: =IF(ISNUMBER(SEARCH(#REF!,D27)),MAX($E$1:E26)+1,0) -> 0 | G27: =IF(ISNUMBER(SEARCH('Supplier Request FORM B'!$D$25,D27)),MAX($G$1:G26)+1,0) -> 26 | H27: BJ-BENIN | J27: =IF(ISNUMBER(SEARCH(#REF!,D27)),MAX($J$1:J26)+1,0) -> 0 | N27: FW103901569 | O27: FW103901569 | Q27: 075-UCI CAMPUS LIFE | R27: =IF(ISNUMBER(SEARCH(#REF!,Q27)),MAX($R$1:R26)+1,0) -> 0 | T27: =IF(ISNUMBER(SEARCH('Supplier Request FORM B'!$D$11,Q27)),MAX($T$1:T26)+1,0) -> 26 | U27: 075-UCI CAMPUS LIFE | V27: =IF(ISNUMBER(SEARCH(#REF!,Q27)),MAX($V$1:V26)+1,0) -> 0 | Y27: LKR -SRI LANKA RUPEE
D28: BM-BERMUDA | E28: =IF(ISNUMBER(SEARCH(#REF!,D28)),MAX($E$1:E27)+1,0) -> 0 | G28: =IF(ISNUMBER(SEARCH('Supplier Request FORM B'!$D$25,D28)),MAX($G$1:G27)+1,0) -> 27 | H28: BM-BERMUDA | J28: =IF(ISNUMBER(SEARCH(#REF!,D28)),MAX($J$1:J27)+1,0) -> 0 | N28: FW071108834 | O28: FW071108834 | Q28: 077-UCI CORPORATE ADMINISTRATION SECTION | R28: =IF(ISNUMBER(SEARCH(#REF!,Q28)),MAX($R$1:R27)+1,0) -> 0 | T28: =IF(ISNUMBER(SEARCH('Supplier Request FORM B'!$D$11,Q28)),MAX($T$1:T27)+1,0) -> 27 | U28: 077-UCI CORPORATE ADMINISTRATION SECTION | V28: =IF(ISNUMBER(SEARCH(#REF!,Q28)),MAX($V$1:V27)+1,0) -> 0 | Y28: LUF -Luxembourg franc
D29: BN-BRUNEI DAR-ES-S | E29: =IF(ISNUMBER(SEARCH(#REF!,D29)),MAX($E$1:E28)+1,0) -> 0 | G29: =IF(ISNUMBER(SEARCH('Supplier Request FORM B'!$D$25,D29)),MAX($G$1:G28)+1,0) -> 28 | H29: BN-BRUNEI DAR-ES-S | J29: =IF(ISNUMBER(SEARCH(#REF!,D29)),MAX($J$1:J28)+1,0) -> 0 | N29: FW114903284 | O29: FW114903284 | Q29: 078-OFFICE OF INTERNAL AUDIT (OIA) | R29: =IF(ISNUMBER(SEARCH(#REF!,Q29)),MAX($R$1:R28)+1,0) -> 0 | T29: =IF(ISNUMBER(SEARCH('Supplier Request FORM B'!$D$11,Q29)),MAX($T$1:T28)+1,0) -> 28 | U29: 078-OFFICE OF INTERNAL AUDIT (OIA) | V29: =IF(ISNUMBER(SEARCH(#REF!,Q29)),MAX($V$1:V28)+1,0) -> 0 | Y29: MUR -MAURITIUS RUPEE
D30: BO-BOLIVIA | E30: =IF(ISNUMBER(SEARCH(#REF!,D30)),MAX($E$1:E29)+1,0) -> 0 | G30: =IF(ISNUMBER(SEARCH('Supplier Request FORM B'!$D$25,D30)),MAX($G$1:G29)+1,0) -> 29 | H30: BO-BOLIVIA | J30: =IF(ISNUMBER(SEARCH(#REF!,D30)),MAX($J$1:J29)+1,0) -> 0 | N30: FW071925046 | O30: FW071925046 | Q30: 081-OFFICE OF ENVIRONMENTAL SUSTAINABILITY(OES) | R30: =IF(ISNUMBER(SEARCH(#REF!,Q30)),MAX($R$1:R29)+1,0) -> 0 | T30: =IF(ISNUMBER(SEARCH('Supplier Request FORM B'!$D$11,Q30)),MAX($T$1:T29)+1,0) -> 29 | U30: 081-OFFICE OF ENVIRONMENTAL SUSTAINABILITY(OES) | V30: =IF(ISNUMBER(SEARCH(#REF!,Q30)),MAX($V$1:V29)+1,0) -> 0 | Y30: MXN -MEXICAN PESO
D31: BR-BRAZIL | E31: =IF(ISNUMBER(SEARCH(#REF!,D31)),MAX($E$1:E30)+1,0) -> 0 | G31: =IF(ISNUMBER(SEARCH('Supplier Request FORM B'!$D$25,D31)),MAX($G$1:G30)+1,0) -> 30 | H31: BR-BRAZIL | J31: =IF(ISNUMBER(SEARCH(#REF!,D31)),MAX($J$1:J30)+1,0) -> 0 | N31: FW211176891 | O31: FW211176891 | Q31: 082-UCI CAMPUS EMERGENCY & SECURITY | R31: =IF(ISNUMBER(SEARCH(#REF!,Q31)),MAX($R$1:R30)+1,0) -> 0 | T31: =IF(ISNUMBER(SEARCH('Supplier Request FORM B'!$D$11,Q31)),MAX($T$1:T30)+1,0) -> 30 | U31: 082-UCI CAMPUS EMERGENCY & SECURITY | V31: =IF(ISNUMBER(SEARCH(#REF!,Q31)),MAX($V$1:V30)+1,0) -> 0 | Y31: MXP -Z-DEFUNCT - MEXICAN PESO
D32: BS-BAHAMAS | E32: =IF(ISNUMBER(SEARCH(#REF!,D32)),MAX($E$1:E31)+1,0) -> 0 | G32: =IF(ISNUMBER(SEARCH('Supplier Request FORM B'!$D$25,D32)),MAX($G$1:G31)+1,0) -> 31 | H32: BS-BAHAMAS | J32: =IF(ISNUMBER(SEARCH(#REF!,D32)),MAX($J$1:J31)+1,0) -> 0 | N32: FW124071889 | O32: FW124071889 | Q32: 083-COMPARATIVE MEDICINE | R32: =IF(ISNUMBER(SEARCH(#REF!,Q32)),MAX($R$1:R31)+1,0) -> 0 | T32: =IF(ISNUMBER(SEARCH('Supplier Request FORM B'!$D$11,Q32)),MAX($T$1:T31)+1,0) -> 31 | U32: 083-COMPARATIVE MEDICINE | V32: =IF(ISNUMBER(SEARCH(#REF!,Q32)),MAX($V$1:V31)+1,0) -> 0 | Y32: MYR -MALAYSIAN RINGGIT
D33: BT-BHUTAN | E33: =IF(ISNUMBER(SEARCH(#REF!,D33)),MAX($E$1:E32)+1,0) -> 0 | G33: =IF(ISNUMBER(SEARCH('Supplier Request FORM B'!$D$25,D33)),MAX($G$1:G32)+1,0) -> 32 | H33: BT-BHUTAN | J33: =IF(ISNUMBER(SEARCH(#REF!,D33)),MAX($J$1:J32)+1,0) -> 0 | N33: FW124085066 | O33: FW124085066 | Q33: 084-UNIVERSITY HEALTH CENTRE (UHC) | R33: =IF(ISNUMBER(SEARCH(#REF!,Q33)),MAX($R$1:R32)+1,0) -> 0 | T33: =IF(ISNUMBER(SEARCH('Supplier Request FORM B'!$D$11,Q33)),MAX($T$1:T32)+1,0) -> 32 | U33: 084-UNIVERSITY HEALTH CENTRE (UHC) | V33: =IF(ISNUMBER(SEARCH(#REF!,Q33)),MAX($V$1:V32)+1,0) -> 0 | Y33: NLG -Dutch Guilder
D34: BU-BURMA | E34: =IF(ISNUMBER(SEARCH(#REF!,D34)),MAX($E$1:E33)+1,0) -> 0 | G34: =IF(ISNUMBER(SEARCH('Supplier Request FORM B'!$D$25,D34)),MAX($G$1:G33)+1,0) -> 33 | H34: BU-BURMA | J34: =IF(ISNUMBER(SEARCH(#REF!,D34)),MAX($J$1:J33)+1,0) -> 0 | N34: FW071000770 | O34: FW071000770 | Q34: 085-UTOWN MANAGEMENT OFFICE | R34: =IF(ISNUMBER(SEARCH(#REF!,Q34)),MAX($R$1:R33)+1,0) -> 0 | T34: =IF(ISNUMBER(SEARCH('Supplier Request FORM B'!$D$11,Q34)),MAX($T$1:T33)+1,0) -> 33 | U34: 085-UTOWN MANAGEMENT OFFICE | V34: =IF(ISNUMBER(SEARCH(#REF!,Q34)),MAX($V$1:V33)+1,0) -> 0 | Y34: NOK -Norwegian Krone
D35: BV-BOUVET ISLAND | E35: =IF(ISNUMBER(SEARCH(#REF!,D35)),MAX($E$1:E34)+1,0) -> 0 | G35: =IF(ISNUMBER(SEARCH('Supplier Request FORM B'!$D$25,D35)),MAX($G$1:G34)+1,0) -> 34 | H35: BV-BOUVET ISLAND | J35: =IF(ISNUMBER(SEARCH(#REF!,D35)),MAX($J$1:J34)+1,0) -> 0 | N35: FW107001232 | O35: FW107001232 | Q35: 087-UCI CAMPUS ASSET MANAGEMENT | R35: =IF(ISNUMBER(SEARCH(#REF!,Q35)),MAX($R$1:R34)+1,0) -> 0 | T35: =IF(ISNUMBER(SEARCH('Supplier Request FORM B'!$D$11,Q35)),MAX($T$1:T34)+1,0) -> 34 | U35: 087-UCI CAMPUS ASSET MANAGEMENT | V35: =IF(ISNUMBER(SEARCH(#REF!,Q35)),MAX($V$1:V34)+1,0) -> 0 | Y35: NZD -NEW ZEALAND DOLLAR
D36: BW-BOTSWANA | E36: =IF(ISNUMBER(SEARCH(#REF!,D36)),MAX($E$1:E35)+1,0) -> 0 | G36: =IF(ISNUMBER(SEARCH('Supplier Request FORM B'!$D$25,D36)),MAX($G$1:G35)+1,0) -> 35 | H36: BW-BOTSWANA | J36: =IF(ISNUMBER(SEARCH(#REF!,D36)),MAX($J$1:J35)+1,0) -> 0 | N36: FW122241912 | O36: FW122241912 | Q36: 088-OFFICE OF CAMPUS AMENITIES (OCA) | R36: =IF(ISNUMBER(SEARCH(#REF!,Q36)),MAX($R$1:R35)+1,0) -> 0 | T36: =IF(ISNUMBER(SEARCH('Supplier Request FORM B'!$D$11,Q36)),MAX($T$1:T35)+1,0) -> 35 | U36: 088-OFFICE OF CAMPUS AMENITIES (OCA) | V36: =IF(ISNUMBER(SEARCH(#REF!,Q36)),MAX($V$1:V35)+1,0) -> 0 | Y36: PHP -PHILIPPINE PESO
D37: BY-BELARUS | E37: =IF(ISNUMBER(SEARCH(#REF!,D37)),MAX($E$1:E36)+1,0) -> 0 | G37: =IF(ISNUMBER(SEARCH('Supplier Request FORM B'!$D$25,D37)),MAX($G$1:G36)+1,0) -> 36 | H37: BY-BELARUS | J37: =IF(ISNUMBER(SEARCH(#REF!,D37)),MAX($J$1:J36)+1,0) -> 0 | N37: FW231382267 | O37: FW231382267 | Q37: 089-CENTRE FOR FUTURE-READY GRADUATES (CFG) | R37: =IF(ISNUMBER(SEARCH(#REF!,Q37)),MAX($R$1:R36)+1,0) -> 0 | T37: =IF(ISNUMBER(SEARCH('Supplier Request FORM B'!$D$11,Q37)),MAX($T$1:T36)+1,0) -> 36 | U37: 089-CENTRE FOR FUTURE-READY GRADUATES (CFG) | V37: =IF(ISNUMBER(SEARCH(#REF!,Q37)),MAX($V$1:V36)+1,0) -> 0 | Y37: PKR -PAKISTAN RUPEE
D38: BZ-BELIZE | E38: =IF(ISNUMBER(SEARCH(#REF!,D38)),MAX($E$1:E37)+1,0) -> 0 | G38: =IF(ISNUMBER(SEARCH('Supplier Request FORM B'!$D$25,D38)),MAX($G$1:G37)+1,0) -> 37 | H38: BZ-BELIZE | J38: =IF(ISNUMBER(SEARCH(#REF!,D38)),MAX($J$1:J37)+1,0) -> 0 | N38: AU939200 | O38: AU939200 | Q38: 090-EUROPEAN UNION CENTRE | R38: =IF(ISNUMBER(SEARCH(#REF!,Q38)),MAX($R$1:R37)+1,0) -> 0 | T38: =IF(ISNUMBER(SEARCH('Supplier Request FORM B'!$D$11,Q38)),MAX($T$1:T37)+1,0) -> 37 | U38: 090-EUROPEAN UNION CENTRE | V38: =IF(ISNUMBER(SEARCH(#REF!,Q38)),MAX($V$1:V37)+1,0) -> 0 | Y38: PLN -POLISH ZLOTY
D39: CA-CANADA | E39: =IF(ISNUMBER(SEARCH(#REF!,D39)),MAX($E$1:E38)+1,0) -> 0 | G39: =IF(ISNUMBER(SEARCH('Supplier Request FORM B'!$D$25,D39)),MAX($G$1:G38)+1,0) -> 38 | H39: CA-CANADA | J39: =IF(ISNUMBER(SEARCH(#REF!,D39)),MAX($J$1:J38)+1,0) -> 0 | N39: FW062000019 | O39: FW062000019 | Q39: 091-CENTRAL PROCUREMENT OFFICE (CPO) | R39: =IF(ISNUMBER(SEARCH(#REF!,Q39)),MAX($R$1:R38)+1,0) -> 0 | T39: =IF(ISNUMBER(SEARCH('Supplier Request FORM B'!$D$11,Q39)),MAX($T$1:T38)+1,0) -> 38 | U39: 091-CENTRAL PROCUREMENT OFFICE (CPO) | V39: =IF(ISNUMBER(SEARCH(#REF!,Q39)),MAX($V$1:V38)+1,0) -> 0 | Y39: PTE -Portuguese Escudo
D40: CC-COCONUT ISLANDS | E40: =IF(ISNUMBER(SEARCH(#REF!,D40)),MAX($E$1:E39)+1,0) -> 0 | G40: =IF(ISNUMBER(SEARCH('Supplier Request FORM B'!$D$25,D40)),MAX($G$1:G39)+1,0) -> 39 | H40: CC-COCONUT ISLANDS | J40: =IF(ISNUMBER(SEARCH(#REF!,D40)),MAX($J$1:J39)+1,0) -> 0 | N40: FW211272520 | O40: FW211272520 | Q40: 095-BOT SECRETARIAT | R40: =IF(ISNUMBER(SEARCH(#REF!,Q40)),MAX($R$1:R39)+1,0) -> 0 | T40: =IF(ISNUMBER(SEARCH('Supplier Request FORM B'!$D$11,Q40)),MAX($T$1:T39)+1,0) -> 39 | U40: 095-BOT SECRETARIAT | V40: =IF(ISNUMBER(SEARCH(#REF!,Q40)),MAX($V$1:V39)+1,0) -> 0 | Y40: RUB -RUSSIAN RUBLE
D41: CD-CONGO, DEM REP | E41: =IF(ISNUMBER(SEARCH(#REF!,D41)),MAX($E$1:E40)+1,0) -> 0 | G41: =IF(ISNUMBER(SEARCH('Supplier Request FORM B'!$D$25,D41)),MAX($G$1:G40)+1,0) -> 40 | H41: CD-CONGO, DEM REP | J41: =IF(ISNUMBER(SEARCH(#REF!,D41)),MAX($J$1:J40)+1,0) -> 0 | N41: AU016515 | O41: AU016515 | Q41: 101-DEAN'S OFFICE, FACULTY OF ARTS & SOCIAL SC. | R41: =IF(ISNUMBER(SEARCH(#REF!,Q41)),MAX($R$1:R40)+1,0) -> 0 | T41: =IF(ISNUMBER(SEARCH('Supplier Request FORM B'!$D$11,Q41)),MAX($T$1:T40)+1,0) -> 40 | U41: 101-DEAN'S OFFICE, FACULTY OF ARTS & SOCIAL SC. | V41: =IF(ISNUMBER(SEARCH(#REF!,Q41)),MAX($V$1:V40)+1,0) -> 0 | Y41: SEK -Swedish Krona
D42: CF-CENTRAL AFR.REP | E42: =IF(ISNUMBER(SEARCH(#REF!,D42)),MAX($E$1:E41)+1,0) -> 0 | G42: =IF(ISNUMBER(SEARCH('Supplier Request FORM B'!$D$25,D42)),MAX($G$1:G41)+1,0) -> 41 | H42: CF-CENTRAL AFR.REP | J42: =IF(ISNUMBER(SEARCH(#REF!,D42)),MAX($J$1:J41)+1,0) -> 0 | N42: AU014202 | O42: AU014202 | Q42: 102-DEPARTMENT OF CHINESE STUDIES | R42: =IF(ISNUMBER(SEARCH(#REF!,Q42)),MAX($R$1:R41)+1,0) -> 0 | T42: =IF(ISNUMBER(SEARCH('Supplier Request FORM B'!$D$11,Q42)),MAX($T$1:T41)+1,0) -> 41 | U42: 102-DEPARTMENT OF CHINESE STUDIES | V42: =IF(ISNUMBER(SEARCH(#REF!,Q42)),MAX($V$1:V41)+1,0) -> 0 | Y42: SGD -Singapore Dollar
D43: CG-CONGO | E43: =IF(ISNUMBER(SEARCH(#REF!,D43)),MAX($E$1:E42)+1,0) -> 0 | G43: =IF(ISNUMBER(SEARCH('Supplier Request FORM B'!$D$25,D43)),MAX($G$1:G42)+1,0) -> 42 | H43: CG-CONGO | J43: =IF(ISNUMBER(SEARCH(#REF!,D43)),MAX($J$1:J42)+1,0) -> 0 | N43: AU012291 | O43: AU012291 | Q43: 103-DEPARTMENT OF ENGLISH LANGUAGE & LITERATURE | R43: =IF(ISNUMBER(SEARCH(#REF!,Q43)),MAX($R$1:R42)+1,0) -> 0 | T43: =IF(ISNUMBER(SEARCH('Supplier Request FORM B'!$D$11,Q43)),MAX($T$1:T42)+1,0) -> 42 | U43: 103-DEPARTMENT OF ENGLISH LANGUAGE & LITERATURE | V43: =IF(ISNUMBER(SEARCH(#REF!,Q43)),MAX($V$1:V42)+1,0) -> 0 | Y43: SUR -Z-DEFUNCT -RUSSIAN RUBLE
D44: CH-SWITZERLAND | E44: =IF(ISNUMBER(SEARCH(#REF!,D44)),MAX($E$1:E43)+1,0) -> 0 | G44: =IF(ISNUMBER(SEARCH('Supplier Request FORM B'!$D$25,D44)),MAX($G$1:G43)+1,0) -> 43 | H44: CH-SWITZERLAND | J44: =IF(ISNUMBER(SEARCH(#REF!,D44)),MAX($J$1:J43)+1,0) -> 0 | N44: AU012172 | O44: AU012172 | Q44: 104-DEPARTMENT OF MALAY STUDIES | R44: =IF(ISNUMBER(SEARCH(#REF!,Q44)),MAX($R$1:R43)+1,0) -> 0 | T44: =IF(ISNUMBER(SEARCH('Supplier Request FORM B'!$D$11,Q44)),MAX($T$1:T43)+1,0) -> 43 | U44: 104-DEPARTMENT OF MALAY STUDIES | V44: =IF(ISNUMBER(SEARCH(#REF!,Q44)),MAX($V$1:V43)+1,0) -> 0 | Y44: THB -THAI BAHT
D45: CI-COTE D'IVOIRE | E45: =IF(ISNUMBER(SEARCH(#REF!,D45)),MAX($E$1:E44)+1,0) -> 0 | G45: =IF(ISNUMBER(SEARCH('Supplier Request FORM B'!$D$25,D45)),MAX($G$1:G44)+1,0) -> 44 | H45: CI-COTE D'IVOIRE | J45: =IF(ISNUMBER(SEARCH(#REF!,D45)),MAX($J$1:J44)+1,0) -> 0 | N45: AU012006 | O45: AU012006 | Q45: 106-DEPARTMENT OF PHILOSOPHY | R45: =IF(ISNUMBER(SEARCH(#REF!,Q45)),MAX($R$1:R44)+1,0) -> 0 | T45: =IF(ISNUMBER(SEARCH('Supplier Request FORM B'!$D$11,Q45)),MAX($T$1:T44)+1,0) -> 44 | U45: 106-DEPARTMENT OF PHILOSOPHY | V45: =IF(ISNUMBER(SEARCH(#REF!,Q45)),MAX($V$1:V44)+1,0) -> 0 | Y45: TWD -TAIWAN NEW DOLLAR
D46: CK-COOK ISLANDS | E46: =IF(ISNUMBER(SEARCH(#REF!,D46)),MAX($E$1:E45)+1,0) -> 0 | G46: =IF(ISNUMBER(SEARCH('Supplier Request FORM B'!$D$25,D46)),MAX($G$1:G45)+1,0) -> 45 | H46: CK-COOK ISLANDS | J46: =IF(ISNUMBER(SEARCH(#REF!,D46)),MAX($J$1:J45)+1,0) -> 0 | N46: AU013606 | O46: AU013606 | Q46: 108-DEPARTMENT OF POLITICAL SCIENCE | R46: =IF(ISNUMBER(SEARCH(#REF!,Q46)),MAX($R$1:R45)+1,0) -> 0 | T46: =IF(ISNUMBER(SEARCH('Supplier Request FORM B'!$D$11,Q46)),MAX($T$1:T45)+1,0) -> 45 | U46: 108-DEPARTMENT OF POLITICAL SCIENCE | V46: =IF(ISNUMBER(SEARCH(#REF!,Q46)),MAX($V$1:V45)+1,0) -> 0 | Y46: USD -American Dollar
D47: CL-CHILE | E47: =IF(ISNUMBER(SEARCH(#REF!,D47)),MAX($E$1:E46)+1,0) -> 0 | G47: =IF(ISNUMBER(SEARCH('Supplier Request FORM B'!$D$25,D47)),MAX($G$1:G46)+1,0) -> 46 | H47: CL-CHILE | J47: =IF(ISNUMBER(SEARCH(#REF!,D47)),MAX($J$1:J46)+1,0) -> 0 | N47: FW256078514 | O47: FW256078514 | Q47: 109-DEPARTMENT OF GEOGRAPHY | R47: =IF(ISNUMBER(SEARCH(#REF!,Q47)),MAX($R$1:R46)+1,0) -> 0 | T47: =IF(ISNUMBER(SEARCH('Supplier Request FORM B'!$D$11,Q47)),MAX($T$1:T46)+1,0) -> 46 | U47: 109-DEPARTMENT OF GEOGRAPHY | V47: =IF(ISNUMBER(SEARCH(#REF!,Q47)),MAX($V$1:V46)+1,0) -> 0 | Y47: VND -VIETNAM DONG
D48: CM-CAMEROON | E48: =IF(ISNUMBER(SEARCH(#REF!,D48)),MAX($E$1:E47)+1,0) -> 0 | G48: =IF(ISNUMBER(SEARCH('Supplier Request FORM B'!$D$25,D48)),MAX($G$1:G47)+1,0) -> 47 | H48: CM-CAMEROON | J48: =IF(ISNUMBER(SEARCH(#REF!,D48)),MAX($J$1:J47)+1,0) -> 0 | N48: FW322172496 | O48: FW322172496 | Q48: 110-DEPARTMENT OF HISTORY | R48: =IF(ISNUMBER(SEARCH(#REF!,Q48)),MAX($R$1:R47)+1,0) -> 0 | T48: =IF(ISNUMBER(SEARCH('Supplier Request FORM B'!$D$11,Q48)),MAX($T$1:T47)+1,0) -> 47 | U48: 110-DEPARTMENT OF HISTORY | V48: =IF(ISNUMBER(SEARCH(#REF!,Q48)),MAX($V$1:V47)+1,0) -> 0 | Y48: ZAR -South African Rand
D49: CN-CHINA | E49: =IF(ISNUMBER(SEARCH(#REF!,D49)),MAX($E$1:E48)+1,0) -> 0 | G49: =IF(ISNUMBER(SEARCH('Supplier Request FORM B'!$D$25,D49)),MAX($G$1:G48)+1,0) -> 48 | H49: CN-CHINA | J49: =IF(ISNUMBER(SEARCH(#REF!,D49)),MAX($J$1:J48)+1,0) -> 0 | N49: FW082900872 | O49: FW082900872 | Q49: 111-DEPARTMENT OF SOCIOLOGY | R49: =IF(ISNUMBER(SEARCH(#REF!,Q49)),MAX($R$1:R48)+1,0) -> 0 | T49: =IF(ISNUMBER(SEARCH('Supplier Request FORM B'!$D$11,Q49)),MAX($T$1:T48)+1,0) -> 48 | U49: 111-DEPARTMENT OF SOCIOLOGY | V49: =IF(ISNUMBER(SEARCH(#REF!,Q49)),MAX($V$1:V48)+1,0) -> 0
D50: CO-COLOMBIA | E50: =IF(ISNUMBER(SEARCH(#REF!,D50)),MAX($E$1:E49)+1,0) -> 0 | G50: =IF(ISNUMBER(SEARCH('Supplier Request FORM B'!$D$25,D50)),MAX($G$1:G49)+1,0) -> 49 | H50: CO-COLOMBIA | J50: =IF(ISNUMBER(SEARCH(#REF!,D50)),MAX($J$1:J49)+1,0) -> 0 | N50: FW103112976 | O50: FW103112976 | Q50: 112-DEPARTMENT OF JAPANESE STUDIES | R50: =IF(ISNUMBER(SEARCH(#REF!,Q50)),MAX($R$1:R49)+1,0) -> 0 | T50: =IF(ISNUMBER(SEARCH('Supplier Request FORM B'!$D$11,Q50)),MAX($T$1:T49)+1,0) -> 49 | U50: 112-DEPARTMENT OF JAPANESE STUDIES | V50: =IF(ISNUMBER(SEARCH(#REF!,Q50)),MAX($V$1:V49)+1,0) -> 0
D51: CR-COSTA RICA | E51: =IF(ISNUMBER(SEARCH(#REF!,D51)),MAX($E$1:E50)+1,0) -> 0 | G51: =IF(ISNUMBER(SEARCH('Supplier Request FORM B'!$D$25,D51)),MAX($G$1:G50)+1,0) -> 50 | H51: CR-COSTA RICA | J51: =IF(ISNUMBER(SEARCH(#REF!,D51)),MAX($J$1:J50)+1,0) -> 0 | N51: FW075900575 | O51: FW075900575 | Q51: 117-DEPARTMENT OF SOUTHEAST ASIAN STUDIES | R51: =IF(ISNUMBER(SEARCH(#REF!,Q51)),MAX($R$1:R50)+1,0) -> 0 | T51: =IF(ISNUMBER(SEARCH('Supplier Request FORM B'!$D$11,Q51)),MAX($T$1:T50)+1,0) -> 50 | U51: 117-DEPARTMENT OF SOUTHEAST ASIAN STUDIES | V51: =IF(ISNUMBER(SEARCH(#REF!,Q51)),MAX($V$1:V50)+1,0) -> 0
D52: CS-SERBIA & MONTEN | E52: =IF(ISNUMBER(SEARCH(#REF!,D52)),MAX($E$1:E51)+1,0) -> 0 | G52: =IF(ISNUMBER(SEARCH('Supplier Request FORM B'!$D$25,D52)),MAX($G$1:G51)+1,0) -> 51 | H52: CS-SERBIA & MONTEN | J52: =IF(ISNUMBER(SEARCH(#REF!,D52)),MAX($J$1:J51)+1,0) -> 0 | N52: FW261171338 | O52: FW261171338 | Q52: 122-DEPARTMENT OF ECONOMICS | R52: =IF(ISNUMBER(SEARCH(#REF!,Q52)),MAX($R$1:R51)+1,0) -> 0 | T52: =IF(ISNUMBER(SEARCH('Supplier Request FORM B'!$D$11,Q52)),MAX($T$1:T51)+1,0) -> 51 | U52: 122-DEPARTMENT OF ECONOMICS | V52: =IF(ISNUMBER(SEARCH(#REF!,Q52)),MAX($V$1:V51)+1,0) -> 0
D53: CU-CUBA | E53: =IF(ISNUMBER(SEARCH(#REF!,D53)),MAX($E$1:E52)+1,0) -> 0 | G53: =IF(ISNUMBER(SEARCH('Supplier Request FORM B'!$D$25,D53)),MAX($G$1:G52)+1,0) -> 52 | H53: CU-CUBA | J53: =IF(ISNUMBER(SEARCH(#REF!,D53)),MAX($J$1:J52)+1,0) -> 0 | N53: FW221472815 | O53: FW221472815 | Q53: 123-SOUTH ASIAN STUDIES PROGRAMME | R53: =IF(ISNUMBER(SEARCH(#REF!,Q53)),MAX($R$1:R52)+1,0) -> 0 | T53: =IF(ISNUMBER(SEARCH('Supplier Request FORM B'!$D$11,Q53)),MAX($T$1:T52)+1,0) -> 52 | U53: 123-SOUTH ASIAN STUDIES PROGRAMME | V53: =IF(ISNUMBER(SEARCH(#REF!,Q53)),MAX($V$1:V52)+1,0) -> 0
D54: CV-CAPE VERDE | E54: =IF(ISNUMBER(SEARCH(#REF!,D54)),MAX($E$1:E53)+1,0) -> 0 | G54: =IF(ISNUMBER(SEARCH('Supplier Request FORM B'!$D$25,D54)),MAX($G$1:G53)+1,0) -> 53 | H54: CV-CAPE VERDE | J54: =IF(ISNUMBER(SEARCH(#REF!,D54)),MAX($J$1:J53)+1,0) -> 0 | N54: FW031301752 | O54: FW031301752 | Q54: 127-CENTRE FOR LANGUAGE STUDIES | R54: =IF(ISNUMBER(SEARCH(#REF!,Q54)),MAX($R$1:R53)+1,0) -> 0 | T54: =IF(ISNUMBER(SEARCH('Supplier Request FORM B'!$D$11,Q54)),MAX($T$1:T53)+1,0) -> 53 | U54: 127-CENTRE FOR LANGUAGE STUDIES | V54: =IF(ISNUMBER(SEARCH(#REF!,Q54)),MAX($V$1:V53)+1,0) -> 0
D55: CX-CHRISTMAS ISLAD | E55: =IF(ISNUMBER(SEARCH(#REF!,D55)),MAX($E$1:E54)+1,0) -> 0 | G55: =IF(ISNUMBER(SEARCH('Supplier Request FORM B'!$D$25,D55)),MAX($G$1:G54)+1,0) -> 54 | H55: CX-CHRISTMAS ISLAD | J55: =IF(ISNUMBER(SEARCH(#REF!,D55)),MAX($J$1:J54)+1,0) -> 0 | N55: FW211287560 | O55: FW211287560 | Q55: 128-DEPARTMENT OF COMMUNICATIONS AND NEW MEDIA | R55: =IF(ISNUMBER(SEARCH(#REF!,Q55)),MAX($R$1:R54)+1,0) -> 0 | T55: =IF(ISNUMBER(SEARCH('Supplier Request FORM B'!$D$11,Q55)),MAX($T$1:T54)+1,0) -> 54 | U55: 128-DEPARTMENT OF COMMUNICATIONS AND NEW MEDIA | V55: =IF(ISNUMBER(SEARCH(#REF!,Q55)),MAX($V$1:V54)+1,0) -> 0
D56: CY-CYPRUS | E56: =IF(ISNUMBER(SEARCH(#REF!,D56)),MAX($E$1:E55)+1,0) -> 0 | G56: =IF(ISNUMBER(SEARCH('Supplier Request FORM B'!$D$25,D56)),MAX($G$1:G55)+1,0) -> 55 | H56: CY-CYPRUS | J56: =IF(ISNUMBER(SEARCH(#REF!,D56)),MAX($J$1:J55)+1,0) -> 0 | N56: FW021206582 | O56: FW021206582 | Q56: 134-DEPARTMENT OF SOCIAL WORK | R56: =IF(ISNUMBER(SEARCH(#REF!,Q56)),MAX($R$1:R55)+1,0) -> 0 | T56: =IF(ISNUMBER(SEARCH('Supplier Request FORM B'!$D$11,Q56)),MAX($T$1:T55)+1,0) -> 55 | U56: 134-DEPARTMENT OF SOCIAL WORK | V56: =IF(ISNUMBER(SEARCH(#REF!,Q56)),MAX($V$1:V55)+1,0) -> 0
D57: CZ-CZECH REPUBLIC | E57: =IF(ISNUMBER(SEARCH(#REF!,D57)),MAX($E$1:E56)+1,0) -> 0 | G57: =IF(ISNUMBER(SEARCH('Supplier Request FORM B'!$D$25,D57)),MAX($G$1:G56)+1,0) -> 56 | H57: CZ-CZECH REPUBLIC | J57: =IF(ISNUMBER(SEARCH(#REF!,D57)),MAX($J$1:J56)+1,0) -> 0 | N57: FW211371858 | O57: FW211371858 | Q57: 141-DEAN'S OFFICE, FACULTY OF SCIENCE | R57: =IF(ISNUMBER(SEARCH(#REF!,Q57)),MAX($R$1:R56)+1,0) -> 0 | T57: =IF(ISNUMBER(SEARCH('Supplier Request FORM B'!$D$11,Q57)),MAX($T$1:T56)+1,0) -> 56 | U57: 141-DEAN'S OFFICE, FACULTY OF SCIENCE | V57: =IF(ISNUMBER(SEARCH(#REF!,Q57)),MAX($V$1:V56)+1,0) -> 0
D58: DD-EAST GERMANY | E58: =IF(ISNUMBER(SEARCH(#REF!,D58)),MAX($E$1:E57)+1,0) -> 0 | G58: =IF(ISNUMBER(SEARCH('Supplier Request FORM B'!$D$25,D58)),MAX($G$1:G57)+1,0) -> 57 | H58: DD-EAST GERMANY | J58: =IF(ISNUMBER(SEARCH(#REF!,D58)),MAX($J$1:J57)+1,0) -> 0 | N58: AU015010 | O58: AU015010 | Q58: 143-DEPARTMENT OF CHEMISTRY | R58: =IF(ISNUMBER(SEARCH(#REF!,Q58)),MAX($R$1:R57)+1,0) -> 0 | T58: =IF(ISNUMBER(SEARCH('Supplier Request FORM B'!$D$11,Q58)),MAX($T$1:T57)+1,0) -> 57 | U58: 143-DEPARTMENT OF CHEMISTRY | V58: =IF(ISNUMBER(SEARCH(#REF!,Q58)),MAX($V$1:V57)+1,0) -> 0
D59: DE-GERMANY | E59: =IF(ISNUMBER(SEARCH(#REF!,D59)),MAX($E$1:E58)+1,0) -> 0 | G59: =IF(ISNUMBER(SEARCH('Supplier Request FORM B'!$D$25,D59)),MAX($G$1:G58)+1,0) -> 58 | H59: DE-GERMANY | J59: =IF(ISNUMBER(SEARCH(#REF!,D59)),MAX($J$1:J58)+1,0) -> 0 | N59: AU013445 | O59: AU013445 | Q59: 144-DEPARTMENT OF PHYSICS | R59: =IF(ISNUMBER(SEARCH(#REF!,Q59)),MAX($R$1:R58)+1,0) -> 0 | T59: =IF(ISNUMBER(SEARCH('Supplier Request FORM B'!$D$11,Q59)),MAX($T$1:T58)+1,0) -> 58 | U59: 144-DEPARTMENT OF PHYSICS | V59: =IF(ISNUMBER(SEARCH(#REF!,Q59)),MAX($V$1:V58)+1,0) -> 0
D60: DG-WEST GERMANY | E60: =IF(ISNUMBER(SEARCH(#REF!,D60)),MAX($E$1:E59)+1,0) -> 0 | G60: =IF(ISNUMBER(SEARCH('Supplier Request FORM B'!$D$25,D60)),MAX($G$1:G59)+1,0) -> 59 | H60: DG-WEST GERMANY | J60: =IF(ISNUMBER(SEARCH(#REF!,D60)),MAX($J$1:J59)+1,0) -> 0 | N60: AU016281 | O60: AU016281 | Q60: 146-DEPARTMENT OF MATHEMATICS | R60: =IF(ISNUMBER(SEARCH(#REF!,Q60)),MAX($R$1:R59)+1,0) -> 0 | T60: =IF(ISNUMBER(SEARCH('Supplier Request FORM B'!$D$11,Q60)),MAX($T$1:T59)+1,0) -> 59 | U60: 146-DEPARTMENT OF MATHEMATICS | V60: =IF(ISNUMBER(SEARCH(#REF!,Q60)),MAX($V$1:V59)+1,0) -> 0
D61: DJ-DJIBOUTI | E61: =IF(ISNUMBER(SEARCH(#REF!,D61)),MAX($E$1:E60)+1,0) -> 0 | G61: =IF(ISNUMBER(SEARCH('Supplier Request FORM B'!$D$25,D61)),MAX($G$1:G60)+1,0) -> 60 | H61: DJ-DJIBOUTI | J61: =IF(ISNUMBER(SEARCH(#REF!,D61)),MAX($J$1:J60)+1,0) -> 0 | N61: AU012572 | O61: AU012572 | Q61: 148-DEPARTMENT OF PHARMACY | R61: =IF(ISNUMBER(SEARCH(#REF!,Q61)),MAX($R$1:R60)+1,0) -> 0 | T61: =IF(ISNUMBER(SEARCH('Supplier Request FORM B'!$D$11,Q61)),MAX($T$1:T60)+1,0) -> 60 | U61: 148-DEPARTMENT OF PHARMACY | V61: =IF(ISNUMBER(SEARCH(#REF!,Q61)),MAX($V$1:V60)+1,0) -> 0
D62: DK-DENMARK | E62: =IF(ISNUMBER(SEARCH(#REF!,D62)),MAX($E$1:E61)+1,0) -> 0 | G62: =IF(ISNUMBER(SEARCH('Supplier Request FORM B'!$D$25,D62)),MAX($G$1:G61)+1,0) -> 61 | H62: DK-DENMARK | J62: =IF(ISNUMBER(SEARCH(#REF!,D62)),MAX($J$1:J61)+1,0) -> 0 | N62: AU017324 | O62: AU017324 | Q62: 150-CTR FOR REM IMAGING,SENSING & PROCESSING (CRISP) | R62: =IF(ISNUMBER(SEARCH(#REF!,Q62)),MAX($R$1:R61)+1,0) -> 0 | T62: =IF(ISNUMBER(SEARCH('Supplier Request FORM B'!$D$11,Q62)),MAX($T$1:T61)+1,0) -> 61 | U62: 150-CTR FOR REM IMAGING,SENSING & PROCESSING (CRISP) | V62: =IF(ISNUMBER(SEARCH(#REF!,Q62)),MAX($V$1:V61)+1,0) -> 0
D63: DM-DOMINICA | E63: =IF(ISNUMBER(SEARCH(#REF!,D63)),MAX($E$1:E62)+1,0) -> 0 | G63: =IF(ISNUMBER(SEARCH('Supplier Request FORM B'!$D$25,D63)),MAX($G$1:G62)+1,0) -> 62 | H63: DM-DOMINICA | J63: =IF(ISNUMBER(SEARCH(#REF!,D63)),MAX($J$1:J62)+1,0) -> 0 | N63: AU016484 | O63: AU016484 | Q63: 154-DEPARTMENT OF BIOLOGICAL SCIENCES (DBS) | R63: =IF(ISNUMBER(SEARCH(#REF!,Q63)),MAX($R$1:R62)+1,0) -> 0 | T63: =IF(ISNUMBER(SEARCH('Supplier Request FORM B'!$D$11,Q63)),MAX($T$1:T62)+1,0) -> 62 | U63: 154-DEPARTMENT OF BIOLOGICAL SCIENCES (DBS) | V63: =IF(ISNUMBER(SEARCH(#REF!,Q63)),MAX($V$1:V62)+1,0) -> 0
D64: DO-DOMINICAN REP. | E64: =IF(ISNUMBER(SEARCH(#REF!,D64)),MAX($E$1:E63)+1,0) -> 0 | G64: =IF(ISNUMBER(SEARCH('Supplier Request FORM B'!$D$25,D64)),MAX($G$1:G63)+1,0) -> 63 | H64: DO-DOMINICAN REP. | J64: =IF(ISNUMBER(SEARCH(#REF!,D64)),MAX($J$1:J63)+1,0) -> 0 | N64: AU012475 | O64: AU012475 | Q64: 155-DEPARTMENT OF STATISTICS & DATA SCIENCE | R64: =IF(ISNUMBER(SEARCH(#REF!,Q64)),MAX($R$1:R63)+1,0) -> 0 | T64: =IF(ISNUMBER(SEARCH('Supplier Request FORM B'!$D$11,Q64)),MAX($T$1:T63)+1,0) -> 63 | U64: 155-DEPARTMENT OF STATISTICS & DATA SCIENCE | V64: =IF(ISNUMBER(SEARCH(#REF!,Q64)),MAX($V$1:V63)+1,0) -> 0
D65: DZ-ALGERIA | E65: =IF(ISNUMBER(SEARCH(#REF!,D65)),MAX($E$1:E64)+1,0) -> 0 | G65: =IF(ISNUMBER(SEARCH('Supplier Request FORM B'!$D$25,D65)),MAX($G$1:G64)+1,0) -> 64 | H65: DZ-ALGERIA | J65: =IF(ISNUMBER(SEARCH(#REF!,D65)),MAX($J$1:J64)+1,0) -> 0 | N65: AU013132 | O65: AU013132 | Q65: 159-LEE KONG CHIAN NATURAL HISTORY MUSEUM | R65: =IF(ISNUMBER(SEARCH(#REF!,Q65)),MAX($R$1:R64)+1,0) -> 0 | T65: =IF(ISNUMBER(SEARCH('Supplier Request FORM B'!$D$11,Q65)),MAX($T$1:T64)+1,0) -> 64 | U65: 159-LEE KONG CHIAN NATURAL HISTORY MUSEUM | V65: =IF(ISNUMBER(SEARCH(#REF!,Q65)),MAX($V$1:V64)+1,0) -> 0
D66: EC-ECUADOR | E66: =IF(ISNUMBER(SEARCH(#REF!,D66)),MAX($E$1:E65)+1,0) -> 0 | G66: =IF(ISNUMBER(SEARCH('Supplier Request FORM B'!$D$25,D66)),MAX($G$1:G65)+1,0) -> 65 | H66: EC-ECUADOR | J66: =IF(ISNUMBER(SEARCH(#REF!,D66)),MAX($J$1:J65)+1,0) -> 0 | N66: AU016452 | O66: AU016452 | Q66: 160-FOOD SCIENCE & TECHNOLOGY | R66: =IF(ISNUMBER(SEARCH(#REF!,Q66)),MAX($R$1:R65)+1,0) -> 0 | T66: =IF(ISNUMBER(SEARCH('Supplier Request FORM B'!$D$11,Q66)),MAX($T$1:T65)+1,0) -> 65 | U66: 160-FOOD SCIENCE & TECHNOLOGY | V66: =IF(ISNUMBER(SEARCH(#REF!,Q66)),MAX($V$1:V65)+1,0) -> 0
D67: EE-ESTONIA | E67: =IF(ISNUMBER(SEARCH(#REF!,D67)),MAX($E$1:E66)+1,0) -> 0 | F67: =IFERROR(INDEX($D:$D,MATCH(ROW(F66),$E:$E,0)),"") ->  | G67: =IF(ISNUMBER(SEARCH('Supplier Request FORM B'!$D$25,D67)),MAX($G$1:G66)+1,0) -> 66 | H67: =IFERROR(INDEX($D:$D,MATCH(ROW(H66),$G:$G,0)),"") -> EE-ESTONIA | J67: =IF(ISNUMBER(SEARCH(#REF!,D67)),MAX($J$1:J66)+1,0) -> 0 | K67: =IFERROR(INDEX($D:$D,MATCH(ROW(K66),$J:$J,0)),"") ->  | N67: AU012482 | O67: AU012482 | Q67: 202-SPORTS & UTOWN MANAGEMENT UNIT (SUU) | R67: =IF(ISNUMBER(SEARCH(#REF!,Q67)),MAX($R$1:R66)+1,0) -> 0 | S67: =IFERROR(INDEX(Q:Q,MATCH(ROW(S66),R:R,0)),"") ->  | T67: =IF(ISNUMBER(SEARCH('Supplier Request FORM B'!$D$11,Q67)),MAX($T$1:T66)+1,0) -> 66 | U67: =IFERROR(INDEX(Q:Q,MATCH(ROW(U66),T:T,0)),"") -> 202-SPORTS & UTOWN MANAGEMENT UNIT (SUU) | V67: =IF(ISNUMBER(SEARCH(#REF!,Q67)),MAX($V$1:V66)+1,0) -> 0 | W67: =IFERROR(INDEX(Q:Q,MATCH(ROW(W66),V:V,0)),"") -> 
D68: EG-EGYPT | E68: =IF(ISNUMBER(SEARCH(#REF!,D68)),MAX($E$1:E67)+1,0) -> 0 | G68: =IF(ISNUMBER(SEARCH('Supplier Request FORM B'!$D$25,D68)),MAX($G$1:G67)+1,0) -> 67 | H68: EG-EGYPT | J68: =IF(ISNUMBER(SEARCH(#REF!,D68)),MAX($J$1:J67)+1,0) -> 0 | N68: AU013275 | O68: AU013275 | Q68: 203-CONFERENCES & EVENTS MANAGEMENT UNIT (CEU) | R68: =IF(ISNUMBER(SEARCH(#REF!,Q68)),MAX($R$1:R67)+1,0) -> 0 | T68: =IF(ISNUMBER(SEARCH('Supplier Request FORM B'!$D$11,Q68)),MAX($T$1:T67)+1,0) -> 67 | U68: 203-CONFERENCES & EVENTS MANAGEMENT UNIT (CEU) | V68: =IF(ISNUMBER(SEARCH(#REF!,Q68)),MAX($V$1:V67)+1,0) -> 0
D69: EH-WEST SAHARA | E69: =IF(ISNUMBER(SEARCH(#REF!,D69)),MAX($E$1:E68)+1,0) -> 0 | G69: =IF(ISNUMBER(SEARCH('Supplier Request FORM B'!$D$25,D69)),MAX($G$1:G68)+1,0) -> 68 | H69: EH-WEST SAHARA | J69: =IF(ISNUMBER(SEARCH(#REF!,D69)),MAX($J$1:J68)+1,0) -> 0 | N69: AU013006 | O69: AU013006 | Q69: 204-CHUA THIAN POH COMMUNITY LEADERSHIP CTR (CTPCLC) | R69: =IF(ISNUMBER(SEARCH(#REF!,Q69)),MAX($R$1:R68)+1,0) -> 0 | T69: =IF(ISNUMBER(SEARCH('Supplier Request FORM B'!$D$11,Q69)),MAX($T$1:T68)+1,0) -> 68 | U69: 204-CHUA THIAN POH COMMUNITY LEADERSHIP CTR (CTPCLC) | V69: =IF(ISNUMBER(SEARCH(#REF!,Q69)),MAX($V$1:V68)+1,0) -> 0
D70: ER-ERITREA | E70: =IF(ISNUMBER(SEARCH(#REF!,D70)),MAX($E$1:E69)+1,0) -> 0 | G70: =IF(ISNUMBER(SEARCH('Supplier Request FORM B'!$D$25,D70)),MAX($G$1:G69)+1,0) -> 69 | H70: ER-ERITREA | J70: =IF(ISNUMBER(SEARCH(#REF!,D70)),MAX($J$1:J69)+1,0) -> 0 | N70: AU014298 | O70: AU014298 | Q70: 205-GLOBAL RELATIONS OFFICE (GRO) | R70: =IF(ISNUMBER(SEARCH(#REF!,Q70)),MAX($R$1:R69)+1,0) -> 0 | T70: =IF(ISNUMBER(SEARCH('Supplier Request FORM B'!$D$11,Q70)),MAX($T$1:T69)+1,0) -> 69 | U70: 205-GLOBAL RELATIONS OFFICE (GRO) | V70: =IF(ISNUMBER(SEARCH(#REF!,Q70)),MAX($V$1:V69)+1,0) -> 0
D71: ES-SPAIN | E71: =IF(ISNUMBER(SEARCH(#REF!,D71)),MAX($E$1:E70)+1,0) -> 0 | G71: =IF(ISNUMBER(SEARCH('Supplier Request FORM B'!$D$25,D71)),MAX($G$1:G70)+1,0) -> 70 | H71: ES-SPAIN | J71: =IF(ISNUMBER(SEARCH(#REF!,D71)),MAX($J$1:J70)+1,0) -> 0 | N71: AU013215 | O71: AU013215 | Q71: 206-TECHNOLOGY TRANSFER AND INNOVATION | R71: =IF(ISNUMBER(SEARCH(#REF!,Q71)),MAX($R$1:R70)+1,0) -> 0 | T71: =IF(ISNUMBER(SEARCH('Supplier Request FORM B'!$D$11,Q71)),MAX($T$1:T70)+1,0) -> 70 | U71: 206-TECHNOLOGY TRANSFER AND INNOVATION | V71: =IF(ISNUMBER(SEARCH(#REF!,Q71)),MAX($V$1:V70)+1,0) -> 0
D72: ET-ETHIOPIA | E72: =IF(ISNUMBER(SEARCH(#REF!,D72)),MAX($E$1:E71)+1,0) -> 0 | G72: =IF(ISNUMBER(SEARCH('Supplier Request FORM B'!$D$25,D72)),MAX($G$1:G71)+1,0) -> 71 | H72: ET-ETHIOPIA | J72: =IF(ISNUMBER(SEARCH(#REF!,D72)),MAX($J$1:J71)+1,0) -> 0 | N72: AU013040 | O72: AU013040 | Q72: 207-ECOSYSTEM BUSINESS DEVELOPMENT | R72: =IF(ISNUMBER(SEARCH(#REF!,Q72)),MAX($R$1:R71)+1,0) -> 0 | T72: =IF(ISNUMBER(SEARCH('Supplier Request FORM B'!$D$11,Q72)),MAX($T$1:T71)+1,0) -> 71 | U72: 207-ECOSYSTEM BUSINESS DEVELOPMENT | V72: =IF(ISNUMBER(SEARCH(#REF!,Q72)),MAX($V$1:V71)+1,0) -> 0
D73: FI-FINLAND | E73: =IF(ISNUMBER(SEARCH(#REF!,D73)),MAX($E$1:E72)+1,0) -> 0 | G73: =IF(ISNUMBER(SEARCH('Supplier Request FORM B'!$D$25,D73)),MAX($G$1:G72)+1,0) -> 72 | H73: FI-FINLAND | J73: =IF(ISNUMBER(SEARCH(#REF!,D73)),MAX($J$1:J72)+1,0) -> 0 | N73: AU014272 | O73: AU014272 | Q73: 221-DEAN'S OFFICE (DENTISTRY) | R73: =IF(ISNUMBER(SEARCH(#REF!,Q73)),MAX($R$1:R72)+1,0) -> 0 | T73: =IF(ISNUMBER(SEARCH('Supplier Request FORM B'!$D$11,Q73)),MAX($T$1:T72)+1,0) -> 72 | U73: 221-DEAN'S OFFICE (DENTISTRY) | V73: =IF(ISNUMBER(SEARCH(#REF!,Q73)),MAX($V$1:V72)+1,0) -> 0
D74: FJ-FIJI | E74: =IF(ISNUMBER(SEARCH(#REF!,D74)),MAX($E$1:E73)+1,0) -> 0 | G74: =IF(ISNUMBER(SEARCH('Supplier Request FORM B'!$D$25,D74)),MAX($G$1:G73)+1,0) -> 73 | H74: FJ-FIJI | J74: =IF(ISNUMBER(SEARCH(#REF!,D74)),MAX($J$1:J73)+1,0) -> 0 | N74: AU013260 | O74: AU013260 | Q74: 241-DEAN'S OFFICE (LAW) | R74: =IF(ISNUMBER(SEARCH(#REF!,Q74)),MAX($R$1:R73)+1,0) -> 0 | T74: =IF(ISNUMBER(SEARCH('Supplier Request FORM B'!$D$11,Q74)),MAX($T$1:T73)+1,0) -> 73 | U74: 241-DEAN'S OFFICE (LAW) | V74: =IF(ISNUMBER(SEARCH(#REF!,Q74)),MAX($V$1:V73)+1,0) -> 0
D75: FK-FALKLAND ISLNDS | E75: =IF(ISNUMBER(SEARCH(#REF!,D75)),MAX($E$1:E74)+1,0) -> 0 | G75: =IF(ISNUMBER(SEARCH('Supplier Request FORM B'!$D$25,D75)),MAX($G$1:G74)+1,0) -> 74 | H75: FK-FALKLAND ISLNDS | J75: =IF(ISNUMBER(SEARCH(#REF!,D75)),MAX($J$1:J74)+1,0) -> 0 | N75: AU016266 | O75: AU016266 | Q75: 251-DEAN'S OFFICE, SCHOOL OF COMPUTING | R75: =IF(ISNUMBER(SEARCH(#REF!,Q75)),MAX($R$1:R74)+1,0) -> 0 | T75: =IF(ISNUMBER(SEARCH('Supplier Request FORM B'!$D$11,Q75)),MAX($T$1:T74)+1,0) -> 74 | U75: 251-DEAN'S OFFICE, SCHOOL OF COMPUTING | V75: =IF(ISNUMBER(SEARCH(#REF!,Q75)),MAX($V$1:V74)+1,0) -> 0
D76: FM-MICRONESIA | E76: =IF(ISNUMBER(SEARCH(#REF!,D76)),MAX($E$1:E75)+1,0) -> 0 | G76: =IF(ISNUMBER(SEARCH('Supplier Request FORM B'!$D$25,D76)),MAX($G$1:G75)+1,0) -> 75 | H76: FM-MICRONESIA | J76: =IF(ISNUMBER(SEARCH(#REF!,D76)),MAX($J$1:J75)+1,0) -> 0 | N76: AU012092 | O76: AU012092 | Q76: 252-DEPARTMENT OF COMPUTER SCIENCE | R76: =IF(ISNUMBER(SEARCH(#REF!,Q76)),MAX($R$1:R75)+1,0) -> 0 | T76: =IF(ISNUMBER(SEARCH('Supplier Request FORM B'!$D$11,Q76)),MAX($T$1:T75)+1,0) -> 75 | U76: 252-DEPARTMENT OF COMPUTER SCIENCE | V76: =IF(ISNUMBER(SEARCH(#REF!,Q76)),MAX($V$1:V75)+1,0) -> 0
D77: FO-FAROE ISLANDS | E77: =IF(ISNUMBER(SEARCH(#REF!,D77)),MAX($E$1:E76)+1,0) -> 0 | G77: =IF(ISNUMBER(SEARCH('Supplier Request FORM B'!$D$25,D77)),MAX($G$1:G76)+1,0) -> 76 | H77: FO-FAROE ISLANDS | J77: =IF(ISNUMBER(SEARCH(#REF!,D77)),MAX($J$1:J76)+1,0) -> 0 | N77: AU013165 | O77: AU013165 | Q77: 253-INFORMATION SYSTEMS & ANALYTICS | R77: =IF(ISNUMBER(SEARCH(#REF!,Q77)),MAX($R$1:R76)+1,0) -> 0 | T77: =IF(ISNUMBER(SEARCH('Supplier Request FORM B'!$D$11,Q77)),MAX($T$1:T76)+1,0) -> 76 | U77: 253-INFORMATION SYSTEMS & ANALYTICS | V77: =IF(ISNUMBER(SEARCH(#REF!,Q77)),MAX($V$1:V76)+1,0) -> 0
D78: FR-FRANCE | E78: =IF(ISNUMBER(SEARCH(#REF!,D78)),MAX($E$1:E77)+1,0) -> 0 | G78: =IF(ISNUMBER(SEARCH('Supplier Request FORM B'!$D$25,D78)),MAX($G$1:G77)+1,0) -> 77 | H78: FR-FRANCE | J78: =IF(ISNUMBER(SEARCH(#REF!,D78)),MAX($J$1:J77)+1,0) -> 0 | N78: AU013334 | O78: AU013334 | Q78: 326-ASIA RESEARCH INSTITUTE | R78: =IF(ISNUMBER(SEARCH(#REF!,Q78)),MAX($R$1:R77)+1,0) -> 0 | T78: =IF(ISNUMBER(SEARCH('Supplier Request FORM B'!$D$11,Q78)),MAX($T$1:T77)+1,0) -> 77 | U78: 326-ASIA RESEARCH INSTITUTE | V78: =IF(ISNUMBER(SEARCH(#REF!,Q78)),MAX($V$1:V77)+1,0) -> 0
D79: GA-GABON | E79: =IF(ISNUMBER(SEARCH(#REF!,D79)),MAX($E$1:E78)+1,0) -> 0 | G79: =IF(ISNUMBER(SEARCH('Supplier Request FORM B'!$D$25,D79)),MAX($G$1:G78)+1,0) -> 78 | H79: GA-GABON | J79: =IF(ISNUMBER(SEARCH(#REF!,D79)),MAX($J$1:J78)+1,0) -> 0 | N79: AU013017 | O79: AU013017 | Q79: 347-TROPICAL MARINE SCIENCE INSTITUTE | R79: =IF(ISNUMBER(SEARCH(#REF!,Q79)),MAX($R$1:R78)+1,0) -> 0 | T79: =IF(ISNUMBER(SEARCH('Supplier Request FORM B'!$D$11,Q79)),MAX($T$1:T78)+1,0) -> 78 | U79: 347-TROPICAL MARINE SCIENCE INSTITUTE | V79: =IF(ISNUMBER(SEARCH(#REF!,Q79)),MAX($V$1:V78)+1,0) -> 0
D80: GB-UNITED KINGDOM | E80: =IF(ISNUMBER(SEARCH(#REF!,D80)),MAX($E$1:E79)+1,0) -> 0 | G80: =IF(ISNUMBER(SEARCH('Supplier Request FORM B'!$D$25,D80)),MAX($G$1:G79)+1,0) -> 79 | H80: GB-UNITED KINGDOM | J80: =IF(ISNUMBER(SEARCH(#REF!,D80)),MAX($J$1:J79)+1,0) -> 0 | N80: AU015901 | O80: AU015901 | Q80: 348-EAST ASIAN INSTITUTE (EAI) | R80: =IF(ISNUMBER(SEARCH(#REF!,Q80)),MAX($R$1:R79)+1,0) -> 0 | T80: =IF(ISNUMBER(SEARCH('Supplier Request FORM B'!$D$11,Q80)),MAX($T$1:T79)+1,0) -> 79 | U80: 348-EAST ASIAN INSTITUTE (EAI) | V80: =IF(ISNUMBER(SEARCH(#REF!,Q80)),MAX($V$1:V79)+1,0) -> 0
